Workbook

Sheet Bond Model
B2: BYR | C2: 30000000 | D2: =C10+SUMIF(C1019:C2018,">0",C1019:C2018) -> 8711.6385 | E2: =D10+SUMIF(D1019:D2018,">0",D1019:D2018) -> 7420161.697 | F2: 8506133.285 | G2: 8373713.554 | H2: 8255259.902 | I2: 8180192.161 | J2: 8081811.079 | K2: 8023515.158 | L2: 7990597.956 | M2: 7895988.685 | N2: 7733488.873 | O2: 7669653.402 | P2: 7592783.02 | Q2: 7551612.869 | R2: 7492485.787 | S2: 7425859.476 | T2: 7353797.774 | U2: 7330035.823 | V2: 7262580.811 | W2: 7134791.7 | X2: 7104002.578 | Y2: 6990342.687 | Z2: 6929047.375 | AA2: 6868495.374 | AB2: 6776987.432 | AC2: 6757878.971 | AD2: =AC10+SUMIF(AC1019:AC2018,">0",AC1019:AC2018) -> 6709928.439 | AE2: 4828614.078 | AF2: -7677701.284 | AG2: -22524017.65 | AH2: -39840335.01 | AI2: -59366653.37 | AJ2: -80647972.73 | AK2: -104009293.1 | AL2: -129775614.5 | AM2: -157426936.8 | AN2: -181763260.2 | AO2: -204019584.5 | AP2: -224520909.9 | AQ2: -242422236.3 | AR2: -258178563.6 | AS2: -271529892 | AT2: -283451221.3 | AU2: -293227551.7 | AV2: -301313883.1 | AW2: -307775215.4 | AX2: -312806548.8 | AY2: -316927883.2 | AZ2: -320204218.5 | BA2: -323090554.9 | BB2: -325326892.2 | BC2: -327303230.6 | BD2: -329084570 | BE2: -330475910.3 | BF2: -331867251.7 | BG2: -333193594 | BH2: -334519937.4 | BI2: -335781281.8 | BJ2: -336977627.1 | BK2: -338173973.5 | BL2: -339370320.9 | BM2: -340566669.2 | BN2: -341763018.6 | BO2: -342959368.9 | BP2: -344155720.3 | BQ2: =BP10+SUMIF(BP1019:BP2018,">0",BP1019:BP2018) -> -345352072.7 | BR2: -346548426 | BS2: -347679780.4 | BT2: -348811135.7 | BU2: -349942492.1 | BX2: Aaa | BY2: Aa | BZ2: A
B3: Cost | C3: =1131288.3615+(0.1*C2) -> 4131288.362 | D3: 1131288.362 | E3: 1131289.362 | F3: 1131290.362 | G3: 1131291.362 | H3: 1131292.362 | I3: 1131293.362 | J3: 1131294.362 | K3: 1131295.362 | L3: 1131296.362 | M3: 1131297.362 | N3: 1131298.362 | O3: 1131299.362 | P3: 1131300.362 | Q3: 1131301.362 | R3: 1131302.362 | S3: 1131303.362 | T3: 1131304.362 | U3: 1131305.362 | V3: 1131306.362 | W3: 1131307.362 | X3: 1131308.362 | Y3: 1131309.362 | Z3: 1131310.362 | AA3: 1131311.362 | AB3: 1131312.362 | AC3: 1131313.362 | AD3: 1131314.362 | AE3: 1131315.362 | AF3: 1131316.362 | AG3: 1131317.362 | AH3: 1131318.362 | AI3: 1131319.362 | AJ3: 1131320.362 | AK3: 1131321.362 | AL3: 1131322.362 | AM3: 1131323.362 | AN3: 1131324.362 | AO3: 1131325.362 | AP3: 1131326.362 | AQ3: 1131327.362 | AR3: 1131328.362 | AS3: 1131329.362 | AT3: 1131330.362 | AU3: 1131331.362 | AV3: 1131332.362 | AW3: 1131333.362 | AX3: 1131334.362 | AY3: 1131335.362 | AZ3: 1131336.362 | BA3: 1131337.362 | BB3: 1131338.362 | BC3: 1131339.362 | BD3: 1131340.362 | BE3: 1131341.362 | BF3: 1131342.362 | BG3: 1131343.362 | BH3: 1131344.362 | BI3: 1131345.362 | BJ3: 1131346.362 | BK3: 1131347.362 | BL3: 1131348.362 | BM3: 1131349.362 | BN3: 1131350.362 | BO3: 1131351.362 | BP3: 1131352.362 | BQ3: 1131353.362 | BR3: 1131354.362 | BS3: 1131355.362 | BT3: 1131356.362 | BU3: 1131357.362 | BW3: Prob | BX3: 0.0052 | BY3: 0.0058 | BZ3: 0.0129
B4: People | C4: ='# of People'!B36 -> 0 | D4: ='# of People'!C36 -> 0 | E4: ='# of People'!D36 -> 0 | F4: ='# of People'!E36 -> 0 | G4: ='# of People'!F36 -> 0 | H4: ='# of People'!G36 -> 0 | I4: ='# of People'!H36 -> 0 | J4: ='# of People'!I36 -> 0 | K4: ='# of People'!J36 -> 0 | L4: ='# of People'!K36 -> 0 | M4: ='# of People'!L36 -> 3 | N4: ='# of People'!M36 -> 6 | O4: ='# of People'!N36 -> 10 | P4: ='# of People'!O36 -> 13 | Q4: ='# of People'!P36 -> 17 | R4: ='# of People'!Q36 -> 17 | S4: ='# of People'!R36 -> 18 | T4: ='# of People'!S36 -> 21 | U4: ='# of People'!T36 -> 26 | V4: ='# of People'!U36 -> 31 | W4: ='# of People'!V36 -> 33 | X4: ='# of People'!W36 -> 36 | Y4: ='# of People'!X36 -> 41 | Z4: ='# of People'!Y36 -> 46 | AA4: ='# of People'!Z36 -> 50 | AB4: ='# of People'!AA36 -> 51 | AC4: ='# of People'!AB36 -> 85 | AD4: ='# of People'!AC36 -> 134 | AE4: ='# of People'!AD36 -> 175 | AF4: ='# of People'!AE36 -> 211 | AG4: ='# of People'!AF36 -> 249 | AH4: ='# of People'!AG36 -> 283 | AI4: ='# of People'!AH36 -> 310 | AJ4: ='# of People'!AI36 -> 342 | AK4: ='# of People'!AJ36 -> 379 | AL4: ='# of People'!AK36 -> 408 | AM4: ='# of People'!AL36 -> 357 | AN4: ='# of People'!AM36 -> 325 | AO4: ='# of People'!AN36 -> 298 | AP4: ='# of People'!AO36 -> 258 | AQ4: ='# of People'!AP36 -> 225 | AR4: ='# of People'!AQ36 -> 188 | AS4: ='# of People'!AR36 -> 166 | AT4: ='# of People'!AS36 -> 133 | AU4: ='# of People'!AT36 -> 107 | AV4: ='# of People'!AU36 -> 82 | AW4: ='# of People'!AV36 -> 60 | AX4: ='# of People'!AW36 -> 46 | AY4: ='# of People'!AX36 -> 33 | AZ4: ='# of People'!AY36 -> 27 | BA4: ='# of People'!AZ36 -> 17 | BB4: ='# of People'!BA36 -> 13 | BC4: ='# of People'!BB36 -> 10 | BD4: ='# of People'!BC36 -> 4 | BE4: ='# of People'!BD36 -> 4 | BF4: ='# of People'!BE36 -> 3 | BG4: ='# of People'!BF36 -> 3 | BH4: ='# of People'!BG36 -> 2 | BI4: ='# of People'!BH36 -> 1 | BJ4: ='# of People'!BI36 -> 1 | BK4: ='# of People'!BJ36 -> 1 | BL4: ='# of People'!BK36 -> 1 | BM4: ='# of People'!BL36 -> 1 | BN4: ='# of People'!BM36 -> 1 | BO4: ='# of People'!BN36 -> 1 | BP4: ='# of People'!BO36 -> 1 | BQ4: ='# of People'!BP36 -> 1 | BR4: ='# of People'!BQ36 -> 0 | BS4: ='# of People'!BR36 -> 0 | BT4: ='# of People'!BS36 -> 0 | BU4: ='# of People'!BT36 -> 0 | BW4: Coupon | BX4: 6299.76 | BY4: 7921.03 | BZ4: 12478.46
B5: Benefit Need Next Year | C5: =65000*D4 -> 0 | D5: =65000*E4 -> 0 | E5: 0 | F5: 0 | G5: 0 | H5: 0 | I5: 0 | J5: 0 | K5: 0 | L5: 195000 | M5: 390000 | N5: 650000 | O5: 845000 | P5: 1105000 | Q5: 1105000 | R5: 1170000 | S5: 1365000 | T5: 1690000 | U5: 2015000 | V5: 2145000 | W5: 2340000 | X5: 2665000 | Y5: 2990000 | Z5: 3250000 | AA5: 3315000 | AB5: 5525000 | AC5: 8710000 | AD5: 11375000 | AE5: 13715000 | AF5: 16185000 | AG5: 18395000 | AH5: 20150000 | AI5: 22230000 | AJ5: 24635000 | AK5: 26520000 | AL5: 23205000 | AM5: 21125000 | AN5: 19370000 | AO5: 16770000 | AP5: 14625000 | AQ5: 12220000 | AR5: 10790000 | AS5: 8645000 | AT5: 6955000 | AU5: 5330000 | AV5: 3900000 | AW5: 2990000 | AX5: 2145000 | AY5: 1755000 | AZ5: 1105000 | BA5: 845000 | BB5: 650000 | BC5: 260000 | BD5: 260000 | BE5: 195000 | BF5: 195000 | BG5: 130000 | BH5: 65000 | BI5: 65000 | BJ5: 65000 | BK5: 65000 | BL5: 65000 | BM5: 65000 | BN5: 65000 | BO5: 65000 | BP5: =65000*BQ4 -> 65000 | BQ5: 0 | BR5: 0 | BS5: 0 | BT5: 0 | BU5: 0 | BW5: % | BX5: 0.4 | BY5: 0.3 | BZ5: 0.3
B6: Benefit Paid This Year | C6: =65000*C4 -> 0 | D6: =65000*D4 -> 0 | E6: 0 | F6: 0 | G6: 0 | H6: 0 | I6: 0 | J6: 0 | K6: 0 | L6: 0 | M6: 195000 | N6: 390000 | O6: 650000 | P6: 845000 | Q6: 1105000 | R6: 1105000 | S6: 1170000 | T6: 1365000 | U6: 1690000 | V6: 2015000 | W6: 2145000 | X6: 2340000 | Y6: 2665000 | Z6: 2990000 | AA6: 3250000 | AB6: 3315000 | AC6: 5525000 | AD6: 8710000 | AE6: 11375000 | AF6: 13715000 | AG6: 16185000 | AH6: 18395000 | AI6: 20150000 | AJ6: 22230000 | AK6: 24635000 | AL6: 26520000 | AM6: 23205000 | AN6: 21125000 | AO6: 19370000 | AP6: 16770000 | AQ6: 14625000 | AR6: 12220000 | AS6: 10790000 | AT6: 8645000 | AU6: 6955000 | AV6: 5330000 | AW6: 3900000 | AX6: 2990000 | AY6: 2145000 | AZ6: 1755000 | BA6: 1105000 | BB6: 845000 | BC6: 650000 | BD6: 260000 | BE6: 260000 | BF6: 195000 | BG6: 195000 | BH6: 130000 | BI6: 65000 | BJ6: 65000 | BK6: 65000 | BL6: 65000 | BM6: 65000 | BN6: 65000 | BO6: 65000 | BP6: =65000*BP4 -> 65000 | BQ6: 65000 | BR6: 0 | BS6: 0 | BT6: 0 | BU6: 0
B7: Earnings after Csts & Ben | C7: =C2-C3-C6 -> 25868711.64 | D7: =D2-D3-D6 -> -1122576.723 | E7: =E2-E3-E6 -> 6288872.335 | F7: 7374842.924 | G7: 7242422.192 | H7: 7123967.541 | I7: 7048898.799 | J7: 6950516.718 | K7: 6892219.796 | L7: 6859301.595 | M7: 6569691.323 | N7: 6212190.512 | O7: 5888354.04 | P7: 5616482.659 | Q7: 5315311.507 | R7: 5256183.426 | S7: 5124556.114 | T7: 4857493.413 | U7: 4508730.461 | V7: 4116274.45 | W7: 3858484.338 | X7: 3632694.217 | Y7: 3194033.325 | Z7: 2807737.014 | AA7: 2487184.012 | AB7: 2330675.071 | AC7: 101565.6095 | AD7: -3131385.922 | AE7: -7677701.284 | AF7: -22524017.65 | AG7: -39840335.01 | AH7: -59366653.37 | AI7: -80647972.73 | AJ7: -104009293.1 | AK7: -129775614.5 | AL7: -157426936.8 | AM7: -181763260.2 | AN7: -204019584.5 | AO7: -224520909.9 | AP7: -242422236.3 | AQ7: -258178563.6 | AR7: -271529892 | AS7: -283451221.3 | AT7: -293227551.7 | AU7: -301313883.1 | AV7: -307775215.4 | AW7: -312806548.8 | AX7: -316927883.2 | AY7: -320204218.5 | AZ7: -323090554.9 | BA7: -325326892.2 | BB7: -327303230.6 | BC7: -329084570 | BD7: -330475910.3 | BE7: -331867251.7 | BF7: -333193594 | BG7: -334519937.4 | BH7: -335781281.8 | BI7: -336977627.1 | BJ7: -338173973.5 | BK7: -339370320.9 | BL7: -340566669.2 | BM7: -341763018.6 | BN7: -342959368.9 | BO7: -344155720.3 | BP7: -345352072.7 | BQ7: =BQ2-BQ3-BQ6 -> -346548426 | BR7: -347679780.4 | BS7: -348811135.7 | BT7: -349942492.1 | BU7: -351073849.5
B8: Reinvestment | C8: =ROUNDDOWN(C7,-4) -> 25860000 | D8: =IF(D7>0,ROUNDDOWN(D7,-4),0) -> 0 | E8: =IF(E7>0,ROUNDDOWN(E7,-4),0) -> 6280000 | F8: 7370000 | G8: 7240000 | H8: 7120000 | I8: 7040000 | J8: 6950000 | K8: 6890000 | L8: 6850000 | M8: 6560000 | N8: 6210000 | O8: 5880000 | P8: 5610000 | Q8: 5310000 | R8: 5250000 | S8: 5120000 | T8: 4850000 | U8: 4500000 | V8: 4110000 | W8: 3850000 | X8: 3630000 | Y8: 3190000 | Z8: 2800000 | AA8: 2480000 | AB8: 2330000 | AC8: 100000 | AD8: 0 | AE8: 0 | AF8: 0 | AG8: 0 | AH8: 0 | AI8: 0 | AJ8: 0 | AK8: 0 | AL8: 0 | AM8: 0 | AN8: 0 | AO8: 0 | AP8: 0 | AQ8: 0 | AR8: 0 | AS8: 0 | AT8: 0 | AU8: 0 | AV8: 0 | AW8: 0 | AX8: 0 | AY8: 0 | AZ8: 0 | BA8: 0 | BB8: 0 | BC8: 0 | BD8: 0 | BE8: 0 | BF8: 0 | BG8: 0 | BH8: 0 | BI8: 0 | BJ8: 0 | BK8: 0 | BL8: 0 | BM8: 0 | BN8: 0 | BO8: 0 | BP8: 0 | BQ8: =IF(BQ7>0,ROUNDDOWN(BQ7,-4),0) -> 0 | BR8: 0 | BS8: 0 | BT8: 0 | BU8: 0
B9: # of New Bonds | C9: =C8/10000 -> 2586 | D9: =D8/10000 -> 0 | E9: =E8/10000 -> 628 | F9: 737 | G9: 724 | H9: 712 | I9: 704 | J9: 695 | K9: 689 | L9: 685 | M9: 656 | N9: 621 | O9: 588 | P9: 561 | Q9: 531 | R9: 525 | S9: 512 | T9: 485 | U9: 450 | V9: 411 | W9: 385 | X9: 363 | Y9: 319 | Z9: 280 | AA9: 248 | AB9: 233 | AC9: 10 | AD9: 0 | AE9: 0 | AF9: 0 | AG9: 0 | AH9: 0 | AI9: 0 | AJ9: 0 | AK9: 0 | AL9: 0 | AM9: 0 | AN9: 0 | AO9: 0 | AP9: 0 | AQ9: 0 | AR9: 0 | AS9: 0 | AT9: 0 | AU9: 0 | AV9: 0 | AW9: 0 | AX9: 0 | AY9: 0 | AZ9: 0 | BA9: 0 | BB9: 0 | BC9: 0 | BD9: 0 | BE9: 0 | BF9: 0 | BG9: 0 | BH9: 0 | BI9: 0 | BJ9: 0 | BK9: 0 | BL9: 0 | BM9: 0 | BN9: 0 | BO9: 0 | BP9: 0 | BQ9: =BQ8/10000 -> 0 | BR9: 0 | BS9: 0 | BT9: 0 | BU9: 0
B10: Profit | C10: =C7-C8 -> 8711.6385 | D10: =D2-D3-D8-D6 -> -1122576.723 | E10: =E2-E3-E8-E6 -> 8872.3355 | F10: 4842.924 | G10: 2422.1925 | H10: 3967.541 | I10: 8898.7995 | J10: 516.7179997 | K10: 2219.7965 | L10: 9301.595 | M10: 9691.3235 | N10: 2190.511999 | O10: 8354.040499 | P10: 6482.658999 | Q10: 5311.507499 | R10: 6183.425999 | S10: 4556.114499 | T10: 7493.412999 | U10: 8730.461499 | V10: 6274.449999 | W10: 8484.338499 | X10: 2694.216999 | Y10: 4033.325499 | Z10: 7737.013999 | AA10: 7184.012499 | AB10: 675.0709988 | AC10: 1565.609499 | AD10: -3131385.922 | AE10: -7677701.284 | AF10: -22524017.65 | AG10: -39840335.01 | AH10: -59366653.37 | AI10: -80647972.73 | AJ10: -104009293.1 | AK10: -129775614.5 | AL10: -157426936.8 | AM10: -181763260.2 | AN10: -204019584.5 | AO10: -224520909.9 | AP10: -242422236.3 | AQ10: -258178563.6 | AR10: -271529892 | AS10: -283451221.3 | AT10: -293227551.7 | AU10: -301313883.1 | AV10: -307775215.4 | AW10: -312806548.8 | AX10: -316927883.2 | AY10: -320204218.5 | AZ10: -323090554.9 | BA10: -325326892.2 | BB10: -327303230.6 | BC10: -329084570 | BD10: -330475910.3 | BE10: -331867251.7 | BF10: -333193594 | BG10: -334519937.4 | BH10: -335781281.8 | BI10: -336977627.1 | BJ10: -338173973.5 | BK10: -339370320.9 | BL10: -340566669.2 | BM10: -341763018.6 | BN10: -342959368.9 | BO10: -344155720.3 | BP10: -345352072.7 | BQ10: =BQ2-BQ3-BQ8-BQ6 -> -346548426 | BR10: -347679780.4 | BS10: -348811135.7 | BT10: -349942492.1 | BU10: -351073849.5
B12: Longevity Table | BX12: Payout Table
C13: =C9 -> 2586 | D13: =D9 -> 0 | E13: =E9 -> 628 | F13: 737 | G13: 724 | H13: 712 | I13: 704 | J13: 695 | K13: 689 | L13: 685 | M13: 656 | N13: 621 | O13: 588 | P13: 561 | Q13: 531 | R13: 525 | S13: 512 | T13: 485 | U13: 450 | V13: 411 | W13: 385 | X13: 363 | Y13: 319 | Z13: 280 | AA13: 248 | AB13: 233 | AC13: 10 | AD13: 0 | AE13: 0 | AF13: 0 | AG13: 0 | AH13: 0 | AI13: 0 | AJ13: 0 | AK13: 0 | AL13: 0 | AM13: 0 | AN13: 0 | AO13: 0 | AP13: 0 | AQ13: 0 | AR13: 0 | AS13: 0 | AT13: 0 | AU13: 0 | AV13: 0 | AW13: 0 | AX13: 0 | AY13: 0 | AZ13: 0 | BA13: 0 | BB13: 0 | BC13: 0 | BD13: 0 | BE13: 0 | BF13: 0 | BG13: 0 | BH13: 0 | BI13: 0 | BJ13: 0 | BK13: 0 | BL13: 0 | BM13: 0 | BN13: 0 | BO13: 0 | BP13: 0 | BQ13: =BQ9 -> 0 | BR13: 0 | BS13: 0 | BT13: 0 | BU13: 0
C14: =C13 -> 2586 | D14: =C14+D13 -> 2586 | E14: =D14+E13 -> 3214 | F14: 3951 | G14: 4675 | H14: 5387 | I14: 6091 | J14: 6786 | K14: 7475 | L14: 8160 | M14: 8816 | N14: 9437 | O14: 10025 | P14: 10586 | Q14: 11117 | R14: 11642 | S14: 12154 | T14: 12639 | U14: 13089 | V14: 13500 | W14: 13885 | X14: 14248 | Y14: 14567 | Z14: 14847 | AA14: 15095 | AB14: 15328 | AC14: 15338 | AD14: 15338 | AE14: 15338 | AF14: 15338 | AG14: 15338 | AH14: 15338 | AI14: 15338 | AJ14: 15338 | AK14: 15338 | AL14: 15338 | AM14: 15338 | AN14: 15338 | AO14: 15338 | AP14: 15338 | AQ14: 15338 | AR14: 15338 | AS14: 15338 | AT14: 15338 | AU14: 15338 | AV14: 15338 | AW14: 15338 | AX14: 15338 | AY14: 15338 | AZ14: 15338 | BA14: 15338 | BB14: 15338 | BC14: 15338 | BD14: 15338 | BE14: 15338 | BF14: 15338 | BG14: 15338 | BH14: 15338 | BI14: 15338 | BJ14: 15338 | BK14: 15338 | BL14: 15338 | BM14: 15338 | BN14: 15338 | BO14: 15338 | BP14: 15338 | BQ14: =BP14+BQ13 -> 15338 | BR14: 15338 | BS14: 15338 | BT14: 15338 | BU14: 15338
B15: Bond | C15: t=0 | D15: t=1 | E15: t=2 | F15: t=3 | G15: t=4 | H15: t=5 | I15: t=6 | J15: t=7 | K15: t=8 | L15: t=9 | M15: t=10 | N15: t=11 | O15: t=12 | P15: t=13 | Q15: t=14 | R15: t=15 | S15: t=16 | T15: t=17 | U15: t=18 | V15: t=19 | W15: t=20 | X15: t=21 | Y15: t=22 | Z15: t=23 | AA15: t=24 | AB15: t=25 | AC15: t=26 | AD15: t=27 | AE15: t=28 | AF15: t=29 | AG15: t=30 | AH15: t=31 | AI15: t=32 | AJ15: t=33 | AK15: t=34 | AL15: t=35 | AM15: t=36 | AN15: t=37 | AO15: t=38 | AP15: t=39 | AQ15: t=40 | AR15: t=41 | AS15: t=42 | AT15: t=43 | AU15: t=44 | AV15: t=45 | AW15: t=46 | AX15: t=47 | AY15: t=48 | AZ15: t=49 | BA15: t=50 | BB15: t=51 | BC15: t=52 | BD15: t=53 | BE15: t=54 | BF15: t=55 | BG15: t=56 | BH15: t=57 | BI15: t=58 | BJ15: t=59 | BK15: t=60 | BL15: t=61 | BM15: t=62 | BN15: t=63 | BO15: t=64 | BP15: t=65 | BQ15: t=66 | BR15: t=67 | BS15: t=68 | BT15: t=69 | BU15: t=70 | BX15: Bond | BY15: t=0 | BZ15: t=1 | CA15: t=2 | CB15: t=3 | CC15: t=4 | CD15: t=5 | CE15: t=6 | CF15: t=7 | CG15: t=8 | CH15: t=9 | CI15: t=10 | CJ15: t=11 | CK15: t=12 | CL15: t=13 | CM15: t=14 | CN15: t=15 | CO15: t=16 | CP15: t=17 | CQ15: t=18 | CR15: t=19 | CS15: t=20 | CT15: t=21 | CU15: t=22 | CV15: t=23 | CW15: t=24 | CX15: t=25 | CY15: t=26 | CZ15: t=27 | DA15: t=28 | DB15: t=29 | DC15: t=30 | DD15: t=31 | DE15: t=32 | DF15: t=33 | DG15: t=34 | DH15: t=35 | DI15: t=36 | DJ15: t=37 | DK15: t=38 | DL15: t=39 | DM15: t=40 | DN15: t=41 | DO15: t=42 | DP15: t=43 | DQ15: t=44 | DR15: t=45 | DS15: t=46 | DT15: t=47 | DU15: t=48 | DV15: t=49 | DW15: t=50 | DX15: t=51 | DY15: t=52 | DZ15: t=53 | EA15: t=54 | EB15: t=55 | EC15: t=56 | ED15: t=57 | EE15: t=58 | EF15: t=59 | EG15: t=60 | EH15: t=61 | EI15: t=62 | EJ15: t=63 | EK15: t=64 | EL15: t=65 | EM15: t=66 | EN15: t=67 | EO15: t=68 | EP15: t=69 | EQ15: t=70
A16: AAA | B16: 1 | C16: =default_model(A16,$C$13,$B16,C$14,TRUE) -> 1 | D16: =IF(C1019=10000,0,default_model($A16,D$13,$B16,D$14)) -> 1 | E16: 1 | F16: 1 | G16: 1 | H16: 1 | I16: 1 | J16: 1 | K16: 1 | L16: 1 | M16: 1 | N16: 1 | O16: 1 | P16: 1 | Q16: 1 | R16: 1 | S16: 1 | T16: 1 | U16: 1 | V16: 1 | W16: 1 | X16: 1 | Y16: 1 | Z16: 1 | AA16: 1 | AB16: 1 | AC16: 1 | AD16: 1 | AE16: 0 | AF16: 0 | AG16: 0 | AH16: 0 | AI16: 0 | AJ16: =IF(AI1019=10000,0,default_model($A16,AJ$13,$B16,AJ$14)) -> 0 | AK16: 0 | AL16: 0 | AM16: 0 | AN16: 0 | AO16: 0 | AP16: 0 | AQ16: 0 | AR16: 0 | AS16: 0 | AT16: 0 | AU16: 0 | AV16: 0 | AW16: 0 | AX16: 0 | AY16: 0 | AZ16: 0 | BA16: 0 | BB16: 0 | BC16: 0 | BD16: 0 | BE16: 0 | BF16: 0 | BG16: 0 | BH16: 0 | BI16: 0 | BJ16: 0 | BK16: 0 | BL16: 0 | BM16: 0 | BN16: 0 | BO16: 0 | BP16: =IF(BO1019=10000,0,default_model($A16,BP$13,$B16,BP$14)) -> 0 | BQ16: 0 | BR16: 0 | BS16: 0 | BT16: 0 | BU16: 0 | BW16: =A16 -> AAA | BX16: 1 | BY16: =IF(C16,-10000,0) -> -10000 | BZ16: =payout($A16,D16,$C16:C16,BY16,$BY16:BY16) -> 6299.76 | CA16: =payout($A16,E16,$C16:D16,BZ16,$BY16:BZ16) -> 6299.76 | CB16: =payout($A16,F16,$C16:E16,CA16,$BY16:CA16) -> 6299.76 | CC16: =payout($A16,G16,$C16:F16,CB16,$BY16:CB16) -> 6299.76 | CD16: =payout($A16,H16,$C16:G16,CC16,$BY16:CC16) -> 6299.76 | CE16: =payout($A16,I16,$C16:H16,CD16,$BY16:CD16) -> 6299.76 | CF16: =payout($A16,J16,$C16:I16,CE16,$BY16:CE16) -> 6299.76 | CG16: =payout($A16,K16,$C16:J16,CF16,$BY16:CF16) -> 6299.76 | CH16: =payout($A16,L16,$C16:K16,CG16,$BY16:CG16) -> 6299.76 | CI16: =payout($A16,M16,$C16:L16,CH16,$BY16:CH16) -> 6299.76 | CJ16: =payout($A16,N16,$C16:M16,CI16,$BY16:CI16) -> 6299.76 | CK16: =payout($A16,O16,$C16:N16,CJ16,$BY16:CJ16) -> 6299.76 | CL16: =payout($A16,P16,$C16:O16,CK16,$BY16:CK16) -> 6299.76 | CM16: =payout($A16,Q16,$C16:P16,CL16,$BY16:CL16) -> 6299.76 | CN16: =payout($A16,R16,$C16:Q16,CM16,$BY16:CM16) -> 6299.76 | CO16: =payout($A16,S16,$C16:R16,CN16,$BY16:CN16) -> 6299.76 | CP16: =payout($A16,T16,$C16:S16,CO16,$BY16:CO16) -> 6299.76 | CQ16: =payout($A16,U16,$C16:T16,CP16,$BY16:CP16) -> 6299.76 | CR16: =payout($A16,V16,$C16:U16,CQ16,$BY16:CQ16) -> 6299.76 | CS16: =payout($A16,W16,$C16:V16,CR16,$BY16:CR16) -> 6299.76 | CT16: =payout($A16,X16,$C16:W16,CS16,$BY16:CS16) -> 6299.76 | CU16: =payout($A16,Y16,$C16:X16,CT16,$BY16:CT16) -> 6299.76 | CV16: =payout($A16,Z16,$C16:Y16,CU16,$BY16:CU16) -> 6299.76 | CW16: =payout($A16,AA16,$C16:Z16,CV16,$BY16:CV16) -> 6299.76 | CX16: =payout($A16,AB16,$C16:AA16,CW16,$BY16:CW16) -> 6299.76 | CY16: =payout($A16,AC16,$C16:AB16,CX16,$BY16:CX16) -> 6299.76 | CZ16: =payout($A16,AD16,$C16:AC16,CY16,$BY16:CY16) -> 6299.76 | DA16: =payout($A16,AE16,$C16:AD16,CZ16,$BY16:CZ16) -> 6299.76 | DB16: =payout($A16,AF16,$C16:AE16,DA16,$BY16:DA16) -> 6299.76 | DC16: =payout($A16,AG16,$C16:AF16,DB16,$BY16:DB16) -> 6299.76 | DD16: =payout($A16,AH16,$C16:AG16,DC16,$BY16:DC16) -> 6299.76 | DE16: =payout($A16,AI16,$C16:AH16,DD16,$BY16:DD16) -> 6299.76 | DF16: =payout($A16,AJ16,$C16:AI16,DE16,$BY16:DE16) -> 6299.76 | DG16: =payout($A16,AK16,$C16:AJ16,DF16,$BY16:DF16) -> 6299.76 | DH16: =payout($A16,AL16,$C16:AK16,DG16,$BY16:DG16) -> 6299.76 | DI16: =payout($A16,AM16,$C16:AL16,DH16,$BY16:DH16) -> 6299.76 | DJ16: =payout($A16,AN16,$C16:AM16,DI16,$BY16:DI16) -> 6299.76 | DK16: =payout($A16,AO16,$C16:AN16,DJ16,$BY16:DJ16) -> 6299.76 | DL16: =payout($A16,AP16,$C16:AO16,DK16,$BY16:DK16) -> 6299.76 | DM16: =payout($A16,AQ16,$C16:AP16,DL16,$BY16:DL16) -> 6299.76 | DN16: =payout($A16,AR16,$C16:AQ16,DM16,$BY16:DM16) -> 16299.76 | DO16: =payout($A16,AS16,$C16:AR16,DN16,$BY16:DN16) -> 0 | DP16: =payout($A16,AT16,$C16:AS16,DO16,$BY16:DO16) -> 0 | DQ16: =payout($A16,AU16,$C16:AT16,DP16,$BY16:DP16) -> 0 | DR16: =payout($A16,AV16,$C16:AU16,DQ16,$BY16:DQ16) -> 0 | DS16: =payout($A16,AW16,$C16:AV16,DR16,$BY16:DR16) -> 0 | DT16: =payout($A16,AX16,$C16:AW16,DS16,$BY16:DS16) -> 0 | DU16: =payout($A16,AY16,$C16:AX16,DT16,$BY16:DT16) -> 0 | DV16: =payout($A16,AZ16,$C16:AY16,DU16,$BY16:DU16) -> 0 | DW16: =payout($A16,BA16,$C16:AZ16,DV16,$BY16:DV16) -> 0 | DX16: =payout($A16,BB16,$C16:BA16,DW16,$BY16:DW16) -> 0 | DY16: =payout($A16,BC16,$C16:BB16,DX16,$BY16:DX16) -> 0 | DZ16: =payout($A16,BD16,$C16:BC16,DY16,$BY16:DY16) -> 0 | EA16: =payout($A16,BE16,$C16:BD16,DZ16,$BY16:DZ16) -> 0 | EB16: =payout($A16,BF16,$C16:BE16,EA16,$BY16:EA16) -> 0 | EC16: =payout($A16,BG16,$C16:BF16,EB16,$BY16:EB16) -> 0 | ED16: =payout($A16,BH16,$C16:BG16,EC16,$BY16:EC16) -> 0 | EE16: =payout($A16,BI16,$C16:BH16,ED16,$BY16:ED16) -> 0 | EF16: =payout($A16,BJ16,$C16:BI16,EE16,$BY16:EE16) -> 0 | EG16: =payout($A16,BK16,$C16:BJ16,EF16,$BY16:EF16) -> 0 | EH16: =payout($A16,BL16,$C16:BK16,EG16,$BY16:EG16) -> 0 | EI16: =payout($A16,BM16,$C16:BL16,EH16,$BY16:EH16) -> 0 | EJ16: =payout($A16,BN16,$C16:BM16,EI16,$BY16:EI16) -> 0 | EK16: =payout($A16,BO16,$C16:BN16,EJ16,$BY16:EJ16) -> 0 | EL16: =payout($A16,BP16,$C16:BO16,EK16,$BY16:EK16) -> 0 | EM16: =payout($A16,BQ16,$C16:BP16,EL16,$BY16:EL16) -> 0 | EN16: =payout($A16,BR16,$C16:BQ16,EM16,$BY16:EM16) -> 0 | EO16: =payout($A16,BS16,$C16:BR16,EN16,$BY16:EN16) -> 0 | EP16: =payout($A16,BT16,$C16:BS16,EO16,$BY16:EO16) -> 0 | EQ16: =payout($A16,BU16,$C16:BT16,EP16,$BY16:EP16) -> 0
A17: =get_bond_grade($A$16:A16,$BX$5,$BY$5,$BZ$5) -> AA | B17: 2 | C17: =default_model(A17,$C$13,$B17,C$14,TRUE) -> 1 | D17: =IF(C1020=10000,0,default_model($A17,D$13,$B17,D$14)) -> 1 | E17: 1 | F17: 1 | G17: 1 | H17: 1 | I17: 1 | J17: 1 | K17: 1 | L17: 1 | M17: 1 | N17: 1 | O17: 1 | P17: 1 | Q17: 1 | R17: 1 | S17: 1 | T17: 1 | U17: 1 | V17: 1 | W17: 1 | X17: 1 | Y17: 1 | Z17: 1 | AA17: 1 | AB17: 1 | AC17: 1 | AD17: 1 | AE17: 0 | AF17: 0 | AG17: 0 | AH17: 0 | AI17: 0 | AJ17: =IF(AI1020=10000,0,default_model($A17,AJ$13,$B17,AJ$14)) -> 0 | AK17: 0 | AL17: 0 | AM17: 0 | AN17: 0 | AO17: 0 | AP17: 0 | AQ17: 0 | AR17: 0 | AS17: 0 | AT17: 0 | AU17: 0 | AV17: 0 | AW17: 0 | AX17: 0 | AY17: 0 | AZ17: 0 | BA17: 0 | BB17: 0 | BC17: 0 | BD17: 0 | BE17: 0 | BF17: 0 | BG17: 0 | BH17: 0 | BI17: 0 | BJ17: 0 | BK17: 0 | BL17: 0 | BM17: 0 | BN17: 0 | BO17: 0 | BP17: =IF(BO1020=10000,0,default_model($A17,BP$13,$B17,BP$14)) -> 0 | BQ17: 0 | BR17: 0 | BS17: 0 | BT17: 0 | BU17: 0 | BW17: =A17 -> AA | BX17: 2 | BY17: =IF(C17,-10000,0) -> -10000 | BZ17: =payout($A17,D17,$C17:C17,BY17,$BY17:BY17) -> 7921.03 | CA17: =payout($A17,E17,$C17:D17,BZ17,$BY17:BZ17) -> 7921.03 | CB17: =payout($A17,F17,$C17:E17,CA17,$BY17:CA17) -> 7921.03 | CC17: =payout($A17,G17,$C17:F17,CB17,$BY17:CB17) -> 7921.03 | CD17: =payout($A17,H17,$C17:G17,CC17,$BY17:CC17) -> 7921.03 | CE17: =payout($A17,I17,$C17:H17,CD17,$BY17:CD17) -> 7921.03 | CF17: =payout($A17,J17,$C17:I17,CE17,$BY17:CE17) -> 7921.03 | CG17: =payout($A17,K17,$C17:J17,CF17,$BY17:CF17) -> 7921.03 | CH17: =payout($A17,L17,$C17:K17,CG17,$BY17:CG17) -> 7921.03 | CI17: =payout($A17,M17,$C17:L17,CH17,$BY17:CH17) -> 7921.03 | CJ17: =payout($A17,N17,$C17:M17,CI17,$BY17:CI17) -> 7921.03 | CK17: =payout($A17,O17,$C17:N17,CJ17,$BY17:CJ17) -> 7921.03 | CL17: =payout($A17,P17,$C17:O17,CK17,$BY17:CK17) -> 7921.03 | CM17: =payout($A17,Q17,$C17:P17,CL17,$BY17:CL17) -> 7921.03 | CN17: =payout($A17,R17,$C17:Q17,CM17,$BY17:CM17) -> 7921.03 | CO17: =payout($A17,S17,$C17:R17,CN17,$BY17:CN17) -> 7921.03 | CP17: =payout($A17,T17,$C17:S17,CO17,$BY17:CO17) -> 7921.03 | CQ17: =payout($A17,U17,$C17:T17,CP17,$BY17:CP17) -> 7921.03 | CR17: =payout($A17,V17,$C17:U17,CQ17,$BY17:CQ17) -> 7921.03 | CS17: =payout($A17,W17,$C17:V17,CR17,$BY17:CR17) -> 7921.03 | CT17: =payout($A17,X17,$C17:W17,CS17,$BY17:CS17) -> 7921.03 | CU17: =payout($A17,Y17,$C17:X17,CT17,$BY17:CT17) -> 7921.03 | CV17: =payout($A17,Z17,$C17:Y17,CU17,$BY17:CU17) -> 7921.03 | CW17: =payout($A17,AA17,$C17:Z17,CV17,$BY17:CV17) -> 7921.03 | CX17: =payout($A17,AB17,$C17:AA17,CW17,$BY17:CW17) -> 7921.03 | CY17: =payout($A17,AC17,$C17:AB17,CX17,$BY17:CX17) -> 7921.03 | CZ17: =payout($A17,AD17,$C17:AC17,CY17,$BY17:CY17) -> 7921.03 | DA17: =payout($A17,AE17,$C17:AD17,CZ17,$BY17:CZ17) -> 7921.03 | DB17: =payout($A17,AF17,$C17:AE17,DA17,$BY17:DA17) -> 7921.03 | DC17: =payout($A17,AG17,$C17:AF17,DB17,$BY17:DB17) -> 7921.03 | DD17: =payout($A17,AH17,$C17:AG17,DC17,$BY17:DC17) -> 7921.03 | DE17: =payout($A17,AI17,$C17:AH17,DD17,$BY17:DD17) -> 7921.03 | DF17: =payout($A17,AJ17,$C17:AI17,DE17,$BY17:DE17) -> 7921.03 | DG17: =payout($A17,AK17,$C17:AJ17,DF17,$BY17:DF17) -> 7921.03 | DH17: =payout($A17,AL17,$C17:AK17,DG17,$BY17:DG17) -> 7921.03 | DI17: =payout($A17,AM17,$C17:AL17,DH17,$BY17:DH17) -> 7921.03 | DJ17: =payout($A17,AN17,$C17:AM17,DI17,$BY17:DI17) -> 7921.03 | DK17: =payout($A17,AO17,$C17:AN17,DJ17,$BY17:DJ17) -> 7921.03 | DL17: =payout($A17,AP17,$C17:AO17,DK17,$BY17:DK17) -> 7921.03 | DM17: =payout($A17,AQ17,$C17:AP17,DL17,$BY17:DL17) -> 7921.03 | DN17: =payout($A17,AR17,$C17:AQ17,DM17,$BY17:DM17) -> 17921.03 | DO17: =payout($A17,AS17,$C17:AR17,DN17,$BY17:DN17) -> 0 | DP17: =payout($A17,AT17,$C17:AS17,DO17,$BY17:DO17) -> 0 | DQ17: =payout($A17,AU17,$C17:AT17,DP17,$BY17:DP17) -> 0 | DR17: =payout($A17,AV17,$C17:AU17,DQ17,$BY17:DQ17) -> 0 | DS17: =payout($A17,AW17,$C17:AV17,DR17,$BY17:DR17) -> 0 | DT17: =payout($A17,AX17,$C17:AW17,DS17,$BY17:DS17) -> 0 | DU17: =payout($A17,AY17,$C17:AX17,DT17,$BY17:DT17) -> 0 | DV17: =payout($A17,AZ17,$C17:AY17,DU17,$BY17:DU17) -> 0 | DW17: =payout($A17,BA17,$C17:AZ17,DV17,$BY17:DV17) -> 0 | DX17: =payout($A17,BB17,$C17:BA17,DW17,$BY17:DW17) -> 0 | DY17: =payout($A17,BC17,$C17:BB17,DX17,$BY17:DX17) -> 0 | DZ17: =payout($A17,BD17,$C17:BC17,DY17,$BY17:DY17) -> 0 | EA17: =payout($A17,BE17,$C17:BD17,DZ17,$BY17:DZ17) -> 0 | EB17: =payout($A17,BF17,$C17:BE17,EA17,$BY17:EA17) -> 0 | EC17: =payout($A17,BG17,$C17:BF17,EB17,$BY17:EB17) -> 0 | ED17: =payout($A17,BH17,$C17:BG17,EC17,$BY17:EC17) -> 0 | EE17: =payout($A17,BI17,$C17:BH17,ED17,$BY17:ED17) -> 0 | EF17: =payout($A17,BJ17,$C17:BI17,EE17,$BY17:EE17) -> 0 | EG17: =payout($A17,BK17,$C17:BJ17,EF17,$BY17:EF17) -> 0 | EH17: =payout($A17,BL17,$C17:BK17,EG17,$BY17:EG17) -> 0 | EI17: =payout($A17,BM17,$C17:BL17,EH17,$BY17:EH17) -> 0 | EJ17: =payout($A17,BN17,$C17:BM17,EI17,$BY17:EI17) -> 0 | EK17: =payout($A17,BO17,$C17:BN17,EJ17,$BY17:EJ17) -> 0 | EL17: =payout($A17,BP17,$C17:BO17,EK17,$BY17:EK17) -> 0 | EM17: =payout($A17,BQ17,$C17:BP17,EL17,$BY17:EL17) -> 0 | EN17: =payout($A17,BR17,$C17:BQ17,EM17,$BY17:EM17) -> 0 | EO17: =payout($A17,BS17,$C17:BR17,EN17,$BY17:EN17) -> 0 | EP17: =payout($A17,BT17,$C17:BS17,EO17,$BY17:EO17) -> 0 | EQ17: =payout($A17,BU17,$C17:BT17,EP17,$BY17:EP17) -> 0
A18: =get_bond_grade($A$16:A17,$BX$5,$BY$5,$BZ$5) -> A | B18: 3 | C18: 1 | D18: =IF(C1021=10000,0,default_model($A18,D$13,$B18,D$14)) -> 1 | E18: 1 | F18: 1 | G18: 1 | H18: 1 | I18: 1 | J18: 1 | K18: 1 | L18: 1 | M18: 1 | N18: 1 | O18: 1 | P18: 1 | Q18: 1 | R18: 1 | S18: 1 | T18: 1 | U18: 1 | V18: 1 | W18: 1 | X18: 1 | Y18: 1 | Z18: 1 | AA18: 1 | AB18: 1 | AC18: 1 | AD18: 1 | AE18: 0 | AF18: 0 | AG18: 0 | AH18: 0 | AI18: 0 | AJ18: =IF(AI1021=10000,0,default_model($A18,AJ$13,$B18,AJ$14)) -> 0 | AK18: 0 | AL18: 0 | AM18: 0 | AN18: 0 | AO18: 0 | AP18: 0 | AQ18: 0 | AR18: 0 | AS18: 0 | AT18: 0 | AU18: 0 | AV18: 0 | AW18: 0 | AX18: 0 | AY18: 0 | AZ18: 0 | BA18: 0 | BB18: 0 | BC18: 0 | BD18: 0 | BE18: 0 | BF18: 0 | BG18: 0 | BH18: 0 | BI18: 0 | BJ18: 0 | BK18: 0 | BL18: 0 | BM18: 0 | BN18: 0 | BO18: 0 | BP18: =IF(BO1021=10000,0,default_model($A18,BP$13,$B18,BP$14)) -> 0 | BQ18: 0 | BR18: 0 | BS18: 0 | BT18: 0 | BU18: 0 | BW18: A | BX18: 3 | BY18: -10000 | BZ18: =payout($A18,D18,$C18:C18,BY18,$BY18:BY18) -> 12478.46 | CA18: =payout($A18,E18,$C18:D18,BZ18,$BY18:BZ18) -> 12478.46 | CB18: =payout($A18,F18,$C18:E18,CA18,$BY18:CA18) -> 12478.46 | CC18: =payout($A18,G18,$C18:F18,CB18,$BY18:CB18) -> 12478.46 | CD18: =payout($A18,H18,$C18:G18,CC18,$BY18:CC18) -> 12478.46 | CE18: =payout($A18,I18,$C18:H18,CD18,$BY18:CD18) -> 12478.46 | CF18: =payout($A18,J18,$C18:I18,CE18,$BY18:CE18) -> 12478.46 | CG18: =payout($A18,K18,$C18:J18,CF18,$BY18:CF18) -> 12478.46 | CH18: =payout($A18,L18,$C18:K18,CG18,$BY18:CG18) -> 12478.46 | CI18: =payout($A18,M18,$C18:L18,CH18,$BY18:CH18) -> 12478.46 | CJ18: =payout($A18,N18,$C18:M18,CI18,$BY18:CI18) -> 12478.46 | CK18: =payout($A18,O18,$C18:N18,CJ18,$BY18:CJ18) -> 12478.46 | CL18: =payout($A18,P18,$C18:O18,CK18,$BY18:CK18) -> 12478.46 | CM18: =payout($A18,Q18,$C18:P18,CL18,$BY18:CL18) -> 12478.46 | CN18: =payout($A18,R18,$C18:Q18,CM18,$BY18:CM18) -> 12478.46 | CO18: =payout($A18,S18,$C18:R18,CN18,$BY18:CN18) -> 12478.46 | CP18: =payout($A18,T18,$C18:S18,CO18,$BY18:CO18) -> 12478.46 | CQ18: =payout($A18,U18,$C18:T18,CP18,$BY18:CP18) -> 12478.46 | CR18: =payout($A18,V18,$C18:U18,CQ18,$BY18:CQ18) -> 12478.46 | CS18: =payout($A18,W18,$C18:V18,CR18,$BY18:CR18) -> 12478.46 | CT18: =payout($A18,X18,$C18:W18,CS18,$BY18:CS18) -> 12478.46 | CU18: =payout($A18,Y18,$C18:X18,CT18,$BY18:CT18) -> 12478.46 | CV18: =payout($A18,Z18,$C18:Y18,CU18,$BY18:CU18) -> 12478.46 | CW18: =payout($A18,AA18,$C18:Z18,CV18,$BY18:CV18) -> 12478.46 | CX18: =payout($A18,AB18,$C18:AA18,CW18,$BY18:CW18) -> 12478.46 | CY18: =payout($A18,AC18,$C18:AB18,CX18,$BY18:CX18) -> 12478.46 | CZ18: =payout($A18,AD18,$C18:AC18,CY18,$BY18:CY18) -> 12478.46 | DA18: =payout($A18,AE18,$C18:AD18,CZ18,$BY18:CZ18) -> 12478.46 | DB18: =payout($A18,AF18,$C18:AE18,DA18,$BY18:DA18) -> 12478.46 | DC18: =payout($A18,AG18,$C18:AF18,DB18,$BY18:DB18) -> 12478.46 | DD18: =payout($A18,AH18,$C18:AG18,DC18,$BY18:DC18) -> 12478.46 | DE18: =payout($A18,AI18,$C18:AH18,DD18,$BY18:DD18) -> 12478.46 | DF18: =payout($A18,AJ18,$C18:AI18,DE18,$BY18:DE18) -> 12478.46 | DG18: =payout($A18,AK18,$C18:AJ18,DF18,$BY18:DF18) -> 12478.46 | DH18: =payout($A18,AL18,$C18:AK18,DG18,$BY18:DG18) -> 12478.46 | DI18: =payout($A18,AM18,$C18:AL18,DH18,$BY18:DH18) -> 12478.46 | DJ18: =payout($A18,AN18,$C18:AM18,DI18,$BY18:DI18) -> 12478.46 | DK18: =payout($A18,AO18,$C18:AN18,DJ18,$BY18:DJ18) -> 12478.46 | DL18: =payout($A18,AP18,$C18:AO18,DK18,$BY18:DK18) -> 12478.46 | DM18: =payout($A18,AQ18,$C18:AP18,DL18,$BY18:DL18) -> 12478.46 | DN18: =payout($A18,AR18,$C18:AQ18,DM18,$BY18:DM18) -> 22478.46 | DO18: =payout($A18,AS18,$C18:AR18,DN18,$BY18:DN18) -> 0 | DP18: =payout($A18,AT18,$C18:AS18,DO18,$BY18:DO18) -> 0 | DQ18: =payout($A18,AU18,$C18:AT18,DP18,$BY18:DP18) -> 0 | DR18: =payout($A18,AV18,$C18:AU18,DQ18,$BY18:DQ18) -> 0 | DS18: =payout($A18,AW18,$C18:AV18,DR18,$BY18:DR18) -> 0 | DT18: =payout($A18,AX18,$C18:AW18,DS18,$BY18:DS18) -> 0 | DU18: =payout($A18,AY18,$C18:AX18,DT18,$BY18:DT18) -> 0 | DV18: =payout($A18,AZ18,$C18:AY18,DU18,$BY18:DU18) -> 0 | DW18: =payout($A18,BA18,$C18:AZ18,DV18,$BY18:DV18) -> 0 | DX18: =payout($A18,BB18,$C18:BA18,DW18,$BY18:DW18) -> 0 | DY18: =payout($A18,BC18,$C18:BB18,DX18,$BY18:DX18) -> 0 | DZ18: =payout($A18,BD18,$C18:BC18,DY18,$BY18:DY18) -> 0 | EA18: =payout($A18,BE18,$C18:BD18,DZ18,$BY18:DZ18) -> 0 | EB18: =payout($A18,BF18,$C18:BE18,EA18,$BY18:EA18) -> 0 | EC18: =payout($A18,BG18,$C18:BF18,EB18,$BY18:EB18) -> 0 | ED18: =payout($A18,BH18,$C18:BG18,EC18,$BY18:EC18) -> 0 | EE18: =payout($A18,BI18,$C18:BH18,ED18,$BY18:ED18) -> 0 | EF18: =payout($A18,BJ18,$C18:BI18,EE18,$BY18:EE18) -> 0 | EG18: =payout($A18,BK18,$C18:BJ18,EF18,$BY18:EF18) -> 0 | EH18: =payout($A18,BL18,$C18:BK18,EG18,$BY18:EG18) -> 0 | EI18: =payout($A18,BM18,$C18:BL18,EH18,$BY18:EH18) -> 0 | EJ18: =payout($A18,BN18,$C18:BM18,EI18,$BY18:EI18) -> 0 | EK18: =payout($A18,BO18,$C18:BN18,EJ18,$BY18:EJ18) -> 0 | EL18: =payout($A18,BP18,$C18:BO18,EK18,$BY18:EK18) -> 0 | EM18: =payout($A18,BQ18,$C18:BP18,EL18,$BY18:EL18) -> 0 | EN18: =payout($A18,BR18,$C18:BQ18,EM18,$BY18:EM18) -> 0 | EO18: =payout($A18,BS18,$C18:BR18,EN18,$BY18:EN18) -> 0 | EP18: =payout($A18,BT18,$C18:BS18,EO18,$BY18:EO18) -> 0 | EQ18: =payout($A18,BU18,$C18:BT18,EP18,$BY18:EP18) -> 0
A19: =get_bond_grade($A$16:A18,$BX$5,$BY$5,$BZ$5) -> AAA | B19: 4 | C19: 1 | D19: =IF(C1022=10000,0,default_model($A19,D$13,$B19,D$14)) -> 1 | E19: 1 | F19: 1 | G19: 1 | H19: 1 | I19: 1 | J19: 1 | K19: 1 | L19: 1 | M19: 1 | N19: 1 | O19: 1 | P19: 1 | Q19: 1 | R19: 1 | S19: 1 | T19: 1 | U19: 1 | V19: 1 | W19: 1 | X19: 1 | Y19: 1 | Z19: 1 | AA19: 1 | AB19: 1 | AC19: 1 | AD19: 1 | AE19: 0 | AF19: 0 | AG19: 0 | AH19: 0 | AI19: 0 | AJ19: =IF(AI1022=10000,0,default_model($A19,AJ$13,$B19,AJ$14)) -> 0 | AK19: 0 | AL19: 0 | AM19: 0 | AN19: 0 | AO19: 0 | AP19: 0 | AQ19: 0 | AR19: 0 | AS19: 0 | AT19: 0 | AU19: 0 | AV19: 0 | AW19: 0 | AX19: 0 | AY19: 0 | AZ19: 0 | BA19: 0 | BB19: 0 | BC19: 0 | BD19: 0 | BE19: 0 | BF19: 0 | BG19: 0 | BH19: 0 | BI19: 0 | BJ19: 0 | BK19: 0 | BL19: 0 | BM19: 0 | BN19: 0 | BO19: 0 | BP19: =IF(BO1022=10000,0,default_model($A19,BP$13,$B19,BP$14)) -> 0 | BQ19: 0 | BR19: 0 | BS19: 0 | BT19: 0 | BU19: 0 | BW19: AAA | BX19: 4 | BY19: -10000 | BZ19: =payout($A19,D19,$C19:C19,BY19,$BY19:BY19) -> 6299.76 | CA19: =payout($A19,E19,$C19:D19,BZ19,$BY19:BZ19) -> 6299.76 | CB19: =payout($A19,F19,$C19:E19,CA19,$BY19:CA19) -> 6299.76 | CC19: =payout($A19,G19,$C19:F19,CB19,$BY19:CB19) -> 6299.76 | CD19: =payout($A19,H19,$C19:G19,CC19,$BY19:CC19) -> 6299.76 | CE19: =payout($A19,I19,$C19:H19,CD19,$BY19:CD19) -> 6299.76 | CF19: =payout($A19,J19,$C19:I19,CE19,$BY19:CE19) -> 6299.76 | CG19: =payout($A19,K19,$C19:J19,CF19,$BY19:CF19) -> 6299.76 | CH19: =payout($A19,L19,$C19:K19,CG19,$BY19:CG19) -> 6299.76 | CI19: =payout($A19,M19,$C19:L19,CH19,$BY19:CH19) -> 6299.76 | CJ19: =payout($A19,N19,$C19:M19,CI19,$BY19:CI19) -> 6299.76 | CK19: =payout($A19,O19,$C19:N19,CJ19,$BY19:CJ19) -> 6299.76 | CL19: =payout($A19,P19,$C19:O19,CK19,$BY19:CK19) -> 6299.76 | CM19: =payout($A19,Q19,$C19:P19,CL19,$BY19:CL19) -> 6299.76 | CN19: =payout($A19,R19,$C19:Q19,CM19,$BY19:CM19) -> 6299.76 | CO19: =payout($A19,S19,$C19:R19,CN19,$BY19:CN19) -> 6299.76 | CP19: =payout($A19,T19,$C19:S19,CO19,$BY19:CO19) -> 6299.76 | CQ19: =payout($A19,U19,$C19:T19,CP19,$BY19:CP19) -> 6299.76 | CR19: =payout($A19,V19,$C19:U19,CQ19,$BY19:CQ19) -> 6299.76 | CS19: =payout($A19,W19,$C19:V19,CR19,$BY19:CR19) -> 6299.76 | CT19: =payout($A19,X19,$C19:W19,CS19,$BY19:CS19) -> 6299.76 | CU19: =payout($A19,Y19,$C19:X19,CT19,$BY19:CT19) -> 6299.76 | CV19: =payout($A19,Z19,$C19:Y19,CU19,$BY19:CU19) -> 6299.76 | CW19: =payout($A19,AA19,$C19:Z19,CV19,$BY19:CV19) -> 6299.76 | CX19: =payout($A19,AB19,$C19:AA19,CW19,$BY19:CW19) -> 6299.76 | CY19: =payout($A19,AC19,$C19:AB19,CX19,$BY19:CX19) -> 6299.76 | CZ19: =payout($A19,AD19,$C19:AC19,CY19,$BY19:CY19) -> 6299.76 | DA19: =payout($A19,AE19,$C19:AD19,CZ19,$BY19:CZ19) -> 6299.76 | DB19: =payout($A19,AF19,$C19:AE19,DA19,$BY19:DA19) -> 6299.76 | DC19: =payout($A19,AG19,$C19:AF19,DB19,$BY19:DB19) -> 6299.76 | DD19: =payout($A19,AH19,$C19:AG19,DC19,$BY19:DC19) -> 6299.76 | DE19: =payout($A19,AI19,$C19:AH19,DD19,$BY19:DD19) -> 6299.76 | DF19: =payout($A19,AJ19,$C19:AI19,DE19,$BY19:DE19) -> 6299.76 | DG19: =payout($A19,AK19,$C19:AJ19,DF19,$BY19:DF19) -> 6299.76 | DH19: =payout($A19,AL19,$C19:AK19,DG19,$BY19:DG19) -> 6299.76 | DI19: =payout($A19,AM19,$C19:AL19,DH19,$BY19:DH19) -> 6299.76 | DJ19: =payout($A19,AN19,$C19:AM19,DI19,$BY19:DI19) -> 6299.76 | DK19: =payout($A19,AO19,$C19:AN19,DJ19,$BY19:DJ19) -> 6299.76 | DL19: =payout($A19,AP19,$C19:AO19,DK19,$BY19:DK19) -> 6299.76 | DM19: =payout($A19,AQ19,$C19:AP19,DL19,$BY19:DL19) -> 6299.76 | DN19: =payout($A19,AR19,$C19:AQ19,DM19,$BY19:DM19) -> 16299.76 | DO19: =payout($A19,AS19,$C19:AR19,DN19,$BY19:DN19) -> 0 | DP19: =payout($A19,AT19,$C19:AS19,DO19,$BY19:DO19) -> 0 | DQ19: =payout($A19,AU19,$C19:AT19,DP19,$BY19:DP19) -> 0 | DR19: =payout($A19,AV19,$C19:AU19,DQ19,$BY19:DQ19) -> 0 | DS19: =payout($A19,AW19,$C19:AV19,DR19,$BY19:DR19) -> 0 | DT19: =payout($A19,AX19,$C19:AW19,DS19,$BY19:DS19) -> 0 | DU19: =payout($A19,AY19,$C19:AX19,DT19,$BY19:DT19) -> 0 | DV19: =payout($A19,AZ19,$C19:AY19,DU19,$BY19:DU19) -> 0 | DW19: =payout($A19,BA19,$C19:AZ19,DV19,$BY19:DV19) -> 0 | DX19: =payout($A19,BB19,$C19:BA19,DW19,$BY19:DW19) -> 0 | DY19: =payout($A19,BC19,$C19:BB19,DX19,$BY19:DX19) -> 0 | DZ19: =payout($A19,BD19,$C19:BC19,DY19,$BY19:DY19) -> 0 | EA19: =payout($A19,BE19,$C19:BD19,DZ19,$BY19:DZ19) -> 0 | EB19: =payout($A19,BF19,$C19:BE19,EA19,$BY19:EA19) -> 0 | EC19: =payout($A19,BG19,$C19:BF19,EB19,$BY19:EB19) -> 0 | ED19: =payout($A19,BH19,$C19:BG19,EC19,$BY19:EC19) -> 0 | EE19: =payout($A19,BI19,$C19:BH19,ED19,$BY19:ED19) -> 0 | EF19: =payout($A19,BJ19,$C19:BI19,EE19,$BY19:EE19) -> 0 | EG19: =payout($A19,BK19,$C19:BJ19,EF19,$BY19:EF19) -> 0 | EH19: =payout($A19,BL19,$C19:BK19,EG19,$BY19:EG19) -> 0 | EI19: =payout($A19,BM19,$C19:BL19,EH19,$BY19:EH19) -> 0 | EJ19: =payout($A19,BN19,$C19:BM19,EI19,$BY19:EI19) -> 0 | EK19: =payout($A19,BO19,$C19:BN19,EJ19,$BY19:EJ19) -> 0 | EL19: =payout($A19,BP19,$C19:BO19,EK19,$BY19:EK19) -> 0 | EM19: =payout($A19,BQ19,$C19:BP19,EL19,$BY19:EL19) -> 0 | EN19: =payout($A19,BR19,$C19:BQ19,EM19,$BY19:EM19) -> 0 | EO19: =payout($A19,BS19,$C19:BR19,EN19,$BY19:EN19) -> 0 | EP19: =payout($A19,BT19,$C19:BS19,EO19,$BY19:EO19) -> 0 | EQ19: =payout($A19,BU19,$C19:BT19,EP19,$BY19:EP19) -> 0
A20: =get_bond_grade($A$16:A19,$BX$5,$BY$5,$BZ$5) -> AA | B20: 5 | C20: 1 | D20: =IF(C1023=10000,0,default_model($A20,D$13,$B20,D$14)) -> 1 | E20: 1 | F20: 1 | G20: 1 | H20: 1 | I20: 1 | J20: 1 | K20: 1 | L20: 1 | M20: 1 | N20: 1 | O20: 1 | P20: 1 | Q20: 1 | R20: 1 | S20: 1 | T20: 1 | U20: 1 | V20: 1 | W20: 1 | X20: 1 | Y20: 1 | Z20: 1 | AA20: 1 | AB20: 1 | AC20: 1 | AD20: 1 | AE20: 0 | AF20: 0 | AG20: 0 | AH20: 0 | AI20: 0 | AJ20: =IF(AI1023=10000,0,default_model($A20,AJ$13,$B20,AJ$14)) -> 0 | AK20: 0 | AL20: 0 | AM20: 0 | AN20: 0 | AO20: 0 | AP20: 0 | AQ20: 0 | AR20: 0 | AS20: 0 | AT20: 0 | AU20: 0 | AV20: 0 | AW20: 0 | AX20: 0 | AY20: 0 | AZ20: 0 | BA20: 0 | BB20: 0 | BC20: 0 | BD20: 0 | BE20: 0 | BF20: 0 | BG20: 0 | BH20: 0 | BI20: 0 | BJ20: 0 | BK20: 0 | BL20: 0 | BM20: 0 | BN20: 0 | BO20: 0 | BP20: =IF(BO1023=10000,0,default_model($A20,BP$13,$B20,BP$14)) -> 0 | BQ20: 0 | BR20: 0 | BS20: 0 | BT20: 0 | BU20: 0 | BW20: AA | BX20: 5 | BY20: -10000 | BZ20: =payout($A20,D20,$C20:C20,BY20,$BY20:BY20) -> 7921.03 | CA20: =payout($A20,E20,$C20:D20,BZ20,$BY20:BZ20) -> 7921.03 | CB20: =payout($A20,F20,$C20:E20,CA20,$BY20:CA20) -> 7921.03 | CC20: =payout($A20,G20,$C20:F20,CB20,$BY20:CB20) -> 7921.03 | CD20: =payout($A20,H20,$C20:G20,CC20,$BY20:CC20) -> 7921.03 | CE20: =payout($A20,I20,$C20:H20,CD20,$BY20:CD20) -> 7921.03 | CF20: =payout($A20,J20,$C20:I20,CE20,$BY20:CE20) -> 7921.03 | CG20: =payout($A20,K20,$C20:J20,CF20,$BY20:CF20) -> 7921.03 | CH20: =payout($A20,L20,$C20:K20,CG20,$BY20:CG20) -> 7921.03 | CI20: =payout($A20,M20,$C20:L20,CH20,$BY20:CH20) -> 7921.03 | CJ20: =payout($A20,N20,$C20:M20,CI20,$BY20:CI20) -> 7921.03 | CK20: =payout($A20,O20,$C20:N20,CJ20,$BY20:CJ20) -> 7921.03 | CL20: =payout($A20,P20,$C20:O20,CK20,$BY20:CK20) -> 7921.03 | CM20: =payout($A20,Q20,$C20:P20,CL20,$BY20:CL20) -> 7921.03 | CN20: =payout($A20,R20,$C20:Q20,CM20,$BY20:CM20) -> 7921.03 | CO20: =payout($A20,S20,$C20:R20,CN20,$BY20:CN20) -> 7921.03 | CP20: =payout($A20,T20,$C20:S20,CO20,$BY20:CO20) -> 7921.03 | CQ20: =payout($A20,U20,$C20:T20,CP20,$BY20:CP20) -> 7921.03 | CR20: =payout($A20,V20,$C20:U20,CQ20,$BY20:CQ20) -> 7921.03 | CS20: =payout($A20,W20,$C20:V20,CR20,$BY20:CR20) -> 7921.03 | CT20: =payout($A20,X20,$C20:W20,CS20,$BY20:CS20) -> 7921.03 | CU20: =payout($A20,Y20,$C20:X20,CT20,$BY20:CT20) -> 7921.03 | CV20: =payout($A20,Z20,$C20:Y20,CU20,$BY20:CU20) -> 7921.03 | CW20: =payout($A20,AA20,$C20:Z20,CV20,$BY20:CV20) -> 7921.03 | CX20: =payout($A20,AB20,$C20:AA20,CW20,$BY20:CW20) -> 7921.03 | CY20: =payout($A20,AC20,$C20:AB20,CX20,$BY20:CX20) -> 7921.03 | CZ20: =payout($A20,AD20,$C20:AC20,CY20,$BY20:CY20) -> 7921.03 | DA20: =payout($A20,AE20,$C20:AD20,CZ20,$BY20:CZ20) -> 7921.03 | DB20: =payout($A20,AF20,$C20:AE20,DA20,$BY20:DA20) -> 7921.03 | DC20: =payout($A20,AG20,$C20:AF20,DB20,$BY20:DB20) -> 7921.03 | DD20: =payout($A20,AH20,$C20:AG20,DC20,$BY20:DC20) -> 7921.03 | DE20: =payout($A20,AI20,$C20:AH20,DD20,$BY20:DD20) -> 7921.03 | DF20: =payout($A20,AJ20,$C20:AI20,DE20,$BY20:DE20) -> 7921.03 | DG20: =payout($A20,AK20,$C20:AJ20,DF20,$BY20:DF20) -> 7921.03 | DH20: =payout($A20,AL20,$C20:AK20,DG20,$BY20:DG20) -> 7921.03 | DI20: =payout($A20,AM20,$C20:AL20,DH20,$BY20:DH20) -> 7921.03 | DJ20: =payout($A20,AN20,$C20:AM20,DI20,$BY20:DI20) -> 7921.03 | DK20: =payout($A20,AO20,$C20:AN20,DJ20,$BY20:DJ20) -> 7921.03 | DL20: =payout($A20,AP20,$C20:AO20,DK20,$BY20:DK20) -> 7921.03 | DM20: =payout($A20,AQ20,$C20:AP20,DL20,$BY20:DL20) -> 7921.03 | DN20: =payout($A20,AR20,$C20:AQ20,DM20,$BY20:DM20) -> 17921.03 | DO20: =payout($A20,AS20,$C20:AR20,DN20,$BY20:DN20) -> 0 | DP20: =payout($A20,AT20,$C20:AS20,DO20,$BY20:DO20) -> 0 | DQ20: =payout($A20,AU20,$C20:AT20,DP20,$BY20:DP20) -> 0 | DR20: =payout($A20,AV20,$C20:AU20,DQ20,$BY20:DQ20) -> 0 | DS20: =payout($A20,AW20,$C20:AV20,DR20,$BY20:DR20) -> 0 | DT20: =payout($A20,AX20,$C20:AW20,DS20,$BY20:DS20) -> 0 | DU20: =payout($A20,AY20,$C20:AX20,DT20,$BY20:DT20) -> 0 | DV20: =payout($A20,AZ20,$C20:AY20,DU20,$BY20:DU20) -> 0 | DW20: =payout($A20,BA20,$C20:AZ20,DV20,$BY20:DV20) -> 0 | DX20: =payout($A20,BB20,$C20:BA20,DW20,$BY20:DW20) -> 0 | DY20: =payout($A20,BC20,$C20:BB20,DX20,$BY20:DX20) -> 0 | DZ20: =payout($A20,BD20,$C20:BC20,DY20,$BY20:DY20) -> 0 | EA20: =payout($A20,BE20,$C20:BD20,DZ20,$BY20:DZ20) -> 0 | EB20: =payout($A20,BF20,$C20:BE20,EA20,$BY20:EA20) -> 0 | EC20: =payout($A20,BG20,$C20:BF20,EB20,$BY20:EB20) -> 0 | ED20: =payout($A20,BH20,$C20:BG20,EC20,$BY20:EC20) -> 0 | EE20: =payout($A20,BI20,$C20:BH20,ED20,$BY20:ED20) -> 0 | EF20: =payout($A20,BJ20,$C20:BI20,EE20,$BY20:EE20) -> 0 | EG20: =payout($A20,BK20,$C20:BJ20,EF20,$BY20:EF20) -> 0 | EH20: =payout($A20,BL20,$C20:BK20,EG20,$BY20:EG20) -> 0 | EI20: =payout($A20,BM20,$C20:BL20,EH20,$BY20:EH20) -> 0 | EJ20: =payout($A20,BN20,$C20:BM20,EI20,$BY20:EI20) -> 0 | EK20: =payout($A20,BO20,$C20:BN20,EJ20,$BY20:EJ20) -> 0 | EL20: =payout($A20,BP20,$C20:BO20,EK20,$BY20:EK20) -> 0 | EM20: =payout($A20,BQ20,$C20:BP20,EL20,$BY20:EL20) -> 0 | EN20: =payout($A20,BR20,$C20:BQ20,EM20,$BY20:EM20) -> 0 | EO20: =payout($A20,BS20,$C20:BR20,EN20,$BY20:EN20) -> 0 | EP20: =payout($A20,BT20,$C20:BS20,EO20,$BY20:EO20) -> 0 | EQ20: =payout($A20,BU20,$C20:BT20,EP20,$BY20:EP20) -> 0
A21: =get_bond_grade($A$16:A20,$BX$5,$BY$5,$BZ$5) -> A | B21: 6 | C21: 1 | D21: =IF(C1024=10000,0,default_model($A21,D$13,$B21,D$14)) -> 0 | E21: 0 | F21: 0 | G21: 0 | H21: 0 | I21: 0 | J21: 0 | K21: 0 | L21: 0 | M21: 0 | N21: 0 | O21: 0 | P21: 0 | Q21: 0 | R21: 0 | S21: 0 | T21: 0 | U21: 0 | V21: 0 | W21: 0 | X21: 0 | Y21: 0 | Z21: 0 | AA21: 0 | AB21: 0 | AC21: 0 | AD21: 0 | AE21: 0 | AF21: 0 | AG21: 0 | AH21: 0 | AI21: 0 | AJ21: =IF(AI1024=10000,0,default_model($A21,AJ$13,$B21,AJ$14)) -> 0 | AK21: 0 | AL21: 0 | AM21: 0 | AN21: 0 | AO21: 0 | AP21: 0 | AQ21: 0 | AR21: 0 | AS21: 0 | AT21: 0 | AU21: 0 | AV21: 0 | AW21: 0 | AX21: 0 | AY21: 0 | AZ21: 0 | BA21: 0 | BB21: 0 | BC21: 0 | BD21: 0 | BE21: 0 | BF21: 0 | BG21: 0 | BH21: 0 | BI21: 0 | BJ21: 0 | BK21: 0 | BL21: 0 | BM21: 0 | BN21: 0 | BO21: 0 | BP21: =IF(BO1024=10000,0,default_model($A21,BP$13,$B21,BP$14)) -> 0 | BQ21: 0 | BR21: 0 | BS21: 0 | BT21: 0 | BU21: 0 | BW21: A | BX21: 6 | BY21: -10000 | BZ21: =payout($A21,D21,$C21:C21,BY21,$BY21:BY21) -> 12478.46 | CA21: =payout($A21,E21,$C21:D21,BZ21,$BY21:BZ21) -> 12478.46 | CB21: =payout($A21,F21,$C21:E21,CA21,$BY21:CA21) -> 12478.46 | CC21: =payout($A21,G21,$C21:F21,CB21,$BY21:CB21) -> 12478.46 | CD21: =payout($A21,H21,$C21:G21,CC21,$BY21:CC21) -> 12478.46 | CE21: =payout($A21,I21,$C21:H21,CD21,$BY21:CD21) -> 12478.46 | CF21: =payout($A21,J21,$C21:I21,CE21,$BY21:CE21) -> 12478.46 | CG21: =payout($A21,K21,$C21:J21,CF21,$BY21:CF21) -> 12478.46 | CH21: =payout($A21,L21,$C21:K21,CG21,$BY21:CG21) -> 12478.46 | CI21: =payout($A21,M21,$C21:L21,CH21,$BY21:CH21) -> 12478.46 | CJ21: =payout($A21,N21,$C21:M21,CI21,$BY21:CI21) -> 12478.46 | CK21: =payout($A21,O21,$C21:N21,CJ21,$BY21:CJ21) -> 12478.46 | CL21: =payout($A21,P21,$C21:O21,CK21,$BY21:CK21) -> 12478.46 | CM21: =payout($A21,Q21,$C21:P21,CL21,$BY21:CL21) -> 12478.46 | CN21: =payout($A21,R21,$C21:Q21,CM21,$BY21:CM21) -> 12478.46 | CO21: =payout($A21,S21,$C21:R21,CN21,$BY21:CN21) -> 12478.46 | CP21: =payout($A21,T21,$C21:S21,CO21,$BY21:CO21) -> 12478.46 | CQ21: =payout($A21,U21,$C21:T21,CP21,$BY21:CP21) -> 12478.46 | CR21: =payout($A21,V21,$C21:U21,CQ21,$BY21:CQ21) -> 12478.46 | CS21: =payout($A21,W21,$C21:V21,CR21,$BY21:CR21) -> 12478.46 | CT21: =payout($A21,X21,$C21:W21,CS21,$BY21:CS21) -> 12478.46 | CU21: =payout($A21,Y21,$C21:X21,CT21,$BY21:CT21) -> 12478.46 | CV21: =payout($A21,Z21,$C21:Y21,CU21,$BY21:CU21) -> 12478.46 | CW21: =payout($A21,AA21,$C21:Z21,CV21,$BY21:CV21) -> 12478.46 | CX21: =payout($A21,AB21,$C21:AA21,CW21,$BY21:CW21) -> 12478.46 | CY21: =payout($A21,AC21,$C21:AB21,CX21,$BY21:CX21) -> 12478.46 | CZ21: =payout($A21,AD21,$C21:AC21,CY21,$BY21:CY21) -> 12478.46 | DA21: =payout($A21,AE21,$C21:AD21,CZ21,$BY21:CZ21) -> 12478.46 | DB21: =payout($A21,AF21,$C21:AE21,DA21,$BY21:DA21) -> 12478.46 | DC21: =payout($A21,AG21,$C21:AF21,DB21,$BY21:DB21) -> 12478.46 | DD21: =payout($A21,AH21,$C21:AG21,DC21,$BY21:DC21) -> 12478.46 | DE21: =payout($A21,AI21,$C21:AH21,DD21,$BY21:DD21) -> 12478.46 | DF21: =payout($A21,AJ21,$C21:AI21,DE21,$BY21:DE21) -> 12478.46 | DG21: =payout($A21,AK21,$C21:AJ21,DF21,$BY21:DF21) -> 12478.46 | DH21: =payout($A21,AL21,$C21:AK21,DG21,$BY21:DG21) -> 12478.46 | DI21: =payout($A21,AM21,$C21:AL21,DH21,$BY21:DH21) -> 12478.46 | DJ21: =payout($A21,AN21,$C21:AM21,DI21,$BY21:DI21) -> 12478.46 | DK21: =payout($A21,AO21,$C21:AN21,DJ21,$BY21:DJ21) -> 12478.46 | DL21: =payout($A21,AP21,$C21:AO21,DK21,$BY21:DK21) -> 12478.46 | DM21: =payout($A21,AQ21,$C21:AP21,DL21,$BY21:DL21) -> 12478.46 | DN21: =payout($A21,AR21,$C21:AQ21,DM21,$BY21:DM21) -> 22478.46 | DO21: =payout($A21,AS21,$C21:AR21,DN21,$BY21:DN21) -> 0 | DP21: =payout($A21,AT21,$C21:AS21,DO21,$BY21:DO21) -> 0 | DQ21: =payout($A21,AU21,$C21:AT21,DP21,$BY21:DP21) -> 0 | DR21: =payout($A21,AV21,$C21:AU21,DQ21,$BY21:DQ21) -> 0 | DS21: =payout($A21,AW21,$C21:AV21,DR21,$BY21:DR21) -> 0 | DT21: =payout($A21,AX21,$C21:AW21,DS21,$BY21:DS21) -> 0 | DU21: =payout($A21,AY21,$C21:AX21,DT21,$BY21:DT21) -> 0 | DV21: =payout($A21,AZ21,$C21:AY21,DU21,$BY21:DU21) -> 0 | DW21: =payout($A21,BA21,$C21:AZ21,DV21,$BY21:DV21) -> 0 | DX21: =payout($A21,BB21,$C21:BA21,DW21,$BY21:DW21) -> 0 | DY21: =payout($A21,BC21,$C21:BB21,DX21,$BY21:DX21) -> 0 | DZ21: =payout($A21,BD21,$C21:BC21,DY21,$BY21:DY21) -> 0 | EA21: =payout($A21,BE21,$C21:BD21,DZ21,$BY21:DZ21) -> 0 | EB21: =payout($A21,BF21,$C21:BE21,EA21,$BY21:EA21) -> 0 | EC21: =payout($A21,BG21,$C21:BF21,EB21,$BY21:EB21) -> 0 | ED21: =payout($A21,BH21,$C21:BG21,EC21,$BY21:EC21) -> 0 | EE21: =payout($A21,BI21,$C21:BH21,ED21,$BY21:ED21) -> 0 | EF21: =payout($A21,BJ21,$C21:BI21,EE21,$BY21:EE21) -> 0 | EG21: =payout($A21,BK21,$C21:BJ21,EF21,$BY21:EF21) -> 0 | EH21: =payout($A21,BL21,$C21:BK21,EG21,$BY21:EG21) -> 0 | EI21: =payout($A21,BM21,$C21:BL21,EH21,$BY21:EH21) -> 0 | EJ21: =payout($A21,BN21,$C21:BM21,EI21,$BY21:EI21) -> 0 | EK21: =payout($A21,BO21,$C21:BN21,EJ21,$BY21:EJ21) -> 0 | EL21: =payout($A21,BP21,$C21:BO21,EK21,$BY21:EK21) -> 0 | EM21: =payout($A21,BQ21,$C21:BP21,EL21,$BY21:EL21) -> 0 | EN21: =payout($A21,BR21,$C21:BQ21,EM21,$BY21:EM21) -> 0 | EO21: =payout($A21,BS21,$C21:BR21,EN21,$BY21:EN21) -> 0 | EP21: =payout($A21,BT21,$C21:BS21,EO21,$BY21:EO21) -> 0 | EQ21: =payout($A21,BU21,$C21:BT21,EP21,$BY21:EP21) -> 0
A22: =get_bond_grade($A$16:A21,$BX$5,$BY$5,$BZ$5) -> AAA | B22: 7 | C22: 1 | D22: =IF(C1025=10000,0,default_model($A22,D$13,$B22,D$14)) -> 1 | E22: 1 | F22: 1 | G22: 1 | H22: 1 | I22: 1 | J22: 1 | K22: 1 | L22: 1 | M22: 1 | N22: 1 | O22: 1 | P22: 1 | Q22: 1 | R22: 1 | S22: 1 | T22: 1 | U22: 1 | V22: 1 | W22: 1 | X22: 1 | Y22: 1 | Z22: 1 | AA22: 1 | AB22: 1 | AC22: 1 | AD22: 1 | AE22: 0 | AF22: 0 | AG22: 0 | AH22: 0 | AI22: 0 | AJ22: =IF(AI1025=10000,0,default_model($A22,AJ$13,$B22,AJ$14)) -> 0 | AK22: 0 | AL22: 0 | AM22: 0 | AN22: 0 | AO22: 0 | AP22: 0 | AQ22: 0 | AR22: 0 | AS22: 0 | AT22: 0 | AU22: 0 | AV22: 0 | AW22: 0 | AX22: 0 | AY22: 0 | AZ22: 0 | BA22: 0 | BB22: 0 | BC22: 0 | BD22: 0 | BE22: 0 | BF22: 0 | BG22: 0 | BH22: 0 | BI22: 0 | BJ22: 0 | BK22: 0 | BL22: 0 | BM22: 0 | BN22: 0 | BO22: 0 | BP22: =IF(BO1025=10000,0,default_model($A22,BP$13,$B22,BP$14)) -> 0 | BQ22: 0 | BR22: 0 | BS22: 0 | BT22: 0 | BU22: 0 | BW22: AAA | BX22: 7 | BY22: -10000 | BZ22: =payout($A22,D22,$C22:C22,BY22,$BY22:BY22) -> 6299.76 | CA22: =payout($A22,E22,$C22:D22,BZ22,$BY22:BZ22) -> 6299.76 | CB22: =payout($A22,F22,$C22:E22,CA22,$BY22:CA22) -> 6299.76 | CC22: =payout($A22,G22,$C22:F22,CB22,$BY22:CB22) -> 6299.76 | CD22: =payout($A22,H22,$C22:G22,CC22,$BY22:CC22) -> 6299.76 | CE22: =payout($A22,I22,$C22:H22,CD22,$BY22:CD22) -> 6299.76 | CF22: =payout($A22,J22,$C22:I22,CE22,$BY22:CE22) -> 6299.76 | CG22: =payout($A22,K22,$C22:J22,CF22,$BY22:CF22) -> 6299.76 | CH22: =payout($A22,L22,$C22:K22,CG22,$BY22:CG22) -> 6299.76 | CI22: =payout($A22,M22,$C22:L22,CH22,$BY22:CH22) -> 6299.76 | CJ22: =payout($A22,N22,$C22:M22,CI22,$BY22:CI22) -> 6299.76 | CK22: =payout($A22,O22,$C22:N22,CJ22,$BY22:CJ22) -> 6299.76 | CL22: =payout($A22,P22,$C22:O22,CK22,$BY22:CK22) -> 6299.76 | CM22: =payout($A22,Q22,$C22:P22,CL22,$BY22:CL22) -> 6299.76 | CN22: =payout($A22,R22,$C22:Q22,CM22,$BY22:CM22) -> 6299.76 | CO22: =payout($A22,S22,$C22:R22,CN22,$BY22:CN22) -> 6299.76 | CP22: =payout($A22,T22,$C22:S22,CO22,$BY22:CO22) -> 6299.76 | CQ22: =payout($A22,U22,$C22:T22,CP22,$BY22:CP22) -> 6299.76 | CR22: =payout($A22,V22,$C22:U22,CQ22,$BY22:CQ22) -> 6299.76 | CS22: =payout($A22,W22,$C22:V22,CR22,$BY22:CR22) -> 6299.76 | CT22: =payout($A22,X22,$C22:W22,CS22,$BY22:CS22) -> 6299.76 | CU22: =payout($A22,Y22,$C22:X22,CT22,$BY22:CT22) -> 6299.76 | CV22: =payout($A22,Z22,$C22:Y22,CU22,$BY22:CU22) -> 6299.76 | CW22: =payout($A22,AA22,$C22:Z22,CV22,$BY22:CV22) -> 6299.76 | CX22: =payout($A22,AB22,$C22:AA22,CW22,$BY22:CW22) -> 6299.76 | CY22: =payout($A22,AC22,$C22:AB22,CX22,$BY22:CX22) -> 6299.76 | CZ22: =payout($A22,AD22,$C22:AC22,CY22,$BY22:CY22) -> 6299.76 | DA22: =payout($A22,AE22,$C22:AD22,CZ22,$BY22:CZ22) -> 6299.76 | DB22: =payout($A22,AF22,$C22:AE22,DA22,$BY22:DA22) -> 6299.76 | DC22: =payout($A22,AG22,$C22:AF22,DB22,$BY22:DB22) -> 6299.76 | DD22: =payout($A22,AH22,$C22:AG22,DC22,$BY22:DC22) -> 6299.76 | DE22: =payout($A22,AI22,$C22:AH22,DD22,$BY22:DD22) -> 6299.76 | DF22: =payout($A22,AJ22,$C22:AI22,DE22,$BY22:DE22) -> 6299.76 | DG22: =payout($A22,AK22,$C22:AJ22,DF22,$BY22:DF22) -> 6299.76 | DH22: =payout($A22,AL22,$C22:AK22,DG22,$BY22:DG22) -> 6299.76 | DI22: =payout($A22,AM22,$C22:AL22,DH22,$BY22:DH22) -> 6299.76 | DJ22: =payout($A22,AN22,$C22:AM22,DI22,$BY22:DI22) -> 6299.76 | DK22: =payout($A22,AO22,$C22:AN22,DJ22,$BY22:DJ22) -> 6299.76 | DL22: =payout($A22,AP22,$C22:AO22,DK22,$BY22:DK22) -> 6299.76 | DM22: =payout($A22,AQ22,$C22:AP22,DL22,$BY22:DL22) -> 6299.76 | DN22: =payout($A22,AR22,$C22:AQ22,DM22,$BY22:DM22) -> 16299.76 | DO22: =payout($A22,AS22,$C22:AR22,DN22,$BY22:DN22) -> 0 | DP22: =payout($A22,AT22,$C22:AS22,DO22,$BY22:DO22) -> 0 | DQ22: =payout($A22,AU22,$C22:AT22,DP22,$BY22:DP22) -> 0 | DR22: =payout($A22,AV22,$C22:AU22,DQ22,$BY22:DQ22) -> 0 | DS22: =payout($A22,AW22,$C22:AV22,DR22,$BY22:DR22) -> 0 | DT22: =payout($A22,AX22,$C22:AW22,DS22,$BY22:DS22) -> 0 | DU22: =payout($A22,AY22,$C22:AX22,DT22,$BY22:DT22) -> 0 | DV22: =payout($A22,AZ22,$C22:AY22,DU22,$BY22:DU22) -> 0 | DW22: =payout($A22,BA22,$C22:AZ22,DV22,$BY22:DV22) -> 0 | DX22: =payout($A22,BB22,$C22:BA22,DW22,$BY22:DW22) -> 0 | DY22: =payout($A22,BC22,$C22:BB22,DX22,$BY22:DX22) -> 0 | DZ22: =payout($A22,BD22,$C22:BC22,DY22,$BY22:DY22) -> 0 | EA22: =payout($A22,BE22,$C22:BD22,DZ22,$BY22:DZ22) -> 0 | EB22: =payout($A22,BF22,$C22:BE22,EA22,$BY22:EA22) -> 0 | EC22: =payout($A22,BG22,$C22:BF22,EB22,$BY22:EB22) -> 0 | ED22: =payout($A22,BH22,$C22:BG22,EC22,$BY22:EC22) -> 0 | EE22: =payout($A22,BI22,$C22:BH22,ED22,$BY22:ED22) -> 0 | EF22: =payout($A22,BJ22,$C22:BI22,EE22,$BY22:EE22) -> 0 | EG22: =payout($A22,BK22,$C22:BJ22,EF22,$BY22:EF22) -> 0 | EH22: =payout($A22,BL22,$C22:BK22,EG22,$BY22:EG22) -> 0 | EI22: =payout($A22,BM22,$C22:BL22,EH22,$BY22:EH22) -> 0 | EJ22: =payout($A22,BN22,$C22:BM22,EI22,$BY22:EI22) -> 0 | EK22: =payout($A22,BO22,$C22:BN22,EJ22,$BY22:EJ22) -> 0 | EL22: =payout($A22,BP22,$C22:BO22,EK22,$BY22:EK22) -> 0 | EM22: =payout($A22,BQ22,$C22:BP22,EL22,$BY22:EL22) -> 0 | EN22: =payout($A22,BR22,$C22:BQ22,EM22,$BY22:EM22) -> 0 | EO22: =payout($A22,BS22,$C22:BR22,EN22,$BY22:EN22) -> 0 | EP22: =payout($A22,BT22,$C22:BS22,EO22,$BY22:EO22) -> 0 | EQ22: =payout($A22,BU22,$C22:BT22,EP22,$BY22:EP22) -> 0
A23: =get_bond_grade($A$16:A22,$BX$5,$BY$5,$BZ$5) -> AA | B23: 8 | C23: 1 | D23: =IF(C1026=10000,0,default_model($A23,D$13,$B23,D$14)) -> 1 | E23: 1 | F23: 1 | G23: 1 | H23: 1 | I23: 1 | J23: 1 | K23: 1 | L23: 1 | M23: 1 | N23: 1 | O23: 1 | P23: 1 | Q23: 1 | R23: 1 | S23: 1 | T23: 1 | U23: 1 | V23: 1 | W23: 1 | X23: 1 | Y23: 1 | Z23: 1 | AA23: 1 | AB23: 1 | AC23: 1 | AD23: 1 | AE23: 0 | AF23: 0 | AG23: 0 | AH23: 0 | AI23: 0 | AJ23: =IF(AI1026=10000,0,default_model($A23,AJ$13,$B23,AJ$14)) -> 0 | AK23: 0 | AL23: 0 | AM23: 0 | AN23: 0 | AO23: 0 | AP23: 0 | AQ23: 0 | AR23: 0 | AS23: 0 | AT23: 0 | AU23: 0 | AV23: 0 | AW23: 0 | AX23: 0 | AY23: 0 | AZ23: 0 | BA23: 0 | BB23: 0 | BC23: 0 | BD23: 0 | BE23: 0 | BF23: 0 | BG23: 0 | BH23: 0 | BI23: 0 | BJ23: 0 | BK23: 0 | BL23: 0 | BM23: 0 | BN23: 0 | BO23: 0 | BP23: =IF(BO1026=10000,0,default_model($A23,BP$13,$B23,BP$14)) -> 0 | BQ23: 0 | BR23: 0 | BS23: 0 | BT23: 0 | BU23: 0 | BW23: AA | BX23: 8 | BY23: -10000 | BZ23: =payout($A23,D23,$C23:C23,BY23,$BY23:BY23) -> 7921.03 | CA23: =payout($A23,E23,$C23:D23,BZ23,$BY23:BZ23) -> 7921.03 | CB23: =payout($A23,F23,$C23:E23,CA23,$BY23:CA23) -> 7921.03 | CC23: =payout($A23,G23,$C23:F23,CB23,$BY23:CB23) -> 7921.03 | CD23: =payout($A23,H23,$C23:G23,CC23,$BY23:CC23) -> 7921.03 | CE23: =payout($A23,I23,$C23:H23,CD23,$BY23:CD23) -> 7921.03 | CF23: =payout($A23,J23,$C23:I23,CE23,$BY23:CE23) -> 7921.03 | CG23: =payout($A23,K23,$C23:J23,CF23,$BY23:CF23) -> 7921.03 | CH23: =payout($A23,L23,$C23:K23,CG23,$BY23:CG23) -> 7921.03 | CI23: =payout($A23,M23,$C23:L23,CH23,$BY23:CH23) -> 7921.03 | CJ23: =payout($A23,N23,$C23:M23,CI23,$BY23:CI23) -> 7921.03 | CK23: =payout($A23,O23,$C23:N23,CJ23,$BY23:CJ23) -> 7921.03 | CL23: =payout($A23,P23,$C23:O23,CK23,$BY23:CK23) -> 7921.03 | CM23: =payout($A23,Q23,$C23:P23,CL23,$BY23:CL23) -> 7921.03 | CN23: =payout($A23,R23,$C23:Q23,CM23,$BY23:CM23) -> 7921.03 | CO23: =payout($A23,S23,$C23:R23,CN23,$BY23:CN23) -> 7921.03 | CP23: =payout($A23,T23,$C23:S23,CO23,$BY23:CO23) -> 7921.03 | CQ23: =payout($A23,U23,$C23:T23,CP23,$BY23:CP23) -> 7921.03 | CR23: =payout($A23,V23,$C23:U23,CQ23,$BY23:CQ23) -> 7921.03 | CS23: =payout($A23,W23,$C23:V23,CR23,$BY23:CR23) -> 7921.03 | CT23: =payout($A23,X23,$C23:W23,CS23,$BY23:CS23) -> 7921.03 | CU23: =payout($A23,Y23,$C23:X23,CT23,$BY23:CT23) -> 7921.03 | CV23: =payout($A23,Z23,$C23:Y23,CU23,$BY23:CU23) -> 7921.03 | CW23: =payout($A23,AA23,$C23:Z23,CV23,$BY23:CV23) -> 7921.03 | CX23: =payout($A23,AB23,$C23:AA23,CW23,$BY23:CW23) -> 7921.03 | CY23: =payout($A23,AC23,$C23:AB23,CX23,$BY23:CX23) -> 7921.03 | CZ23: =payout($A23,AD23,$C23:AC23,CY23,$BY23:CY23) -> 7921.03 | DA23: =payout($A23,AE23,$C23:AD23,CZ23,$BY23:CZ23) -> 7921.03 | DB23: =payout($A23,AF23,$C23:AE23,DA23,$BY23:DA23) -> 7921.03 | DC23: =payout($A23,AG23,$C23:AF23,DB23,$BY23:DB23) -> 7921.03 | DD23: =payout($A23,AH23,$C23:AG23,DC23,$BY23:DC23) -> 7921.03 | DE23: =payout($A23,AI23,$C23:AH23,DD23,$BY23:DD23) -> 7921.03 | DF23: =payout($A23,AJ23,$C23:AI23,DE23,$BY23:DE23) -> 7921.03 | DG23: =payout($A23,AK23,$C23:AJ23,DF23,$BY23:DF23) -> 7921.03 | DH23: =payout($A23,AL23,$C23:AK23,DG23,$BY23:DG23) -> 7921.03 | DI23: =payout($A23,AM23,$C23:AL23,DH23,$BY23:DH23) -> 7921.03 | DJ23: =payout($A23,AN23,$C23:AM23,DI23,$BY23:DI23) -> 7921.03 | DK23: =payout($A23,AO23,$C23:AN23,DJ23,$BY23:DJ23) -> 7921.03 | DL23: =payout($A23,AP23,$C23:AO23,DK23,$BY23:DK23) -> 7921.03 | DM23: =payout($A23,AQ23,$C23:AP23,DL23,$BY23:DL23) -> 7921.03 | DN23: =payout($A23,AR23,$C23:AQ23,DM23,$BY23:DM23) -> 17921.03 | DO23: =payout($A23,AS23,$C23:AR23,DN23,$BY23:DN23) -> 0 | DP23: =payout($A23,AT23,$C23:AS23,DO23,$BY23:DO23) -> 0 | DQ23: =payout($A23,AU23,$C23:AT23,DP23,$BY23:DP23) -> 0 | DR23: =payout($A23,AV23,$C23:AU23,DQ23,$BY23:DQ23) -> 0 | DS23: =payout($A23,AW23,$C23:AV23,DR23,$BY23:DR23) -> 0 | DT23: =payout($A23,AX23,$C23:AW23,DS23,$BY23:DS23) -> 0 | DU23: =payout($A23,AY23,$C23:AX23,DT23,$BY23:DT23) -> 0 | DV23: =payout($A23,AZ23,$C23:AY23,DU23,$BY23:DU23) -> 0 | DW23: =payout($A23,BA23,$C23:AZ23,DV23,$BY23:DV23) -> 0 | DX23: =payout($A23,BB23,$C23:BA23,DW23,$BY23:DW23) -> 0 | DY23: =payout($A23,BC23,$C23:BB23,DX23,$BY23:DX23) -> 0 | DZ23: =payout($A23,BD23,$C23:BC23,DY23,$BY23:DY23) -> 0 | EA23: =payout($A23,BE23,$C23:BD23,DZ23,$BY23:DZ23) -> 0 | EB23: =payout($A23,BF23,$C23:BE23,EA23,$BY23:EA23) -> 0 | EC23: =payout($A23,BG23,$C23:BF23,EB23,$BY23:EB23) -> 0 | ED23: =payout($A23,BH23,$C23:BG23,EC23,$BY23:EC23) -> 0 | EE23: =payout($A23,BI23,$C23:BH23,ED23,$BY23:ED23) -> 0 | EF23: =payout($A23,BJ23,$C23:BI23,EE23,$BY23:EE23) -> 0 | EG23: =payout($A23,BK23,$C23:BJ23,EF23,$BY23:EF23) -> 0 | EH23: =payout($A23,BL23,$C23:BK23,EG23,$BY23:EG23) -> 0 | EI23: =payout($A23,BM23,$C23:BL23,EH23,$BY23:EH23) -> 0 | EJ23: =payout($A23,BN23,$C23:BM23,EI23,$BY23:EI23) -> 0 | EK23: =payout($A23,BO23,$C23:BN23,EJ23,$BY23:EJ23) -> 0 | EL23: =payout($A23,BP23,$C23:BO23,EK23,$BY23:EK23) -> 0 | EM23: =payout($A23,BQ23,$C23:BP23,EL23,$BY23:EL23) -> 0 | EN23: =payout($A23,BR23,$C23:BQ23,EM23,$BY23:EM23) -> 0 | EO23: =payout($A23,BS23,$C23:BR23,EN23,$BY23:EN23) -> 0 | EP23: =payout($A23,BT23,$C23:BS23,EO23,$BY23:EO23) -> 0 | EQ23: =payout($A23,BU23,$C23:BT23,EP23,$BY23:EP23) -> 0
A24: =get_bond_grade($A$16:A23,$BX$5,$BY$5,$BZ$5) -> AAA | B24: 9 | C24: 1 | D24: =IF(C1027=10000,0,default_model($A24,D$13,$B24,D$14)) -> 1 | E24: 1 | F24: 1 | G24: 0 | H24: 0 | I24: 0 | J24: 0 | K24: 0 | L24: 0 | M24: 0 | N24: 0 | O24: 0 | P24: 0 | Q24: 0 | R24: 0 | S24: 0 | T24: 0 | U24: 0 | V24: 0 | W24: 0 | X24: 0 | Y24: 0 | Z24: 0 | AA24: 0 | AB24: 0 | AC24: 0 | AD24: 0 | AE24: 0 | AF24: 0 | AG24: 0 | AH24: 0 | AI24: 0 | AJ24: =IF(AI1027=10000,0,default_model($A24,AJ$13,$B24,AJ$14)) -> 0 | AK24: 0 | AL24: 0 | AM24: 0 | AN24: 0 | AO24: 0 | AP24: 0 | AQ24: 0 | AR24: 0 | AS24: 0 | AT24: 0 | AU24: 0 | AV24: 0 | AW24: 0 | AX24: 0 | AY24: 0 | AZ24: 0 | BA24: 0 | BB24: 0 | BC24: 0 | BD24: 0 | BE24: 0 | BF24: 0 | BG24: 0 | BH24: 0 | BI24: 0 | BJ24: 0 | BK24: 0 | BL24: 0 | BM24: 0 | BN24: 0 | BO24: 0 | BP24: =IF(BO1027=10000,0,default_model($A24,BP$13,$B24,BP$14)) -> 0 | BQ24: 0 | BR24: 0 | BS24: 0 | BT24: 0 | BU24: 0 | BW24: AAA | BX24: 9 | BY24: -10000 | BZ24: =payout($A24,D24,$C24:C24,BY24,$BY24:BY24) -> 6299.76 | CA24: =payout($A24,E24,$C24:D24,BZ24,$BY24:BZ24) -> 6299.76 | CB24: =payout($A24,F24,$C24:E24,CA24,$BY24:CA24) -> 6299.76 | CC24: =payout($A24,G24,$C24:F24,CB24,$BY24:CB24) -> 6299.76 | CD24: =payout($A24,H24,$C24:G24,CC24,$BY24:CC24) -> 6299.76 | CE24: =payout($A24,I24,$C24:H24,CD24,$BY24:CD24) -> 6299.76 | CF24: =payout($A24,J24,$C24:I24,CE24,$BY24:CE24) -> 6299.76 | CG24: =payout($A24,K24,$C24:J24,CF24,$BY24:CF24) -> 6299.76 | CH24: =payout($A24,L24,$C24:K24,CG24,$BY24:CG24) -> 6299.76 | CI24: =payout($A24,M24,$C24:L24,CH24,$BY24:CH24) -> 6299.76 | CJ24: =payout($A24,N24,$C24:M24,CI24,$BY24:CI24) -> 6299.76 | CK24: =payout($A24,O24,$C24:N24,CJ24,$BY24:CJ24) -> 6299.76 | CL24: =payout($A24,P24,$C24:O24,CK24,$BY24:CK24) -> 6299.76 | CM24: =payout($A24,Q24,$C24:P24,CL24,$BY24:CL24) -> 6299.76 | CN24: =payout($A24,R24,$C24:Q24,CM24,$BY24:CM24) -> 6299.76 | CO24: =payout($A24,S24,$C24:R24,CN24,$BY24:CN24) -> 6299.76 | CP24: =payout($A24,T24,$C24:S24,CO24,$BY24:CO24) -> 6299.76 | CQ24: =payout($A24,U24,$C24:T24,CP24,$BY24:CP24) -> 6299.76 | CR24: =payout($A24,V24,$C24:U24,CQ24,$BY24:CQ24) -> 6299.76 | CS24: =payout($A24,W24,$C24:V24,CR24,$BY24:CR24) -> 6299.76 | CT24: =payout($A24,X24,$C24:W24,CS24,$BY24:CS24) -> 6299.76 | CU24: =payout($A24,Y24,$C24:X24,CT24,$BY24:CT24) -> 6299.76 | CV24: =payout($A24,Z24,$C24:Y24,CU24,$BY24:CU24) -> 6299.76 | CW24: =payout($A24,AA24,$C24:Z24,CV24,$BY24:CV24) -> 6299.76 | CX24: =payout($A24,AB24,$C24:AA24,CW24,$BY24:CW24) -> 6299.76 | CY24: =payout($A24,AC24,$C24:AB24,CX24,$BY24:CX24) -> 6299.76 | CZ24: =payout($A24,AD24,$C24:AC24,CY24,$BY24:CY24) -> 6299.76 | DA24: =payout($A24,AE24,$C24:AD24,CZ24,$BY24:CZ24) -> 6299.76 | DB24: =payout($A24,AF24,$C24:AE24,DA24,$BY24:DA24) -> 6299.76 | DC24: =payout($A24,AG24,$C24:AF24,DB24,$BY24:DB24) -> 6299.76 | DD24: =payout($A24,AH24,$C24:AG24,DC24,$BY24:DC24) -> 6299.76 | DE24: =payout($A24,AI24,$C24:AH24,DD24,$BY24:DD24) -> 6299.76 | DF24: =payout($A24,AJ24,$C24:AI24,DE24,$BY24:DE24) -> 6299.76 | DG24: =payout($A24,AK24,$C24:AJ24,DF24,$BY24:DF24) -> 6299.76 | DH24: =payout($A24,AL24,$C24:AK24,DG24,$BY24:DG24) -> 6299.76 | DI24: =payout($A24,AM24,$C24:AL24,DH24,$BY24:DH24) -> 6299.76 | DJ24: =payout($A24,AN24,$C24:AM24,DI24,$BY24:DI24) -> 6299.76 | DK24: =payout($A24,AO24,$C24:AN24,DJ24,$BY24:DJ24) -> 6299.76 | DL24: =payout($A24,AP24,$C24:AO24,DK24,$BY24:DK24) -> 6299.76 | DM24: =payout($A24,AQ24,$C24:AP24,DL24,$BY24:DL24) -> 6299.76 | DN24: =payout($A24,AR24,$C24:AQ24,DM24,$BY24:DM24) -> 16299.76 | DO24: =payout($A24,AS24,$C24:AR24,DN24,$BY24:DN24) -> 0 | DP24: =payout($A24,AT24,$C24:AS24,DO24,$BY24:DO24) -> 0 | DQ24: =payout($A24,AU24,$C24:AT24,DP24,$BY24:DP24) -> 0 | DR24: =payout($A24,AV24,$C24:AU24,DQ24,$BY24:DQ24) -> 0 | DS24: =payout($A24,AW24,$C24:AV24,DR24,$BY24:DR24) -> 0 | DT24: =payout($A24,AX24,$C24:AW24,DS24,$BY24:DS24) -> 0 | DU24: =payout($A24,AY24,$C24:AX24,DT24,$BY24:DT24) -> 0 | DV24: =payout($A24,AZ24,$C24:AY24,DU24,$BY24:DU24) -> 0 | DW24: =payout($A24,BA24,$C24:AZ24,DV24,$BY24:DV24) -> 0 | DX24: =payout($A24,BB24,$C24:BA24,DW24,$BY24:DW24) -> 0 | DY24: =payout($A24,BC24,$C24:BB24,DX24,$BY24:DX24) -> 0 | DZ24: =payout($A24,BD24,$C24:BC24,DY24,$BY24:DY24) -> 0 | EA24: =payout($A24,BE24,$C24:BD24,DZ24,$BY24:DZ24) -> 0 | EB24: =payout($A24,BF24,$C24:BE24,EA24,$BY24:EA24) -> 0 | EC24: =payout($A24,BG24,$C24:BF24,EB24,$BY24:EB24) -> 0 | ED24: =payout($A24,BH24,$C24:BG24,EC24,$BY24:EC24) -> 0 | EE24: =payout($A24,BI24,$C24:BH24,ED24,$BY24:ED24) -> 0 | EF24: =payout($A24,BJ24,$C24:BI24,EE24,$BY24:EE24) -> 0 | EG24: =payout($A24,BK24,$C24:BJ24,EF24,$BY24:EF24) -> 0 | EH24: =payout($A24,BL24,$C24:BK24,EG24,$BY24:EG24) -> 0 | EI24: =payout($A24,BM24,$C24:BL24,EH24,$BY24:EH24) -> 0 | EJ24: =payout($A24,BN24,$C24:BM24,EI24,$BY24:EI24) -> 0 | EK24: =payout($A24,BO24,$C24:BN24,EJ24,$BY24:EJ24) -> 0 | EL24: =payout($A24,BP24,$C24:BO24,EK24,$BY24:EK24) -> 0 | EM24: =payout($A24,BQ24,$C24:BP24,EL24,$BY24:EL24) -> 0 | EN24: =payout($A24,BR24,$C24:BQ24,EM24,$BY24:EM24) -> 0 | EO24: =payout($A24,BS24,$C24:BR24,EN24,$BY24:EN24) -> 0 | EP24: =payout($A24,BT24,$C24:BS24,EO24,$BY24:EO24) -> 0 | EQ24: =payout($A24,BU24,$C24:BT24,EP24,$BY24:EP24) -> 0
A25: =get_bond_grade($A$16:A24,$BX$5,$BY$5,$BZ$5) -> A | B25: 10 | C25: 1 | D25: =IF(C1028=10000,0,default_model($A25,D$13,$B25,D$14)) -> 1 | E25: 1 | F25: 1 | G25: 1 | H25: 1 | I25: 1 | J25: 1 | K25: 1 | L25: 1 | M25: 1 | N25: 1 | O25: 1 | P25: 1 | Q25: 1 | R25: 1 | S25: 1 | T25: 1 | U25: 1 | V25: 1 | W25: 1 | X25: 0 | Y25: 0 | Z25: 0 | AA25: 0 | AB25: 0 | AC25: 0 | AD25: 0 | AE25: 0 | AF25: 0 | AG25: 0 | AH25: 0 | AI25: 0 | AJ25: =IF(AI1028=10000,0,default_model($A25,AJ$13,$B25,AJ$14)) -> 0 | AK25: 0 | AL25: 0 | AM25: 0 | AN25: 0 | AO25: 0 | AP25: 0 | AQ25: 0 | AR25: 0 | AS25: 0 | AT25: 0 | AU25: 0 | AV25: 0 | AW25: 0 | AX25: 0 | AY25: 0 | AZ25: 0 | BA25: 0 | BB25: 0 | BC25: 0 | BD25: 0 | BE25: 0 | BF25: 0 | BG25: 0 | BH25: 0 | BI25: 0 | BJ25: 0 | BK25: 0 | BL25: 0 | BM25: 0 | BN25: 0 | BO25: 0 | BP25: =IF(BO1028=10000,0,default_model($A25,BP$13,$B25,BP$14)) -> 0 | BQ25: 0 | BR25: 0 | BS25: 0 | BT25: 0 | BU25: 0 | BW25: A | BX25: 10 | BY25: -10000 | BZ25: =payout($A25,D25,$C25:C25,BY25,$BY25:BY25) -> 12478.46 | CA25: =payout($A25,E25,$C25:D25,BZ25,$BY25:BZ25) -> 12478.46 | CB25: =payout($A25,F25,$C25:E25,CA25,$BY25:CA25) -> 12478.46 | CC25: =payout($A25,G25,$C25:F25,CB25,$BY25:CB25) -> 12478.46 | CD25: =payout($A25,H25,$C25:G25,CC25,$BY25:CC25) -> 12478.46 | CE25: =payout($A25,I25,$C25:H25,CD25,$BY25:CD25) -> 12478.46 | CF25: =payout($A25,J25,$C25:I25,CE25,$BY25:CE25) -> 12478.46 | CG25: =payout($A25,K25,$C25:J25,CF25,$BY25:CF25) -> 12478.46 | CH25: =payout($A25,L25,$C25:K25,CG25,$BY25:CG25) -> 12478.46 | CI25: =payout($A25,M25,$C25:L25,CH25,$BY25:CH25) -> 12478.46 | CJ25: =payout($A25,N25,$C25:M25,CI25,$BY25:CI25) -> 12478.46 | CK25: =payout($A25,O25,$C25:N25,CJ25,$BY25:CJ25) -> 12478.46 | CL25: =payout($A25,P25,$C25:O25,CK25,$BY25:CK25) -> 12478.46 | CM25: =payout($A25,Q25,$C25:P25,CL25,$BY25:CL25) -> 12478.46 | CN25: =payout($A25,R25,$C25:Q25,CM25,$BY25:CM25) -> 12478.46 | CO25: =payout($A25,S25,$C25:R25,CN25,$BY25:CN25) -> 12478.46 | CP25: =payout($A25,T25,$C25:S25,CO25,$BY25:CO25) -> 12478.46 | CQ25: =payout($A25,U25,$C25:T25,CP25,$BY25:CP25) -> 12478.46 | CR25: =payout($A25,V25,$C25:U25,CQ25,$BY25:CQ25) -> 12478.46 | CS25: =payout($A25,W25,$C25:V25,CR25,$BY25:CR25) -> 12478.46 | CT25: =payout($A25,X25,$C25:W25,CS25,$BY25:CS25) -> 12478.46 | CU25: =payout($A25,Y25,$C25:X25,CT25,$BY25:CT25) -> 12478.46 | CV25: =payout($A25,Z25,$C25:Y25,CU25,$BY25:CU25) -> 12478.46 | CW25: =payout($A25,AA25,$C25:Z25,CV25,$BY25:CV25) -> 12478.46 | CX25: =payout($A25,AB25,$C25:AA25,CW25,$BY25:CW25) -> 12478.46 | CY25: =payout($A25,AC25,$C25:AB25,CX25,$BY25:CX25) -> 12478.46 | CZ25: =payout($A25,AD25,$C25:AC25,CY25,$BY25:CY25) -> 12478.46 | DA25: =payout($A25,AE25,$C25:AD25,CZ25,$BY25:CZ25) -> 12478.46 | DB25: =payout($A25,AF25,$C25:AE25,DA25,$BY25:DA25) -> 12478.46 | DC25: =payout($A25,AG25,$C25:AF25,DB25,$BY25:DB25) -> 12478.46 | DD25: =payout($A25,AH25,$C25:AG25,DC25,$BY25:DC25) -> 12478.46 | DE25: =payout($A25,AI25,$C25:AH25,DD25,$BY25:DD25) -> 12478.46 | DF25: =payout($A25,AJ25,$C25:AI25,DE25,$BY25:DE25) -> 12478.46 | DG25: =payout($A25,AK25,$C25:AJ25,DF25,$BY25:DF25) -> 12478.46 | DH25: =payout($A25,AL25,$C25:AK25,DG25,$BY25:DG25) -> 12478.46 | DI25: =payout($A25,AM25,$C25:AL25,DH25,$BY25:DH25) -> 12478.46 | DJ25: =payout($A25,AN25,$C25:AM25,DI25,$BY25:DI25) -> 12478.46 | DK25: =payout($A25,AO25,$C25:AN25,DJ25,$BY25:DJ25) -> 12478.46 | DL25: =payout($A25,AP25,$C25:AO25,DK25,$BY25:DK25) -> 12478.46 | DM25: =payout($A25,AQ25,$C25:AP25,DL25,$BY25:DL25) -> 12478.46 | DN25: =payout($A25,AR25,$C25:AQ25,DM25,$BY25:DM25) -> 22478.46 | DO25: =payout($A25,AS25,$C25:AR25,DN25,$BY25:DN25) -> 0 | DP25: =payout($A25,AT25,$C25:AS25,DO25,$BY25:DO25) -> 0 | DQ25: =payout($A25,AU25,$C25:AT25,DP25,$BY25:DP25) -> 0 | DR25: =payout($A25,AV25,$C25:AU25,DQ25,$BY25:DQ25) -> 0 | DS25: =payout($A25,AW25,$C25:AV25,DR25,$BY25:DR25) -> 0 | DT25: =payout($A25,AX25,$C25:AW25,DS25,$BY25:DS25) -> 0 | DU25: =payout($A25,AY25,$C25:AX25,DT25,$BY25:DT25) -> 0 | DV25: =payout($A25,AZ25,$C25:AY25,DU25,$BY25:DU25) -> 0 | DW25: =payout($A25,BA25,$C25:AZ25,DV25,$BY25:DV25) -> 0 | DX25: =payout($A25,BB25,$C25:BA25,DW25,$BY25:DW25) -> 0 | DY25: =payout($A25,BC25,$C25:BB25,DX25,$BY25:DX25) -> 0 | DZ25: =payout($A25,BD25,$C25:BC25,DY25,$BY25:DY25) -> 0 | EA25: =payout($A25,BE25,$C25:BD25,DZ25,$BY25:DZ25) -> 0 | EB25: =payout($A25,BF25,$C25:BE25,EA25,$BY25:EA25) -> 0 | EC25: =payout($A25,BG25,$C25:BF25,EB25,$BY25:EB25) -> 0 | ED25: =payout($A25,BH25,$C25:BG25,EC25,$BY25:EC25) -> 0 | EE25: =payout($A25,BI25,$C25:BH25,ED25,$BY25:ED25) -> 0 | EF25: =payout($A25,BJ25,$C25:BI25,EE25,$BY25:EE25) -> 0 | EG25: =payout($A25,BK25,$C25:BJ25,EF25,$BY25:EF25) -> 0 | EH25: =payout($A25,BL25,$C25:BK25,EG25,$BY25:EG25) -> 0 | EI25: =payout($A25,BM25,$C25:BL25,EH25,$BY25:EH25) -> 0 | EJ25: =payout($A25,BN25,$C25:BM25,EI25,$BY25:EI25) -> 0 | EK25: =payout($A25,BO25,$C25:BN25,EJ25,$BY25:EJ25) -> 0 | EL25: =payout($A25,BP25,$C25:BO25,EK25,$BY25:EK25) -> 0 | EM25: =payout($A25,BQ25,$C25:BP25,EL25,$BY25:EL25) -> 0 | EN25: =payout($A25,BR25,$C25:BQ25,EM25,$BY25:EM25) -> 0 | EO25: =payout($A25,BS25,$C25:BR25,EN25,$BY25:EN25) -> 0 | EP25: =payout($A25,BT25,$C25:BS25,EO25,$BY25:EO25) -> 0 | EQ25: =payout($A25,BU25,$C25:BT25,EP25,$BY25:EP25) -> 0
A26: =get_bond_grade($A$16:A25,$BX$5,$BY$5,$BZ$5) -> A | B26: 11 | C26: 1 | D26: =IF(C1029=10000,0,default_model($A26,D$13,$B26,D$14)) -> 1 | E26: 1 | F26: 1 | G26: 1 | H26: 1 | I26: 1 | J26: 1 | K26: 1 | L26: 1 | M26: 1 | N26: 1 | O26: 1 | P26: 1 | Q26: 1 | R26: 1 | S26: 1 | T26: 1 | U26: 1 | V26: 1 | W26: 1 | X26: 1 | Y26: 1 | Z26: 1 | AA26: 1 | AB26: 1 | AC26: 1 | AD26: 1 | AE26: 0 | AF26: 0 | AG26: 0 | AH26: 0 | AI26: 0 | AJ26: =IF(AI1029=10000,0,default_model($A26,AJ$13,$B26,AJ$14)) -> 0 | AK26: 0 | AL26: 0 | AM26: 0 | AN26: 0 | AO26: 0 | AP26: 0 | AQ26: 0 | AR26: 0 | AS26: 0 | AT26: 0 | AU26: 0 | AV26: 0 | AW26: 0 | AX26: 0 | AY26: 0 | AZ26: 0 | BA26: 0 | BB26: 0 | BC26: 0 | BD26: 0 | BE26: 0 | BF26: 0 | BG26: 0 | BH26: 0 | BI26: 0 | BJ26: 0 | BK26: 0 | BL26: 0 | BM26: 0 | BN26: 0 | BO26: 0 | BP26: =IF(BO1029=10000,0,default_model($A26,BP$13,$B26,BP$14)) -> 0 | BQ26: 0 | BR26: 0 | BS26: 0 | BT26: 0 | BU26: 0 | BW26: A | BX26: 11 | BY26: -10000 | BZ26: =payout($A26,D26,$C26:C26,BY26,$BY26:BY26) -> 12478.46 | CA26: =payout($A26,E26,$C26:D26,BZ26,$BY26:BZ26) -> 12478.46 | CB26: =payout($A26,F26,$C26:E26,CA26,$BY26:CA26) -> 12478.46 | CC26: =payout($A26,G26,$C26:F26,CB26,$BY26:CB26) -> 12478.46 | CD26: =payout($A26,H26,$C26:G26,CC26,$BY26:CC26) -> 12478.46 | CE26: =payout($A26,I26,$C26:H26,CD26,$BY26:CD26) -> 12478.46 | CF26: =payout($A26,J26,$C26:I26,CE26,$BY26:CE26) -> 12478.46 | CG26: =payout($A26,K26,$C26:J26,CF26,$BY26:CF26) -> 12478.46 | CH26: =payout($A26,L26,$C26:K26,CG26,$BY26:CG26) -> 12478.46 | CI26: =payout($A26,M26,$C26:L26,CH26,$BY26:CH26) -> 12478.46 | CJ26: =payout($A26,N26,$C26:M26,CI26,$BY26:CI26) -> 12478.46 | CK26: =payout($A26,O26,$C26:N26,CJ26,$BY26:CJ26) -> 12478.46 | CL26: =payout($A26,P26,$C26:O26,CK26,$BY26:CK26) -> 12478.46 | CM26: =payout($A26,Q26,$C26:P26,CL26,$BY26:CL26) -> 12478.46 | CN26: =payout($A26,R26,$C26:Q26,CM26,$BY26:CM26) -> 12478.46 | CO26: =payout($A26,S26,$C26:R26,CN26,$BY26:CN26) -> 12478.46 | CP26: =payout($A26,T26,$C26:S26,CO26,$BY26:CO26) -> 12478.46 | CQ26: =payout($A26,U26,$C26:T26,CP26,$BY26:CP26) -> 12478.46 | CR26: =payout($A26,V26,$C26:U26,CQ26,$BY26:CQ26) -> 12478.46 | CS26: =payout($A26,W26,$C26:V26,CR26,$BY26:CR26) -> 12478.46 | CT26: =payout($A26,X26,$C26:W26,CS26,$BY26:CS26) -> 12478.46 | CU26: =payout($A26,Y26,$C26:X26,CT26,$BY26:CT26) -> 12478.46 | CV26: =payout($A26,Z26,$C26:Y26,CU26,$BY26:CU26) -> 12478.46 | CW26: =payout($A26,AA26,$C26:Z26,CV26,$BY26:CV26) -> 12478.46 | CX26: =payout($A26,AB26,$C26:AA26,CW26,$BY26:CW26) -> 12478.46 | CY26: =payout($A26,AC26,$C26:AB26,CX26,$BY26:CX26) -> 12478.46 | CZ26: =payout($A26,AD26,$C26:AC26,CY26,$BY26:CY26) -> 12478.46 | DA26: =payout($A26,AE26,$C26:AD26,CZ26,$BY26:CZ26) -> 12478.46 | DB26: =payout($A26,AF26,$C26:AE26,DA26,$BY26:DA26) -> 12478.46 | DC26: =payout($A26,AG26,$C26:AF26,DB26,$BY26:DB26) -> 12478.46 | DD26: =payout($A26,AH26,$C26:AG26,DC26,$BY26:DC26) -> 12478.46 | DE26: =payout($A26,AI26,$C26:AH26,DD26,$BY26:DD26) -> 12478.46 | DF26: =payout($A26,AJ26,$C26:AI26,DE26,$BY26:DE26) -> 12478.46 | DG26: =payout($A26,AK26,$C26:AJ26,DF26,$BY26:DF26) -> 12478.46 | DH26: =payout($A26,AL26,$C26:AK26,DG26,$BY26:DG26) -> 12478.46 | DI26: =payout($A26,AM26,$C26:AL26,DH26,$BY26:DH26) -> 12478.46 | DJ26: =payout($A26,AN26,$C26:AM26,DI26,$BY26:DI26) -> 12478.46 | DK26: =payout($A26,AO26,$C26:AN26,DJ26,$BY26:DJ26) -> 12478.46 | DL26: =payout($A26,AP26,$C26:AO26,DK26,$BY26:DK26) -> 12478.46 | DM26: =payout($A26,AQ26,$C26:AP26,DL26,$BY26:DL26) -> 12478.46 | DN26: =payout($A26,AR26,$C26:AQ26,DM26,$BY26:DM26) -> 22478.46 | DO26: =payout($A26,AS26,$C26:AR26,DN26,$BY26:DN26) -> 0 | DP26: =payout($A26,AT26,$C26:AS26,DO26,$BY26:DO26) -> 0 | DQ26: =payout($A26,AU26,$C26:AT26,DP26,$BY26:DP26) -> 0 | DR26: =payout($A26,AV26,$C26:AU26,DQ26,$BY26:DQ26) -> 0 | DS26: =payout($A26,AW26,$C26:AV26,DR26,$BY26:DR26) -> 0 | DT26: =payout($A26,AX26,$C26:AW26,DS26,$BY26:DS26) -> 0 | DU26: =payout($A26,AY26,$C26:AX26,DT26,$BY26:DT26) -> 0 | DV26: =payout($A26,AZ26,$C26:AY26,DU26,$BY26:DU26) -> 0 | DW26: =payout($A26,BA26,$C26:AZ26,DV26,$BY26:DV26) -> 0 | DX26: =payout($A26,BB26,$C26:BA26,DW26,$BY26:DW26) -> 0 | DY26: =payout($A26,BC26,$C26:BB26,DX26,$BY26:DX26) -> 0 | DZ26: =payout($A26,BD26,$C26:BC26,DY26,$BY26:DY26) -> 0 | EA26: =payout($A26,BE26,$C26:BD26,DZ26,$BY26:DZ26) -> 0 | EB26: =payout($A26,BF26,$C26:BE26,EA26,$BY26:EA26) -> 0 | EC26: =payout($A26,BG26,$C26:BF26,EB26,$BY26:EB26) -> 0 | ED26: =payout($A26,BH26,$C26:BG26,EC26,$BY26:EC26) -> 0 | EE26: =payout($A26,BI26,$C26:BH26,ED26,$BY26:ED26) -> 0 | EF26: =payout($A26,BJ26,$C26:BI26,EE26,$BY26:EE26) -> 0 | EG26: =payout($A26,BK26,$C26:BJ26,EF26,$BY26:EF26) -> 0 | EH26: =payout($A26,BL26,$C26:BK26,EG26,$BY26:EG26) -> 0 | EI26: =payout($A26,BM26,$C26:BL26,EH26,$BY26:EH26) -> 0 | EJ26: =payout($A26,BN26,$C26:BM26,EI26,$BY26:EI26) -> 0 | EK26: =payout($A26,BO26,$C26:BN26,EJ26,$BY26:EJ26) -> 0 | EL26: =payout($A26,BP26,$C26:BO26,EK26,$BY26:EK26) -> 0 | EM26: =payout($A26,BQ26,$C26:BP26,EL26,$BY26:EL26) -> 0 | EN26: =payout($A26,BR26,$C26:BQ26,EM26,$BY26:EM26) -> 0 | EO26: =payout($A26,BS26,$C26:BR26,EN26,$BY26:EN26) -> 0 | EP26: =payout($A26,BT26,$C26:BS26,EO26,$BY26:EO26) -> 0 | EQ26: =payout($A26,BU26,$C26:BT26,EP26,$BY26:EP26) -> 0
A27: =get_bond_grade($A$16:A26,$BX$5,$BY$5,$BZ$5) -> AAA | B27: 12 | C27: 1 | D27: =IF(C1030=10000,0,default_model($A27,D$13,$B27,D$14)) -> 1 | E27: 1 | F27: 1 | G27: 1 | H27: 1 | I27: 1 | J27: 1 | K27: 1 | L27: 1 | M27: 1 | N27: 1 | O27: 1 | P27: 1 | Q27: 1 | R27: 1 | S27: 1 | T27: 1 | U27: 1 | V27: 1 | W27: 1 | X27: 1 | Y27: 1 | Z27: 1 | AA27: 1 | AB27: 1 | AC27: 1 | AD27: 1 | AE27: 0 | AF27: 0 | AG27: 0 | AH27: 0 | AI27: 0 | AJ27: =IF(AI1030=10000,0,default_model($A27,AJ$13,$B27,AJ$14)) -> 0 | AK27: 0 | AL27: 0 | AM27: 0 | AN27: 0 | AO27: 0 | AP27: 0 | AQ27: 0 | AR27: 0 | AS27: 0 | AT27: 0 | AU27: 0 | AV27: 0 | AW27: 0 | AX27: 0 | AY27: 0 | AZ27: 0 | BA27: 0 | BB27: 0 | BC27: 0 | BD27: 0 | BE27: 0 | BF27: 0 | BG27: 0 | BH27: 0 | BI27: 0 | BJ27: 0 | BK27: 0 | BL27: 0 | BM27: 0 | BN27: 0 | BO27: 0 | BP27: =IF(BO1030=10000,0,default_model($A27,BP$13,$B27,BP$14)) -> 0 | BQ27: 0 | BR27: 0 | BS27: 0 | BT27: 0 | BU27: 0 | BW27: AAA | BX27: 12 | BY27: -10000 | BZ27: =payout($A27,D27,$C27:C27,BY27,$BY27:BY27) -> 6299.76 | CA27: =payout($A27,E27,$C27:D27,BZ27,$BY27:BZ27) -> 6299.76 | CB27: =payout($A27,F27,$C27:E27,CA27,$BY27:CA27) -> 6299.76 | CC27: =payout($A27,G27,$C27:F27,CB27,$BY27:CB27) -> 6299.76 | CD27: =payout($A27,H27,$C27:G27,CC27,$BY27:CC27) -> 6299.76 | CE27: =payout($A27,I27,$C27:H27,CD27,$BY27:CD27) -> 6299.76 | CF27: =payout($A27,J27,$C27:I27,CE27,$BY27:CE27) -> 6299.76 | CG27: =payout($A27,K27,$C27:J27,CF27,$BY27:CF27) -> 6299.76 | CH27: =payout($A27,L27,$C27:K27,CG27,$BY27:CG27) -> 6299.76 | CI27: =payout($A27,M27,$C27:L27,CH27,$BY27:CH27) -> 6299.76 | CJ27: =payout($A27,N27,$C27:M27,CI27,$BY27:CI27) -> 6299.76 | CK27: =payout($A27,O27,$C27:N27,CJ27,$BY27:CJ27) -> 6299.76 | CL27: =payout($A27,P27,$C27:O27,CK27,$BY27:CK27) -> 6299.76 | CM27: =payout($A27,Q27,$C27:P27,CL27,$BY27:CL27) -> 6299.76 | CN27: =payout($A27,R27,$C27:Q27,CM27,$BY27:CM27) -> 6299.76 | CO27: =payout($A27,S27,$C27:R27,CN27,$BY27:CN27) -> 6299.76 | CP27: =payout($A27,T27,$C27:S27,CO27,$BY27:CO27) -> 6299.76 | CQ27: =payout($A27,U27,$C27:T27,CP27,$BY27:CP27) -> 6299.76 | CR27: =payout($A27,V27,$C27:U27,CQ27,$BY27:CQ27) -> 6299.76 | CS27: =payout($A27,W27,$C27:V27,CR27,$BY27:CR27) -> 6299.76 | CT27: =payout($A27,X27,$C27:W27,CS27,$BY27:CS27) -> 6299.76 | CU27: =payout($A27,Y27,$C27:X27,CT27,$BY27:CT27) -> 6299.76 | CV27: =payout($A27,Z27,$C27:Y27,CU27,$BY27:CU27) -> 6299.76 | CW27: =payout($A27,AA27,$C27:Z27,CV27,$BY27:CV27) -> 6299.76 | CX27: =payout($A27,AB27,$C27:AA27,CW27,$BY27:CW27) -> 6299.76 | CY27: =payout($A27,AC27,$C27:AB27,CX27,$BY27:CX27) -> 6299.76 | CZ27: =payout($A27,AD27,$C27:AC27,CY27,$BY27:CY27) -> 6299.76 | DA27: =payout($A27,AE27,$C27:AD27,CZ27,$BY27:CZ27) -> 6299.76 | DB27: =payout($A27,AF27,$C27:AE27,DA27,$BY27:DA27) -> 6299.76 | DC27: =payout($A27,AG27,$C27:AF27,DB27,$BY27:DB27) -> 6299.76 | DD27: =payout($A27,AH27,$C27:AG27,DC27,$BY27:DC27) -> 6299.76 | DE27: =payout($A27,AI27,$C27:AH27,DD27,$BY27:DD27) -> 6299.76 | DF27: =payout($A27,AJ27,$C27:AI27,DE27,$BY27:DE27) -> 6299.76 | DG27: =payout($A27,AK27,$C27:AJ27,DF27,$BY27:DF27) -> 6299.76 | DH27: =payout($A27,AL27,$C27:AK27,DG27,$BY27:DG27) -> 6299.76 | DI27: =payout($A27,AM27,$C27:AL27,DH27,$BY27:DH27) -> 6299.76 | DJ27: =payout($A27,AN27,$C27:AM27,DI27,$BY27:DI27) -> 6299.76 | DK27: =payout($A27,AO27,$C27:AN27,DJ27,$BY27:DJ27) -> 6299.76 | DL27: =payout($A27,AP27,$C27:AO27,DK27,$BY27:DK27) -> 6299.76 | DM27: =payout($A27,AQ27,$C27:AP27,DL27,$BY27:DL27) -> 6299.76 | DN27: =payout($A27,AR27,$C27:AQ27,DM27,$BY27:DM27) -> 16299.76 | DO27: =payout($A27,AS27,$C27:AR27,DN27,$BY27:DN27) -> 0 | DP27: =payout($A27,AT27,$C27:AS27,DO27,$BY27:DO27) -> 0 | DQ27: =payout($A27,AU27,$C27:AT27,DP27,$BY27:DP27) -> 0 | DR27: =payout($A27,AV27,$C27:AU27,DQ27,$BY27:DQ27) -> 0 | DS27: =payout($A27,AW27,$C27:AV27,DR27,$BY27:DR27) -> 0 | DT27: =payout($A27,AX27,$C27:AW27,DS27,$BY27:DS27) -> 0 | DU27: =payout($A27,AY27,$C27:AX27,DT27,$BY27:DT27) -> 0 | DV27: =payout($A27,AZ27,$C27:AY27,DU27,$BY27:DU27) -> 0 | DW27: =payout($A27,BA27,$C27:AZ27,DV27,$BY27:DV27) -> 0 | DX27: =payout($A27,BB27,$C27:BA27,DW27,$BY27:DW27) -> 0 | DY27: =payout($A27,BC27,$C27:BB27,DX27,$BY27:DX27) -> 0 | DZ27: =payout($A27,BD27,$C27:BC27,DY27,$BY27:DY27) -> 0 | EA27: =payout($A27,BE27,$C27:BD27,DZ27,$BY27:DZ27) -> 0 | EB27: =payout($A27,BF27,$C27:BE27,EA27,$BY27:EA27) -> 0 | EC27: =payout($A27,BG27,$C27:BF27,EB27,$BY27:EB27) -> 0 | ED27: =payout($A27,BH27,$C27:BG27,EC27,$BY27:EC27) -> 0 | EE27: =payout($A27,BI27,$C27:BH27,ED27,$BY27:ED27) -> 0 | EF27: =payout($A27,BJ27,$C27:BI27,EE27,$BY27:EE27) -> 0 | EG27: =payout($A27,BK27,$C27:BJ27,EF27,$BY27:EF27) -> 0 | EH27: =payout($A27,BL27,$C27:BK27,EG27,$BY27:EG27) -> 0 | EI27: =payout($A27,BM27,$C27:BL27,EH27,$BY27:EH27) -> 0 | EJ27: =payout($A27,BN27,$C27:BM27,EI27,$BY27:EI27) -> 0 | EK27: =payout($A27,BO27,$C27:BN27,EJ27,$BY27:EJ27) -> 0 | EL27: =payout($A27,BP27,$C27:BO27,EK27,$BY27:EK27) -> 0 | EM27: =payout($A27,BQ27,$C27:BP27,EL27,$BY27:EL27) -> 0 | EN27: =payout($A27,BR27,$C27:BQ27,EM27,$BY27:EM27) -> 0 | EO27: =payout($A27,BS27,$C27:BR27,EN27,$BY27:EN27) -> 0 | EP27: =payout($A27,BT27,$C27:BS27,EO27,$BY27:EO27) -> 0 | EQ27: =payout($A27,BU27,$C27:BT27,EP27,$BY27:EP27) -> 0
A28: =get_bond_grade($A$16:A27,$BX$5,$BY$5,$BZ$5) -> AA | B28: 13 | C28: 1 | D28: =IF(C1031=10000,0,default_model($A28,D$13,$B28,D$14)) -> 1 | E28: 1 | F28: 1 | G28: 1 | H28: 1 | I28: 1 | J28: 1 | K28: 1 | L28: 1 | M28: 1 | N28: 1 | O28: 1 | P28: 1 | Q28: 1 | R28: 1 | S28: 1 | T28: 1 | U28: 1 | V28: 1 | W28: 1 | X28: 1 | Y28: 1 | Z28: 1 | AA28: 1 | AB28: 1 | AC28: 1 | AD28: 1 | AE28: 0 | AF28: 0 | AG28: 0 | AH28: 0 | AI28: 0 | AJ28: =IF(AI1031=10000,0,default_model($A28,AJ$13,$B28,AJ$14)) -> 0 | AK28: 0 | AL28: 0 | AM28: 0 | AN28: 0 | AO28: 0 | AP28: 0 | AQ28: 0 | AR28: 0 | AS28: 0 | AT28: 0 | AU28: 0 | AV28: 0 | AW28: 0 | AX28: 0 | AY28: 0 | AZ28: 0 | BA28: 0 | BB28: 0 | BC28: 0 | BD28: 0 | BE28: 0 | BF28: 0 | BG28: 0 | BH28: 0 | BI28: 0 | BJ28: 0 | BK28: 0 | BL28: 0 | BM28: 0 | BN28: 0 | BO28: 0 | BP28: =IF(BO1031=10000,0,default_model($A28,BP$13,$B28,BP$14)) -> 0 | BQ28: 0 | BR28: 0 | BS28: 0 | BT28: 0 | BU28: 0 | BW28: AA | BX28: 13 | BY28: -10000 | BZ28: =payout($A28,D28,$C28:C28,BY28,$BY28:BY28) -> 7921.03 | CA28: =payout($A28,E28,$C28:D28,BZ28,$BY28:BZ28) -> 7921.03 | CB28: =payout($A28,F28,$C28:E28,CA28,$BY28:CA28) -> 7921.03 | CC28: =payout($A28,G28,$C28:F28,CB28,$BY28:CB28) -> 7921.03 | CD28: =payout($A28,H28,$C28:G28,CC28,$BY28:CC28) -> 7921.03 | CE28: =payout($A28,I28,$C28:H28,CD28,$BY28:CD28) -> 7921.03 | CF28: =payout($A28,J28,$C28:I28,CE28,$BY28:CE28) -> 7921.03 | CG28: =payout($A28,K28,$C28:J28,CF28,$BY28:CF28) -> 7921.03 | CH28: =payout($A28,L28,$C28:K28,CG28,$BY28:CG28) -> 7921.03 | CI28: =payout($A28,M28,$C28:L28,CH28,$BY28:CH28) -> 7921.03 | CJ28: =payout($A28,N28,$C28:M28,CI28,$BY28:CI28) -> 7921.03 | CK28: =payout($A28,O28,$C28:N28,CJ28,$BY28:CJ28) -> 7921.03 | CL28: =payout($A28,P28,$C28:O28,CK28,$BY28:CK28) -> 7921.03 | CM28: =payout($A28,Q28,$C28:P28,CL28,$BY28:CL28) -> 7921.03 | CN28: =payout($A28,R28,$C28:Q28,CM28,$BY28:CM28) -> 7921.03 | CO28: =payout($A28,S28,$C28:R28,CN28,$BY28:CN28) -> 7921.03 | CP28: =payout($A28,T28,$C28:S28,CO28,$BY28:CO28) -> 7921.03 | CQ28: =payout($A28,U28,$C28:T28,CP28,$BY28:CP28) -> 7921.03 | CR28: =payout($A28,V28,$C28:U28,CQ28,$BY28:CQ28) -> 7921.03 | CS28: =payout($A28,W28,$C28:V28,CR28,$BY28:CR28) -> 7921.03 | CT28: =payout($A28,X28,$C28:W28,CS28,$BY28:CS28) -> 7921.03 | CU28: =payout($A28,Y28,$C28:X28,CT28,$BY28:CT28) -> 7921.03 | CV28: =payout($A28,Z28,$C28:Y28,CU28,$BY28:CU28) -> 7921.03 | CW28: =payout($A28,AA28,$C28:Z28,CV28,$BY28:CV28) -> 7921.03 | CX28: =payout($A28,AB28,$C28:AA28,CW28,$BY28:CW28) -> 7921.03 | CY28: =payout($A28,AC28,$C28:AB28,CX28,$BY28:CX28) -> 7921.03 | CZ28: =payout($A28,AD28,$C28:AC28,CY28,$BY28:CY28) -> 7921.03 | DA28: =payout($A28,AE28,$C28:AD28,CZ28,$BY28:CZ28) -> 7921.03 | DB28: =payout($A28,AF28,$C28:AE28,DA28,$BY28:DA28) -> 7921.03 | DC28: =payout($A28,AG28,$C28:AF28,DB28,$BY28:DB28) -> 7921.03 | DD28: =payout($A28,AH28,$C28:AG28,DC28,$BY28:DC28) -> 7921.03 | DE28: =payout($A28,AI28,$C28:AH28,DD28,$BY28:DD28) -> 7921.03 | DF28: =payout($A28,AJ28,$C28:AI28,DE28,$BY28:DE28) -> 7921.03 | DG28: =payout($A28,AK28,$C28:AJ28,DF28,$BY28:DF28) -> 7921.03 | DH28: =payout($A28,AL28,$C28:AK28,DG28,$BY28:DG28) -> 7921.03 | DI28: =payout($A28,AM28,$C28:AL28,DH28,$BY28:DH28) -> 7921.03 | DJ28: =payout($A28,AN28,$C28:AM28,DI28,$BY28:DI28) -> 7921.03 | DK28: =payout($A28,AO28,$C28:AN28,DJ28,$BY28:DJ28) -> 7921.03 | DL28: =payout($A28,AP28,$C28:AO28,DK28,$BY28:DK28) -> 7921.03 | DM28: =payout($A28,AQ28,$C28:AP28,DL28,$BY28:DL28) -> 7921.03 | DN28: =payout($A28,AR28,$C28:AQ28,DM28,$BY28:DM28) -> 17921.03 | DO28: =payout($A28,AS28,$C28:AR28,DN28,$BY28:DN28) -> 0 | DP28: =payout($A28,AT28,$C28:AS28,DO28,$BY28:DO28) -> 0 | DQ28: =payout($A28,AU28,$C28:AT28,DP28,$BY28:DP28) -> 0 | DR28: =payout($A28,AV28,$C28:AU28,DQ28,$BY28:DQ28) -> 0 | DS28: =payout($A28,AW28,$C28:AV28,DR28,$BY28:DR28) -> 0 | DT28: =payout($A28,AX28,$C28:AW28,DS28,$BY28:DS28) -> 0 | DU28: =payout($A28,AY28,$C28:AX28,DT28,$BY28:DT28) -> 0 | DV28: =payout($A28,AZ28,$C28:AY28,DU28,$BY28:DU28) -> 0 | DW28: =payout($A28,BA28,$C28:AZ28,DV28,$BY28:DV28) -> 0 | DX28: =payout($A28,BB28,$C28:BA28,DW28,$BY28:DW28) -> 0 | DY28: =payout($A28,BC28,$C28:BB28,DX28,$BY28:DX28) -> 0 | DZ28: =payout($A28,BD28,$C28:BC28,DY28,$BY28:DY28) -> 0 | EA28: =payout($A28,BE28,$C28:BD28,DZ28,$BY28:DZ28) -> 0 | EB28: =payout($A28,BF28,$C28:BE28,EA28,$BY28:EA28) -> 0 | EC28: =payout($A28,BG28,$C28:BF28,EB28,$BY28:EB28) -> 0 | ED28: =payout($A28,BH28,$C28:BG28,EC28,$BY28:EC28) -> 0 | EE28: =payout($A28,BI28,$C28:BH28,ED28,$BY28:ED28) -> 0 | EF28: =payout($A28,BJ28,$C28:BI28,EE28,$BY28:EE28) -> 0 | EG28: =payout($A28,BK28,$C28:BJ28,EF28,$BY28:EF28) -> 0 | EH28: =payout($A28,BL28,$C28:BK28,EG28,$BY28:EG28) -> 0 | EI28: =payout($A28,BM28,$C28:BL28,EH28,$BY28:EH28) -> 0 | EJ28: =payout($A28,BN28,$C28:BM28,EI28,$BY28:EI28) -> 0 | EK28: =payout($A28,BO28,$C28:BN28,EJ28,$BY28:EJ28) -> 0 | EL28: =payout($A28,BP28,$C28:BO28,EK28,$BY28:EK28) -> 0 | EM28: =payout($A28,BQ28,$C28:BP28,EL28,$BY28:EL28) -> 0 | EN28: =payout($A28,BR28,$C28:BQ28,EM28,$BY28:EM28) -> 0 | EO28: =payout($A28,BS28,$C28:BR28,EN28,$BY28:EN28) -> 0 | EP28: =payout($A28,BT28,$C28:BS28,EO28,$BY28:EO28) -> 0 | EQ28: =payout($A28,BU28,$C28:BT28,EP28,$BY28:EP28) -> 0
A29: =get_bond_grade($A$16:A28,$BX$5,$BY$5,$BZ$5) -> AAA | B29: 14 | C29: 1 | D29: =IF(C1032=10000,0,default_model($A29,D$13,$B29,D$14)) -> 1 | E29: 1 | F29: 1 | G29: 1 | H29: 1 | I29: 1 | J29: 1 | K29: 1 | L29: 1 | M29: 1 | N29: 1 | O29: 1 | P29: 1 | Q29: 1 | R29: 1 | S29: 1 | T29: 1 | U29: 1 | V29: 1 | W29: 1 | X29: 1 | Y29: 1 | Z29: 1 | AA29: 1 | AB29: 1 | AC29: 1 | AD29: 1 | AE29: 0 | AF29: 0 | AG29: 0 | AH29: 0 | AI29: 0 | AJ29: =IF(AI1032=10000,0,default_model($A29,AJ$13,$B29,AJ$14)) -> 0 | AK29: 0 | AL29: 0 | AM29: 0 | AN29: 0 | AO29: 0 | AP29: 0 | AQ29: 0 | AR29: 0 | AS29: 0 | AT29: 0 | AU29: 0 | AV29: 0 | AW29: 0 | AX29: 0 | AY29: 0 | AZ29: 0 | BA29: 0 | BB29: 0 | BC29: 0 | BD29: 0 | BE29: 0 | BF29: 0 | BG29: 0 | BH29: 0 | BI29: 0 | BJ29: 0 | BK29: 0 | BL29: 0 | BM29: 0 | BN29: 0 | BO29: 0 | BP29: =IF(BO1032=10000,0,default_model($A29,BP$13,$B29,BP$14)) -> 0 | BQ29: 0 | BR29: 0 | BS29: 0 | BT29: 0 | BU29: 0 | BW29: AAA | BX29: 14 | BY29: -10000 | BZ29: =payout($A29,D29,$C29:C29,BY29,$BY29:BY29) -> 6299.76 | CA29: =payout($A29,E29,$C29:D29,BZ29,$BY29:BZ29) -> 6299.76 | CB29: =payout($A29,F29,$C29:E29,CA29,$BY29:CA29) -> 6299.76 | CC29: =payout($A29,G29,$C29:F29,CB29,$BY29:CB29) -> 6299.76 | CD29: =payout($A29,H29,$C29:G29,CC29,$BY29:CC29) -> 6299.76 | CE29: =payout($A29,I29,$C29:H29,CD29,$BY29:CD29) -> 6299.76 | CF29: =payout($A29,J29,$C29:I29,CE29,$BY29:CE29) -> 6299.76 | CG29: =payout($A29,K29,$C29:J29,CF29,$BY29:CF29) -> 6299.76 | CH29: =payout($A29,L29,$C29:K29,CG29,$BY29:CG29) -> 6299.76 | CI29: =payout($A29,M29,$C29:L29,CH29,$BY29:CH29) -> 6299.76 | CJ29: =payout($A29,N29,$C29:M29,CI29,$BY29:CI29) -> 6299.76 | CK29: =payout($A29,O29,$C29:N29,CJ29,$BY29:CJ29) -> 6299.76 | CL29: =payout($A29,P29,$C29:O29,CK29,$BY29:CK29) -> 6299.76 | CM29: =payout($A29,Q29,$C29:P29,CL29,$BY29:CL29) -> 6299.76 | CN29: =payout($A29,R29,$C29:Q29,CM29,$BY29:CM29) -> 6299.76 | CO29: =payout($A29,S29,$C29:R29,CN29,$BY29:CN29) -> 6299.76 | CP29: =payout($A29,T29,$C29:S29,CO29,$BY29:CO29) -> 6299.76 | CQ29: =payout($A29,U29,$C29:T29,CP29,$BY29:CP29) -> 6299.76 | CR29: =payout($A29,V29,$C29:U29,CQ29,$BY29:CQ29) -> 6299.76 | CS29: =payout($A29,W29,$C29:V29,CR29,$BY29:CR29) -> 6299.76 | CT29: =payout($A29,X29,$C29:W29,CS29,$BY29:CS29) -> 6299.76 | CU29: =payout($A29,Y29,$C29:X29,CT29,$BY29:CT29) -> 6299.76 | CV29: =payout($A29,Z29,$C29:Y29,CU29,$BY29:CU29) -> 6299.76 | CW29: =payout($A29,AA29,$C29:Z29,CV29,$BY29:CV29) -> 6299.76 | CX29: =payout($A29,AB29,$C29:AA29,CW29,$BY29:CW29) -> 6299.76 | CY29: =payout($A29,AC29,$C29:AB29,CX29,$BY29:CX29) -> 6299.76 | CZ29: =payout($A29,AD29,$C29:AC29,CY29,$BY29:CY29) -> 6299.76 | DA29: =payout($A29,AE29,$C29:AD29,CZ29,$BY29:CZ29) -> 6299.76 | DB29: =payout($A29,AF29,$C29:AE29,DA29,$BY29:DA29) -> 6299.76 | DC29: =payout($A29,AG29,$C29:AF29,DB29,$BY29:DB29) -> 6299.76 | DD29: =payout($A29,AH29,$C29:AG29,DC29,$BY29:DC29) -> 6299.76 | DE29: =payout($A29,AI29,$C29:AH29,DD29,$BY29:DD29) -> 6299.76 | DF29: =payout($A29,AJ29,$C29:AI29,DE29,$BY29:DE29) -> 6299.76 | DG29: =payout($A29,AK29,$C29:AJ29,DF29,$BY29:DF29) -> 6299.76 | DH29: =payout($A29,AL29,$C29:AK29,DG29,$BY29:DG29) -> 6299.76 | DI29: =payout($A29,AM29,$C29:AL29,DH29,$BY29:DH29) -> 6299.76 | DJ29: =payout($A29,AN29,$C29:AM29,DI29,$BY29:DI29) -> 6299.76 | DK29: =payout($A29,AO29,$C29:AN29,DJ29,$BY29:DJ29) -> 6299.76 | DL29: =payout($A29,AP29,$C29:AO29,DK29,$BY29:DK29) -> 6299.76 | DM29: =payout($A29,AQ29,$C29:AP29,DL29,$BY29:DL29) -> 6299.76 | DN29: =payout($A29,AR29,$C29:AQ29,DM29,$BY29:DM29) -> 16299.76 | DO29: =payout($A29,AS29,$C29:AR29,DN29,$BY29:DN29) -> 0 | DP29: =payout($A29,AT29,$C29:AS29,DO29,$BY29:DO29) -> 0 | DQ29: =payout($A29,AU29,$C29:AT29,DP29,$BY29:DP29) -> 0 | DR29: =payout($A29,AV29,$C29:AU29,DQ29,$BY29:DQ29) -> 0 | DS29: =payout($A29,AW29,$C29:AV29,DR29,$BY29:DR29) -> 0 | DT29: =payout($A29,AX29,$C29:AW29,DS29,$BY29:DS29) -> 0 | DU29: =payout($A29,AY29,$C29:AX29,DT29,$BY29:DT29) -> 0 | DV29: =payout($A29,AZ29,$C29:AY29,DU29,$BY29:DU29) -> 0 | DW29: =payout($A29,BA29,$C29:AZ29,DV29,$BY29:DV29) -> 0 | DX29: =payout($A29,BB29,$C29:BA29,DW29,$BY29:DW29) -> 0 | DY29: =payout($A29,BC29,$C29:BB29,DX29,$BY29:DX29) -> 0 | DZ29: =payout($A29,BD29,$C29:BC29,DY29,$BY29:DY29) -> 0 | EA29: =payout($A29,BE29,$C29:BD29,DZ29,$BY29:DZ29) -> 0 | EB29: =payout($A29,BF29,$C29:BE29,EA29,$BY29:EA29) -> 0 | EC29: =payout($A29,BG29,$C29:BF29,EB29,$BY29:EB29) -> 0 | ED29: =payout($A29,BH29,$C29:BG29,EC29,$BY29:EC29) -> 0 | EE29: =payout($A29,BI29,$C29:BH29,ED29,$BY29:ED29) -> 0 | EF29: =payout($A29,BJ29,$C29:BI29,EE29,$BY29:EE29) -> 0 | EG29: =payout($A29,BK29,$C29:BJ29,EF29,$BY29:EF29) -> 0 | EH29: =payout($A29,BL29,$C29:BK29,EG29,$BY29:EG29) -> 0 | EI29: =payout($A29,BM29,$C29:BL29,EH29,$BY29:EH29) -> 0 | EJ29: =payout($A29,BN29,$C29:BM29,EI29,$BY29:EI29) -> 0 | EK29: =payout($A29,BO29,$C29:BN29,EJ29,$BY29:EJ29) -> 0 | EL29: =payout($A29,BP29,$C29:BO29,EK29,$BY29:EK29) -> 0 | EM29: =payout($A29,BQ29,$C29:BP29,EL29,$BY29:EL29) -> 0 | EN29: =payout($A29,BR29,$C29:BQ29,EM29,$BY29:EM29) -> 0 | EO29: =payout($A29,BS29,$C29:BR29,EN29,$BY29:EN29) -> 0 | EP29: =payout($A29,BT29,$C29:BS29,EO29,$BY29:EO29) -> 0 | EQ29: =payout($A29,BU29,$C29:BT29,EP29,$BY29:EP29) -> 0
A30: =get_bond_grade($A$16:A29,$BX$5,$BY$5,$BZ$5) -> AA | B30: 15 | C30: 1 | D30: =IF(C1033=10000,0,default_model($A30,D$13,$B30,D$14)) -> 1 | E30: 1 | F30: 1 | G30: 1 | H30: 1 | I30: 1 | J30: 1 | K30: 1 | L30: 1 | M30: 1 | N30: 1 | O30: 1 | P30: 1 | Q30: 1 | R30: 1 | S30: 1 | T30: 1 | U30: 1 | V30: 1 | W30: 1 | X30: 1 | Y30: 1 | Z30: 1 | AA30: 1 | AB30: 1 | AC30: 1 | AD30: 1 | AE30: 0 | AF30: 0 | AG30: 0 | AH30: 0 | AI30: 0 | AJ30: =IF(AI1033=10000,0,default_model($A30,AJ$13,$B30,AJ$14)) -> 0 | AK30: 0 | AL30: 0 | AM30: 0 | AN30: 0 | AO30: 0 | AP30: 0 | AQ30: 0 | AR30: 0 | AS30: 0 | AT30: 0 | AU30: 0 | AV30: 0 | AW30: 0 | AX30: 0 | AY30: 0 | AZ30: 0 | BA30: 0 | BB30: 0 | BC30: 0 | BD30: 0 | BE30: 0 | BF30: 0 | BG30: 0 | BH30: 0 | BI30: 0 | BJ30: 0 | BK30: 0 | BL30: 0 | BM30: 0 | BN30: 0 | BO30: 0 | BP30: =IF(BO1033=10000,0,default_model($A30,BP$13,$B30,BP$14)) -> 0 | BQ30: 0 | BR30: 0 | BS30: 0 | BT30: 0 | BU30: 0 | BW30: AA | BX30: 15 | BY30: -10000 | BZ30: =payout($A30,D30,$C30:C30,BY30,$BY30:BY30) -> 7921.03 | CA30: =payout($A30,E30,$C30:D30,BZ30,$BY30:BZ30) -> 7921.03 | CB30: =payout($A30,F30,$C30:E30,CA30,$BY30:CA30) -> 7921.03 | CC30: =payout($A30,G30,$C30:F30,CB30,$BY30:CB30) -> 7921.03 | CD30: =payout($A30,H30,$C30:G30,CC30,$BY30:CC30) -> 7921.03 | CE30: =payout($A30,I30,$C30:H30,CD30,$BY30:CD30) -> 7921.03 | CF30: =payout($A30,J30,$C30:I30,CE30,$BY30:CE30) -> 7921.03 | CG30: =payout($A30,K30,$C30:J30,CF30,$BY30:CF30) -> 7921.03 | CH30: =payout($A30,L30,$C30:K30,CG30,$BY30:CG30) -> 7921.03 | CI30: =payout($A30,M30,$C30:L30,CH30,$BY30:CH30) -> 7921.03 | CJ30: =payout($A30,N30,$C30:M30,CI30,$BY30:CI30) -> 7921.03 | CK30: =payout($A30,O30,$C30:N30,CJ30,$BY30:CJ30) -> 7921.03 | CL30: =payout($A30,P30,$C30:O30,CK30,$BY30:CK30) -> 7921.03 | CM30: =payout($A30,Q30,$C30:P30,CL30,$BY30:CL30) -> 7921.03 | CN30: =payout($A30,R30,$C30:Q30,CM30,$BY30:CM30) -> 7921.03 | CO30: =payout($A30,S30,$C30:R30,CN30,$BY30:CN30) -> 7921.03 | CP30: =payout($A30,T30,$C30:S30,CO30,$BY30:CO30) -> 7921.03 | CQ30: =payout($A30,U30,$C30:T30,CP30,$BY30:CP30) -> 7921.03 | CR30: =payout($A30,V30,$C30:U30,CQ30,$BY30:CQ30) -> 7921.03 | CS30: =payout($A30,W30,$C30:V30,CR30,$BY30:CR30) -> 7921.03 | CT30: =payout($A30,X30,$C30:W30,CS30,$BY30:CS30) -> 7921.03 | CU30: =payout($A30,Y30,$C30:X30,CT30,$BY30:CT30) -> 7921.03 | CV30: =payout($A30,Z30,$C30:Y30,CU30,$BY30:CU30) -> 7921.03 | CW30: =payout($A30,AA30,$C30:Z30,CV30,$BY30:CV30) -> 7921.03 | CX30: =payout($A30,AB30,$C30:AA30,CW30,$BY30:CW30) -> 7921.03 | CY30: =payout($A30,AC30,$C30:AB30,CX30,$BY30:CX30) -> 7921.03 | CZ30: =payout($A30,AD30,$C30:AC30,CY30,$BY30:CY30) -> 7921.03 | DA30: =payout($A30,AE30,$C30:AD30,CZ30,$BY30:CZ30) -> 7921.03 | DB30: =payout($A30,AF30,$C30:AE30,DA30,$BY30:DA30) -> 7921.03 | DC30: =payout($A30,AG30,$C30:AF30,DB30,$BY30:DB30) -> 7921.03 | DD30: =payout($A30,AH30,$C30:AG30,DC30,$BY30:DC30) -> 7921.03 | DE30: =payout($A30,AI30,$C30:AH30,DD30,$BY30:DD30) -> 7921.03 | DF30: =payout($A30,AJ30,$C30:AI30,DE30,$BY30:DE30) -> 7921.03 | DG30: =payout($A30,AK30,$C30:AJ30,DF30,$BY30:DF30) -> 7921.03 | DH30: =payout($A30,AL30,$C30:AK30,DG30,$BY30:DG30) -> 7921.03 | DI30: =payout($A30,AM30,$C30:AL30,DH30,$BY30:DH30) -> 7921.03 | DJ30: =payout($A30,AN30,$C30:AM30,DI30,$BY30:DI30) -> 7921.03 | DK30: =payout($A30,AO30,$C30:AN30,DJ30,$BY30:DJ30) -> 7921.03 | DL30: =payout($A30,AP30,$C30:AO30,DK30,$BY30:DK30) -> 7921.03 | DM30: =payout($A30,AQ30,$C30:AP30,DL30,$BY30:DL30) -> 7921.03 | DN30: =payout($A30,AR30,$C30:AQ30,DM30,$BY30:DM30) -> 17921.03 | DO30: =payout($A30,AS30,$C30:AR30,DN30,$BY30:DN30) -> 0 | DP30: =payout($A30,AT30,$C30:AS30,DO30,$BY30:DO30) -> 0 | DQ30: =payout($A30,AU30,$C30:AT30,DP30,$BY30:DP30) -> 0 | DR30: =payout($A30,AV30,$C30:AU30,DQ30,$BY30:DQ30) -> 0 | DS30: =payout($A30,AW30,$C30:AV30,DR30,$BY30:DR30) -> 0 | DT30: =payout($A30,AX30,$C30:AW30,DS30,$BY30:DS30) -> 0 | DU30: =payout($A30,AY30,$C30:AX30,DT30,$BY30:DT30) -> 0 | DV30: =payout($A30,AZ30,$C30:AY30,DU30,$BY30:DU30) -> 0 | DW30: =payout($A30,BA30,$C30:AZ30,DV30,$BY30:DV30) -> 0 | DX30: =payout($A30,BB30,$C30:BA30,DW30,$BY30:DW30) -> 0 | DY30: =payout($A30,BC30,$C30:BB30,DX30,$BY30:DX30) -> 0 | DZ30: =payout($A30,BD30,$C30:BC30,DY30,$BY30:DY30) -> 0 | EA30: =payout($A30,BE30,$C30:BD30,DZ30,$BY30:DZ30) -> 0 | EB30: =payout($A30,BF30,$C30:BE30,EA30,$BY30:EA30) -> 0 | EC30: =payout($A30,BG30,$C30:BF30,EB30,$BY30:EB30) -> 0 | ED30: =payout($A30,BH30,$C30:BG30,EC30,$BY30:EC30) -> 0 | EE30: =payout($A30,BI30,$C30:BH30,ED30,$BY30:ED30) -> 0 | EF30: =payout($A30,BJ30,$C30:BI30,EE30,$BY30:EE30) -> 0 | EG30: =payout($A30,BK30,$C30:BJ30,EF30,$BY30:EF30) -> 0 | EH30: =payout($A30,BL30,$C30:BK30,EG30,$BY30:EG30) -> 0 | EI30: =payout($A30,BM30,$C30:BL30,EH30,$BY30:EH30) -> 0 | EJ30: =payout($A30,BN30,$C30:BM30,EI30,$BY30:EI30) -> 0 | EK30: =payout($A30,BO30,$C30:BN30,EJ30,$BY30:EJ30) -> 0 | EL30: =payout($A30,BP30,$C30:BO30,EK30,$BY30:EK30) -> 0 | EM30: =payout($A30,BQ30,$C30:BP30,EL30,$BY30:EL30) -> 0 | EN30: =payout($A30,BR30,$C30:BQ30,EM30,$BY30:EM30) -> 0 | EO30: =payout($A30,BS30,$C30:BR30,EN30,$BY30:EN30) -> 0 | EP30: =payout($A30,BT30,$C30:BS30,EO30,$BY30:EO30) -> 0 | EQ30: =payout($A30,BU30,$C30:BT30,EP30,$BY30:EP30) -> 0
A31: =get_bond_grade($A$16:A30,$BX$5,$BY$5,$BZ$5) -> A | B31: 16 | C31: 1 | D31: =IF(C1034=10000,0,default_model($A31,D$13,$B31,D$14)) -> 1 | E31: 1 | F31: 1 | G31: 1 | H31: 1 | I31: 1 | J31: 1 | K31: 1 | L31: 1 | M31: 1 | N31: 1 | O31: 1 | P31: 1 | Q31: 1 | R31: 1 | S31: 1 | T31: 1 | U31: 1 | V31: 1 | W31: 1 | X31: 1 | Y31: 1 | Z31: 1 | AA31: 1 | AB31: 1 | AC31: 1 | AD31: 1 | AE31: 0 | AF31: 0 | AG31: 0 | AH31: 0 | AI31: 0 | AJ31: =IF(AI1034=10000,0,default_model($A31,AJ$13,$B31,AJ$14)) -> 0 | AK31: 0 | AL31: 0 | AM31: 0 | AN31: 0 | AO31: 0 | AP31: 0 | AQ31: 0 | AR31: 0 | AS31: 0 | AT31: 0 | AU31: 0 | AV31: 0 | AW31: 0 | AX31: 0 | AY31: 0 | AZ31: 0 | BA31: 0 | BB31: 0 | BC31: 0 | BD31: 0 | BE31: 0 | BF31: 0 | BG31: 0 | BH31: 0 | BI31: 0 | BJ31: 0 | BK31: 0 | BL31: 0 | BM31: 0 | BN31: 0 | BO31: 0 | BP31: =IF(BO1034=10000,0,default_model($A31,BP$13,$B31,BP$14)) -> 0 | BQ31: 0 | BR31: 0 | BS31: 0 | BT31: 0 | BU31: 0 | BW31: A | BX31: 16 | BY31: -10000 | BZ31: =payout($A31,D31,$C31:C31,BY31,$BY31:BY31) -> 12478.46 | CA31: =payout($A31,E31,$C31:D31,BZ31,$BY31:BZ31) -> 12478.46 | CB31: =payout($A31,F31,$C31:E31,CA31,$BY31:CA31) -> 12478.46 | CC31: =payout($A31,G31,$C31:F31,CB31,$BY31:CB31) -> 12478.46 | CD31: =payout($A31,H31,$C31:G31,CC31,$BY31:CC31) -> 12478.46 | CE31: =payout($A31,I31,$C31:H31,CD31,$BY31:CD31) -> 12478.46 | CF31: =payout($A31,J31,$C31:I31,CE31,$BY31:CE31) -> 12478.46 | CG31: =payout($A31,K31,$C31:J31,CF31,$BY31:CF31) -> 12478.46 | CH31: =payout($A31,L31,$C31:K31,CG31,$BY31:CG31) -> 12478.46 | CI31: =payout($A31,M31,$C31:L31,CH31,$BY31:CH31) -> 12478.46 | CJ31: =payout($A31,N31,$C31:M31,CI31,$BY31:CI31) -> 12478.46 | CK31: =payout($A31,O31,$C31:N31,CJ31,$BY31:CJ31) -> 12478.46 | CL31: =payout($A31,P31,$C31:O31,CK31,$BY31:CK31) -> 12478.46 | CM31: =payout($A31,Q31,$C31:P31,CL31,$BY31:CL31) -> 12478.46 | CN31: =payout($A31,R31,$C31:Q31,CM31,$BY31:CM31) -> 12478.46 | CO31: =payout($A31,S31,$C31:R31,CN31,$BY31:CN31) -> 12478.46 | CP31: =payout($A31,T31,$C31:S31,CO31,$BY31:CO31) -> 12478.46 | CQ31: =payout($A31,U31,$C31:T31,CP31,$BY31:CP31) -> 12478.46 | CR31: =payout($A31,V31,$C31:U31,CQ31,$BY31:CQ31) -> 12478.46 | CS31: =payout($A31,W31,$C31:V31,CR31,$BY31:CR31) -> 12478.46 | CT31: =payout($A31,X31,$C31:W31,CS31,$BY31:CS31) -> 12478.46 | CU31: =payout($A31,Y31,$C31:X31,CT31,$BY31:CT31) -> 12478.46 | CV31: =payout($A31,Z31,$C31:Y31,CU31,$BY31:CU31) -> 12478.46 | CW31: =payout($A31,AA31,$C31:Z31,CV31,$BY31:CV31) -> 12478.46 | CX31: =payout($A31,AB31,$C31:AA31,CW31,$BY31:CW31) -> 12478.46 | CY31: =payout($A31,AC31,$C31:AB31,CX31,$BY31:CX31) -> 12478.46 | CZ31: =payout($A31,AD31,$C31:AC31,CY31,$BY31:CY31) -> 12478.46 | DA31: =payout($A31,AE31,$C31:AD31,CZ31,$BY31:CZ31) -> 12478.46 | DB31: =payout($A31,AF31,$C31:AE31,DA31,$BY31:DA31) -> 12478.46 | DC31: =payout($A31,AG31,$C31:AF31,DB31,$BY31:DB31) -> 12478.46 | DD31: =payout($A31,AH31,$C31:AG31,DC31,$BY31:DC31) -> 12478.46 | DE31: =payout($A31,AI31,$C31:AH31,DD31,$BY31:DD31) -> 12478.46 | DF31: =payout($A31,AJ31,$C31:AI31,DE31,$BY31:DE31) -> 12478.46 | DG31: =payout($A31,AK31,$C31:AJ31,DF31,$BY31:DF31) -> 12478.46 | DH31: =payout($A31,AL31,$C31:AK31,DG31,$BY31:DG31) -> 12478.46 | DI31: =payout($A31,AM31,$C31:AL31,DH31,$BY31:DH31) -> 12478.46 | DJ31: =payout($A31,AN31,$C31:AM31,DI31,$BY31:DI31) -> 12478.46 | DK31: =payout($A31,AO31,$C31:AN31,DJ31,$BY31:DJ31) -> 12478.46 | DL31: =payout($A31,AP31,$C31:AO31,DK31,$BY31:DK31) -> 12478.46 | DM31: =payout($A31,AQ31,$C31:AP31,DL31,$BY31:DL31) -> 12478.46 | DN31: =payout($A31,AR31,$C31:AQ31,DM31,$BY31:DM31) -> 22478.46 | DO31: =payout($A31,AS31,$C31:AR31,DN31,$BY31:DN31) -> 0 | DP31: =payout($A31,AT31,$C31:AS31,DO31,$BY31:DO31) -> 0 | DQ31: =payout($A31,AU31,$C31:AT31,DP31,$BY31:DP31) -> 0 | DR31: =payout($A31,AV31,$C31:AU31,DQ31,$BY31:DQ31) -> 0 | DS31: =payout($A31,AW31,$C31:AV31,DR31,$BY31:DR31) -> 0 | DT31: =payout($A31,AX31,$C31:AW31,DS31,$BY31:DS31) -> 0 | DU31: =payout($A31,AY31,$C31:AX31,DT31,$BY31:DT31) -> 0 | DV31: =payout($A31,AZ31,$C31:AY31,DU31,$BY31:DU31) -> 0 | DW31: =payout($A31,BA31,$C31:AZ31,DV31,$BY31:DV31) -> 0 | DX31: =payout($A31,BB31,$C31:BA31,DW31,$BY31:DW31) -> 0 | DY31: =payout($A31,BC31,$C31:BB31,DX31,$BY31:DX31) -> 0 | DZ31: =payout($A31,BD31,$C31:BC31,DY31,$BY31:DY31) -> 0 | EA31: =payout($A31,BE31,$C31:BD31,DZ31,$BY31:DZ31) -> 0 | EB31: =payout($A31,BF31,$C31:BE31,EA31,$BY31:EA31) -> 0 | EC31: =payout($A31,BG31,$C31:BF31,EB31,$BY31:EB31) -> 0 | ED31: =payout($A31,BH31,$C31:BG31,EC31,$BY31:EC31) -> 0 | EE31: =payout($A31,BI31,$C31:BH31,ED31,$BY31:ED31) -> 0 | EF31: =payout($A31,BJ31,$C31:BI31,EE31,$BY31:EE31) -> 0 | EG31: =payout($A31,BK31,$C31:BJ31,EF31,$BY31:EF31) -> 0 | EH31: =payout($A31,BL31,$C31:BK31,EG31,$BY31:EG31) -> 0 | EI31: =payout($A31,BM31,$C31:BL31,EH31,$BY31:EH31) -> 0 | EJ31: =payout($A31,BN31,$C31:BM31,EI31,$BY31:EI31) -> 0 | EK31: =payout($A31,BO31,$C31:BN31,EJ31,$BY31:EJ31) -> 0 | EL31: =payout($A31,BP31,$C31:BO31,EK31,$BY31:EK31) -> 0 | EM31: =payout($A31,BQ31,$C31:BP31,EL31,$BY31:EL31) -> 0 | EN31: =payout($A31,BR31,$C31:BQ31,EM31,$BY31:EM31) -> 0 | EO31: =payout($A31,BS31,$C31:BR31,EN31,$BY31:EN31) -> 0 | EP31: =payout($A31,BT31,$C31:BS31,EO31,$BY31:EO31) -> 0 | EQ31: =payout($A31,BU31,$C31:BT31,EP31,$BY31:EP31) -> 0
A32: =get_bond_grade($A$16:A31,$BX$5,$BY$5,$BZ$5) -> AAA | B32: 17 | C32: 1 | D32: =IF(C1035=10000,0,default_model($A32,D$13,$B32,D$14)) -> 1 | E32: 1 | F32: 1 | G32: 1 | H32: 1 | I32: 1 | J32: 1 | K32: 1 | L32: 1 | M32: 1 | N32: 1 | O32: 1 | P32: 1 | Q32: 1 | R32: 1 | S32: 1 | T32: 1 | U32: 1 | V32: 1 | W32: 1 | X32: 1 | Y32: 1 | Z32: 1 | AA32: 1 | AB32: 1 | AC32: 1 | AD32: 1 | AE32: 0 | AF32: 0 | AG32: 0 | AH32: 0 | AI32: 0 | AJ32: =IF(AI1035=10000,0,default_model($A32,AJ$13,$B32,AJ$14)) -> 0 | AK32: 0 | AL32: 0 | AM32: 0 | AN32: 0 | AO32: 0 | AP32: 0 | AQ32: 0 | AR32: 0 | AS32: 0 | AT32: 0 | AU32: 0 | AV32: 0 | AW32: 0 | AX32: 0 | AY32: 0 | AZ32: 0 | BA32: 0 | BB32: 0 | BC32: 0 | BD32: 0 | BE32: 0 | BF32: 0 | BG32: 0 | BH32: 0 | BI32: 0 | BJ32: 0 | BK32: 0 | BL32: 0 | BM32: 0 | BN32: 0 | BO32: 0 | BP32: =IF(BO1035=10000,0,default_model($A32,BP$13,$B32,BP$14)) -> 0 | BQ32: 0 | BR32: 0 | BS32: 0 | BT32: 0 | BU32: 0 | BW32: AAA | BX32: 17 | BY32: -10000 | BZ32: =payout($A32,D32,$C32:C32,BY32,$BY32:BY32) -> 6299.76 | CA32: =payout($A32,E32,$C32:D32,BZ32,$BY32:BZ32) -> 6299.76 | CB32: =payout($A32,F32,$C32:E32,CA32,$BY32:CA32) -> 6299.76 | CC32: =payout($A32,G32,$C32:F32,CB32,$BY32:CB32) -> 6299.76 | CD32: =payout($A32,H32,$C32:G32,CC32,$BY32:CC32) -> 6299.76 | CE32: =payout($A32,I32,$C32:H32,CD32,$BY32:CD32) -> 6299.76 | CF32: =payout($A32,J32,$C32:I32,CE32,$BY32:CE32) -> 6299.76 | CG32: =payout($A32,K32,$C32:J32,CF32,$BY32:CF32) -> 6299.76 | CH32: =payout($A32,L32,$C32:K32,CG32,$BY32:CG32) -> 6299.76 | CI32: =payout($A32,M32,$C32:L32,CH32,$BY32:CH32) -> 6299.76 | CJ32: =payout($A32,N32,$C32:M32,CI32,$BY32:CI32) -> 6299.76 | CK32: =payout($A32,O32,$C32:N32,CJ32,$BY32:CJ32) -> 6299.76 | CL32: =payout($A32,P32,$C32:O32,CK32,$BY32:CK32) -> 6299.76 | CM32: =payout($A32,Q32,$C32:P32,CL32,$BY32:CL32) -> 6299.76 | CN32: =payout($A32,R32,$C32:Q32,CM32,$BY32:CM32) -> 6299.76 | CO32: =payout($A32,S32,$C32:R32,CN32,$BY32:CN32) -> 6299.76 | CP32: =payout($A32,T32,$C32:S32,CO32,$BY32:CO32) -> 6299.76 | CQ32: =payout($A32,U32,$C32:T32,CP32,$BY32:CP32) -> 6299.76 | CR32: =payout($A32,V32,$C32:U32,CQ32,$BY32:CQ32) -> 6299.76 | CS32: =payout($A32,W32,$C32:V32,CR32,$BY32:CR32) -> 6299.76 | CT32: =payout($A32,X32,$C32:W32,CS32,$BY32:CS32) -> 6299.76 | CU32: =payout($A32,Y32,$C32:X32,CT32,$BY32:CT32) -> 6299.76 | CV32: =payout($A32,Z32,$C32:Y32,CU32,$BY32:CU32) -> 6299.76 | CW32: =payout($A32,AA32,$C32:Z32,CV32,$BY32:CV32) -> 6299.76 | CX32: =payout($A32,AB32,$C32:AA32,CW32,$BY32:CW32) -> 6299.76 | CY32: =payout($A32,AC32,$C32:AB32,CX32,$BY32:CX32) -> 6299.76 | CZ32: =payout($A32,AD32,$C32:AC32,CY32,$BY32:CY32) -> 6299.76 | DA32: =payout($A32,AE32,$C32:AD32,CZ32,$BY32:CZ32) -> 6299.76 | DB32: =payout($A32,AF32,$C32:AE32,DA32,$BY32:DA32) -> 6299.76 | DC32: =payout($A32,AG32,$C32:AF32,DB32,$BY32:DB32) -> 6299.76 | DD32: =payout($A32,AH32,$C32:AG32,DC32,$BY32:DC32) -> 6299.76 | DE32: =payout($A32,AI32,$C32:AH32,DD32,$BY32:DD32) -> 6299.76 | DF32: =payout($A32,AJ32,$C32:AI32,DE32,$BY32:DE32) -> 6299.76 | DG32: =payout($A32,AK32,$C32:AJ32,DF32,$BY32:DF32) -> 6299.76 | DH32: =payout($A32,AL32,$C32:AK32,DG32,$BY32:DG32) -> 6299.76 | DI32: =payout($A32,AM32,$C32:AL32,DH32,$BY32:DH32) -> 6299.76 | DJ32: =payout($A32,AN32,$C32:AM32,DI32,$BY32:DI32) -> 6299.76 | DK32: =payout($A32,AO32,$C32:AN32,DJ32,$BY32:DJ32) -> 6299.76 | DL32: =payout($A32,AP32,$C32:AO32,DK32,$BY32:DK32) -> 6299.76 | DM32: =payout($A32,AQ32,$C32:AP32,DL32,$BY32:DL32) -> 6299.76 | DN32: =payout($A32,AR32,$C32:AQ32,DM32,$BY32:DM32) -> 16299.76 | DO32: =payout($A32,AS32,$C32:AR32,DN32,$BY32:DN32) -> 0 | DP32: =payout($A32,AT32,$C32:AS32,DO32,$BY32:DO32) -> 0 | DQ32: =payout($A32,AU32,$C32:AT32,DP32,$BY32:DP32) -> 0 | DR32: =payout($A32,AV32,$C32:AU32,DQ32,$BY32:DQ32) -> 0 | DS32: =payout($A32,AW32,$C32:AV32,DR32,$BY32:DR32) -> 0 | DT32: =payout($A32,AX32,$C32:AW32,DS32,$BY32:DS32) -> 0 | DU32: =payout($A32,AY32,$C32:AX32,DT32,$BY32:DT32) -> 0 | DV32: =payout($A32,AZ32,$C32:AY32,DU32,$BY32:DU32) -> 0 | DW32: =payout($A32,BA32,$C32:AZ32,DV32,$BY32:DV32) -> 0 | DX32: =payout($A32,BB32,$C32:BA32,DW32,$BY32:DW32) -> 0 | DY32: =payout($A32,BC32,$C32:BB32,DX32,$BY32:DX32) -> 0 | DZ32: =payout($A32,BD32,$C32:BC32,DY32,$BY32:DY32) -> 0 | EA32: =payout($A32,BE32,$C32:BD32,DZ32,$BY32:DZ32) -> 0 | EB32: =payout($A32,BF32,$C32:BE32,EA32,$BY32:EA32) -> 0 | EC32: =payout($A32,BG32,$C32:BF32,EB32,$BY32:EB32) -> 0 | ED32: =payout($A32,BH32,$C32:BG32,EC32,$BY32:EC32) -> 0 | EE32: =payout($A32,BI32,$C32:BH32,ED32,$BY32:ED32) -> 0 | EF32: =payout($A32,BJ32,$C32:BI32,EE32,$BY32:EE32) -> 0 | EG32: =payout($A32,BK32,$C32:BJ32,EF32,$BY32:EF32) -> 0 | EH32: =payout($A32,BL32,$C32:BK32,EG32,$BY32:EG32) -> 0 | EI32: =payout($A32,BM32,$C32:BL32,EH32,$BY32:EH32) -> 0 | EJ32: =payout($A32,BN32,$C32:BM32,EI32,$BY32:EI32) -> 0 | EK32: =payout($A32,BO32,$C32:BN32,EJ32,$BY32:EJ32) -> 0 | EL32: =payout($A32,BP32,$C32:BO32,EK32,$BY32:EK32) -> 0 | EM32: =payout($A32,BQ32,$C32:BP32,EL32,$BY32:EL32) -> 0 | EN32: =payout($A32,BR32,$C32:BQ32,EM32,$BY32:EM32) -> 0 | EO32: =payout($A32,BS32,$C32:BR32,EN32,$BY32:EN32) -> 0 | EP32: =payout($A32,BT32,$C32:BS32,EO32,$BY32:EO32) -> 0 | EQ32: =payout($A32,BU32,$C32:BT32,EP32,$BY32:EP32) -> 0
A33: =get_bond_grade($A$16:A32,$BX$5,$BY$5,$BZ$5) -> AA | B33: 18 | C33: 1 | D33: =IF(C1036=10000,0,default_model($A33,D$13,$B33,D$14)) -> 1 | E33: 1 | F33: 1 | G33: 1 | H33: 1 | I33: 1 | J33: 1 | K33: 1 | L33: 1 | M33: 1 | N33: 1 | O33: 1 | P33: 1 | Q33: 1 | R33: 1 | S33: 1 | T33: 1 | U33: 1 | V33: 1 | W33: 1 | X33: 1 | Y33: 1 | Z33: 1 | AA33: 1 | AB33: 1 | AC33: 1 | AD33: 1 | AE33: 0 | AF33: 0 | AG33: 0 | AH33: 0 | AI33: 0 | AJ33: =IF(AI1036=10000,0,default_model($A33,AJ$13,$B33,AJ$14)) -> 0 | AK33: 0 | AL33: 0 | AM33: 0 | AN33: 0 | AO33: 0 | AP33: 0 | AQ33: 0 | AR33: 0 | AS33: 0 | AT33: 0 | AU33: 0 | AV33: 0 | AW33: 0 | AX33: 0 | AY33: 0 | AZ33: 0 | BA33: 0 | BB33: 0 | BC33: 0 | BD33: 0 | BE33: 0 | BF33: 0 | BG33: 0 | BH33: 0 | BI33: 0 | BJ33: 0 | BK33: 0 | BL33: 0 | BM33: 0 | BN33: 0 | BO33: 0 | BP33: =IF(BO1036=10000,0,default_model($A33,BP$13,$B33,BP$14)) -> 0 | BQ33: 0 | BR33: 0 | BS33: 0 | BT33: 0 | BU33: 0 | BW33: AA | BX33: 18 | BY33: -10000 | BZ33: =payout($A33,D33,$C33:C33,BY33,$BY33:BY33) -> 7921.03 | CA33: =payout($A33,E33,$C33:D33,BZ33,$BY33:BZ33) -> 7921.03 | CB33: =payout($A33,F33,$C33:E33,CA33,$BY33:CA33) -> 7921.03 | CC33: =payout($A33,G33,$C33:F33,CB33,$BY33:CB33) -> 7921.03 | CD33: =payout($A33,H33,$C33:G33,CC33,$BY33:CC33) -> 7921.03 | CE33: =payout($A33,I33,$C33:H33,CD33,$BY33:CD33) -> 7921.03 | CF33: =payout($A33,J33,$C33:I33,CE33,$BY33:CE33) -> 7921.03 | CG33: =payout($A33,K33,$C33:J33,CF33,$BY33:CF33) -> 7921.03 | CH33: =payout($A33,L33,$C33:K33,CG33,$BY33:CG33) -> 7921.03 | CI33: =payout($A33,M33,$C33:L33,CH33,$BY33:CH33) -> 7921.03 | CJ33: =payout($A33,N33,$C33:M33,CI33,$BY33:CI33) -> 7921.03 | CK33: =payout($A33,O33,$C33:N33,CJ33,$BY33:CJ33) -> 7921.03 | CL33: =payout($A33,P33,$C33:O33,CK33,$BY33:CK33) -> 7921.03 | CM33: =payout($A33,Q33,$C33:P33,CL33,$BY33:CL33) -> 7921.03 | CN33: =payout($A33,R33,$C33:Q33,CM33,$BY33:CM33) -> 7921.03 | CO33: =payout($A33,S33,$C33:R33,CN33,$BY33:CN33) -> 7921.03 | CP33: =payout($A33,T33,$C33:S33,CO33,$BY33:CO33) -> 7921.03 | CQ33: =payout($A33,U33,$C33:T33,CP33,$BY33:CP33) -> 7921.03 | CR33: =payout($A33,V33,$C33:U33,CQ33,$BY33:CQ33) -> 7921.03 | CS33: =payout($A33,W33,$C33:V33,CR33,$BY33:CR33) -> 7921.03 | CT33: =payout($A33,X33,$C33:W33,CS33,$BY33:CS33) -> 7921.03 | CU33: =payout($A33,Y33,$C33:X33,CT33,$BY33:CT33) -> 7921.03 | CV33: =payout($A33,Z33,$C33:Y33,CU33,$BY33:CU33) -> 7921.03 | CW33: =payout($A33,AA33,$C33:Z33,CV33,$BY33:CV33) -> 7921.03 | CX33: =payout($A33,AB33,$C33:AA33,CW33,$BY33:CW33) -> 7921.03 | CY33: =payout($A33,AC33,$C33:AB33,CX33,$BY33:CX33) -> 7921.03 | CZ33: =payout($A33,AD33,$C33:AC33,CY33,$BY33:CY33) -> 7921.03 | DA33: =payout($A33,AE33,$C33:AD33,CZ33,$BY33:CZ33) -> 7921.03 | DB33: =payout($A33,AF33,$C33:AE33,DA33,$BY33:DA33) -> 7921.03 | DC33: =payout($A33,AG33,$C33:AF33,DB33,$BY33:DB33) -> 7921.03 | DD33: =payout($A33,AH33,$C33:AG33,DC33,$BY33:DC33) -> 7921.03 | DE33: =payout($A33,AI33,$C33:AH33,DD33,$BY33:DD33) -> 7921.03 | DF33: =payout($A33,AJ33,$C33:AI33,DE33,$BY33:DE33) -> 7921.03 | DG33: =payout($A33,AK33,$C33:AJ33,DF33,$BY33:DF33) -> 7921.03 | DH33: =payout($A33,AL33,$C33:AK33,DG33,$BY33:DG33) -> 7921.03 | DI33: =payout($A33,AM33,$C33:AL33,DH33,$BY33:DH33) -> 7921.03 | DJ33: =payout($A33,AN33,$C33:AM33,DI33,$BY33:DI33) -> 7921.03 | DK33: =payout($A33,AO33,$C33:AN33,DJ33,$BY33:DJ33) -> 7921.03 | DL33: =payout($A33,AP33,$C33:AO33,DK33,$BY33:DK33) -> 7921.03 | DM33: =payout($A33,AQ33,$C33:AP33,DL33,$BY33:DL33) -> 7921.03 | DN33: =payout($A33,AR33,$C33:AQ33,DM33,$BY33:DM33) -> 17921.03 | DO33: =payout($A33,AS33,$C33:AR33,DN33,$BY33:DN33) -> 0 | DP33: =payout($A33,AT33,$C33:AS33,DO33,$BY33:DO33) -> 0 | DQ33: =payout($A33,AU33,$C33:AT33,DP33,$BY33:DP33) -> 0 | DR33: =payout($A33,AV33,$C33:AU33,DQ33,$BY33:DQ33) -> 0 | DS33: =payout($A33,AW33,$C33:AV33,DR33,$BY33:DR33) -> 0 | DT33: =payout($A33,AX33,$C33:AW33,DS33,$BY33:DS33) -> 0 | DU33: =payout($A33,AY33,$C33:AX33,DT33,$BY33:DT33) -> 0 | DV33: =payout($A33,AZ33,$C33:AY33,DU33,$BY33:DU33) -> 0 | DW33: =payout($A33,BA33,$C33:AZ33,DV33,$BY33:DV33) -> 0 | DX33: =payout($A33,BB33,$C33:BA33,DW33,$BY33:DW33) -> 0 | DY33: =payout($A33,BC33,$C33:BB33,DX33,$BY33:DX33) -> 0 | DZ33: =payout($A33,BD33,$C33:BC33,DY33,$BY33:DY33) -> 0 | EA33: =payout($A33,BE33,$C33:BD33,DZ33,$BY33:DZ33) -> 0 | EB33: =payout($A33,BF33,$C33:BE33,EA33,$BY33:EA33) -> 0 | EC33: =payout($A33,BG33,$C33:BF33,EB33,$BY33:EB33) -> 0 | ED33: =payout($A33,BH33,$C33:BG33,EC33,$BY33:EC33) -> 0 | EE33: =payout($A33,BI33,$C33:BH33,ED33,$BY33:ED33) -> 0 | EF33: =payout($A33,BJ33,$C33:BI33,EE33,$BY33:EE33) -> 0 | EG33: =payout($A33,BK33,$C33:BJ33,EF33,$BY33:EF33) -> 0 | EH33: =payout($A33,BL33,$C33:BK33,EG33,$BY33:EG33) -> 0 | EI33: =payout($A33,BM33,$C33:BL33,EH33,$BY33:EH33) -> 0 | EJ33: =payout($A33,BN33,$C33:BM33,EI33,$BY33:EI33) -> 0 | EK33: =payout($A33,BO33,$C33:BN33,EJ33,$BY33:EJ33) -> 0 | EL33: =payout($A33,BP33,$C33:BO33,EK33,$BY33:EK33) -> 0 | EM33: =payout($A33,BQ33,$C33:BP33,EL33,$BY33:EL33) -> 0 | EN33: =payout($A33,BR33,$C33:BQ33,EM33,$BY33:EM33) -> 0 | EO33: =payout($A33,BS33,$C33:BR33,EN33,$BY33:EN33) -> 0 | EP33: =payout($A33,BT33,$C33:BS33,EO33,$BY33:EO33) -> 0 | EQ33: =payout($A33,BU33,$C33:BT33,EP33,$BY33:EP33) -> 0
A34: =get_bond_grade($A$16:A33,$BX$5,$BY$5,$BZ$5) -> AAA | B34: 19 | C34: 1 | D34: =IF(C1037=10000,0,default_model($A34,D$13,$B34,D$14)) -> 1 | E34: 1 | F34: 1 | G34: 1 | H34: 1 | I34: 1 | J34: 1 | K34: 1 | L34: 1 | M34: 1 | N34: 1 | O34: 1 | P34: 1 | Q34: 1 | R34: 1 | S34: 1 | T34: 1 | U34: 1 | V34: 1 | W34: 1 | X34: 1 | Y34: 1 | Z34: 1 | AA34: 1 | AB34: 1 | AC34: 1 | AD34: 1 | AE34: 0 | AF34: 0 | AG34: 0 | AH34: 0 | AI34: 0 | AJ34: =IF(AI1037=10000,0,default_model($A34,AJ$13,$B34,AJ$14)) -> 0 | AK34: 0 | AL34: 0 | AM34: 0 | AN34: 0 | AO34: 0 | AP34: 0 | AQ34: 0 | AR34: 0 | AS34: 0 | AT34: 0 | AU34: 0 | AV34: 0 | AW34: 0 | AX34: 0 | AY34: 0 | AZ34: 0 | BA34: 0 | BB34: 0 | BC34: 0 | BD34: 0 | BE34: 0 | BF34: 0 | BG34: 0 | BH34: 0 | BI34: 0 | BJ34: 0 | BK34: 0 | BL34: 0 | BM34: 0 | BN34: 0 | BO34: 0 | BP34: =IF(BO1037=10000,0,default_model($A34,BP$13,$B34,BP$14)) -> 0 | BQ34: 0 | BR34: 0 | BS34: 0 | BT34: 0 | BU34: 0 | BW34: AAA | BX34: 19 | BY34: -10000 | BZ34: =payout($A34,D34,$C34:C34,BY34,$BY34:BY34) -> 6299.76 | CA34: =payout($A34,E34,$C34:D34,BZ34,$BY34:BZ34) -> 6299.76 | CB34: =payout($A34,F34,$C34:E34,CA34,$BY34:CA34) -> 6299.76 | CC34: =payout($A34,G34,$C34:F34,CB34,$BY34:CB34) -> 6299.76 | CD34: =payout($A34,H34,$C34:G34,CC34,$BY34:CC34) -> 6299.76 | CE34: =payout($A34,I34,$C34:H34,CD34,$BY34:CD34) -> 6299.76 | CF34: =payout($A34,J34,$C34:I34,CE34,$BY34:CE34) -> 6299.76 | CG34: =payout($A34,K34,$C34:J34,CF34,$BY34:CF34) -> 6299.76 | CH34: =payout($A34,L34,$C34:K34,CG34,$BY34:CG34) -> 6299.76 | CI34: =payout($A34,M34,$C34:L34,CH34,$BY34:CH34) -> 6299.76 | CJ34: =payout($A34,N34,$C34:M34,CI34,$BY34:CI34) -> 6299.76 | CK34: =payout($A34,O34,$C34:N34,CJ34,$BY34:CJ34) -> 6299.76 | CL34: =payout($A34,P34,$C34:O34,CK34,$BY34:CK34) -> 6299.76 | CM34: =payout($A34,Q34,$C34:P34,CL34,$BY34:CL34) -> 6299.76 | CN34: =payout($A34,R34,$C34:Q34,CM34,$BY34:CM34) -> 6299.76 | CO34: =payout($A34,S34,$C34:R34,CN34,$BY34:CN34) -> 6299.76 | CP34: =payout($A34,T34,$C34:S34,CO34,$BY34:CO34) -> 6299.76 | CQ34: =payout($A34,U34,$C34:T34,CP34,$BY34:CP34) -> 6299.76 | CR34: =payout($A34,V34,$C34:U34,CQ34,$BY34:CQ34) -> 6299.76 | CS34: =payout($A34,W34,$C34:V34,CR34,$BY34:CR34) -> 6299.76 | CT34: =payout($A34,X34,$C34:W34,CS34,$BY34:CS34) -> 6299.76 | CU34: =payout($A34,Y34,$C34:X34,CT34,$BY34:CT34) -> 6299.76 | CV34: =payout($A34,Z34,$C34:Y34,CU34,$BY34:CU34) -> 6299.76 | CW34: =payout($A34,AA34,$C34:Z34,CV34,$BY34:CV34) -> 6299.76 | CX34: =payout($A34,AB34,$C34:AA34,CW34,$BY34:CW34) -> 6299.76 | CY34: =payout($A34,AC34,$C34:AB34,CX34,$BY34:CX34) -> 6299.76 | CZ34: =payout($A34,AD34,$C34:AC34,CY34,$BY34:CY34) -> 6299.76 | DA34: =payout($A34,AE34,$C34:AD34,CZ34,$BY34:CZ34) -> 6299.76 | DB34: =payout($A34,AF34,$C34:AE34,DA34,$BY34:DA34) -> 6299.76 | DC34: =payout($A34,AG34,$C34:AF34,DB34,$BY34:DB34) -> 6299.76 | DD34: =payout($A34,AH34,$C34:AG34,DC34,$BY34:DC34) -> 6299.76 | DE34: =payout($A34,AI34,$C34:AH34,DD34,$BY34:DD34) -> 6299.76 | DF34: =payout($A34,AJ34,$C34:AI34,DE34,$BY34:DE34) -> 6299.76 | DG34: =payout($A34,AK34,$C34:AJ34,DF34,$BY34:DF34) -> 6299.76 | DH34: =payout($A34,AL34,$C34:AK34,DG34,$BY34:DG34) -> 6299.76 | DI34: =payout($A34,AM34,$C34:AL34,DH34,$BY34:DH34) -> 6299.76 | DJ34: =payout($A34,AN34,$C34:AM34,DI34,$BY34:DI34) -> 6299.76 | DK34: =payout($A34,AO34,$C34:AN34,DJ34,$BY34:DJ34) -> 6299.76 | DL34: =payout($A34,AP34,$C34:AO34,DK34,$BY34:DK34) -> 6299.76 | DM34: =payout($A34,AQ34,$C34:AP34,DL34,$BY34:DL34) -> 6299.76 | DN34: =payout($A34,AR34,$C34:AQ34,DM34,$BY34:DM34) -> 16299.76 | DO34: =payout($A34,AS34,$C34:AR34,DN34,$BY34:DN34) -> 0 | DP34: =payout($A34,AT34,$C34:AS34,DO34,$BY34:DO34) -> 0 | DQ34: =payout($A34,AU34,$C34:AT34,DP34,$BY34:DP34) -> 0 | DR34: =payout($A34,AV34,$C34:AU34,DQ34,$BY34:DQ34) -> 0 | DS34: =payout($A34,AW34,$C34:AV34,DR34,$BY34:DR34) -> 0 | DT34: =payout($A34,AX34,$C34:AW34,DS34,$BY34:DS34) -> 0 | DU34: =payout($A34,AY34,$C34:AX34,DT34,$BY34:DT34) -> 0 | DV34: =payout($A34,AZ34,$C34:AY34,DU34,$BY34:DU34) -> 0 | DW34: =payout($A34,BA34,$C34:AZ34,DV34,$BY34:DV34) -> 0 | DX34: =payout($A34,BB34,$C34:BA34,DW34,$BY34:DW34) -> 0 | DY34: =payout($A34,BC34,$C34:BB34,DX34,$BY34:DX34) -> 0 | DZ34: =payout($A34,BD34,$C34:BC34,DY34,$BY34:DY34) -> 0 | EA34: =payout($A34,BE34,$C34:BD34,DZ34,$BY34:DZ34) -> 0 | EB34: =payout($A34,BF34,$C34:BE34,EA34,$BY34:EA34) -> 0 | EC34: =payout($A34,BG34,$C34:BF34,EB34,$BY34:EB34) -> 0 | ED34: =payout($A34,BH34,$C34:BG34,EC34,$BY34:EC34) -> 0 | EE34: =payout($A34,BI34,$C34:BH34,ED34,$BY34:ED34) -> 0 | EF34: =payout($A34,BJ34,$C34:BI34,EE34,$BY34:EE34) -> 0 | EG34: =payout($A34,BK34,$C34:BJ34,EF34,$BY34:EF34) -> 0 | EH34: =payout($A34,BL34,$C34:BK34,EG34,$BY34:EG34) -> 0 | EI34: =payout($A34,BM34,$C34:BL34,EH34,$BY34:EH34) -> 0 | EJ34: =payout($A34,BN34,$C34:BM34,EI34,$BY34:EI34) -> 0 | EK34: =payout($A34,BO34,$C34:BN34,EJ34,$BY34:EJ34) -> 0 | EL34: =payout($A34,BP34,$C34:BO34,EK34,$BY34:EK34) -> 0 | EM34: =payout($A34,BQ34,$C34:BP34,EL34,$BY34:EL34) -> 0 | EN34: =payout($A34,BR34,$C34:BQ34,EM34,$BY34:EM34) -> 0 | EO34: =payout($A34,BS34,$C34:BR34,EN34,$BY34:EN34) -> 0 | EP34: =payout($A34,BT34,$C34:BS34,EO34,$BY34:EO34) -> 0 | EQ34: =payout($A34,BU34,$C34:BT34,EP34,$BY34:EP34) -> 0
A35: =get_bond_grade($A$16:A34,$BX$5,$BY$5,$BZ$5) -> A | B35: 20 | C35: 1 | D35: =IF(C1038=10000,0,default_model($A35,D$13,$B35,D$14)) -> 1 | E35: 1 | F35: 1 | G35: 1 | H35: 1 | I35: 1 | J35: 1 | K35: 1 | L35: 1 | M35: 1 | N35: 1 | O35: 1 | P35: 1 | Q35: 1 | R35: 1 | S35: 1 | T35: 1 | U35: 1 | V35: 1 | W35: 1 | X35: 1 | Y35: 1 | Z35: 1 | AA35: 1 | AB35: 1 | AC35: 1 | AD35: 1 | AE35: 0 | AF35: 0 | AG35: 0 | AH35: 0 | AI35: 0 | AJ35: =IF(AI1038=10000,0,default_model($A35,AJ$13,$B35,AJ$14)) -> 0 | AK35: 0 | AL35: 0 | AM35: 0 | AN35: 0 | AO35: 0 | AP35: 0 | AQ35: 0 | AR35: 0 | AS35: 0 | AT35: 0 | AU35: 0 | AV35: 0 | AW35: 0 | AX35: 0 | AY35: 0 | AZ35: 0 | BA35: 0 | BB35: 0 | BC35: 0 | BD35: 0 | BE35: 0 | BF35: 0 | BG35: 0 | BH35: 0 | BI35: 0 | BJ35: 0 | BK35: 0 | BL35: 0 | BM35: 0 | BN35: 0 | BO35: 0 | BP35: =IF(BO1038=10000,0,default_model($A35,BP$13,$B35,BP$14)) -> 0 | BQ35: 0 | BR35: 0 | BS35: 0 | BT35: 0 | BU35: 0 | BW35: A | BX35: 20 | BY35: -10000 | BZ35: =payout($A35,D35,$C35:C35,BY35,$BY35:BY35) -> 12478.46 | CA35: =payout($A35,E35,$C35:D35,BZ35,$BY35:BZ35) -> 12478.46 | CB35: =payout($A35,F35,$C35:E35,CA35,$BY35:CA35) -> 12478.46 | CC35: =payout($A35,G35,$C35:F35,CB35,$BY35:CB35) -> 12478.46 | CD35: =payout($A35,H35,$C35:G35,CC35,$BY35:CC35) -> 12478.46 | CE35: =payout($A35,I35,$C35:H35,CD35,$BY35:CD35) -> 12478.46 | CF35: =payout($A35,J35,$C35:I35,CE35,$BY35:CE35) -> 12478.46 | CG35: =payout($A35,K35,$C35:J35,CF35,$BY35:CF35) -> 12478.46 | CH35: =payout($A35,L35,$C35:K35,CG35,$BY35:CG35) -> 12478.46 | CI35: =payout($A35,M35,$C35:L35,CH35,$BY35:CH35) -> 12478.46 | CJ35: =payout($A35,N35,$C35:M35,CI35,$BY35:CI35) -> 12478.46 | CK35: =payout($A35,O35,$C35:N35,CJ35,$BY35:CJ35) -> 12478.46 | CL35: =payout($A35,P35,$C35:O35,CK35,$BY35:CK35) -> 12478.46 | CM35: =payout($A35,Q35,$C35:P35,CL35,$BY35:CL35) -> 12478.46 | CN35: =payout($A35,R35,$C35:Q35,CM35,$BY35:CM35) -> 12478.46 | CO35: =payout($A35,S35,$C35:R35,CN35,$BY35:CN35) -> 12478.46 | CP35: =payout($A35,T35,$C35:S35,CO35,$BY35:CO35) -> 12478.46 | CQ35: =payout($A35,U35,$C35:T35,CP35,$BY35:CP35) -> 12478.46 | CR35: =payout($A35,V35,$C35:U35,CQ35,$BY35:CQ35) -> 12478.46 | CS35: =payout($A35,W35,$C35:V35,CR35,$BY35:CR35) -> 12478.46 | CT35: =payout($A35,X35,$C35:W35,CS35,$BY35:CS35) -> 12478.46 | CU35: =payout($A35,Y35,$C35:X35,CT35,$BY35:CT35) -> 12478.46 | CV35: =payout($A35,Z35,$C35:Y35,CU35,$BY35:CU35) -> 12478.46 | CW35: =payout($A35,AA35,$C35:Z35,CV35,$BY35:CV35) -> 12478.46 | CX35: =payout($A35,AB35,$C35:AA35,CW35,$BY35:CW35) -> 12478.46 | CY35: =payout($A35,AC35,$C35:AB35,CX35,$BY35:CX35) -> 12478.46 | CZ35: =payout($A35,AD35,$C35:AC35,CY35,$BY35:CY35) -> 12478.46 | DA35: =payout($A35,AE35,$C35:AD35,CZ35,$BY35:CZ35) -> 12478.46 | DB35: =payout($A35,AF35,$C35:AE35,DA35,$BY35:DA35) -> 12478.46 | DC35: =payout($A35,AG35,$C35:AF35,DB35,$BY35:DB35) -> 12478.46 | DD35: =payout($A35,AH35,$C35:AG35,DC35,$BY35:DC35) -> 12478.46 | DE35: =payout($A35,AI35,$C35:AH35,DD35,$BY35:DD35) -> 12478.46 | DF35: =payout($A35,AJ35,$C35:AI35,DE35,$BY35:DE35) -> 12478.46 | DG35: =payout($A35,AK35,$C35:AJ35,DF35,$BY35:DF35) -> 12478.46 | DH35: =payout($A35,AL35,$C35:AK35,DG35,$BY35:DG35) -> 12478.46 | DI35: =payout($A35,AM35,$C35:AL35,DH35,$BY35:DH35) -> 12478.46 | DJ35: =payout($A35,AN35,$C35:AM35,DI35,$BY35:DI35) -> 12478.46 | DK35: =payout($A35,AO35,$C35:AN35,DJ35,$BY35:DJ35) -> 12478.46 | DL35: =payout($A35,AP35,$C35:AO35,DK35,$BY35:DK35) -> 12478.46 | DM35: =payout($A35,AQ35,$C35:AP35,DL35,$BY35:DL35) -> 12478.46 | DN35: =payout($A35,AR35,$C35:AQ35,DM35,$BY35:DM35) -> 22478.46 | DO35: =payout($A35,AS35,$C35:AR35,DN35,$BY35:DN35) -> 0 | DP35: =payout($A35,AT35,$C35:AS35,DO35,$BY35:DO35) -> 0 | DQ35: =payout($A35,AU35,$C35:AT35,DP35,$BY35:DP35) -> 0 | DR35: =payout($A35,AV35,$C35:AU35,DQ35,$BY35:DQ35) -> 0 | DS35: =payout($A35,AW35,$C35:AV35,DR35,$BY35:DR35) -> 0 | DT35: =payout($A35,AX35,$C35:AW35,DS35,$BY35:DS35) -> 0 | DU35: =payout($A35,AY35,$C35:AX35,DT35,$BY35:DT35) -> 0 | DV35: =payout($A35,AZ35,$C35:AY35,DU35,$BY35:DU35) -> 0 | DW35: =payout($A35,BA35,$C35:AZ35,DV35,$BY35:DV35) -> 0 | DX35: =payout($A35,BB35,$C35:BA35,DW35,$BY35:DW35) -> 0 | DY35: =payout($A35,BC35,$C35:BB35,DX35,$BY35:DX35) -> 0 | DZ35: =payout($A35,BD35,$C35:BC35,DY35,$BY35:DY35) -> 0 | EA35: =payout($A35,BE35,$C35:BD35,DZ35,$BY35:DZ35) -> 0 | EB35: =payout($A35,BF35,$C35:BE35,EA35,$BY35:EA35) -> 0 | EC35: =payout($A35,BG35,$C35:BF35,EB35,$BY35:EB35) -> 0 | ED35: =payout($A35,BH35,$C35:BG35,EC35,$BY35:EC35) -> 0 | EE35: =payout($A35,BI35,$C35:BH35,ED35,$BY35:ED35) -> 0 | EF35: =payout($A35,BJ35,$C35:BI35,EE35,$BY35:EE35) -> 0 | EG35: =payout($A35,BK35,$C35:BJ35,EF35,$BY35:EF35) -> 0 | EH35: =payout($A35,BL35,$C35:BK35,EG35,$BY35:EG35) -> 0 | EI35: =payout($A35,BM35,$C35:BL35,EH35,$BY35:EH35) -> 0 | EJ35: =payout($A35,BN35,$C35:BM35,EI35,$BY35:EI35) -> 0 | EK35: =payout($A35,BO35,$C35:BN35,EJ35,$BY35:EJ35) -> 0 | EL35: =payout($A35,BP35,$C35:BO35,EK35,$BY35:EK35) -> 0 | EM35: =payout($A35,BQ35,$C35:BP35,EL35,$BY35:EL35) -> 0 | EN35: =payout($A35,BR35,$C35:BQ35,EM35,$BY35:EM35) -> 0 | EO35: =payout($A35,BS35,$C35:BR35,EN35,$BY35:EN35) -> 0 | EP35: =payout($A35,BT35,$C35:BS35,EO35,$BY35:EO35) -> 0 | EQ35: =payout($A35,BU35,$C35:BT35,EP35,$BY35:EP35) -> 0
A36: =get_bond_grade($A$16:A35,$BX$5,$BY$5,$BZ$5) -> A | B36: 21 | C36: 1 | D36: =IF(C1039=10000,0,default_model($A36,D$13,$B36,D$14)) -> 1 | E36: 1 | F36: 1 | G36: 1 | H36: 1 | I36: 1 | J36: 1 | K36: 1 | L36: 0 | M36: 0 | N36: 0 | O36: 0 | P36: 0 | Q36: 0 | R36: 0 | S36: 0 | T36: 0 | U36: 0 | V36: 0 | W36: 0 | X36: 0 | Y36: 0 | Z36: 0 | AA36: 0 | AB36: 0 | AC36: 0 | AD36: 0 | AE36: 0 | AF36: 0 | AG36: 0 | AH36: 0 | AI36: 0 | AJ36: =IF(AI1039=10000,0,default_model($A36,AJ$13,$B36,AJ$14)) -> 0 | AK36: 0 | AL36: 0 | AM36: 0 | AN36: 0 | AO36: 0 | AP36: 0 | AQ36: 0 | AR36: 0 | AS36: 0 | AT36: 0 | AU36: 0 | AV36: 0 | AW36: 0 | AX36: 0 | AY36: 0 | AZ36: 0 | BA36: 0 | BB36: 0 | BC36: 0 | BD36: 0 | BE36: 0 | BF36: 0 | BG36: 0 | BH36: 0 | BI36: 0 | BJ36: 0 | BK36: 0 | BL36: 0 | BM36: 0 | BN36: 0 | BO36: 0 | BP36: =IF(BO1039=10000,0,default_model($A36,BP$13,$B36,BP$14)) -> 0 | BQ36: 0 | BR36: 0 | BS36: 0 | BT36: 0 | BU36: 0 | BW36: A | BX36: 21 | BY36: -10000 | BZ36: =payout($A36,D36,$C36:C36,BY36,$BY36:BY36) -> 12478.46 | CA36: =payout($A36,E36,$C36:D36,BZ36,$BY36:BZ36) -> 12478.46 | CB36: =payout($A36,F36,$C36:E36,CA36,$BY36:CA36) -> 12478.46 | CC36: =payout($A36,G36,$C36:F36,CB36,$BY36:CB36) -> 12478.46 | CD36: =payout($A36,H36,$C36:G36,CC36,$BY36:CC36) -> 12478.46 | CE36: =payout($A36,I36,$C36:H36,CD36,$BY36:CD36) -> 12478.46 | CF36: =payout($A36,J36,$C36:I36,CE36,$BY36:CE36) -> 12478.46 | CG36: =payout($A36,K36,$C36:J36,CF36,$BY36:CF36) -> 12478.46 | CH36: =payout($A36,L36,$C36:K36,CG36,$BY36:CG36) -> 12478.46 | CI36: =payout($A36,M36,$C36:L36,CH36,$BY36:CH36) -> 12478.46 | CJ36: =payout($A36,N36,$C36:M36,CI36,$BY36:CI36) -> 12478.46 | CK36: =payout($A36,O36,$C36:N36,CJ36,$BY36:CJ36) -> 12478.46 | CL36: =payout($A36,P36,$C36:O36,CK36,$BY36:CK36) -> 12478.46 | CM36: =payout($A36,Q36,$C36:P36,CL36,$BY36:CL36) -> 12478.46 | CN36: =payout($A36,R36,$C36:Q36,CM36,$BY36:CM36) -> 12478.46 | CO36: =payout($A36,S36,$C36:R36,CN36,$BY36:CN36) -> 12478.46 | CP36: =payout($A36,T36,$C36:S36,CO36,$BY36:CO36) -> 12478.46 | CQ36: =payout($A36,U36,$C36:T36,CP36,$BY36:CP36) -> 12478.46 | CR36: =payout($A36,V36,$C36:U36,CQ36,$BY36:CQ36) -> 12478.46 | CS36: =payout($A36,W36,$C36:V36,CR36,$BY36:CR36) -> 12478.46 | CT36: =payout($A36,X36,$C36:W36,CS36,$BY36:CS36) -> 12478.46 | CU36: =payout($A36,Y36,$C36:X36,CT36,$BY36:CT36) -> 12478.46 | CV36: =payout($A36,Z36,$C36:Y36,CU36,$BY36:CU36) -> 12478.46 | CW36: =payout($A36,AA36,$C36:Z36,CV36,$BY36:CV36) -> 12478.46 | CX36: =payout($A36,AB36,$C36:AA36,CW36,$BY36:CW36) -> 12478.46 | CY36: =payout($A36,AC36,$C36:AB36,CX36,$BY36:CX36) -> 12478.46 | CZ36: =payout($A36,AD36,$C36:AC36,CY36,$BY36:CY36) -> 12478.46 | DA36: =payout($A36,AE36,$C36:AD36,CZ36,$BY36:CZ36) -> 12478.46 | DB36: =payout($A36,AF36,$C36:AE36,DA36,$BY36:DA36) -> 12478.46 | DC36: =payout($A36,AG36,$C36:AF36,DB36,$BY36:DB36) -> 12478.46 | DD36: =payout($A36,AH36,$C36:AG36,DC36,$BY36:DC36) -> 12478.46 | DE36: =payout($A36,AI36,$C36:AH36,DD36,$BY36:DD36) -> 12478.46 | DF36: =payout($A36,AJ36,$C36:AI36,DE36,$BY36:DE36) -> 12478.46 | DG36: =payout($A36,AK36,$C36:AJ36,DF36,$BY36:DF36) -> 12478.46 | DH36: =payout($A36,AL36,$C36:AK36,DG36,$BY36:DG36) -> 12478.46 | DI36: =payout($A36,AM36,$C36:AL36,DH36,$BY36:DH36) -> 12478.46 | DJ36: =payout($A36,AN36,$C36:AM36,DI36,$BY36:DI36) -> 12478.46 | DK36: =payout($A36,AO36,$C36:AN36,DJ36,$BY36:DJ36) -> 12478.46 | DL36: =payout($A36,AP36,$C36:AO36,DK36,$BY36:DK36) -> 12478.46 | DM36: =payout($A36,AQ36,$C36:AP36,DL36,$BY36:DL36) -> 12478.46 | DN36: =payout($A36,AR36,$C36:AQ36,DM36,$BY36:DM36) -> 22478.46 | DO36: =payout($A36,AS36,$C36:AR36,DN36,$BY36:DN36) -> 0 | DP36: =payout($A36,AT36,$C36:AS36,DO36,$BY36:DO36) -> 0 | DQ36: =payout($A36,AU36,$C36:AT36,DP36,$BY36:DP36) -> 0 | DR36: =payout($A36,AV36,$C36:AU36,DQ36,$BY36:DQ36) -> 0 | DS36: =payout($A36,AW36,$C36:AV36,DR36,$BY36:DR36) -> 0 | DT36: =payout($A36,AX36,$C36:AW36,DS36,$BY36:DS36) -> 0 | DU36: =payout($A36,AY36,$C36:AX36,DT36,$BY36:DT36) -> 0 | DV36: =payout($A36,AZ36,$C36:AY36,DU36,$BY36:DU36) -> 0 | DW36: =payout($A36,BA36,$C36:AZ36,DV36,$BY36:DV36) -> 0 | DX36: =payout($A36,BB36,$C36:BA36,DW36,$BY36:DW36) -> 0 | DY36: =payout($A36,BC36,$C36:BB36,DX36,$BY36:DX36) -> 0 | DZ36: =payout($A36,BD36,$C36:BC36,DY36,$BY36:DY36) -> 0 | EA36: =payout($A36,BE36,$C36:BD36,DZ36,$BY36:DZ36) -> 0 | EB36: =payout($A36,BF36,$C36:BE36,EA36,$BY36:EA36) -> 0 | EC36: =payout($A36,BG36,$C36:BF36,EB36,$BY36:EB36) -> 0 | ED36: =payout($A36,BH36,$C36:BG36,EC36,$BY36:EC36) -> 0 | EE36: =payout($A36,BI36,$C36:BH36,ED36,$BY36:ED36) -> 0 | EF36: =payout($A36,BJ36,$C36:BI36,EE36,$BY36:EE36) -> 0 | EG36: =payout($A36,BK36,$C36:BJ36,EF36,$BY36:EF36) -> 0 | EH36: =payout($A36,BL36,$C36:BK36,EG36,$BY36:EG36) -> 0 | EI36: =payout($A36,BM36,$C36:BL36,EH36,$BY36:EH36) -> 0 | EJ36: =payout($A36,BN36,$C36:BM36,EI36,$BY36:EI36) -> 0 | EK36: =payout($A36,BO36,$C36:BN36,EJ36,$BY36:EJ36) -> 0 | EL36: =payout($A36,BP36,$C36:BO36,EK36,$BY36:EK36) -> 0 | EM36: =payout($A36,BQ36,$C36:BP36,EL36,$BY36:EL36) -> 0 | EN36: =payout($A36,BR36,$C36:BQ36,EM36,$BY36:EM36) -> 0 | EO36: =payout($A36,BS36,$C36:BR36,EN36,$BY36:EN36) -> 0 | EP36: =payout($A36,BT36,$C36:BS36,EO36,$BY36:EO36) -> 0 | EQ36: =payout($A36,BU36,$C36:BT36,EP36,$BY36:EP36) -> 0
A37: =get_bond_grade($A$16:A36,$BX$5,$BY$5,$BZ$5) -> AAA | B37: 22 | C37: 1 | D37: =IF(C1040=10000,0,default_model($A37,D$13,$B37,D$14)) -> 1 | E37: 1 | F37: 1 | G37: 1 | H37: 1 | I37: 1 | J37: 1 | K37: 1 | L37: 1 | M37: 1 | N37: 1 | O37: 1 | P37: 1 | Q37: 1 | R37: 1 | S37: 1 | T37: 1 | U37: 1 | V37: 1 | W37: 1 | X37: 1 | Y37: 1 | Z37: 1 | AA37: 1 | AB37: 1 | AC37: 1 | AD37: 1 | AE37: 0 | AF37: 0 | AG37: 0 | AH37: 0 | AI37: 0 | AJ37: =IF(AI1040=10000,0,default_model($A37,AJ$13,$B37,AJ$14)) -> 0 | AK37: 0 | AL37: 0 | AM37: 0 | AN37: 0 | AO37: 0 | AP37: 0 | AQ37: 0 | AR37: 0 | AS37: 0 | AT37: 0 | AU37: 0 | AV37: 0 | AW37: 0 | AX37: 0 | AY37: 0 | AZ37: 0 | BA37: 0 | BB37: 0 | BC37: 0 | BD37: 0 | BE37: 0 | BF37: 0 | BG37: 0 | BH37: 0 | BI37: 0 | BJ37: 0 | BK37: 0 | BL37: 0 | BM37: 0 | BN37: 0 | BO37: 0 | BP37: =IF(BO1040=10000,0,default_model($A37,BP$13,$B37,BP$14)) -> 0 | BQ37: 0 | BR37: 0 | BS37: 0 | BT37: 0 | BU37: 0 | BW37: AAA | BX37: 22 | BY37: -10000 | BZ37: =payout($A37,D37,$C37:C37,BY37,$BY37:BY37) -> 6299.76 | CA37: =payout($A37,E37,$C37:D37,BZ37,$BY37:BZ37) -> 6299.76 | CB37: =payout($A37,F37,$C37:E37,CA37,$BY37:CA37) -> 6299.76 | CC37: =payout($A37,G37,$C37:F37,CB37,$BY37:CB37) -> 6299.76 | CD37: =payout($A37,H37,$C37:G37,CC37,$BY37:CC37) -> 6299.76 | CE37: =payout($A37,I37,$C37:H37,CD37,$BY37:CD37) -> 6299.76 | CF37: =payout($A37,J37,$C37:I37,CE37,$BY37:CE37) -> 6299.76 | CG37: =payout($A37,K37,$C37:J37,CF37,$BY37:CF37) -> 6299.76 | CH37: =payout($A37,L37,$C37:K37,CG37,$BY37:CG37) -> 6299.76 | CI37: =payout($A37,M37,$C37:L37,CH37,$BY37:CH37) -> 6299.76 | CJ37: =payout($A37,N37,$C37:M37,CI37,$BY37:CI37) -> 6299.76 | CK37: =payout($A37,O37,$C37:N37,CJ37,$BY37:CJ37) -> 6299.76 | CL37: =payout($A37,P37,$C37:O37,CK37,$BY37:CK37) -> 6299.76 | CM37: =payout($A37,Q37,$C37:P37,CL37,$BY37:CL37) -> 6299.76 | CN37: =payout($A37,R37,$C37:Q37,CM37,$BY37:CM37) -> 6299.76 | CO37: =payout($A37,S37,$C37:R37,CN37,$BY37:CN37) -> 6299.76 | CP37: =payout($A37,T37,$C37:S37,CO37,$BY37:CO37) -> 6299.76 | CQ37: =payout($A37,U37,$C37:T37,CP37,$BY37:CP37) -> 6299.76 | CR37: =payout($A37,V37,$C37:U37,CQ37,$BY37:CQ37) -> 6299.76 | CS37: =payout($A37,W37,$C37:V37,CR37,$BY37:CR37) -> 6299.76 | CT37: =payout($A37,X37,$C37:W37,CS37,$BY37:CS37) -> 6299.76 | CU37: =payout($A37,Y37,$C37:X37,CT37,$BY37:CT37) -> 6299.76 | CV37: =payout($A37,Z37,$C37:Y37,CU37,$BY37:CU37) -> 6299.76 | CW37: =payout($A37,AA37,$C37:Z37,CV37,$BY37:CV37) -> 6299.76 | CX37: =payout($A37,AB37,$C37:AA37,CW37,$BY37:CW37) -> 6299.76 | CY37: =payout($A37,AC37,$C37:AB37,CX37,$BY37:CX37) -> 6299.76 | CZ37: =payout($A37,AD37,$C37:AC37,CY37,$BY37:CY37) -> 6299.76 | DA37: =payout($A37,AE37,$C37:AD37,CZ37,$BY37:CZ37) -> 6299.76 | DB37: =payout($A37,AF37,$C37:AE37,DA37,$BY37:DA37) -> 6299.76 | DC37: =payout($A37,AG37,$C37:AF37,DB37,$BY37:DB37) -> 6299.76 | DD37: =payout($A37,AH37,$C37:AG37,DC37,$BY37:DC37) -> 6299.76 | DE37: =payout($A37,AI37,$C37:AH37,DD37,$BY37:DD37) -> 6299.76 | DF37: =payout($A37,AJ37,$C37:AI37,DE37,$BY37:DE37) -> 6299.76 | DG37: =payout($A37,AK37,$C37:AJ37,DF37,$BY37:DF37) -> 6299.76 | DH37: =payout($A37,AL37,$C37:AK37,DG37,$BY37:DG37) -> 6299.76 | DI37: =payout($A37,AM37,$C37:AL37,DH37,$BY37:DH37) -> 6299.76 | DJ37: =payout($A37,AN37,$C37:AM37,DI37,$BY37:DI37) -> 6299.76 | DK37: =payout($A37,AO37,$C37:AN37,DJ37,$BY37:DJ37) -> 6299.76 | DL37: =payout($A37,AP37,$C37:AO37,DK37,$BY37:DK37) -> 6299.76 | DM37: =payout($A37,AQ37,$C37:AP37,DL37,$BY37:DL37) -> 6299.76 | DN37: =payout($A37,AR37,$C37:AQ37,DM37,$BY37:DM37) -> 16299.76 | DO37: =payout($A37,AS37,$C37:AR37,DN37,$BY37:DN37) -> 0 | DP37: =payout($A37,AT37,$C37:AS37,DO37,$BY37:DO37) -> 0 | DQ37: =payout($A37,AU37,$C37:AT37,DP37,$BY37:DP37) -> 0 | DR37: =payout($A37,AV37,$C37:AU37,DQ37,$BY37:DQ37) -> 0 | DS37: =payout($A37,AW37,$C37:AV37,DR37,$BY37:DR37) -> 0 | DT37: =payout($A37,AX37,$C37:AW37,DS37,$BY37:DS37) -> 0 | DU37: =payout($A37,AY37,$C37:AX37,DT37,$BY37:DT37) -> 0 | DV37: =payout($A37,AZ37,$C37:AY37,DU37,$BY37:DU37) -> 0 | DW37: =payout($A37,BA37,$C37:AZ37,DV37,$BY37:DV37) -> 0 | DX37: =payout($A37,BB37,$C37:BA37,DW37,$BY37:DW37) -> 0 | DY37: =payout($A37,BC37,$C37:BB37,DX37,$BY37:DX37) -> 0 | DZ37: =payout($A37,BD37,$C37:BC37,DY37,$BY37:DY37) -> 0 | EA37: =payout($A37,BE37,$C37:BD37,DZ37,$BY37:DZ37) -> 0 | EB37: =payout($A37,BF37,$C37:BE37,EA37,$BY37:EA37) -> 0 | EC37: =payout($A37,BG37,$C37:BF37,EB37,$BY37:EB37) -> 0 | ED37: =payout($A37,BH37,$C37:BG37,EC37,$BY37:EC37) -> 0 | EE37: =payout($A37,BI37,$C37:BH37,ED37,$BY37:ED37) -> 0 | EF37: =payout($A37,BJ37,$C37:BI37,EE37,$BY37:EE37) -> 0 | EG37: =payout($A37,BK37,$C37:BJ37,EF37,$BY37:EF37) -> 0 | EH37: =payout($A37,BL37,$C37:BK37,EG37,$BY37:EG37) -> 0 | EI37: =payout($A37,BM37,$C37:BL37,EH37,$BY37:EH37) -> 0 | EJ37: =payout($A37,BN37,$C37:BM37,EI37,$BY37:EI37) -> 0 | EK37: =payout($A37,BO37,$C37:BN37,EJ37,$BY37:EJ37) -> 0 | EL37: =payout($A37,BP37,$C37:BO37,EK37,$BY37:EK37) -> 0 | EM37: =payout($A37,BQ37,$C37:BP37,EL37,$BY37:EL37) -> 0 | EN37: =payout($A37,BR37,$C37:BQ37,EM37,$BY37:EM37) -> 0 | EO37: =payout($A37,BS37,$C37:BR37,EN37,$BY37:EN37) -> 0 | EP37: =payout($A37,BT37,$C37:BS37,EO37,$BY37:EO37) -> 0 | EQ37: =payout($A37,BU37,$C37:BT37,EP37,$BY37:EP37) -> 0
A38: =get_bond_grade($A$16:A37,$BX$5,$BY$5,$BZ$5) -> AA | B38: 23 | C38: 1 | D38: =IF(C1041=10000,0,default_model($A38,D$13,$B38,D$14)) -> 1 | E38: 1 | F38: 1 | G38: 1 | H38: 1 | I38: 1 | J38: 1 | K38: 1 | L38: 1 | M38: 1 | N38: 1 | O38: 1 | P38: 1 | Q38: 1 | R38: 1 | S38: 1 | T38: 1 | U38: 1 | V38: 1 | W38: 1 | X38: 1 | Y38: 1 | Z38: 1 | AA38: 1 | AB38: 1 | AC38: 1 | AD38: 1 | AE38: 0 | AF38: 0 | AG38: 0 | AH38: 0 | AI38: 0 | AJ38: =IF(AI1041=10000,0,default_model($A38,AJ$13,$B38,AJ$14)) -> 0 | AK38: 0 | AL38: 0 | AM38: 0 | AN38: 0 | AO38: 0 | AP38: 0 | AQ38: 0 | AR38: 0 | AS38: 0 | AT38: 0 | AU38: 0 | AV38: 0 | AW38: 0 | AX38: 0 | AY38: 0 | AZ38: 0 | BA38: 0 | BB38: 0 | BC38: 0 | BD38: 0 | BE38: 0 | BF38: 0 | BG38: 0 | BH38: 0 | BI38: 0 | BJ38: 0 | BK38: 0 | BL38: 0 | BM38: 0 | BN38: 0 | BO38: 0 | BP38: =IF(BO1041=10000,0,default_model($A38,BP$13,$B38,BP$14)) -> 0 | BQ38: 0 | BR38: 0 | BS38: 0 | BT38: 0 | BU38: 0 | BW38: AA | BX38: 23 | BY38: -10000 | BZ38: =payout($A38,D38,$C38:C38,BY38,$BY38:BY38) -> 7921.03 | CA38: =payout($A38,E38,$C38:D38,BZ38,$BY38:BZ38) -> 7921.03 | CB38: =payout($A38,F38,$C38:E38,CA38,$BY38:CA38) -> 7921.03 | CC38: =payout($A38,G38,$C38:F38,CB38,$BY38:CB38) -> 7921.03 | CD38: =payout($A38,H38,$C38:G38,CC38,$BY38:CC38) -> 7921.03 | CE38: =payout($A38,I38,$C38:H38,CD38,$BY38:CD38) -> 7921.03 | CF38: =payout($A38,J38,$C38:I38,CE38,$BY38:CE38) -> 7921.03 | CG38: =payout($A38,K38,$C38:J38,CF38,$BY38:CF38) -> 7921.03 | CH38: =payout($A38,L38,$C38:K38,CG38,$BY38:CG38) -> 7921.03 | CI38: =payout($A38,M38,$C38:L38,CH38,$BY38:CH38) -> 7921.03 | CJ38: =payout($A38,N38,$C38:M38,CI38,$BY38:CI38) -> 7921.03 | CK38: =payout($A38,O38,$C38:N38,CJ38,$BY38:CJ38) -> 7921.03 | CL38: =payout($A38,P38,$C38:O38,CK38,$BY38:CK38) -> 7921.03 | CM38: =payout($A38,Q38,$C38:P38,CL38,$BY38:CL38) -> 7921.03 | CN38: =payout($A38,R38,$C38:Q38,CM38,$BY38:CM38) -> 7921.03 | CO38: =payout($A38,S38,$C38:R38,CN38,$BY38:CN38) -> 7921.03 | CP38: =payout($A38,T38,$C38:S38,CO38,$BY38:CO38) -> 7921.03 | CQ38: =payout($A38,U38,$C38:T38,CP38,$BY38:CP38) -> 7921.03 | CR38: =payout($A38,V38,$C38:U38,CQ38,$BY38:CQ38) -> 7921.03 | CS38: =payout($A38,W38,$C38:V38,CR38,$BY38:CR38) -> 7921.03 | CT38: =payout($A38,X38,$C38:W38,CS38,$BY38:CS38) -> 7921.03 | CU38: =payout($A38,Y38,$C38:X38,CT38,$BY38:CT38) -> 7921.03 | CV38: =payout($A38,Z38,$C38:Y38,CU38,$BY38:CU38) -> 7921.03 | CW38: =payout($A38,AA38,$C38:Z38,CV38,$BY38:CV38) -> 7921.03 | CX38: =payout($A38,AB38,$C38:AA38,CW38,$BY38:CW38) -> 7921.03 | CY38: =payout($A38,AC38,$C38:AB38,CX38,$BY38:CX38) -> 7921.03 | CZ38: =payout($A38,AD38,$C38:AC38,CY38,$BY38:CY38) -> 7921.03 | DA38: =payout($A38,AE38,$C38:AD38,CZ38,$BY38:CZ38) -> 7921.03 | DB38: =payout($A38,AF38,$C38:AE38,DA38,$BY38:DA38) -> 7921.03 | DC38: =payout($A38,AG38,$C38:AF38,DB38,$BY38:DB38) -> 7921.03 | DD38: =payout($A38,AH38,$C38:AG38,DC38,$BY38:DC38) -> 7921.03 | DE38: =payout($A38,AI38,$C38:AH38,DD38,$BY38:DD38) -> 7921.03 | DF38: =payout($A38,AJ38,$C38:AI38,DE38,$BY38:DE38) -> 7921.03 | DG38: =payout($A38,AK38,$C38:AJ38,DF38,$BY38:DF38) -> 7921.03 | DH38: =payout($A38,AL38,$C38:AK38,DG38,$BY38:DG38) -> 7921.03 | DI38: =payout($A38,AM38,$C38:AL38,DH38,$BY38:DH38) -> 7921.03 | DJ38: =payout($A38,AN38,$C38:AM38,DI38,$BY38:DI38) -> 7921.03 | DK38: =payout($A38,AO38,$C38:AN38,DJ38,$BY38:DJ38) -> 7921.03 | DL38: =payout($A38,AP38,$C38:AO38,DK38,$BY38:DK38) -> 7921.03 | DM38: =payout($A38,AQ38,$C38:AP38,DL38,$BY38:DL38) -> 7921.03 | DN38: =payout($A38,AR38,$C38:AQ38,DM38,$BY38:DM38) -> 17921.03 | DO38: =payout($A38,AS38,$C38:AR38,DN38,$BY38:DN38) -> 0 | DP38: =payout($A38,AT38,$C38:AS38,DO38,$BY38:DO38) -> 0 | DQ38: =payout($A38,AU38,$C38:AT38,DP38,$BY38:DP38) -> 0 | DR38: =payout($A38,AV38,$C38:AU38,DQ38,$BY38:DQ38) -> 0 | DS38: =payout($A38,AW38,$C38:AV38,DR38,$BY38:DR38) -> 0 | DT38: =payout($A38,AX38,$C38:AW38,DS38,$BY38:DS38) -> 0 | DU38: =payout($A38,AY38,$C38:AX38,DT38,$BY38:DT38) -> 0 | DV38: =payout($A38,AZ38,$C38:AY38,DU38,$BY38:DU38) -> 0 | DW38: =payout($A38,BA38,$C38:AZ38,DV38,$BY38:DV38) -> 0 | DX38: =payout($A38,BB38,$C38:BA38,DW38,$BY38:DW38) -> 0 | DY38: =payout($A38,BC38,$C38:BB38,DX38,$BY38:DX38) -> 0 | DZ38: =payout($A38,BD38,$C38:BC38,DY38,$BY38:DY38) -> 0 | EA38: =payout($A38,BE38,$C38:BD38,DZ38,$BY38:DZ38) -> 0 | EB38: =payout($A38,BF38,$C38:BE38,EA38,$BY38:EA38) -> 0 | EC38: =payout($A38,BG38,$C38:BF38,EB38,$BY38:EB38) -> 0 | ED38: =payout($A38,BH38,$C38:BG38,EC38,$BY38:EC38) -> 0 | EE38: =payout($A38,BI38,$C38:BH38,ED38,$BY38:ED38) -> 0 | EF38: =payout($A38,BJ38,$C38:BI38,EE38,$BY38:EE38) -> 0 | EG38: =payout($A38,BK38,$C38:BJ38,EF38,$BY38:EF38) -> 0 | EH38: =payout($A38,BL38,$C38:BK38,EG38,$BY38:EG38) -> 0 | EI38: =payout($A38,BM38,$C38:BL38,EH38,$BY38:EH38) -> 0 | EJ38: =payout($A38,BN38,$C38:BM38,EI38,$BY38:EI38) -> 0 | EK38: =payout($A38,BO38,$C38:BN38,EJ38,$BY38:EJ38) -> 0 | EL38: =payout($A38,BP38,$C38:BO38,EK38,$BY38:EK38) -> 0 | EM38: =payout($A38,BQ38,$C38:BP38,EL38,$BY38:EL38) -> 0 | EN38: =payout($A38,BR38,$C38:BQ38,EM38,$BY38:EM38) -> 0 | EO38: =payout($A38,BS38,$C38:BR38,EN38,$BY38:EN38) -> 0 | EP38: =payout($A38,BT38,$C38:BS38,EO38,$BY38:EO38) -> 0 | EQ38: =payout($A38,BU38,$C38:BT38,EP38,$BY38:EP38) -> 0
A39: =get_bond_grade($A$16:A38,$BX$5,$BY$5,$BZ$5) -> AAA | B39: 24 | C39: 1 | D39: =IF(C1042=10000,0,default_model($A39,D$13,$B39,D$14)) -> 1 | E39: 1 | F39: 1 | G39: 1 | H39: 1 | I39: 1 | J39: 1 | K39: 1 | L39: 1 | M39: 1 | N39: 1 | O39: 1 | P39: 1 | Q39: 1 | R39: 1 | S39: 1 | T39: 1 | U39: 1 | V39: 1 | W39: 1 | X39: 1 | Y39: 1 | Z39: 1 | AA39: 1 | AB39: 1 | AC39: 1 | AD39: 1 | AE39: 0 | AF39: 0 | AG39: 0 | AH39: 0 | AI39: 0 | AJ39: =IF(AI1042=10000,0,default_model($A39,AJ$13,$B39,AJ$14)) -> 0 | AK39: 0 | AL39: 0 | AM39: 0 | AN39: 0 | AO39: 0 | AP39: 0 | AQ39: 0 | AR39: 0 | AS39: 0 | AT39: 0 | AU39: 0 | AV39: 0 | AW39: 0 | AX39: 0 | AY39: 0 | AZ39: 0 | BA39: 0 | BB39: 0 | BC39: 0 | BD39: 0 | BE39: 0 | BF39: 0 | BG39: 0 | BH39: 0 | BI39: 0 | BJ39: 0 | BK39: 0 | BL39: 0 | BM39: 0 | BN39: 0 | BO39: 0 | BP39: =IF(BO1042=10000,0,default_model($A39,BP$13,$B39,BP$14)) -> 0 | BQ39: 0 | BR39: 0 | BS39: 0 | BT39: 0 | BU39: 0 | BW39: AAA | BX39: 24 | BY39: -10000 | BZ39: =payout($A39,D39,$C39:C39,BY39,$BY39:BY39) -> 6299.76 | CA39: =payout($A39,E39,$C39:D39,BZ39,$BY39:BZ39) -> 6299.76 | CB39: =payout($A39,F39,$C39:E39,CA39,$BY39:CA39) -> 6299.76 | CC39: =payout($A39,G39,$C39:F39,CB39,$BY39:CB39) -> 6299.76 | CD39: =payout($A39,H39,$C39:G39,CC39,$BY39:CC39) -> 6299.76 | CE39: =payout($A39,I39,$C39:H39,CD39,$BY39:CD39) -> 6299.76 | CF39: =payout($A39,J39,$C39:I39,CE39,$BY39:CE39) -> 6299.76 | CG39: =payout($A39,K39,$C39:J39,CF39,$BY39:CF39) -> 6299.76 | CH39: =payout($A39,L39,$C39:K39,CG39,$BY39:CG39) -> 6299.76 | CI39: =payout($A39,M39,$C39:L39,CH39,$BY39:CH39) -> 6299.76 | CJ39: =payout($A39,N39,$C39:M39,CI39,$BY39:CI39) -> 6299.76 | CK39: =payout($A39,O39,$C39:N39,CJ39,$BY39:CJ39) -> 6299.76 | CL39: =payout($A39,P39,$C39:O39,CK39,$BY39:CK39) -> 6299.76 | CM39: =payout($A39,Q39,$C39:P39,CL39,$BY39:CL39) -> 6299.76 | CN39: =payout($A39,R39,$C39:Q39,CM39,$BY39:CM39) -> 6299.76 | CO39: =payout($A39,S39,$C39:R39,CN39,$BY39:CN39) -> 6299.76 | CP39: =payout($A39,T39,$C39:S39,CO39,$BY39:CO39) -> 6299.76 | CQ39: =payout($A39,U39,$C39:T39,CP39,$BY39:CP39) -> 6299.76 | CR39: =payout($A39,V39,$C39:U39,CQ39,$BY39:CQ39) -> 6299.76 | CS39: =payout($A39,W39,$C39:V39,CR39,$BY39:CR39) -> 6299.76 | CT39: =payout($A39,X39,$C39:W39,CS39,$BY39:CS39) -> 6299.76 | CU39: =payout($A39,Y39,$C39:X39,CT39,$BY39:CT39) -> 6299.76 | CV39: =payout($A39,Z39,$C39:Y39,CU39,$BY39:CU39) -> 6299.76 | CW39: =payout($A39,AA39,$C39:Z39,CV39,$BY39:CV39) -> 6299.76 | CX39: =payout($A39,AB39,$C39:AA39,CW39,$BY39:CW39) -> 6299.76 | CY39: =payout($A39,AC39,$C39:AB39,CX39,$BY39:CX39) -> 6299.76 | CZ39: =payout($A39,AD39,$C39:AC39,CY39,$BY39:CY39) -> 6299.76 | DA39: =payout($A39,AE39,$C39:AD39,CZ39,$BY39:CZ39) -> 6299.76 | DB39: =payout($A39,AF39,$C39:AE39,DA39,$BY39:DA39) -> 6299.76 | DC39: =payout($A39,AG39,$C39:AF39,DB39,$BY39:DB39) -> 6299.76 | DD39: =payout($A39,AH39,$C39:AG39,DC39,$BY39:DC39) -> 6299.76 | DE39: =payout($A39,AI39,$C39:AH39,DD39,$BY39:DD39) -> 6299.76 | DF39: =payout($A39,AJ39,$C39:AI39,DE39,$BY39:DE39) -> 6299.76 | DG39: =payout($A39,AK39,$C39:AJ39,DF39,$BY39:DF39) -> 6299.76 | DH39: =payout($A39,AL39,$C39:AK39,DG39,$BY39:DG39) -> 6299.76 | DI39: =payout($A39,AM39,$C39:AL39,DH39,$BY39:DH39) -> 6299.76 | DJ39: =payout($A39,AN39,$C39:AM39,DI39,$BY39:DI39) -> 6299.76 | DK39: =payout($A39,AO39,$C39:AN39,DJ39,$BY39:DJ39) -> 6299.76 | DL39: =payout($A39,AP39,$C39:AO39,DK39,$BY39:DK39) -> 6299.76 | DM39: =payout($A39,AQ39,$C39:AP39,DL39,$BY39:DL39) -> 6299.76 | DN39: =payout($A39,AR39,$C39:AQ39,DM39,$BY39:DM39) -> 16299.76 | DO39: =payout($A39,AS39,$C39:AR39,DN39,$BY39:DN39) -> 0 | DP39: =payout($A39,AT39,$C39:AS39,DO39,$BY39:DO39) -> 0 | DQ39: =payout($A39,AU39,$C39:AT39,DP39,$BY39:DP39) -> 0 | DR39: =payout($A39,AV39,$C39:AU39,DQ39,$BY39:DQ39) -> 0 | DS39: =payout($A39,AW39,$C39:AV39,DR39,$BY39:DR39) -> 0 | DT39: =payout($A39,AX39,$C39:AW39,DS39,$BY39:DS39) -> 0 | DU39: =payout($A39,AY39,$C39:AX39,DT39,$BY39:DT39) -> 0 | DV39: =payout($A39,AZ39,$C39:AY39,DU39,$BY39:DU39) -> 0 | DW39: =payout($A39,BA39,$C39:AZ39,DV39,$BY39:DV39) -> 0 | DX39: =payout($A39,BB39,$C39:BA39,DW39,$BY39:DW39) -> 0 | DY39: =payout($A39,BC39,$C39:BB39,DX39,$BY39:DX39) -> 0 | DZ39: =payout($A39,BD39,$C39:BC39,DY39,$BY39:DY39) -> 0 | EA39: =payout($A39,BE39,$C39:BD39,DZ39,$BY39:DZ39) -> 0 | EB39: =payout($A39,BF39,$C39:BE39,EA39,$BY39:EA39) -> 0 | EC39: =payout($A39,BG39,$C39:BF39,EB39,$BY39:EB39) -> 0 | ED39: =payout($A39,BH39,$C39:BG39,EC39,$BY39:EC39) -> 0 | EE39: =payout($A39,BI39,$C39:BH39,ED39,$BY39:ED39) -> 0 | EF39: =payout($A39,BJ39,$C39:BI39,EE39,$BY39:EE39) -> 0 | EG39: =payout($A39,BK39,$C39:BJ39,EF39,$BY39:EF39) -> 0 | EH39: =payout($A39,BL39,$C39:BK39,EG39,$BY39:EG39) -> 0 | EI39: =payout($A39,BM39,$C39:BL39,EH39,$BY39:EH39) -> 0 | EJ39: =payout($A39,BN39,$C39:BM39,EI39,$BY39:EI39) -> 0 | EK39: =payout($A39,BO39,$C39:BN39,EJ39,$BY39:EJ39) -> 0 | EL39: =payout($A39,BP39,$C39:BO39,EK39,$BY39:EK39) -> 0 | EM39: =payout($A39,BQ39,$C39:BP39,EL39,$BY39:EL39) -> 0 | EN39: =payout($A39,BR39,$C39:BQ39,EM39,$BY39:EM39) -> 0 | EO39: =payout($A39,BS39,$C39:BR39,EN39,$BY39:EN39) -> 0 | EP39: =payout($A39,BT39,$C39:BS39,EO39,$BY39:EO39) -> 0 | EQ39: =payout($A39,BU39,$C39:BT39,EP39,$BY39:EP39) -> 0
A40: =get_bond_grade($A$16:A39,$BX$5,$BY$5,$BZ$5) -> AA | B40: 25 | C40: 1 | D40: =IF(C1043=10000,0,default_model($A40,D$13,$B40,D$14)) -> 1 | E40: 1 | F40: 1 | G40: 1 | H40: 1 | I40: 1 | J40: 1 | K40: 1 | L40: 1 | M40: 1 | N40: 1 | O40: 1 | P40: 1 | Q40: 1 | R40: 1 | S40: 1 | T40: 1 | U40: 1 | V40: 1 | W40: 1 | X40: 1 | Y40: 1 | Z40: 1 | AA40: 1 | AB40: 1 | AC40: 1 | AD40: 1 | AE40: 0 | AF40: 0 | AG40: 0 | AH40: 0 | AI40: 0 | AJ40: =IF(AI1043=10000,0,default_model($A40,AJ$13,$B40,AJ$14)) -> 0 | AK40: 0 | AL40: 0 | AM40: 0 | AN40: 0 | AO40: 0 | AP40: 0 | AQ40: 0 | AR40: 0 | AS40: 0 | AT40: 0 | AU40: 0 | AV40: 0 | AW40: 0 | AX40: 0 | AY40: 0 | AZ40: 0 | BA40: 0 | BB40: 0 | BC40: 0 | BD40: 0 | BE40: 0 | BF40: 0 | BG40: 0 | BH40: 0 | BI40: 0 | BJ40: 0 | BK40: 0 | BL40: 0 | BM40: 0 | BN40: 0 | BO40: 0 | BP40: =IF(BO1043=10000,0,default_model($A40,BP$13,$B40,BP$14)) -> 0 | BQ40: 0 | BR40: 0 | BS40: 0 | BT40: 0 | BU40: 0 | BW40: AA | BX40: 25 | BY40: -10000 | BZ40: =payout($A40,D40,$C40:C40,BY40,$BY40:BY40) -> 7921.03 | CA40: =payout($A40,E40,$C40:D40,BZ40,$BY40:BZ40) -> 7921.03 | CB40: =payout($A40,F40,$C40:E40,CA40,$BY40:CA40) -> 7921.03 | CC40: =payout($A40,G40,$C40:F40,CB40,$BY40:CB40) -> 7921.03 | CD40: =payout($A40,H40,$C40:G40,CC40,$BY40:CC40) -> 7921.03 | CE40: =payout($A40,I40,$C40:H40,CD40,$BY40:CD40) -> 7921.03 | CF40: =payout($A40,J40,$C40:I40,CE40,$BY40:CE40) -> 7921.03 | CG40: =payout($A40,K40,$C40:J40,CF40,$BY40:CF40) -> 7921.03 | CH40: =payout($A40,L40,$C40:K40,CG40,$BY40:CG40) -> 7921.03 | CI40: =payout($A40,M40,$C40:L40,CH40,$BY40:CH40) -> 7921.03 | CJ40: =payout($A40,N40,$C40:M40,CI40,$BY40:CI40) -> 7921.03 | CK40: =payout($A40,O40,$C40:N40,CJ40,$BY40:CJ40) -> 7921.03 | CL40: =payout($A40,P40,$C40:O40,CK40,$BY40:CK40) -> 7921.03 | CM40: =payout($A40,Q40,$C40:P40,CL40,$BY40:CL40) -> 7921.03 | CN40: =payout($A40,R40,$C40:Q40,CM40,$BY40:CM40) -> 7921.03 | CO40: =payout($A40,S40,$C40:R40,CN40,$BY40:CN40) -> 7921.03 | CP40: =payout($A40,T40,$C40:S40,CO40,$BY40:CO40) -> 7921.03 | CQ40: =payout($A40,U40,$C40:T40,CP40,$BY40:CP40) -> 7921.03 | CR40: =payout($A40,V40,$C40:U40,CQ40,$BY40:CQ40) -> 7921.03 | CS40: =payout($A40,W40,$C40:V40,CR40,$BY40:CR40) -> 7921.03 | CT40: =payout($A40,X40,$C40:W40,CS40,$BY40:CS40) -> 7921.03 | CU40: =payout($A40,Y40,$C40:X40,CT40,$BY40:CT40) -> 7921.03 | CV40: =payout($A40,Z40,$C40:Y40,CU40,$BY40:CU40) -> 7921.03 | CW40: =payout($A40,AA40,$C40:Z40,CV40,$BY40:CV40) -> 7921.03 | CX40: =payout($A40,AB40,$C40:AA40,CW40,$BY40:CW40) -> 7921.03 | CY40: =payout($A40,AC40,$C40:AB40,CX40,$BY40:CX40) -> 7921.03 | CZ40: =payout($A40,AD40,$C40:AC40,CY40,$BY40:CY40) -> 7921.03 | DA40: =payout($A40,AE40,$C40:AD40,CZ40,$BY40:CZ40) -> 7921.03 | DB40: =payout($A40,AF40,$C40:AE40,DA40,$BY40:DA40) -> 7921.03 | DC40: =payout($A40,AG40,$C40:AF40,DB40,$BY40:DB40) -> 7921.03 | DD40: =payout($A40,AH40,$C40:AG40,DC40,$BY40:DC40) -> 7921.03 | DE40: =payout($A40,AI40,$C40:AH40,DD40,$BY40:DD40) -> 7921.03 | DF40: =payout($A40,AJ40,$C40:AI40,DE40,$BY40:DE40) -> 7921.03 | DG40: =payout($A40,AK40,$C40:AJ40,DF40,$BY40:DF40) -> 7921.03 | DH40: =payout($A40,AL40,$C40:AK40,DG40,$BY40:DG40) -> 7921.03 | DI40: =payout($A40,AM40,$C40:AL40,DH40,$BY40:DH40) -> 7921.03 | DJ40: =payout($A40,AN40,$C40:AM40,DI40,$BY40:DI40) -> 7921.03 | DK40: =payout($A40,AO40,$C40:AN40,DJ40,$BY40:DJ40) -> 7921.03 | DL40: =payout($A40,AP40,$C40:AO40,DK40,$BY40:DK40) -> 7921.03 | DM40: =payout($A40,AQ40,$C40:AP40,DL40,$BY40:DL40) -> 7921.03 | DN40: =payout($A40,AR40,$C40:AQ40,DM40,$BY40:DM40) -> 17921.03 | DO40: =payout($A40,AS40,$C40:AR40,DN40,$BY40:DN40) -> 0 | DP40: =payout($A40,AT40,$C40:AS40,DO40,$BY40:DO40) -> 0 | DQ40: =payout($A40,AU40,$C40:AT40,DP40,$BY40:DP40) -> 0 | DR40: =payout($A40,AV40,$C40:AU40,DQ40,$BY40:DQ40) -> 0 | DS40: =payout($A40,AW40,$C40:AV40,DR40,$BY40:DR40) -> 0 | DT40: =payout($A40,AX40,$C40:AW40,DS40,$BY40:DS40) -> 0 | DU40: =payout($A40,AY40,$C40:AX40,DT40,$BY40:DT40) -> 0 | DV40: =payout($A40,AZ40,$C40:AY40,DU40,$BY40:DU40) -> 0 | DW40: =payout($A40,BA40,$C40:AZ40,DV40,$BY40:DV40) -> 0 | DX40: =payout($A40,BB40,$C40:BA40,DW40,$BY40:DW40) -> 0 | DY40: =payout($A40,BC40,$C40:BB40,DX40,$BY40:DX40) -> 0 | DZ40: =payout($A40,BD40,$C40:BC40,DY40,$BY40:DY40) -> 0 | EA40: =payout($A40,BE40,$C40:BD40,DZ40,$BY40:DZ40) -> 0 | EB40: =payout($A40,BF40,$C40:BE40,EA40,$BY40:EA40) -> 0 | EC40: =payout($A40,BG40,$C40:BF40,EB40,$BY40:EB40) -> 0 | ED40: =payout($A40,BH40,$C40:BG40,EC40,$BY40:EC40) -> 0 | EE40: =payout($A40,BI40,$C40:BH40,ED40,$BY40:ED40) -> 0 | EF40: =payout($A40,BJ40,$C40:BI40,EE40,$BY40:EE40) -> 0 | EG40: =payout($A40,BK40,$C40:BJ40,EF40,$BY40:EF40) -> 0 | EH40: =payout($A40,BL40,$C40:BK40,EG40,$BY40:EG40) -> 0 | EI40: =payout($A40,BM40,$C40:BL40,EH40,$BY40:EH40) -> 0 | EJ40: =payout($A40,BN40,$C40:BM40,EI40,$BY40:EI40) -> 0 | EK40: =payout($A40,BO40,$C40:BN40,EJ40,$BY40:EJ40) -> 0 | EL40: =payout($A40,BP40,$C40:BO40,EK40,$BY40:EK40) -> 0 | EM40: =payout($A40,BQ40,$C40:BP40,EL40,$BY40:EL40) -> 0 | EN40: =payout($A40,BR40,$C40:BQ40,EM40,$BY40:EM40) -> 0 | EO40: =payout($A40,BS40,$C40:BR40,EN40,$BY40:EN40) -> 0 | EP40: =payout($A40,BT40,$C40:BS40,EO40,$BY40:EO40) -> 0 | EQ40: =payout($A40,BU40,$C40:BT40,EP40,$BY40:EP40) -> 0
A41: =get_bond_grade($A$16:A40,$BX$5,$BY$5,$BZ$5) -> A | B41: 26 | C41: 1 | D41: =IF(C1044=10000,0,default_model($A41,D$13,$B41,D$14)) -> 1 | E41: 1 | F41: 1 | G41: 1 | H41: 1 | I41: 1 | J41: 1 | K41: 1 | L41: 1 | M41: 1 | N41: 1 | O41: 1 | P41: 1 | Q41: 1 | R41: 1 | S41: 1 | T41: 1 | U41: 1 | V41: 1 | W41: 1 | X41: 1 | Y41: 1 | Z41: 1 | AA41: 1 | AB41: 1 | AC41: 1 | AD41: 1 | AE41: 0 | AF41: 0 | AG41: 0 | AH41: 0 | AI41: 0 | AJ41: =IF(AI1044=10000,0,default_model($A41,AJ$13,$B41,AJ$14)) -> 0 | AK41: 0 | AL41: 0 | AM41: 0 | AN41: 0 | AO41: 0 | AP41: 0 | AQ41: 0 | AR41: 0 | AS41: 0 | AT41: 0 | AU41: 0 | AV41: 0 | AW41: 0 | AX41: 0 | AY41: 0 | AZ41: 0 | BA41: 0 | BB41: 0 | BC41: 0 | BD41: 0 | BE41: 0 | BF41: 0 | BG41: 0 | BH41: 0 | BI41: 0 | BJ41: 0 | BK41: 0 | BL41: 0 | BM41: 0 | BN41: 0 | BO41: 0 | BP41: =IF(BO1044=10000,0,default_model($A41,BP$13,$B41,BP$14)) -> 0 | BQ41: 0 | BR41: 0 | BS41: 0 | BT41: 0 | BU41: 0 | BW41: A | BX41: 26 | BY41: -10000 | BZ41: =payout($A41,D41,$C41:C41,BY41,$BY41:BY41) -> 12478.46 | CA41: =payout($A41,E41,$C41:D41,BZ41,$BY41:BZ41) -> 12478.46 | CB41: =payout($A41,F41,$C41:E41,CA41,$BY41:CA41) -> 12478.46 | CC41: =payout($A41,G41,$C41:F41,CB41,$BY41:CB41) -> 12478.46 | CD41: =payout($A41,H41,$C41:G41,CC41,$BY41:CC41) -> 12478.46 | CE41: =payout($A41,I41,$C41:H41,CD41,$BY41:CD41) -> 12478.46 | CF41: =payout($A41,J41,$C41:I41,CE41,$BY41:CE41) -> 12478.46 | CG41: =payout($A41,K41,$C41:J41,CF41,$BY41:CF41) -> 12478.46 | CH41: =payout($A41,L41,$C41:K41,CG41,$BY41:CG41) -> 12478.46 | CI41: =payout($A41,M41,$C41:L41,CH41,$BY41:CH41) -> 12478.46 | CJ41: =payout($A41,N41,$C41:M41,CI41,$BY41:CI41) -> 12478.46 | CK41: =payout($A41,O41,$C41:N41,CJ41,$BY41:CJ41) -> 12478.46 | CL41: =payout($A41,P41,$C41:O41,CK41,$BY41:CK41) -> 12478.46 | CM41: =payout($A41,Q41,$C41:P41,CL41,$BY41:CL41) -> 12478.46 | CN41: =payout($A41,R41,$C41:Q41,CM41,$BY41:CM41) -> 12478.46 | CO41: =payout($A41,S41,$C41:R41,CN41,$BY41:CN41) -> 12478.46 | CP41: =payout($A41,T41,$C41:S41,CO41,$BY41:CO41) -> 12478.46 | CQ41: =payout($A41,U41,$C41:T41,CP41,$BY41:CP41) -> 12478.46 | CR41: =payout($A41,V41,$C41:U41,CQ41,$BY41:CQ41) -> 12478.46 | CS41: =payout($A41,W41,$C41:V41,CR41,$BY41:CR41) -> 12478.46 | CT41: =payout($A41,X41,$C41:W41,CS41,$BY41:CS41) -> 12478.46 | CU41: =payout($A41,Y41,$C41:X41,CT41,$BY41:CT41) -> 12478.46 | CV41: =payout($A41,Z41,$C41:Y41,CU41,$BY41:CU41) -> 12478.46 | CW41: =payout($A41,AA41,$C41:Z41,CV41,$BY41:CV41) -> 12478.46 | CX41: =payout($A41,AB41,$C41:AA41,CW41,$BY41:CW41) -> 12478.46 | CY41: =payout($A41,AC41,$C41:AB41,CX41,$BY41:CX41) -> 12478.46 | CZ41: =payout($A41,AD41,$C41:AC41,CY41,$BY41:CY41) -> 12478.46 | DA41: =payout($A41,AE41,$C41:AD41,CZ41,$BY41:CZ41) -> 12478.46 | DB41: =payout($A41,AF41,$C41:AE41,DA41,$BY41:DA41) -> 12478.46 | DC41: =payout($A41,AG41,$C41:AF41,DB41,$BY41:DB41) -> 12478.46 | DD41: =payout($A41,AH41,$C41:AG41,DC41,$BY41:DC41) -> 12478.46 | DE41: =payout($A41,AI41,$C41:AH41,DD41,$BY41:DD41) -> 12478.46 | DF41: =payout($A41,AJ41,$C41:AI41,DE41,$BY41:DE41) -> 12478.46 | DG41: =payout($A41,AK41,$C41:AJ41,DF41,$BY41:DF41) -> 12478.46 | DH41: =payout($A41,AL41,$C41:AK41,DG41,$BY41:DG41) -> 12478.46 | DI41: =payout($A41,AM41,$C41:AL41,DH41,$BY41:DH41) -> 12478.46 | DJ41: =payout($A41,AN41,$C41:AM41,DI41,$BY41:DI41) -> 12478.46 | DK41: =payout($A41,AO41,$C41:AN41,DJ41,$BY41:DJ41) -> 12478.46 | DL41: =payout($A41,AP41,$C41:AO41,DK41,$BY41:DK41) -> 12478.46 | DM41: =payout($A41,AQ41,$C41:AP41,DL41,$BY41:DL41) -> 12478.46 | DN41: =payout($A41,AR41,$C41:AQ41,DM41,$BY41:DM41) -> 22478.46 | DO41: =payout($A41,AS41,$C41:AR41,DN41,$BY41:DN41) -> 0 | DP41: =payout($A41,AT41,$C41:AS41,DO41,$BY41:DO41) -> 0 | DQ41: =payout($A41,AU41,$C41:AT41,DP41,$BY41:DP41) -> 0 | DR41: =payout($A41,AV41,$C41:AU41,DQ41,$BY41:DQ41) -> 0 | DS41: =payout($A41,AW41,$C41:AV41,DR41,$BY41:DR41) -> 0 | DT41: =payout($A41,AX41,$C41:AW41,DS41,$BY41:DS41) -> 0 | DU41: =payout($A41,AY41,$C41:AX41,DT41,$BY41:DT41) -> 0 | DV41: =payout($A41,AZ41,$C41:AY41,DU41,$BY41:DU41) -> 0 | DW41: =payout($A41,BA41,$C41:AZ41,DV41,$BY41:DV41) -> 0 | DX41: =payout($A41,BB41,$C41:BA41,DW41,$BY41:DW41) -> 0 | DY41: =payout($A41,BC41,$C41:BB41,DX41,$BY41:DX41) -> 0 | DZ41: =payout($A41,BD41,$C41:BC41,DY41,$BY41:DY41) -> 0 | EA41: =payout($A41,BE41,$C41:BD41,DZ41,$BY41:DZ41) -> 0 | EB41: =payout($A41,BF41,$C41:BE41,EA41,$BY41:EA41) -> 0 | EC41: =payout($A41,BG41,$C41:BF41,EB41,$BY41:EB41) -> 0 | ED41: =payout($A41,BH41,$C41:BG41,EC41,$BY41:EC41) -> 0 | EE41: =payout($A41,BI41,$C41:BH41,ED41,$BY41:ED41) -> 0 | EF41: =payout($A41,BJ41,$C41:BI41,EE41,$BY41:EE41) -> 0 | EG41: =payout($A41,BK41,$C41:BJ41,EF41,$BY41:EF41) -> 0 | EH41: =payout($A41,BL41,$C41:BK41,EG41,$BY41:EG41) -> 0 | EI41: =payout($A41,BM41,$C41:BL41,EH41,$BY41:EH41) -> 0 | EJ41: =payout($A41,BN41,$C41:BM41,EI41,$BY41:EI41) -> 0 | EK41: =payout($A41,BO41,$C41:BN41,EJ41,$BY41:EJ41) -> 0 | EL41: =payout($A41,BP41,$C41:BO41,EK41,$BY41:EK41) -> 0 | EM41: =payout($A41,BQ41,$C41:BP41,EL41,$BY41:EL41) -> 0 | EN41: =payout($A41,BR41,$C41:BQ41,EM41,$BY41:EM41) -> 0 | EO41: =payout($A41,BS41,$C41:BR41,EN41,$BY41:EN41) -> 0 | EP41: =payout($A41,BT41,$C41:BS41,EO41,$BY41:EO41) -> 0 | EQ41: =payout($A41,BU41,$C41:BT41,EP41,$BY41:EP41) -> 0
A42: =get_bond_grade($A$16:A41,$BX$5,$BY$5,$BZ$5) -> AAA | B42: 27 | C42: 1 | D42: =IF(C1045=10000,0,default_model($A42,D$13,$B42,D$14)) -> 1 | E42: 1 | F42: 1 | G42: 1 | H42: 1 | I42: 1 | J42: 1 | K42: 1 | L42: 1 | M42: 1 | N42: 1 | O42: 1 | P42: 1 | Q42: 1 | R42: 1 | S42: 1 | T42: 1 | U42: 1 | V42: 1 | W42: 1 | X42: 1 | Y42: 1 | Z42: 1 | AA42: 1 | AB42: 1 | AC42: 1 | AD42: 1 | AE42: 0 | AF42: 0 | AG42: 0 | AH42: 0 | AI42: 0 | AJ42: =IF(AI1045=10000,0,default_model($A42,AJ$13,$B42,AJ$14)) -> 0 | AK42: 0 | AL42: 0 | AM42: 0 | AN42: 0 | AO42: 0 | AP42: 0 | AQ42: 0 | AR42: 0 | AS42: 0 | AT42: 0 | AU42: 0 | AV42: 0 | AW42: 0 | AX42: 0 | AY42: 0 | AZ42: 0 | BA42: 0 | BB42: 0 | BC42: 0 | BD42: 0 | BE42: 0 | BF42: 0 | BG42: 0 | BH42: 0 | BI42: 0 | BJ42: 0 | BK42: 0 | BL42: 0 | BM42: 0 | BN42: 0 | BO42: 0 | BP42: =IF(BO1045=10000,0,default_model($A42,BP$13,$B42,BP$14)) -> 0 | BQ42: 0 | BR42: 0 | BS42: 0 | BT42: 0 | BU42: 0 | BW42: AAA | BX42: 27 | BY42: -10000 | BZ42: =payout($A42,D42,$C42:C42,BY42,$BY42:BY42) -> 6299.76 | CA42: =payout($A42,E42,$C42:D42,BZ42,$BY42:BZ42) -> 6299.76 | CB42: =payout($A42,F42,$C42:E42,CA42,$BY42:CA42) -> 6299.76 | CC42: =payout($A42,G42,$C42:F42,CB42,$BY42:CB42) -> 6299.76 | CD42: =payout($A42,H42,$C42:G42,CC42,$BY42:CC42) -> 6299.76 | CE42: =payout($A42,I42,$C42:H42,CD42,$BY42:CD42) -> 6299.76 | CF42: =payout($A42,J42,$C42:I42,CE42,$BY42:CE42) -> 6299.76 | CG42: =payout($A42,K42,$C42:J42,CF42,$BY42:CF42) -> 6299.76 | CH42: =payout($A42,L42,$C42:K42,CG42,$BY42:CG42) -> 6299.76 | CI42: =payout($A42,M42,$C42:L42,CH42,$BY42:CH42) -> 6299.76 | CJ42: =payout($A42,N42,$C42:M42,CI42,$BY42:CI42) -> 6299.76 | CK42: =payout($A42,O42,$C42:N42,CJ42,$BY42:CJ42) -> 6299.76 | CL42: =payout($A42,P42,$C42:O42,CK42,$BY42:CK42) -> 6299.76 | CM42: =payout($A42,Q42,$C42:P42,CL42,$BY42:CL42) -> 6299.76 | CN42: =payout($A42,R42,$C42:Q42,CM42,$BY42:CM42) -> 6299.76 | CO42: =payout($A42,S42,$C42:R42,CN42,$BY42:CN42) -> 6299.76 | CP42: =payout($A42,T42,$C42:S42,CO42,$BY42:CO42) -> 6299.76 | CQ42: =payout($A42,U42,$C42:T42,CP42,$BY42:CP42) -> 6299.76 | CR42: =payout($A42,V42,$C42:U42,CQ42,$BY42:CQ42) -> 6299.76 | CS42: =payout($A42,W42,$C42:V42,CR42,$BY42:CR42) -> 6299.76 | CT42: =payout($A42,X42,$C42:W42,CS42,$BY42:CS42) -> 6299.76 | CU42: =payout($A42,Y42,$C42:X42,CT42,$BY42:CT42) -> 6299.76 | CV42: =payout($A42,Z42,$C42:Y42,CU42,$BY42:CU42) -> 6299.76 | CW42: =payout($A42,AA42,$C42:Z42,CV42,$BY42:CV42) -> 6299.76 | CX42: =payout($A42,AB42,$C42:AA42,CW42,$BY42:CW42) -> 6299.76 | CY42: =payout($A42,AC42,$C42:AB42,CX42,$BY42:CX42) -> 6299.76 | CZ42: =payout($A42,AD42,$C42:AC42,CY42,$BY42:CY42) -> 6299.76 | DA42: =payout($A42,AE42,$C42:AD42,CZ42,$BY42:CZ42) -> 6299.76 | DB42: =payout($A42,AF42,$C42:AE42,DA42,$BY42:DA42) -> 6299.76 | DC42: =payout($A42,AG42,$C42:AF42,DB42,$BY42:DB42) -> 6299.76 | DD42: =payout($A42,AH42,$C42:AG42,DC42,$BY42:DC42) -> 6299.76 | DE42: =payout($A42,AI42,$C42:AH42,DD42,$BY42:DD42) -> 6299.76 | DF42: =payout($A42,AJ42,$C42:AI42,DE42,$BY42:DE42) -> 6299.76 | DG42: =payout($A42,AK42,$C42:AJ42,DF42,$BY42:DF42) -> 6299.76 | DH42: =payout($A42,AL42,$C42:AK42,DG42,$BY42:DG42) -> 6299.76 | DI42: =payout($A42,AM42,$C42:AL42,DH42,$BY42:DH42) -> 6299.76 | DJ42: =payout($A42,AN42,$C42:AM42,DI42,$BY42:DI42) -> 6299.76 | DK42: =payout($A42,AO42,$C42:AN42,DJ42,$BY42:DJ42) -> 6299.76 | DL42: =payout($A42,AP42,$C42:AO42,DK42,$BY42:DK42) -> 6299.76 | DM42: =payout($A42,AQ42,$C42:AP42,DL42,$BY42:DL42) -> 6299.76 | DN42: =payout($A42,AR42,$C42:AQ42,DM42,$BY42:DM42) -> 16299.76 | DO42: =payout($A42,AS42,$C42:AR42,DN42,$BY42:DN42) -> 0 | DP42: =payout($A42,AT42,$C42:AS42,DO42,$BY42:DO42) -> 0 | DQ42: =payout($A42,AU42,$C42:AT42,DP42,$BY42:DP42) -> 0 | DR42: =payout($A42,AV42,$C42:AU42,DQ42,$BY42:DQ42) -> 0 | DS42: =payout($A42,AW42,$C42:AV42,DR42,$BY42:DR42) -> 0 | DT42: =payout($A42,AX42,$C42:AW42,DS42,$BY42:DS42) -> 0 | DU42: =payout($A42,AY42,$C42:AX42,DT42,$BY42:DT42) -> 0 | DV42: =payout($A42,AZ42,$C42:AY42,DU42,$BY42:DU42) -> 0 | DW42: =payout($A42,BA42,$C42:AZ42,DV42,$BY42:DV42) -> 0 | DX42: =payout($A42,BB42,$C42:BA42,DW42,$BY42:DW42) -> 0 | DY42: =payout($A42,BC42,$C42:BB42,DX42,$BY42:DX42) -> 0 | DZ42: =payout($A42,BD42,$C42:BC42,DY42,$BY42:DY42) -> 0 | EA42: =payout($A42,BE42,$C42:BD42,DZ42,$BY42:DZ42) -> 0 | EB42: =payout($A42,BF42,$C42:BE42,EA42,$BY42:EA42) -> 0 | EC42: =payout($A42,BG42,$C42:BF42,EB42,$BY42:EB42) -> 0 | ED42: =payout($A42,BH42,$C42:BG42,EC42,$BY42:EC42) -> 0 | EE42: =payout($A42,BI42,$C42:BH42,ED42,$BY42:ED42) -> 0 | EF42: =payout($A42,BJ42,$C42:BI42,EE42,$BY42:EE42) -> 0 | EG42: =payout($A42,BK42,$C42:BJ42,EF42,$BY42:EF42) -> 0 | EH42: =payout($A42,BL42,$C42:BK42,EG42,$BY42:EG42) -> 0 | EI42: =payout($A42,BM42,$C42:BL42,EH42,$BY42:EH42) -> 0 | EJ42: =payout($A42,BN42,$C42:BM42,EI42,$BY42:EI42) -> 0 | EK42: =payout($A42,BO42,$C42:BN42,EJ42,$BY42:EJ42) -> 0 | EL42: =payout($A42,BP42,$C42:BO42,EK42,$BY42:EK42) -> 0 | EM42: =payout($A42,BQ42,$C42:BP42,EL42,$BY42:EL42) -> 0 | EN42: =payout($A42,BR42,$C42:BQ42,EM42,$BY42:EM42) -> 0 | EO42: =payout($A42,BS42,$C42:BR42,EN42,$BY42:EN42) -> 0 | EP42: =payout($A42,BT42,$C42:BS42,EO42,$BY42:EO42) -> 0 | EQ42: =payout($A42,BU42,$C42:BT42,EP42,$BY42:EP42) -> 0
A43: =get_bond_grade($A$16:A42,$BX$5,$BY$5,$BZ$5) -> AA | B43: 28 | C43: 1 | D43: =IF(C1046=10000,0,default_model($A43,D$13,$B43,D$14)) -> 1 | E43: 1 | F43: 1 | G43: 1 | H43: 1 | I43: 0 | J43: 0 | K43: 0 | L43: 0 | M43: 0 | N43: 0 | O43: 0 | P43: 0 | Q43: 0 | R43: 0 | S43: 0 | T43: 0 | U43: 0 | V43: 0 | W43: 0 | X43: 0 | Y43: 0 | Z43: 0 | AA43: 0 | AB43: 0 | AC43: 0 | AD43: 0 | AE43: 0 | AF43: 0 | AG43: 0 | AH43: 0 | AI43: 0 | AJ43: =IF(AI1046=10000,0,default_model($A43,AJ$13,$B43,AJ$14)) -> 0 | AK43: 0 | AL43: 0 | AM43: 0 | AN43: 0 | AO43: 0 | AP43: 0 | AQ43: 0 | AR43: 0 | AS43: 0 | AT43: 0 | AU43: 0 | AV43: 0 | AW43: 0 | AX43: 0 | AY43: 0 | AZ43: 0 | BA43: 0 | BB43: 0 | BC43: 0 | BD43: 0 | BE43: 0 | BF43: 0 | BG43: 0 | BH43: 0 | BI43: 0 | BJ43: 0 | BK43: 0 | BL43: 0 | BM43: 0 | BN43: 0 | BO43: 0 | BP43: =IF(BO1046=10000,0,default_model($A43,BP$13,$B43,BP$14)) -> 0 | BQ43: 0 | BR43: 0 | BS43: 0 | BT43: 0 | BU43: 0 | BW43: AA | BX43: 28 | BY43: -10000 | BZ43: =payout($A43,D43,$C43:C43,BY43,$BY43:BY43) -> 7921.03 | CA43: =payout($A43,E43,$C43:D43,BZ43,$BY43:BZ43) -> 7921.03 | CB43: =payout($A43,F43,$C43:E43,CA43,$BY43:CA43) -> 7921.03 | CC43: =payout($A43,G43,$C43:F43,CB43,$BY43:CB43) -> 7921.03 | CD43: =payout($A43,H43,$C43:G43,CC43,$BY43:CC43) -> 7921.03 | CE43: =payout($A43,I43,$C43:H43,CD43,$BY43:CD43) -> 7921.03 | CF43: =payout($A43,J43,$C43:I43,CE43,$BY43:CE43) -> 7921.03 | CG43: =payout($A43,K43,$C43:J43,CF43,$BY43:CF43) -> 7921.03 | CH43: =payout($A43,L43,$C43:K43,CG43,$BY43:CG43) -> 7921.03 | CI43: =payout($A43,M43,$C43:L43,CH43,$BY43:CH43) -> 7921.03 | CJ43: =payout($A43,N43,$C43:M43,CI43,$BY43:CI43) -> 7921.03 | CK43: =payout($A43,O43,$C43:N43,CJ43,$BY43:CJ43) -> 7921.03 | CL43: =payout($A43,P43,$C43:O43,CK43,$BY43:CK43) -> 7921.03 | CM43: =payout($A43,Q43,$C43:P43,CL43,$BY43:CL43) -> 7921.03 | CN43: =payout($A43,R43,$C43:Q43,CM43,$BY43:CM43) -> 7921.03 | CO43: =payout($A43,S43,$C43:R43,CN43,$BY43:CN43) -> 7921.03 | CP43: =payout($A43,T43,$C43:S43,CO43,$BY43:CO43) -> 7921.03 | CQ43: =payout($A43,U43,$C43:T43,CP43,$BY43:CP43) -> 7921.03 | CR43: =payout($A43,V43,$C43:U43,CQ43,$BY43:CQ43) -> 7921.03 | CS43: =payout($A43,W43,$C43:V43,CR43,$BY43:CR43) -> 7921.03 | CT43: =payout($A43,X43,$C43:W43,CS43,$BY43:CS43) -> 7921.03 | CU43: =payout($A43,Y43,$C43:X43,CT43,$BY43:CT43) -> 7921.03 | CV43: =payout($A43,Z43,$C43:Y43,CU43,$BY43:CU43) -> 7921.03 | CW43: =payout($A43,AA43,$C43:Z43,CV43,$BY43:CV43) -> 7921.03 | CX43: =payout($A43,AB43,$C43:AA43,CW43,$BY43:CW43) -> 7921.03 | CY43: =payout($A43,AC43,$C43:AB43,CX43,$BY43:CX43) -> 7921.03 | CZ43: =payout($A43,AD43,$C43:AC43,CY43,$BY43:CY43) -> 7921.03 | DA43: =payout($A43,AE43,$C43:AD43,CZ43,$BY43:CZ43) -> 7921.03 | DB43: =payout($A43,AF43,$C43:AE43,DA43,$BY43:DA43) -> 7921.03 | DC43: =payout($A43,AG43,$C43:AF43,DB43,$BY43:DB43) -> 7921.03 | DD43: =payout($A43,AH43,$C43:AG43,DC43,$BY43:DC43) -> 7921.03 | DE43: =payout($A43,AI43,$C43:AH43,DD43,$BY43:DD43) -> 7921.03 | DF43: =payout($A43,AJ43,$C43:AI43,DE43,$BY43:DE43) -> 7921.03 | DG43: =payout($A43,AK43,$C43:AJ43,DF43,$BY43:DF43) -> 7921.03 | DH43: =payout($A43,AL43,$C43:AK43,DG43,$BY43:DG43) -> 7921.03 | DI43: =payout($A43,AM43,$C43:AL43,DH43,$BY43:DH43) -> 7921.03 | DJ43: =payout($A43,AN43,$C43:AM43,DI43,$BY43:DI43) -> 7921.03 | DK43: =payout($A43,AO43,$C43:AN43,DJ43,$BY43:DJ43) -> 7921.03 | DL43: =payout($A43,AP43,$C43:AO43,DK43,$BY43:DK43) -> 7921.03 | DM43: =payout($A43,AQ43,$C43:AP43,DL43,$BY43:DL43) -> 7921.03 | DN43: =payout($A43,AR43,$C43:AQ43,DM43,$BY43:DM43) -> 17921.03 | DO43: =payout($A43,AS43,$C43:AR43,DN43,$BY43:DN43) -> 0 | DP43: =payout($A43,AT43,$C43:AS43,DO43,$BY43:DO43) -> 0 | DQ43: =payout($A43,AU43,$C43:AT43,DP43,$BY43:DP43) -> 0 | DR43: =payout($A43,AV43,$C43:AU43,DQ43,$BY43:DQ43) -> 0 | DS43: =payout($A43,AW43,$C43:AV43,DR43,$BY43:DR43) -> 0 | DT43: =payout($A43,AX43,$C43:AW43,DS43,$BY43:DS43) -> 0 | DU43: =payout($A43,AY43,$C43:AX43,DT43,$BY43:DT43) -> 0 | DV43: =payout($A43,AZ43,$C43:AY43,DU43,$BY43:DU43) -> 0 | DW43: =payout($A43,BA43,$C43:AZ43,DV43,$BY43:DV43) -> 0 | DX43: =payout($A43,BB43,$C43:BA43,DW43,$BY43:DW43) -> 0 | DY43: =payout($A43,BC43,$C43:BB43,DX43,$BY43:DX43) -> 0 | DZ43: =payout($A43,BD43,$C43:BC43,DY43,$BY43:DY43) -> 0 | EA43: =payout($A43,BE43,$C43:BD43,DZ43,$BY43:DZ43) -> 0 | EB43: =payout($A43,BF43,$C43:BE43,EA43,$BY43:EA43) -> 0 | EC43: =payout($A43,BG43,$C43:BF43,EB43,$BY43:EB43) -> 0 | ED43: =payout($A43,BH43,$C43:BG43,EC43,$BY43:EC43) -> 0 | EE43: =payout($A43,BI43,$C43:BH43,ED43,$BY43:ED43) -> 0 | EF43: =payout($A43,BJ43,$C43:BI43,EE43,$BY43:EE43) -> 0 | EG43: =payout($A43,BK43,$C43:BJ43,EF43,$BY43:EF43) -> 0 | EH43: =payout($A43,BL43,$C43:BK43,EG43,$BY43:EG43) -> 0 | EI43: =payout($A43,BM43,$C43:BL43,EH43,$BY43:EH43) -> 0 | EJ43: =payout($A43,BN43,$C43:BM43,EI43,$BY43:EI43) -> 0 | EK43: =payout($A43,BO43,$C43:BN43,EJ43,$BY43:EJ43) -> 0 | EL43: =payout($A43,BP43,$C43:BO43,EK43,$BY43:EK43) -> 0 | EM43: =payout($A43,BQ43,$C43:BP43,EL43,$BY43:EL43) -> 0 | EN43: =payout($A43,BR43,$C43:BQ43,EM43,$BY43:EM43) -> 0 | EO43: =payout($A43,BS43,$C43:BR43,EN43,$BY43:EN43) -> 0 | EP43: =payout($A43,BT43,$C43:BS43,EO43,$BY43:EO43) -> 0 | EQ43: =payout($A43,BU43,$C43:BT43,EP43,$BY43:EP43) -> 0
A44: =get_bond_grade($A$16:A43,$BX$5,$BY$5,$BZ$5) -> AAA | B44: 29 | C44: 1 | D44: =IF(C1047=10000,0,default_model($A44,D$13,$B44,D$14)) -> 1 | E44: 1 | F44: 1 | G44: 1 | H44: 1 | I44: 1 | J44: 1 | K44: 1 | L44: 1 | M44: 1 | N44: 1 | O44: 1 | P44: 1 | Q44: 1 | R44: 1 | S44: 1 | T44: 1 | U44: 1 | V44: 1 | W44: 1 | X44: 1 | Y44: 1 | Z44: 1 | AA44: 1 | AB44: 1 | AC44: 1 | AD44: 1 | AE44: 0 | AF44: 0 | AG44: 0 | AH44: 0 | AI44: 0 | AJ44: =IF(AI1047=10000,0,default_model($A44,AJ$13,$B44,AJ$14)) -> 0 | AK44: 0 | AL44: 0 | AM44: 0 | AN44: 0 | AO44: 0 | AP44: 0 | AQ44: 0 | AR44: 0 | AS44: 0 | AT44: 0 | AU44: 0 | AV44: 0 | AW44: 0 | AX44: 0 | AY44: 0 | AZ44: 0 | BA44: 0 | BB44: 0 | BC44: 0 | BD44: 0 | BE44: 0 | BF44: 0 | BG44: 0 | BH44: 0 | BI44: 0 | BJ44: 0 | BK44: 0 | BL44: 0 | BM44: 0 | BN44: 0 | BO44: 0 | BP44: =IF(BO1047=10000,0,default_model($A44,BP$13,$B44,BP$14)) -> 0 | BQ44: 0 | BR44: 0 | BS44: 0 | BT44: 0 | BU44: 0 | BW44: AAA | BX44: 29 | BY44: -10000 | BZ44: =payout($A44,D44,$C44:C44,BY44,$BY44:BY44) -> 6299.76 | CA44: =payout($A44,E44,$C44:D44,BZ44,$BY44:BZ44) -> 6299.76 | CB44: =payout($A44,F44,$C44:E44,CA44,$BY44:CA44) -> 6299.76 | CC44: =payout($A44,G44,$C44:F44,CB44,$BY44:CB44) -> 6299.76 | CD44: =payout($A44,H44,$C44:G44,CC44,$BY44:CC44) -> 6299.76 | CE44: =payout($A44,I44,$C44:H44,CD44,$BY44:CD44) -> 6299.76 | CF44: =payout($A44,J44,$C44:I44,CE44,$BY44:CE44) -> 6299.76 | CG44: =payout($A44,K44,$C44:J44,CF44,$BY44:CF44) -> 6299.76 | CH44: =payout($A44,L44,$C44:K44,CG44,$BY44:CG44) -> 6299.76 | CI44: =payout($A44,M44,$C44:L44,CH44,$BY44:CH44) -> 6299.76 | CJ44: =payout($A44,N44,$C44:M44,CI44,$BY44:CI44) -> 6299.76 | CK44: =payout($A44,O44,$C44:N44,CJ44,$BY44:CJ44) -> 6299.76 | CL44: =payout($A44,P44,$C44:O44,CK44,$BY44:CK44) -> 6299.76 | CM44: =payout($A44,Q44,$C44:P44,CL44,$BY44:CL44) -> 6299.76 | CN44: =payout($A44,R44,$C44:Q44,CM44,$BY44:CM44) -> 6299.76 | CO44: =payout($A44,S44,$C44:R44,CN44,$BY44:CN44) -> 6299.76 | CP44: =payout($A44,T44,$C44:S44,CO44,$BY44:CO44) -> 6299.76 | CQ44: =payout($A44,U44,$C44:T44,CP44,$BY44:CP44) -> 6299.76 | CR44: =payout($A44,V44,$C44:U44,CQ44,$BY44:CQ44) -> 6299.76 | CS44: =payout($A44,W44,$C44:V44,CR44,$BY44:CR44) -> 6299.76 | CT44: =payout($A44,X44,$C44:W44,CS44,$BY44:CS44) -> 6299.76 | CU44: =payout($A44,Y44,$C44:X44,CT44,$BY44:CT44) -> 6299.76 | CV44: =payout($A44,Z44,$C44:Y44,CU44,$BY44:CU44) -> 6299.76 | CW44: =payout($A44,AA44,$C44:Z44,CV44,$BY44:CV44) -> 6299.76 | CX44: =payout($A44,AB44,$C44:AA44,CW44,$BY44:CW44) -> 6299.76 | CY44: =payout($A44,AC44,$C44:AB44,CX44,$BY44:CX44) -> 6299.76 | CZ44: =payout($A44,AD44,$C44:AC44,CY44,$BY44:CY44) -> 6299.76 | DA44: =payout($A44,AE44,$C44:AD44,CZ44,$BY44:CZ44) -> 6299.76 | DB44: =payout($A44,AF44,$C44:AE44,DA44,$BY44:DA44) -> 6299.76 | DC44: =payout($A44,AG44,$C44:AF44,DB44,$BY44:DB44) -> 6299.76 | DD44: =payout($A44,AH44,$C44:AG44,DC44,$BY44:DC44) -> 6299.76 | DE44: =payout($A44,AI44,$C44:AH44,DD44,$BY44:DD44) -> 6299.76 | DF44: =payout($A44,AJ44,$C44:AI44,DE44,$BY44:DE44) -> 6299.76 | DG44: =payout($A44,AK44,$C44:AJ44,DF44,$BY44:DF44) -> 6299.76 | DH44: =payout($A44,AL44,$C44:AK44,DG44,$BY44:DG44) -> 6299.76 | DI44: =payout($A44,AM44,$C44:AL44,DH44,$BY44:DH44) -> 6299.76 | DJ44: =payout($A44,AN44,$C44:AM44,DI44,$BY44:DI44) -> 6299.76 | DK44: =payout($A44,AO44,$C44:AN44,DJ44,$BY44:DJ44) -> 6299.76 | DL44: =payout($A44,AP44,$C44:AO44,DK44,$BY44:DK44) -> 6299.76 | DM44: =payout($A44,AQ44,$C44:AP44,DL44,$BY44:DL44) -> 6299.76 | DN44: =payout($A44,AR44,$C44:AQ44,DM44,$BY44:DM44) -> 16299.76 | DO44: =payout($A44,AS44,$C44:AR44,DN44,$BY44:DN44) -> 0 | DP44: =payout($A44,AT44,$C44:AS44,DO44,$BY44:DO44) -> 0 | DQ44: =payout($A44,AU44,$C44:AT44,DP44,$BY44:DP44) -> 0 | DR44: =payout($A44,AV44,$C44:AU44,DQ44,$BY44:DQ44) -> 0 | DS44: =payout($A44,AW44,$C44:AV44,DR44,$BY44:DR44) -> 0 | DT44: =payout($A44,AX44,$C44:AW44,DS44,$BY44:DS44) -> 0 | DU44: =payout($A44,AY44,$C44:AX44,DT44,$BY44:DT44) -> 0 | DV44: =payout($A44,AZ44,$C44:AY44,DU44,$BY44:DU44) -> 0 | DW44: =payout($A44,BA44,$C44:AZ44,DV44,$BY44:DV44) -> 0 | DX44: =payout($A44,BB44,$C44:BA44,DW44,$BY44:DW44) -> 0 | DY44: =payout($A44,BC44,$C44:BB44,DX44,$BY44:DX44) -> 0 | DZ44: =payout($A44,BD44,$C44:BC44,DY44,$BY44:DY44) -> 0 | EA44: =payout($A44,BE44,$C44:BD44,DZ44,$BY44:DZ44) -> 0 | EB44: =payout($A44,BF44,$C44:BE44,EA44,$BY44:EA44) -> 0 | EC44: =payout($A44,BG44,$C44:BF44,EB44,$BY44:EB44) -> 0 | ED44: =payout($A44,BH44,$C44:BG44,EC44,$BY44:EC44) -> 0 | EE44: =payout($A44,BI44,$C44:BH44,ED44,$BY44:ED44) -> 0 | EF44: =payout($A44,BJ44,$C44:BI44,EE44,$BY44:EE44) -> 0 | EG44: =payout($A44,BK44,$C44:BJ44,EF44,$BY44:EF44) -> 0 | EH44: =payout($A44,BL44,$C44:BK44,EG44,$BY44:EG44) -> 0 | EI44: =payout($A44,BM44,$C44:BL44,EH44,$BY44:EH44) -> 0 | EJ44: =payout($A44,BN44,$C44:BM44,EI44,$BY44:EI44) -> 0 | EK44: =payout($A44,BO44,$C44:BN44,EJ44,$BY44:EJ44) -> 0 | EL44: =payout($A44,BP44,$C44:BO44,EK44,$BY44:EK44) -> 0 | EM44: =payout($A44,BQ44,$C44:BP44,EL44,$BY44:EL44) -> 0 | EN44: =payout($A44,BR44,$C44:BQ44,EM44,$BY44:EM44) -> 0 | EO44: =payout($A44,BS44,$C44:BR44,EN44,$BY44:EN44) -> 0 | EP44: =payout($A44,BT44,$C44:BS44,EO44,$BY44:EO44) -> 0 | EQ44: =payout($A44,BU44,$C44:BT44,EP44,$BY44:EP44) -> 0
A45: =get_bond_grade($A$16:A44,$BX$5,$BY$5,$BZ$5) -> A | B45: 30 | C45: 1 | D45: =IF(C1048=10000,0,default_model($A45,D$13,$B45,D$14)) -> 1 | E45: 1 | F45: 1 | G45: 1 | H45: 1 | I45: 1 | J45: 1 | K45: 1 | L45: 1 | M45: 1 | N45: 1 | O45: 1 | P45: 1 | Q45: 1 | R45: 1 | S45: 1 | T45: 1 | U45: 1 | V45: 1 | W45: 1 | X45: 1 | Y45: 0 | Z45: 0 | AA45: 0 | AB45: 0 | AC45: 0 | AD45: 0 | AE45: 0 | AF45: 0 | AG45: 0 | AH45: 0 | AI45: 0 | AJ45: =IF(AI1048=10000,0,default_model($A45,AJ$13,$B45,AJ$14)) -> 0 | AK45: 0 | AL45: 0 | AM45: 0 | AN45: 0 | AO45: 0 | AP45: 0 | AQ45: 0 | AR45: 0 | AS45: 0 | AT45: 0 | AU45: 0 | AV45: 0 | AW45: 0 | AX45: 0 | AY45: 0 | AZ45: 0 | BA45: 0 | BB45: 0 | BC45: 0 | BD45: 0 | BE45: 0 | BF45: 0 | BG45: 0 | BH45: 0 | BI45: 0 | BJ45: 0 | BK45: 0 | BL45: 0 | BM45: 0 | BN45: 0 | BO45: 0 | BP45: =IF(BO1048=10000,0,default_model($A45,BP$13,$B45,BP$14)) -> 0 | BQ45: 0 | BR45: 0 | BS45: 0 | BT45: 0 | BU45: 0 | BW45: A | BX45: 30 | BY45: -10000 | BZ45: =payout($A45,D45,$C45:C45,BY45,$BY45:BY45) -> 12478.46 | CA45: =payout($A45,E45,$C45:D45,BZ45,$BY45:BZ45) -> 12478.46 | CB45: =payout($A45,F45,$C45:E45,CA45,$BY45:CA45) -> 12478.46 | CC45: =payout($A45,G45,$C45:F45,CB45,$BY45:CB45) -> 12478.46 | CD45: =payout($A45,H45,$C45:G45,CC45,$BY45:CC45) -> 12478.46 | CE45: =payout($A45,I45,$C45:H45,CD45,$BY45:CD45) -> 12478.46 | CF45: =payout($A45,J45,$C45:I45,CE45,$BY45:CE45) -> 12478.46 | CG45: =payout($A45,K45,$C45:J45,CF45,$BY45:CF45) -> 12478.46 | CH45: =payout($A45,L45,$C45:K45,CG45,$BY45:CG45) -> 12478.46 | CI45: =payout($A45,M45,$C45:L45,CH45,$BY45:CH45) -> 12478.46 | CJ45: =payout($A45,N45,$C45:M45,CI45,$BY45:CI45) -> 12478.46 | CK45: =payout($A45,O45,$C45:N45,CJ45,$BY45:CJ45) -> 12478.46 | CL45: =payout($A45,P45,$C45:O45,CK45,$BY45:CK45) -> 12478.46 | CM45: =payout($A45,Q45,$C45:P45,CL45,$BY45:CL45) -> 12478.46 | CN45: =payout($A45,R45,$C45:Q45,CM45,$BY45:CM45) -> 12478.46 | CO45: =payout($A45,S45,$C45:R45,CN45,$BY45:CN45) -> 12478.46 | CP45: =payout($A45,T45,$C45:S45,CO45,$BY45:CO45) -> 12478.46 | CQ45: =payout($A45,U45,$C45:T45,CP45,$BY45:CP45) -> 12478.46 | CR45: =payout($A45,V45,$C45:U45,CQ45,$BY45:CQ45) -> 12478.46 | CS45: =payout($A45,W45,$C45:V45,CR45,$BY45:CR45) -> 12478.46 | CT45: =payout($A45,X45,$C45:W45,CS45,$BY45:CS45) -> 12478.46 | CU45: =payout($A45,Y45,$C45:X45,CT45,$BY45:CT45) -> 12478.46 | CV45: =payout($A45,Z45,$C45:Y45,CU45,$BY45:CU45) -> 12478.46 | CW45: =payout($A45,AA45,$C45:Z45,CV45,$BY45:CV45) -> 12478.46 | CX45: =payout($A45,AB45,$C45:AA45,CW45,$BY45:CW45) -> 12478.46 | CY45: =payout($A45,AC45,$C45:AB45,CX45,$BY45:CX45) -> 12478.46 | CZ45: =payout($A45,AD45,$C45:AC45,CY45,$BY45:CY45) -> 12478.46 | DA45: =payout($A45,AE45,$C45:AD45,CZ45,$BY45:CZ45) -> 12478.46 | DB45: =payout($A45,AF45,$C45:AE45,DA45,$BY45:DA45) -> 12478.46 | DC45: =payout($A45,AG45,$C45:AF45,DB45,$BY45:DB45) -> 12478.46 | DD45: =payout($A45,AH45,$C45:AG45,DC45,$BY45:DC45) -> 12478.46 | DE45: =payout($A45,AI45,$C45:AH45,DD45,$BY45:DD45) -> 12478.46 | DF45: =payout($A45,AJ45,$C45:AI45,DE45,$BY45:DE45) -> 12478.46 | DG45: =payout($A45,AK45,$C45:AJ45,DF45,$BY45:DF45) -> 12478.46 | DH45: =payout($A45,AL45,$C45:AK45,DG45,$BY45:DG45) -> 12478.46 | DI45: =payout($A45,AM45,$C45:AL45,DH45,$BY45:DH45) -> 12478.46 | DJ45: =payout($A45,AN45,$C45:AM45,DI45,$BY45:DI45) -> 12478.46 | DK45: =payout($A45,AO45,$C45:AN45,DJ45,$BY45:DJ45) -> 12478.46 | DL45: =payout($A45,AP45,$C45:AO45,DK45,$BY45:DK45) -> 12478.46 | DM45: =payout($A45,AQ45,$C45:AP45,DL45,$BY45:DL45) -> 12478.46 | DN45: =payout($A45,AR45,$C45:AQ45,DM45,$BY45:DM45) -> 22478.46 | DO45: =payout($A45,AS45,$C45:AR45,DN45,$BY45:DN45) -> 0 | DP45: =payout($A45,AT45,$C45:AS45,DO45,$BY45:DO45) -> 0 | DQ45: =payout($A45,AU45,$C45:AT45,DP45,$BY45:DP45) -> 0 | DR45: =payout($A45,AV45,$C45:AU45,DQ45,$BY45:DQ45) -> 0 | DS45: =payout($A45,AW45,$C45:AV45,DR45,$BY45:DR45) -> 0 | DT45: =payout($A45,AX45,$C45:AW45,DS45,$BY45:DS45) -> 0 | DU45: =payout($A45,AY45,$C45:AX45,DT45,$BY45:DT45) -> 0 | DV45: =payout($A45,AZ45,$C45:AY45,DU45,$BY45:DU45) -> 0 | DW45: =payout($A45,BA45,$C45:AZ45,DV45,$BY45:DV45) -> 0 | DX45: =payout($A45,BB45,$C45:BA45,DW45,$BY45:DW45) -> 0 | DY45: =payout($A45,BC45,$C45:BB45,DX45,$BY45:DX45) -> 0 | DZ45: =payout($A45,BD45,$C45:BC45,DY45,$BY45:DY45) -> 0 | EA45: =payout($A45,BE45,$C45:BD45,DZ45,$BY45:DZ45) -> 0 | EB45: =payout($A45,BF45,$C45:BE45,EA45,$BY45:EA45) -> 0 | EC45: =payout($A45,BG45,$C45:BF45,EB45,$BY45:EB45) -> 0 | ED45: =payout($A45,BH45,$C45:BG45,EC45,$BY45:EC45) -> 0 | EE45: =payout($A45,BI45,$C45:BH45,ED45,$BY45:ED45) -> 0 | EF45: =payout($A45,BJ45,$C45:BI45,EE45,$BY45:EE45) -> 0 | EG45: =payout($A45,BK45,$C45:BJ45,EF45,$BY45:EF45) -> 0 | EH45: =payout($A45,BL45,$C45:BK45,EG45,$BY45:EG45) -> 0 | EI45: =payout($A45,BM45,$C45:BL45,EH45,$BY45:EH45) -> 0 | EJ45: =payout($A45,BN45,$C45:BM45,EI45,$BY45:EI45) -> 0 | EK45: =payout($A45,BO45,$C45:BN45,EJ45,$BY45:EJ45) -> 0 | EL45: =payout($A45,BP45,$C45:BO45,EK45,$BY45:EK45) -> 0 | EM45: =payout($A45,BQ45,$C45:BP45,EL45,$BY45:EL45) -> 0 | EN45: =payout($A45,BR45,$C45:BQ45,EM45,$BY45:EM45) -> 0 | EO45: =payout($A45,BS45,$C45:BR45,EN45,$BY45:EN45) -> 0 | EP45: =payout($A45,BT45,$C45:BS45,EO45,$BY45:EO45) -> 0 | EQ45: =payout($A45,BU45,$C45:BT45,EP45,$BY45:EP45) -> 0
A46: =get_bond_grade($A$16:A45,$BX$5,$BY$5,$BZ$5) -> A | B46: 31 | C46: 1 | D46: =IF(C1049=10000,0,default_model($A46,D$13,$B46,D$14)) -> 1 | E46: 1 | F46: 1 | G46: 1 | H46: 1 | I46: 1 | J46: 1 | K46: 1 | L46: 1 | M46: 1 | N46: 1 | O46: 1 | P46: 1 | Q46: 1 | R46: 1 | S46: 1 | T46: 1 | U46: 1 | V46: 1 | W46: 1 | X46: 1 | Y46: 1 | Z46: 1 | AA46: 1 | AB46: 1 | AC46: 1 | AD46: 1 | AE46: 0 | AF46: 0 | AG46: 0 | AH46: 0 | AI46: 0 | AJ46: =IF(AI1049=10000,0,default_model($A46,AJ$13,$B46,AJ$14)) -> 0 | AK46: 0 | AL46: 0 | AM46: 0 | AN46: 0 | AO46: 0 | AP46: 0 | AQ46: 0 | AR46: 0 | AS46: 0 | AT46: 0 | AU46: 0 | AV46: 0 | AW46: 0 | AX46: 0 | AY46: 0 | AZ46: 0 | BA46: 0 | BB46: 0 | BC46: 0 | BD46: 0 | BE46: 0 | BF46: 0 | BG46: 0 | BH46: 0 | BI46: 0 | BJ46: 0 | BK46: 0 | BL46: 0 | BM46: 0 | BN46: 0 | BO46: 0 | BP46: =IF(BO1049=10000,0,default_model($A46,BP$13,$B46,BP$14)) -> 0 | BQ46: 0 | BR46: 0 | BS46: 0 | BT46: 0 | BU46: 0 | BW46: A | BX46: 31 | BY46: -10000 | BZ46: =payout($A46,D46,$C46:C46,BY46,$BY46:BY46) -> 12478.46 | CA46: =payout($A46,E46,$C46:D46,BZ46,$BY46:BZ46) -> 12478.46 | CB46: =payout($A46,F46,$C46:E46,CA46,$BY46:CA46) -> 12478.46 | CC46: =payout($A46,G46,$C46:F46,CB46,$BY46:CB46) -> 12478.46 | CD46: =payout($A46,H46,$C46:G46,CC46,$BY46:CC46) -> 12478.46 | CE46: =payout($A46,I46,$C46:H46,CD46,$BY46:CD46) -> 12478.46 | CF46: =payout($A46,J46,$C46:I46,CE46,$BY46:CE46) -> 12478.46 | CG46: =payout($A46,K46,$C46:J46,CF46,$BY46:CF46) -> 12478.46 | CH46: =payout($A46,L46,$C46:K46,CG46,$BY46:CG46) -> 12478.46 | CI46: =payout($A46,M46,$C46:L46,CH46,$BY46:CH46) -> 12478.46 | CJ46: =payout($A46,N46,$C46:M46,CI46,$BY46:CI46) -> 12478.46 | CK46: =payout($A46,O46,$C46:N46,CJ46,$BY46:CJ46) -> 12478.46 | CL46: =payout($A46,P46,$C46:O46,CK46,$BY46:CK46) -> 12478.46 | CM46: =payout($A46,Q46,$C46:P46,CL46,$BY46:CL46) -> 12478.46 | CN46: =payout($A46,R46,$C46:Q46,CM46,$BY46:CM46) -> 12478.46 | CO46: =payout($A46,S46,$C46:R46,CN46,$BY46:CN46) -> 12478.46 | CP46: =payout($A46,T46,$C46:S46,CO46,$BY46:CO46) -> 12478.46 | CQ46: =payout($A46,U46,$C46:T46,CP46,$BY46:CP46) -> 12478.46 | CR46: =payout($A46,V46,$C46:U46,CQ46,$BY46:CQ46) -> 12478.46 | CS46: =payout($A46,W46,$C46:V46,CR46,$BY46:CR46) -> 12478.46 | CT46: =payout($A46,X46,$C46:W46,CS46,$BY46:CS46) -> 12478.46 | CU46: =payout($A46,Y46,$C46:X46,CT46,$BY46:CT46) -> 12478.46 | CV46: =payout($A46,Z46,$C46:Y46,CU46,$BY46:CU46) -> 12478.46 | CW46: =payout($A46,AA46,$C46:Z46,CV46,$BY46:CV46) -> 12478.46 | CX46: =payout($A46,AB46,$C46:AA46,CW46,$BY46:CW46) -> 12478.46 | CY46: =payout($A46,AC46,$C46:AB46,CX46,$BY46:CX46) -> 12478.46 | CZ46: =payout($A46,AD46,$C46:AC46,CY46,$BY46:CY46) -> 12478.46 | DA46: =payout($A46,AE46,$C46:AD46,CZ46,$BY46:CZ46) -> 12478.46 | DB46: =payout($A46,AF46,$C46:AE46,DA46,$BY46:DA46) -> 12478.46 | DC46: =payout($A46,AG46,$C46:AF46,DB46,$BY46:DB46) -> 12478.46 | DD46: =payout($A46,AH46,$C46:AG46,DC46,$BY46:DC46) -> 12478.46 | DE46: =payout($A46,AI46,$C46:AH46,DD46,$BY46:DD46) -> 12478.46 | DF46: =payout($A46,AJ46,$C46:AI46,DE46,$BY46:DE46) -> 12478.46 | DG46: =payout($A46,AK46,$C46:AJ46,DF46,$BY46:DF46) -> 12478.46 | DH46: =payout($A46,AL46,$C46:AK46,DG46,$BY46:DG46) -> 12478.46 | DI46: =payout($A46,AM46,$C46:AL46,DH46,$BY46:DH46) -> 12478.46 | DJ46: =payout($A46,AN46,$C46:AM46,DI46,$BY46:DI46) -> 12478.46 | DK46: =payout($A46,AO46,$C46:AN46,DJ46,$BY46:DJ46) -> 12478.46 | DL46: =payout($A46,AP46,$C46:AO46,DK46,$BY46:DK46) -> 12478.46 | DM46: =payout($A46,AQ46,$C46:AP46,DL46,$BY46:DL46) -> 12478.46 | DN46: =payout($A46,AR46,$C46:AQ46,DM46,$BY46:DM46) -> 22478.46 | DO46: =payout($A46,AS46,$C46:AR46,DN46,$BY46:DN46) -> 0 | DP46: =payout($A46,AT46,$C46:AS46,DO46,$BY46:DO46) -> 0 | DQ46: =payout($A46,AU46,$C46:AT46,DP46,$BY46:DP46) -> 0 | DR46: =payout($A46,AV46,$C46:AU46,DQ46,$BY46:DQ46) -> 0 | DS46: =payout($A46,AW46,$C46:AV46,DR46,$BY46:DR46) -> 0 | DT46: =payout($A46,AX46,$C46:AW46,DS46,$BY46:DS46) -> 0 | DU46: =payout($A46,AY46,$C46:AX46,DT46,$BY46:DT46) -> 0 | DV46: =payout($A46,AZ46,$C46:AY46,DU46,$BY46:DU46) -> 0 | DW46: =payout($A46,BA46,$C46:AZ46,DV46,$BY46:DV46) -> 0 | DX46: =payout($A46,BB46,$C46:BA46,DW46,$BY46:DW46) -> 0 | DY46: =payout($A46,BC46,$C46:BB46,DX46,$BY46:DX46) -> 0 | DZ46: =payout($A46,BD46,$C46:BC46,DY46,$BY46:DY46) -> 0 | EA46: =payout($A46,BE46,$C46:BD46,DZ46,$BY46:DZ46) -> 0 | EB46: =payout($A46,BF46,$C46:BE46,EA46,$BY46:EA46) -> 0 | EC46: =payout($A46,BG46,$C46:BF46,EB46,$BY46:EB46) -> 0 | ED46: =payout($A46,BH46,$C46:BG46,EC46,$BY46:EC46) -> 0 | EE46: =payout($A46,BI46,$C46:BH46,ED46,$BY46:ED46) -> 0 | EF46: =payout($A46,BJ46,$C46:BI46,EE46,$BY46:EE46) -> 0 | EG46: =payout($A46,BK46,$C46:BJ46,EF46,$BY46:EF46) -> 0 | EH46: =payout($A46,BL46,$C46:BK46,EG46,$BY46:EG46) -> 0 | EI46: =payout($A46,BM46,$C46:BL46,EH46,$BY46:EH46) -> 0 | EJ46: =payout($A46,BN46,$C46:BM46,EI46,$BY46:EI46) -> 0 | EK46: =payout($A46,BO46,$C46:BN46,EJ46,$BY46:EJ46) -> 0 | EL46: =payout($A46,BP46,$C46:BO46,EK46,$BY46:EK46) -> 0 | EM46: =payout($A46,BQ46,$C46:BP46,EL46,$BY46:EL46) -> 0 | EN46: =payout($A46,BR46,$C46:BQ46,EM46,$BY46:EM46) -> 0 | EO46: =payout($A46,BS46,$C46:BR46,EN46,$BY46:EN46) -> 0 | EP46: =payout($A46,BT46,$C46:BS46,EO46,$BY46:EO46) -> 0 | EQ46: =payout($A46,BU46,$C46:BT46,EP46,$BY46:EP46) -> 0
A47: =get_bond_grade($A$16:A46,$BX$5,$BY$5,$BZ$5) -> AAA | B47: 32 | C47: 1 | D47: =IF(C1050=10000,0,default_model($A47,D$13,$B47,D$14)) -> 1 | E47: 1 | F47: 1 | G47: 1 | H47: 1 | I47: 1 | J47: 1 | K47: 1 | L47: 1 | M47: 1 | N47: 1 | O47: 1 | P47: 1 | Q47: 1 | R47: 1 | S47: 1 | T47: 1 | U47: 1 | V47: 1 | W47: 1 | X47: 1 | Y47: 1 | Z47: 1 | AA47: 1 | AB47: 1 | AC47: 1 | AD47: 1 | AE47: 0 | AF47: 0 | AG47: 0 | AH47: 0 | AI47: 0 | AJ47: =IF(AI1050=10000,0,default_model($A47,AJ$13,$B47,AJ$14)) -> 0 | AK47: 0 | AL47: 0 | AM47: 0 | AN47: 0 | AO47: 0 | AP47: 0 | AQ47: 0 | AR47: 0 | AS47: 0 | AT47: 0 | AU47: 0 | AV47: 0 | AW47: 0 | AX47: 0 | AY47: 0 | AZ47: 0 | BA47: 0 | BB47: 0 | BC47: 0 | BD47: 0 | BE47: 0 | BF47: 0 | BG47: 0 | BH47: 0 | BI47: 0 | BJ47: 0 | BK47: 0 | BL47: 0 | BM47: 0 | BN47: 0 | BO47: 0 | BP47: =IF(BO1050=10000,0,default_model($A47,BP$13,$B47,BP$14)) -> 0 | BQ47: 0 | BR47: 0 | BS47: 0 | BT47: 0 | BU47: 0 | BW47: AAA | BX47: 32 | BY47: -10000 | BZ47: =payout($A47,D47,$C47:C47,BY47,$BY47:BY47) -> 6299.76 | CA47: =payout($A47,E47,$C47:D47,BZ47,$BY47:BZ47) -> 6299.76 | CB47: =payout($A47,F47,$C47:E47,CA47,$BY47:CA47) -> 6299.76 | CC47: =payout($A47,G47,$C47:F47,CB47,$BY47:CB47) -> 6299.76 | CD47: =payout($A47,H47,$C47:G47,CC47,$BY47:CC47) -> 6299.76 | CE47: =payout($A47,I47,$C47:H47,CD47,$BY47:CD47) -> 6299.76 | CF47: =payout($A47,J47,$C47:I47,CE47,$BY47:CE47) -> 6299.76 | CG47: =payout($A47,K47,$C47:J47,CF47,$BY47:CF47) -> 6299.76 | CH47: =payout($A47,L47,$C47:K47,CG47,$BY47:CG47) -> 6299.76 | CI47: =payout($A47,M47,$C47:L47,CH47,$BY47:CH47) -> 6299.76 | CJ47: =payout($A47,N47,$C47:M47,CI47,$BY47:CI47) -> 6299.76 | CK47: =payout($A47,O47,$C47:N47,CJ47,$BY47:CJ47) -> 6299.76 | CL47: =payout($A47,P47,$C47:O47,CK47,$BY47:CK47) -> 6299.76 | CM47: =payout($A47,Q47,$C47:P47,CL47,$BY47:CL47) -> 6299.76 | CN47: =payout($A47,R47,$C47:Q47,CM47,$BY47:CM47) -> 6299.76 | CO47: =payout($A47,S47,$C47:R47,CN47,$BY47:CN47) -> 6299.76 | CP47: =payout($A47,T47,$C47:S47,CO47,$BY47:CO47) -> 6299.76 | CQ47: =payout($A47,U47,$C47:T47,CP47,$BY47:CP47) -> 6299.76 | CR47: =payout($A47,V47,$C47:U47,CQ47,$BY47:CQ47) -> 6299.76 | CS47: =payout($A47,W47,$C47:V47,CR47,$BY47:CR47) -> 6299.76 | CT47: =payout($A47,X47,$C47:W47,CS47,$BY47:CS47) -> 6299.76 | CU47: =payout($A47,Y47,$C47:X47,CT47,$BY47:CT47) -> 6299.76 | CV47: =payout($A47,Z47,$C47:Y47,CU47,$BY47:CU47) -> 6299.76 | CW47: =payout($A47,AA47,$C47:Z47,CV47,$BY47:CV47) -> 6299.76 | CX47: =payout($A47,AB47,$C47:AA47,CW47,$BY47:CW47) -> 6299.76 | CY47: =payout($A47,AC47,$C47:AB47,CX47,$BY47:CX47) -> 6299.76 | CZ47: =payout($A47,AD47,$C47:AC47,CY47,$BY47:CY47) -> 6299.76 | DA47: =payout($A47,AE47,$C47:AD47,CZ47,$BY47:CZ47) -> 6299.76 | DB47: =payout($A47,AF47,$C47:AE47,DA47,$BY47:DA47) -> 6299.76 | DC47: =payout($A47,AG47,$C47:AF47,DB47,$BY47:DB47) -> 6299.76 | DD47: =payout($A47,AH47,$C47:AG47,DC47,$BY47:DC47) -> 6299.76 | DE47: =payout($A47,AI47,$C47:AH47,DD47,$BY47:DD47) -> 6299.76 | DF47: =payout($A47,AJ47,$C47:AI47,DE47,$BY47:DE47) -> 6299.76 | DG47: =payout($A47,AK47,$C47:AJ47,DF47,$BY47:DF47) -> 6299.76 | DH47: =payout($A47,AL47,$C47:AK47,DG47,$BY47:DG47) -> 6299.76 | DI47: =payout($A47,AM47,$C47:AL47,DH47,$BY47:DH47) -> 6299.76 | DJ47: =payout($A47,AN47,$C47:AM47,DI47,$BY47:DI47) -> 6299.76 | DK47: =payout($A47,AO47,$C47:AN47,DJ47,$BY47:DJ47) -> 6299.76 | DL47: =payout($A47,AP47,$C47:AO47,DK47,$BY47:DK47) -> 6299.76 | DM47: =payout($A47,AQ47,$C47:AP47,DL47,$BY47:DL47) -> 6299.76 | DN47: =payout($A47,AR47,$C47:AQ47,DM47,$BY47:DM47) -> 16299.76 | DO47: =payout($A47,AS47,$C47:AR47,DN47,$BY47:DN47) -> 0 | DP47: =payout($A47,AT47,$C47:AS47,DO47,$BY47:DO47) -> 0 | DQ47: =payout($A47,AU47,$C47:AT47,DP47,$BY47:DP47) -> 0 | DR47: =payout($A47,AV47,$C47:AU47,DQ47,$BY47:DQ47) -> 0 | DS47: =payout($A47,AW47,$C47:AV47,DR47,$BY47:DR47) -> 0 | DT47: =payout($A47,AX47,$C47:AW47,DS47,$BY47:DS47) -> 0 | DU47: =payout($A47,AY47,$C47:AX47,DT47,$BY47:DT47) -> 0 | DV47: =payout($A47,AZ47,$C47:AY47,DU47,$BY47:DU47) -> 0 | DW47: =payout($A47,BA47,$C47:AZ47,DV47,$BY47:DV47) -> 0 | DX47: =payout($A47,BB47,$C47:BA47,DW47,$BY47:DW47) -> 0 | DY47: =payout($A47,BC47,$C47:BB47,DX47,$BY47:DX47) -> 0 | DZ47: =payout($A47,BD47,$C47:BC47,DY47,$BY47:DY47) -> 0 | EA47: =payout($A47,BE47,$C47:BD47,DZ47,$BY47:DZ47) -> 0 | EB47: =payout($A47,BF47,$C47:BE47,EA47,$BY47:EA47) -> 0 | EC47: =payout($A47,BG47,$C47:BF47,EB47,$BY47:EB47) -> 0 | ED47: =payout($A47,BH47,$C47:BG47,EC47,$BY47:EC47) -> 0 | EE47: =payout($A47,BI47,$C47:BH47,ED47,$BY47:ED47) -> 0 | EF47: =payout($A47,BJ47,$C47:BI47,EE47,$BY47:EE47) -> 0 | EG47: =payout($A47,BK47,$C47:BJ47,EF47,$BY47:EF47) -> 0 | EH47: =payout($A47,BL47,$C47:BK47,EG47,$BY47:EG47) -> 0 | EI47: =payout($A47,BM47,$C47:BL47,EH47,$BY47:EH47) -> 0 | EJ47: =payout($A47,BN47,$C47:BM47,EI47,$BY47:EI47) -> 0 | EK47: =payout($A47,BO47,$C47:BN47,EJ47,$BY47:EJ47) -> 0 | EL47: =payout($A47,BP47,$C47:BO47,EK47,$BY47:EK47) -> 0 | EM47: =payout($A47,BQ47,$C47:BP47,EL47,$BY47:EL47) -> 0 | EN47: =payout($A47,BR47,$C47:BQ47,EM47,$BY47:EM47) -> 0 | EO47: =payout($A47,BS47,$C47:BR47,EN47,$BY47:EN47) -> 0 | EP47: =payout($A47,BT47,$C47:BS47,EO47,$BY47:EO47) -> 0 | EQ47: =payout($A47,BU47,$C47:BT47,EP47,$BY47:EP47) -> 0
A48: =get_bond_grade($A$16:A47,$BX$5,$BY$5,$BZ$5) -> AA | B48: 33 | C48: 1 | D48: =IF(C1051=10000,0,default_model($A48,D$13,$B48,D$14)) -> 1 | E48: 1 | F48: 1 | G48: 1 | H48: 1 | I48: 1 | J48: 1 | K48: 1 | L48: 1 | M48: 1 | N48: 1 | O48: 1 | P48: 1 | Q48: 1 | R48: 1 | S48: 1 | T48: 1 | U48: 1 | V48: 1 | W48: 1 | X48: 1 | Y48: 1 | Z48: 1 | AA48: 1 | AB48: 1 | AC48: 1 | AD48: 1 | AE48: 0 | AF48: 0 | AG48: 0 | AH48: 0 | AI48: 0 | AJ48: =IF(AI1051=10000,0,default_model($A48,AJ$13,$B48,AJ$14)) -> 0 | AK48: 0 | AL48: 0 | AM48: 0 | AN48: 0 | AO48: 0 | AP48: 0 | AQ48: 0 | AR48: 0 | AS48: 0 | AT48: 0 | AU48: 0 | AV48: 0 | AW48: 0 | AX48: 0 | AY48: 0 | AZ48: 0 | BA48: 0 | BB48: 0 | BC48: 0 | BD48: 0 | BE48: 0 | BF48: 0 | BG48: 0 | BH48: 0 | BI48: 0 | BJ48: 0 | BK48: 0 | BL48: 0 | BM48: 0 | BN48: 0 | BO48: 0 | BP48: =IF(BO1051=10000,0,default_model($A48,BP$13,$B48,BP$14)) -> 0 | BQ48: 0 | BR48: 0 | BS48: 0 | BT48: 0 | BU48: 0 | BW48: AA | BX48: 33 | BY48: -10000 | BZ48: =payout($A48,D48,$C48:C48,BY48,$BY48:BY48) -> 7921.03 | CA48: =payout($A48,E48,$C48:D48,BZ48,$BY48:BZ48) -> 7921.03 | CB48: =payout($A48,F48,$C48:E48,CA48,$BY48:CA48) -> 7921.03 | CC48: =payout($A48,G48,$C48:F48,CB48,$BY48:CB48) -> 7921.03 | CD48: =payout($A48,H48,$C48:G48,CC48,$BY48:CC48) -> 7921.03 | CE48: =payout($A48,I48,$C48:H48,CD48,$BY48:CD48) -> 7921.03 | CF48: =payout($A48,J48,$C48:I48,CE48,$BY48:CE48) -> 7921.03 | CG48: =payout($A48,K48,$C48:J48,CF48,$BY48:CF48) -> 7921.03 | CH48: =payout($A48,L48,$C48:K48,CG48,$BY48:CG48) -> 7921.03 | CI48: =payout($A48,M48,$C48:L48,CH48,$BY48:CH48) -> 7921.03 | CJ48: =payout($A48,N48,$C48:M48,CI48,$BY48:CI48) -> 7921.03 | CK48: =payout($A48,O48,$C48:N48,CJ48,$BY48:CJ48) -> 7921.03 | CL48: =payout($A48,P48,$C48:O48,CK48,$BY48:CK48) -> 7921.03 | CM48: =payout($A48,Q48,$C48:P48,CL48,$BY48:CL48) -> 7921.03 | CN48: =payout($A48,R48,$C48:Q48,CM48,$BY48:CM48) -> 7921.03 | CO48: =payout($A48,S48,$C48:R48,CN48,$BY48:CN48) -> 7921.03 | CP48: =payout($A48,T48,$C48:S48,CO48,$BY48:CO48) -> 7921.03 | CQ48: =payout($A48,U48,$C48:T48,CP48,$BY48:CP48) -> 7921.03 | CR48: =payout($A48,V48,$C48:U48,CQ48,$BY48:CQ48) -> 7921.03 | CS48: =payout($A48,W48,$C48:V48,CR48,$BY48:CR48) -> 7921.03 | CT48: =payout($A48,X48,$C48:W48,CS48,$BY48:CS48) -> 7921.03 | CU48: =payout($A48,Y48,$C48:X48,CT48,$BY48:CT48) -> 7921.03 | CV48: =payout($A48,Z48,$C48:Y48,CU48,$BY48:CU48) -> 7921.03 | CW48: =payout($A48,AA48,$C48:Z48,CV48,$BY48:CV48) -> 7921.03 | CX48: =payout($A48,AB48,$C48:AA48,CW48,$BY48:CW48) -> 7921.03 | CY48: =payout($A48,AC48,$C48:AB48,CX48,$BY48:CX48) -> 7921.03 | CZ48: =payout($A48,AD48,$C48:AC48,CY48,$BY48:CY48) -> 7921.03 | DA48: =payout($A48,AE48,$C48:AD48,CZ48,$BY48:CZ48) -> 7921.03 | DB48: =payout($A48,AF48,$C48:AE48,DA48,$BY48:DA48) -> 7921.03 | DC48: =payout($A48,AG48,$C48:AF48,DB48,$BY48:DB48) -> 7921.03 | DD48: =payout($A48,AH48,$C48:AG48,DC48,$BY48:DC48) -> 7921.03 | DE48: =payout($A48,AI48,$C48:AH48,DD48,$BY48:DD48) -> 7921.03 | DF48: =payout($A48,AJ48,$C48:AI48,DE48,$BY48:DE48) -> 7921.03 | DG48: =payout($A48,AK48,$C48:AJ48,DF48,$BY48:DF48) -> 7921.03 | DH48: =payout($A48,AL48,$C48:AK48,DG48,$BY48:DG48) -> 7921.03 | DI48: =payout($A48,AM48,$C48:AL48,DH48,$BY48:DH48) -> 7921.03 | DJ48: =payout($A48,AN48,$C48:AM48,DI48,$BY48:DI48) -> 7921.03 | DK48: =payout($A48,AO48,$C48:AN48,DJ48,$BY48:DJ48) -> 7921.03 | DL48: =payout($A48,AP48,$C48:AO48,DK48,$BY48:DK48) -> 7921.03 | DM48: =payout($A48,AQ48,$C48:AP48,DL48,$BY48:DL48) -> 7921.03 | DN48: =payout($A48,AR48,$C48:AQ48,DM48,$BY48:DM48) -> 17921.03 | DO48: =payout($A48,AS48,$C48:AR48,DN48,$BY48:DN48) -> 0 | DP48: =payout($A48,AT48,$C48:AS48,DO48,$BY48:DO48) -> 0 | DQ48: =payout($A48,AU48,$C48:AT48,DP48,$BY48:DP48) -> 0 | DR48: =payout($A48,AV48,$C48:AU48,DQ48,$BY48:DQ48) -> 0 | DS48: =payout($A48,AW48,$C48:AV48,DR48,$BY48:DR48) -> 0 | DT48: =payout($A48,AX48,$C48:AW48,DS48,$BY48:DS48) -> 0 | DU48: =payout($A48,AY48,$C48:AX48,DT48,$BY48:DT48) -> 0 | DV48: =payout($A48,AZ48,$C48:AY48,DU48,$BY48:DU48) -> 0 | DW48: =payout($A48,BA48,$C48:AZ48,DV48,$BY48:DV48) -> 0 | DX48: =payout($A48,BB48,$C48:BA48,DW48,$BY48:DW48) -> 0 | DY48: =payout($A48,BC48,$C48:BB48,DX48,$BY48:DX48) -> 0 | DZ48: =payout($A48,BD48,$C48:BC48,DY48,$BY48:DY48) -> 0 | EA48: =payout($A48,BE48,$C48:BD48,DZ48,$BY48:DZ48) -> 0 | EB48: =payout($A48,BF48,$C48:BE48,EA48,$BY48:EA48) -> 0 | EC48: =payout($A48,BG48,$C48:BF48,EB48,$BY48:EB48) -> 0 | ED48: =payout($A48,BH48,$C48:BG48,EC48,$BY48:EC48) -> 0 | EE48: =payout($A48,BI48,$C48:BH48,ED48,$BY48:ED48) -> 0 | EF48: =payout($A48,BJ48,$C48:BI48,EE48,$BY48:EE48) -> 0 | EG48: =payout($A48,BK48,$C48:BJ48,EF48,$BY48:EF48) -> 0 | EH48: =payout($A48,BL48,$C48:BK48,EG48,$BY48:EG48) -> 0 | EI48: =payout($A48,BM48,$C48:BL48,EH48,$BY48:EH48) -> 0 | EJ48: =payout($A48,BN48,$C48:BM48,EI48,$BY48:EI48) -> 0 | EK48: =payout($A48,BO48,$C48:BN48,EJ48,$BY48:EJ48) -> 0 | EL48: =payout($A48,BP48,$C48:BO48,EK48,$BY48:EK48) -> 0 | EM48: =payout($A48,BQ48,$C48:BP48,EL48,$BY48:EL48) -> 0 | EN48: =payout($A48,BR48,$C48:BQ48,EM48,$BY48:EM48) -> 0 | EO48: =payout($A48,BS48,$C48:BR48,EN48,$BY48:EN48) -> 0 | EP48: =payout($A48,BT48,$C48:BS48,EO48,$BY48:EO48) -> 0 | EQ48: =payout($A48,BU48,$C48:BT48,EP48,$BY48:EP48) -> 0
A49: =get_bond_grade($A$16:A48,$BX$5,$BY$5,$BZ$5) -> AAA | B49: 34 | C49: 1 | D49: =IF(C1052=10000,0,default_model($A49,D$13,$B49,D$14)) -> 1 | E49: 1 | F49: 1 | G49: 1 | H49: 1 | I49: 1 | J49: 1 | K49: 1 | L49: 0 | M49: 0 | N49: 0 | O49: 0 | P49: 0 | Q49: 0 | R49: 0 | S49: 0 | T49: 0 | U49: 0 | V49: 0 | W49: 0 | X49: 0 | Y49: 0 | Z49: 0 | AA49: 0 | AB49: 0 | AC49: 0 | AD49: 0 | AE49: 0 | AF49: 0 | AG49: 0 | AH49: 0 | AI49: 0 | AJ49: =IF(AI1052=10000,0,default_model($A49,AJ$13,$B49,AJ$14)) -> 0 | AK49: 0 | AL49: 0 | AM49: 0 | AN49: 0 | AO49: 0 | AP49: 0 | AQ49: 0 | AR49: 0 | AS49: 0 | AT49: 0 | AU49: 0 | AV49: 0 | AW49: 0 | AX49: 0 | AY49: 0 | AZ49: 0 | BA49: 0 | BB49: 0 | BC49: 0 | BD49: 0 | BE49: 0 | BF49: 0 | BG49: 0 | BH49: 0 | BI49: 0 | BJ49: 0 | BK49: 0 | BL49: 0 | BM49: 0 | BN49: 0 | BO49: 0 | BP49: =IF(BO1052=10000,0,default_model($A49,BP$13,$B49,BP$14)) -> 0 | BQ49: 0 | BR49: 0 | BS49: 0 | BT49: 0 | BU49: 0 | BW49: AAA | BX49: 34 | BY49: -10000 | BZ49: =payout($A49,D49,$C49:C49,BY49,$BY49:BY49) -> 6299.76 | CA49: =payout($A49,E49,$C49:D49,BZ49,$BY49:BZ49) -> 6299.76 | CB49: =payout($A49,F49,$C49:E49,CA49,$BY49:CA49) -> 6299.76 | CC49: =payout($A49,G49,$C49:F49,CB49,$BY49:CB49) -> 6299.76 | CD49: =payout($A49,H49,$C49:G49,CC49,$BY49:CC49) -> 6299.76 | CE49: =payout($A49,I49,$C49:H49,CD49,$BY49:CD49) -> 6299.76 | CF49: =payout($A49,J49,$C49:I49,CE49,$BY49:CE49) -> 6299.76 | CG49: =payout($A49,K49,$C49:J49,CF49,$BY49:CF49) -> 6299.76 | CH49: =payout($A49,L49,$C49:K49,CG49,$BY49:CG49) -> 6299.76 | CI49: =payout($A49,M49,$C49:L49,CH49,$BY49:CH49) -> 6299.76 | CJ49: =payout($A49,N49,$C49:M49,CI49,$BY49:CI49) -> 6299.76 | CK49: =payout($A49,O49,$C49:N49,CJ49,$BY49:CJ49) -> 6299.76 | CL49: =payout($A49,P49,$C49:O49,CK49,$BY49:CK49) -> 6299.76 | CM49: =payout($A49,Q49,$C49:P49,CL49,$BY49:CL49) -> 6299.76 | CN49: =payout($A49,R49,$C49:Q49,CM49,$BY49:CM49) -> 6299.76 | CO49: =payout($A49,S49,$C49:R49,CN49,$BY49:CN49) -> 6299.76 | CP49: =payout($A49,T49,$C49:S49,CO49,$BY49:CO49) -> 6299.76 | CQ49: =payout($A49,U49,$C49:T49,CP49,$BY49:CP49) -> 6299.76 | CR49: =payout($A49,V49,$C49:U49,CQ49,$BY49:CQ49) -> 6299.76 | CS49: =payout($A49,W49,$C49:V49,CR49,$BY49:CR49) -> 6299.76 | CT49: =payout($A49,X49,$C49:W49,CS49,$BY49:CS49) -> 6299.76 | CU49: =payout($A49,Y49,$C49:X49,CT49,$BY49:CT49) -> 6299.76 | CV49: =payout($A49,Z49,$C49:Y49,CU49,$BY49:CU49) -> 6299.76 | CW49: =payout($A49,AA49,$C49:Z49,CV49,$BY49:CV49) -> 6299.76 | CX49: =payout($A49,AB49,$C49:AA49,CW49,$BY49:CW49) -> 6299.76 | CY49: =payout($A49,AC49,$C49:AB49,CX49,$BY49:CX49) -> 6299.76 | CZ49: =payout($A49,AD49,$C49:AC49,CY49,$BY49:CY49) -> 6299.76 | DA49: =payout($A49,AE49,$C49:AD49,CZ49,$BY49:CZ49) -> 6299.76 | DB49: =payout($A49,AF49,$C49:AE49,DA49,$BY49:DA49) -> 6299.76 | DC49: =payout($A49,AG49,$C49:AF49,DB49,$BY49:DB49) -> 6299.76 | DD49: =payout($A49,AH49,$C49:AG49,DC49,$BY49:DC49) -> 6299.76 | DE49: =payout($A49,AI49,$C49:AH49,DD49,$BY49:DD49) -> 6299.76 | DF49: =payout($A49,AJ49,$C49:AI49,DE49,$BY49:DE49) -> 6299.76 | DG49: =payout($A49,AK49,$C49:AJ49,DF49,$BY49:DF49) -> 6299.76 | DH49: =payout($A49,AL49,$C49:AK49,DG49,$BY49:DG49) -> 6299.76 | DI49: =payout($A49,AM49,$C49:AL49,DH49,$BY49:DH49) -> 6299.76 | DJ49: =payout($A49,AN49,$C49:AM49,DI49,$BY49:DI49) -> 6299.76 | DK49: =payout($A49,AO49,$C49:AN49,DJ49,$BY49:DJ49) -> 6299.76 | DL49: =payout($A49,AP49,$C49:AO49,DK49,$BY49:DK49) -> 6299.76 | DM49: =payout($A49,AQ49,$C49:AP49,DL49,$BY49:DL49) -> 6299.76 | DN49: =payout($A49,AR49,$C49:AQ49,DM49,$BY49:DM49) -> 16299.76 | DO49: =payout($A49,AS49,$C49:AR49,DN49,$BY49:DN49) -> 0 | DP49: =payout($A49,AT49,$C49:AS49,DO49,$BY49:DO49) -> 0 | DQ49: =payout($A49,AU49,$C49:AT49,DP49,$BY49:DP49) -> 0 | DR49: =payout($A49,AV49,$C49:AU49,DQ49,$BY49:DQ49) -> 0 | DS49: =payout($A49,AW49,$C49:AV49,DR49,$BY49:DR49) -> 0 | DT49: =payout($A49,AX49,$C49:AW49,DS49,$BY49:DS49) -> 0 | DU49: =payout($A49,AY49,$C49:AX49,DT49,$BY49:DT49) -> 0 | DV49: =payout($A49,AZ49,$C49:AY49,DU49,$BY49:DU49) -> 0 | DW49: =payout($A49,BA49,$C49:AZ49,DV49,$BY49:DV49) -> 0 | DX49: =payout($A49,BB49,$C49:BA49,DW49,$BY49:DW49) -> 0 | DY49: =payout($A49,BC49,$C49:BB49,DX49,$BY49:DX49) -> 0 | DZ49: =payout($A49,BD49,$C49:BC49,DY49,$BY49:DY49) -> 0 | EA49: =payout($A49,BE49,$C49:BD49,DZ49,$BY49:DZ49) -> 0 | EB49: =payout($A49,BF49,$C49:BE49,EA49,$BY49:EA49) -> 0 | EC49: =payout($A49,BG49,$C49:BF49,EB49,$BY49:EB49) -> 0 | ED49: =payout($A49,BH49,$C49:BG49,EC49,$BY49:EC49) -> 0 | EE49: =payout($A49,BI49,$C49:BH49,ED49,$BY49:ED49) -> 0 | EF49: =payout($A49,BJ49,$C49:BI49,EE49,$BY49:EE49) -> 0 | EG49: =payout($A49,BK49,$C49:BJ49,EF49,$BY49:EF49) -> 0 | EH49: =payout($A49,BL49,$C49:BK49,EG49,$BY49:EG49) -> 0 | EI49: =payout($A49,BM49,$C49:BL49,EH49,$BY49:EH49) -> 0 | EJ49: =payout($A49,BN49,$C49:BM49,EI49,$BY49:EI49) -> 0 | EK49: =payout($A49,BO49,$C49:BN49,EJ49,$BY49:EJ49) -> 0 | EL49: =payout($A49,BP49,$C49:BO49,EK49,$BY49:EK49) -> 0 | EM49: =payout($A49,BQ49,$C49:BP49,EL49,$BY49:EL49) -> 0 | EN49: =payout($A49,BR49,$C49:BQ49,EM49,$BY49:EM49) -> 0 | EO49: =payout($A49,BS49,$C49:BR49,EN49,$BY49:EN49) -> 0 | EP49: =payout($A49,BT49,$C49:BS49,EO49,$BY49:EO49) -> 0 | EQ49: =payout($A49,BU49,$C49:BT49,EP49,$BY49:EP49) -> 0
A50: =get_bond_grade($A$16:A49,$BX$5,$BY$5,$BZ$5) -> AA | B50: 35 | C50: 1 | D50: =IF(C1053=10000,0,default_model($A50,D$13,$B50,D$14)) -> 1 | E50: 1 | F50: 1 | G50: 1 | H50: 1 | I50: 1 | J50: 1 | K50: 1 | L50: 1 | M50: 1 | N50: 1 | O50: 1 | P50: 1 | Q50: 1 | R50: 1 | S50: 1 | T50: 1 | U50: 1 | V50: 1 | W50: 1 | X50: 1 | Y50: 1 | Z50: 1 | AA50: 1 | AB50: 1 | AC50: 1 | AD50: 1 | AE50: 0 | AF50: 0 | AG50: 0 | AH50: 0 | AI50: 0 | AJ50: =IF(AI1053=10000,0,default_model($A50,AJ$13,$B50,AJ$14)) -> 0 | AK50: 0 | AL50: 0 | AM50: 0 | AN50: 0 | AO50: 0 | AP50: 0 | AQ50: 0 | AR50: 0 | AS50: 0 | AT50: 0 | AU50: 0 | AV50: 0 | AW50: 0 | AX50: 0 | AY50: 0 | AZ50: 0 | BA50: 0 | BB50: 0 | BC50: 0 | BD50: 0 | BE50: 0 | BF50: 0 | BG50: 0 | BH50: 0 | BI50: 0 | BJ50: 0 | BK50: 0 | BL50: 0 | BM50: 0 | BN50: 0 | BO50: 0 | BP50: =IF(BO1053=10000,0,default_model($A50,BP$13,$B50,BP$14)) -> 0 | BQ50: 0 | BR50: 0 | BS50: 0 | BT50: 0 | BU50: 0 | BW50: AA | BX50: 35 | BY50: -10000 | BZ50: =payout($A50,D50,$C50:C50,BY50,$BY50:BY50) -> 7921.03 | CA50: =payout($A50,E50,$C50:D50,BZ50,$BY50:BZ50) -> 7921.03 | CB50: =payout($A50,F50,$C50:E50,CA50,$BY50:CA50) -> 7921.03 | CC50: =payout($A50,G50,$C50:F50,CB50,$BY50:CB50) -> 7921.03 | CD50: =payout($A50,H50,$C50:G50,CC50,$BY50:CC50) -> 7921.03 | CE50: =payout($A50,I50,$C50:H50,CD50,$BY50:CD50) -> 7921.03 | CF50: =payout($A50,J50,$C50:I50,CE50,$BY50:CE50) -> 7921.03 | CG50: =payout($A50,K50,$C50:J50,CF50,$BY50:CF50) -> 7921.03 | CH50: =payout($A50,L50,$C50:K50,CG50,$BY50:CG50) -> 7921.03 | CI50: =payout($A50,M50,$C50:L50,CH50,$BY50:CH50) -> 7921.03 | CJ50: =payout($A50,N50,$C50:M50,CI50,$BY50:CI50) -> 7921.03 | CK50: =payout($A50,O50,$C50:N50,CJ50,$BY50:CJ50) -> 7921.03 | CL50: =payout($A50,P50,$C50:O50,CK50,$BY50:CK50) -> 7921.03 | CM50: =payout($A50,Q50,$C50:P50,CL50,$BY50:CL50) -> 7921.03 | CN50: =payout($A50,R50,$C50:Q50,CM50,$BY50:CM50) -> 7921.03 | CO50: =payout($A50,S50,$C50:R50,CN50,$BY50:CN50) -> 7921.03 | CP50: =payout($A50,T50,$C50:S50,CO50,$BY50:CO50) -> 7921.03 | CQ50: =payout($A50,U50,$C50:T50,CP50,$BY50:CP50) -> 7921.03 | CR50: =payout($A50,V50,$C50:U50,CQ50,$BY50:CQ50) -> 7921.03 | CS50: =payout($A50,W50,$C50:V50,CR50,$BY50:CR50) -> 7921.03 | CT50: =payout($A50,X50,$C50:W50,CS50,$BY50:CS50) -> 7921.03 | CU50: =payout($A50,Y50,$C50:X50,CT50,$BY50:CT50) -> 7921.03 | CV50: =payout($A50,Z50,$C50:Y50,CU50,$BY50:CU50) -> 7921.03 | CW50: =payout($A50,AA50,$C50:Z50,CV50,$BY50:CV50) -> 7921.03 | CX50: =payout($A50,AB50,$C50:AA50,CW50,$BY50:CW50) -> 7921.03 | CY50: =payout($A50,AC50,$C50:AB50,CX50,$BY50:CX50) -> 7921.03 | CZ50: =payout($A50,AD50,$C50:AC50,CY50,$BY50:CY50) -> 7921.03 | DA50: =payout($A50,AE50,$C50:AD50,CZ50,$BY50:CZ50) -> 7921.03 | DB50: =payout($A50,AF50,$C50:AE50,DA50,$BY50:DA50) -> 7921.03 | DC50: =payout($A50,AG50,$C50:AF50,DB50,$BY50:DB50) -> 7921.03 | DD50: =payout($A50,AH50,$C50:AG50,DC50,$BY50:DC50) -> 7921.03 | DE50: =payout($A50,AI50,$C50:AH50,DD50,$BY50:DD50) -> 7921.03 | DF50: =payout($A50,AJ50,$C50:AI50,DE50,$BY50:DE50) -> 7921.03 | DG50: =payout($A50,AK50,$C50:AJ50,DF50,$BY50:DF50) -> 7921.03 | DH50: =payout($A50,AL50,$C50:AK50,DG50,$BY50:DG50) -> 7921.03 | DI50: =payout($A50,AM50,$C50:AL50,DH50,$BY50:DH50) -> 7921.03 | DJ50: =payout($A50,AN50,$C50:AM50,DI50,$BY50:DI50) -> 7921.03 | DK50: =payout($A50,AO50,$C50:AN50,DJ50,$BY50:DJ50) -> 7921.03 | DL50: =payout($A50,AP50,$C50:AO50,DK50,$BY50:DK50) -> 7921.03 | DM50: =payout($A50,AQ50,$C50:AP50,DL50,$BY50:DL50) -> 7921.03 | DN50: =payout($A50,AR50,$C50:AQ50,DM50,$BY50:DM50) -> 17921.03 | DO50: =payout($A50,AS50,$C50:AR50,DN50,$BY50:DN50) -> 0 | DP50: =payout($A50,AT50,$C50:AS50,DO50,$BY50:DO50) -> 0 | DQ50: =payout($A50,AU50,$C50:AT50,DP50,$BY50:DP50) -> 0 | DR50: =payout($A50,AV50,$C50:AU50,DQ50,$BY50:DQ50) -> 0 | DS50: =payout($A50,AW50,$C50:AV50,DR50,$BY50:DR50) -> 0 | DT50: =payout($A50,AX50,$C50:AW50,DS50,$BY50:DS50) -> 0 | DU50: =payout($A50,AY50,$C50:AX50,DT50,$BY50:DT50) -> 0 | DV50: =payout($A50,AZ50,$C50:AY50,DU50,$BY50:DU50) -> 0 | DW50: =payout($A50,BA50,$C50:AZ50,DV50,$BY50:DV50) -> 0 | DX50: =payout($A50,BB50,$C50:BA50,DW50,$BY50:DW50) -> 0 | DY50: =payout($A50,BC50,$C50:BB50,DX50,$BY50:DX50) -> 0 | DZ50: =payout($A50,BD50,$C50:BC50,DY50,$BY50:DY50) -> 0 | EA50: =payout($A50,BE50,$C50:BD50,DZ50,$BY50:DZ50) -> 0 | EB50: =payout($A50,BF50,$C50:BE50,EA50,$BY50:EA50) -> 0 | EC50: =payout($A50,BG50,$C50:BF50,EB50,$BY50:EB50) -> 0 | ED50: =payout($A50,BH50,$C50:BG50,EC50,$BY50:EC50) -> 0 | EE50: =payout($A50,BI50,$C50:BH50,ED50,$BY50:ED50) -> 0 | EF50: =payout($A50,BJ50,$C50:BI50,EE50,$BY50:EE50) -> 0 | EG50: =payout($A50,BK50,$C50:BJ50,EF50,$BY50:EF50) -> 0 | EH50: =payout($A50,BL50,$C50:BK50,EG50,$BY50:EG50) -> 0 | EI50: =payout($A50,BM50,$C50:BL50,EH50,$BY50:EH50) -> 0 | EJ50: =payout($A50,BN50,$C50:BM50,EI50,$BY50:EI50) -> 0 | EK50: =payout($A50,BO50,$C50:BN50,EJ50,$BY50:EJ50) -> 0 | EL50: =payout($A50,BP50,$C50:BO50,EK50,$BY50:EK50) -> 0 | EM50: =payout($A50,BQ50,$C50:BP50,EL50,$BY50:EL50) -> 0 | EN50: =payout($A50,BR50,$C50:BQ50,EM50,$BY50:EM50) -> 0 | EO50: =payout($A50,BS50,$C50:BR50,EN50,$BY50:EN50) -> 0 | EP50: =payout($A50,BT50,$C50:BS50,EO50,$BY50:EO50) -> 0 | EQ50: =payout($A50,BU50,$C50:BT50,EP50,$BY50:EP50) -> 0
A51: =get_bond_grade($A$16:A50,$BX$5,$BY$5,$BZ$5) -> A | B51: 36 | C51: 1 | D51: =IF(C1054=10000,0,default_model($A51,D$13,$B51,D$14)) -> 1 | E51: 1 | F51: 1 | G51: 1 | H51: 1 | I51: 1 | J51: 1 | K51: 1 | L51: 1 | M51: 1 | N51: 1 | O51: 1 | P51: 1 | Q51: 1 | R51: 1 | S51: 1 | T51: 1 | U51: 1 | V51: 1 | W51: 1 | X51: 1 | Y51: 1 | Z51: 1 | AA51: 1 | AB51: 1 | AC51: 1 | AD51: 1 | AE51: 0 | AF51: 0 | AG51: 0 | AH51: 0 | AI51: 0 | AJ51: =IF(AI1054=10000,0,default_model($A51,AJ$13,$B51,AJ$14)) -> 0 | AK51: 0 | AL51: 0 | AM51: 0 | AN51: 0 | AO51: 0 | AP51: 0 | AQ51: 0 | AR51: 0 | AS51: 0 | AT51: 0 | AU51: 0 | AV51: 0 | AW51: 0 | AX51: 0 | AY51: 0 | AZ51: 0 | BA51: 0 | BB51: 0 | BC51: 0 | BD51: 0 | BE51: 0 | BF51: 0 | BG51: 0 | BH51: 0 | BI51: 0 | BJ51: 0 | BK51: 0 | BL51: 0 | BM51: 0 | BN51: 0 | BO51: 0 | BP51: =IF(BO1054=10000,0,default_model($A51,BP$13,$B51,BP$14)) -> 0 | BQ51: 0 | BR51: 0 | BS51: 0 | BT51: 0 | BU51: 0 | BW51: A | BX51: 36 | BY51: -10000 | BZ51: =payout($A51,D51,$C51:C51,BY51,$BY51:BY51) -> 12478.46 | CA51: =payout($A51,E51,$C51:D51,BZ51,$BY51:BZ51) -> 12478.46 | CB51: =payout($A51,F51,$C51:E51,CA51,$BY51:CA51) -> 12478.46 | CC51: =payout($A51,G51,$C51:F51,CB51,$BY51:CB51) -> 12478.46 | CD51: =payout($A51,H51,$C51:G51,CC51,$BY51:CC51) -> 12478.46 | CE51: =payout($A51,I51,$C51:H51,CD51,$BY51:CD51) -> 12478.46 | CF51: =payout($A51,J51,$C51:I51,CE51,$BY51:CE51) -> 12478.46 | CG51: =payout($A51,K51,$C51:J51,CF51,$BY51:CF51) -> 12478.46 | CH51: =payout($A51,L51,$C51:K51,CG51,$BY51:CG51) -> 12478.46 | CI51: =payout($A51,M51,$C51:L51,CH51,$BY51:CH51) -> 12478.46 | CJ51: =payout($A51,N51,$C51:M51,CI51,$BY51:CI51) -> 12478.46 | CK51: =payout($A51,O51,$C51:N51,CJ51,$BY51:CJ51) -> 12478.46 | CL51: =payout($A51,P51,$C51:O51,CK51,$BY51:CK51) -> 12478.46 | CM51: =payout($A51,Q51,$C51:P51,CL51,$BY51:CL51) -> 12478.46 | CN51: =payout($A51,R51,$C51:Q51,CM51,$BY51:CM51) -> 12478.46 | CO51: =payout($A51,S51,$C51:R51,CN51,$BY51:CN51) -> 12478.46 | CP51: =payout($A51,T51,$C51:S51,CO51,$BY51:CO51) -> 12478.46 | CQ51: =payout($A51,U51,$C51:T51,CP51,$BY51:CP51) -> 12478.46 | CR51: =payout($A51,V51,$C51:U51,CQ51,$BY51:CQ51) -> 12478.46 | CS51: =payout($A51,W51,$C51:V51,CR51,$BY51:CR51) -> 12478.46 | CT51: =payout($A51,X51,$C51:W51,CS51,$BY51:CS51) -> 12478.46 | CU51: =payout($A51,Y51,$C51:X51,CT51,$BY51:CT51) -> 12478.46 | CV51: =payout($A51,Z51,$C51:Y51,CU51,$BY51:CU51) -> 12478.46 | CW51: =payout($A51,AA51,$C51:Z51,CV51,$BY51:CV51) -> 12478.46 | CX51: =payout($A51,AB51,$C51:AA51,CW51,$BY51:CW51) -> 12478.46 | CY51: =payout($A51,AC51,$C51:AB51,CX51,$BY51:CX51) -> 12478.46 | CZ51: =payout($A51,AD51,$C51:AC51,CY51,$BY51:CY51) -> 12478.46 | DA51: =payout($A51,AE51,$C51:AD51,CZ51,$BY51:CZ51) -> 12478.46 | DB51: =payout($A51,AF51,$C51:AE51,DA51,$BY51:DA51) -> 12478.46 | DC51: =payout($A51,AG51,$C51:AF51,DB51,$BY51:DB51) -> 12478.46 | DD51: =payout($A51,AH51,$C51:AG51,DC51,$BY51:DC51) -> 12478.46 | DE51: =payout($A51,AI51,$C51:AH51,DD51,$BY51:DD51) -> 12478.46 | DF51: =payout($A51,AJ51,$C51:AI51,DE51,$BY51:DE51) -> 12478.46 | DG51: =payout($A51,AK51,$C51:AJ51,DF51,$BY51:DF51) -> 12478.46 | DH51: =payout($A51,AL51,$C51:AK51,DG51,$BY51:DG51) -> 12478.46 | DI51: =payout($A51,AM51,$C51:AL51,DH51,$BY51:DH51) -> 12478.46 | DJ51: =payout($A51,AN51,$C51:AM51,DI51,$BY51:DI51) -> 12478.46 | DK51: =payout($A51,AO51,$C51:AN51,DJ51,$BY51:DJ51) -> 12478.46 | DL51: =payout($A51,AP51,$C51:AO51,DK51,$BY51:DK51) -> 12478.46 | DM51: =payout($A51,AQ51,$C51:AP51,DL51,$BY51:DL51) -> 12478.46 | DN51: =payout($A51,AR51,$C51:AQ51,DM51,$BY51:DM51) -> 22478.46 | DO51: =payout($A51,AS51,$C51:AR51,DN51,$BY51:DN51) -> 0 | DP51: =payout($A51,AT51,$C51:AS51,DO51,$BY51:DO51) -> 0 | DQ51: =payout($A51,AU51,$C51:AT51,DP51,$BY51:DP51) -> 0 | DR51: =payout($A51,AV51,$C51:AU51,DQ51,$BY51:DQ51) -> 0 | DS51: =payout($A51,AW51,$C51:AV51,DR51,$BY51:DR51) -> 0 | DT51: =payout($A51,AX51,$C51:AW51,DS51,$BY51:DS51) -> 0 | DU51: =payout($A51,AY51,$C51:AX51,DT51,$BY51:DT51) -> 0 | DV51: =payout($A51,AZ51,$C51:AY51,DU51,$BY51:DU51) -> 0 | DW51: =payout($A51,BA51,$C51:AZ51,DV51,$BY51:DV51) -> 0 | DX51: =payout($A51,BB51,$C51:BA51,DW51,$BY51:DW51) -> 0 | DY51: =payout($A51,BC51,$C51:BB51,DX51,$BY51:DX51) -> 0 | DZ51: =payout($A51,BD51,$C51:BC51,DY51,$BY51:DY51) -> 0 | EA51: =payout($A51,BE51,$C51:BD51,DZ51,$BY51:DZ51) -> 0 | EB51: =payout($A51,BF51,$C51:BE51,EA51,$BY51:EA51) -> 0 | EC51: =payout($A51,BG51,$C51:BF51,EB51,$BY51:EB51) -> 0 | ED51: =payout($A51,BH51,$C51:BG51,EC51,$BY51:EC51) -> 0 | EE51: =payout($A51,BI51,$C51:BH51,ED51,$BY51:ED51) -> 0 | EF51: =payout($A51,BJ51,$C51:BI51,EE51,$BY51:EE51) -> 0 | EG51: =payout($A51,BK51,$C51:BJ51,EF51,$BY51:EF51) -> 0 | EH51: =payout($A51,BL51,$C51:BK51,EG51,$BY51:EG51) -> 0 | EI51: =payout($A51,BM51,$C51:BL51,EH51,$BY51:EH51) -> 0 | EJ51: =payout($A51,BN51,$C51:BM51,EI51,$BY51:EI51) -> 0 | EK51: =payout($A51,BO51,$C51:BN51,EJ51,$BY51:EJ51) -> 0 | EL51: =payout($A51,BP51,$C51:BO51,EK51,$BY51:EK51) -> 0 | EM51: =payout($A51,BQ51,$C51:BP51,EL51,$BY51:EL51) -> 0 | EN51: =payout($A51,BR51,$C51:BQ51,EM51,$BY51:EM51) -> 0 | EO51: =payout($A51,BS51,$C51:BR51,EN51,$BY51:EN51) -> 0 | EP51: =payout($A51,BT51,$C51:BS51,EO51,$BY51:EO51) -> 0 | EQ51: =payout($A51,BU51,$C51:BT51,EP51,$BY51:EP51) -> 0
A52: =get_bond_grade($A$16:A51,$BX$5,$BY$5,$BZ$5) -> AAA | B52: 37 | C52: 1 | D52: =IF(C1055=10000,0,default_model($A52,D$13,$B52,D$14)) -> 1 | E52: 1 | F52: 1 | G52: 1 | H52: 1 | I52: 1 | J52: 1 | K52: 1 | L52: 1 | M52: 1 | N52: 1 | O52: 1 | P52: 1 | Q52: 1 | R52: 1 | S52: 1 | T52: 1 | U52: 1 | V52: 1 | W52: 1 | X52: 1 | Y52: 1 | Z52: 1 | AA52: 1 | AB52: 1 | AC52: 1 | AD52: 1 | AE52: 0 | AF52: 0 | AG52: 0 | AH52: 0 | AI52: 0 | AJ52: =IF(AI1055=10000,0,default_model($A52,AJ$13,$B52,AJ$14)) -> 0 | AK52: 0 | AL52: 0 | AM52: 0 | AN52: 0 | AO52: 0 | AP52: 0 | AQ52: 0 | AR52: 0 | AS52: 0 | AT52: 0 | AU52: 0 | AV52: 0 | AW52: 0 | AX52: 0 | AY52: 0 | AZ52: 0 | BA52: 0 | BB52: 0 | BC52: 0 | BD52: 0 | BE52: 0 | BF52: 0 | BG52: 0 | BH52: 0 | BI52: 0 | BJ52: 0 | BK52: 0 | BL52: 0 | BM52: 0 | BN52: 0 | BO52: 0 | BP52: =IF(BO1055=10000,0,default_model($A52,BP$13,$B52,BP$14)) -> 0 | BQ52: 0 | BR52: 0 | BS52: 0 | BT52: 0 | BU52: 0 | BW52: AAA | BX52: 37 | BY52: -10000 | BZ52: =payout($A52,D52,$C52:C52,BY52,$BY52:BY52) -> 6299.76 | CA52: =payout($A52,E52,$C52:D52,BZ52,$BY52:BZ52) -> 6299.76 | CB52: =payout($A52,F52,$C52:E52,CA52,$BY52:CA52) -> 6299.76 | CC52: =payout($A52,G52,$C52:F52,CB52,$BY52:CB52) -> 6299.76 | CD52: =payout($A52,H52,$C52:G52,CC52,$BY52:CC52) -> 6299.76 | CE52: =payout($A52,I52,$C52:H52,CD52,$BY52:CD52) -> 6299.76 | CF52: =payout($A52,J52,$C52:I52,CE52,$BY52:CE52) -> 6299.76 | CG52: =payout($A52,K52,$C52:J52,CF52,$BY52:CF52) -> 6299.76 | CH52: =payout($A52,L52,$C52:K52,CG52,$BY52:CG52) -> 6299.76 | CI52: =payout($A52,M52,$C52:L52,CH52,$BY52:CH52) -> 6299.76 | CJ52: =payout($A52,N52,$C52:M52,CI52,$BY52:CI52) -> 6299.76 | CK52: =payout($A52,O52,$C52:N52,CJ52,$BY52:CJ52) -> 6299.76 | CL52: =payout($A52,P52,$C52:O52,CK52,$BY52:CK52) -> 6299.76 | CM52: =payout($A52,Q52,$C52:P52,CL52,$BY52:CL52) -> 6299.76 | CN52: =payout($A52,R52,$C52:Q52,CM52,$BY52:CM52) -> 6299.76 | CO52: =payout($A52,S52,$C52:R52,CN52,$BY52:CN52) -> 6299.76 | CP52: =payout($A52,T52,$C52:S52,CO52,$BY52:CO52) -> 6299.76 | CQ52: =payout($A52,U52,$C52:T52,CP52,$BY52:CP52) -> 6299.76 | CR52: =payout($A52,V52,$C52:U52,CQ52,$BY52:CQ52) -> 6299.76 | CS52: =payout($A52,W52,$C52:V52,CR52,$BY52:CR52) -> 6299.76 | CT52: =payout($A52,X52,$C52:W52,CS52,$BY52:CS52) -> 6299.76 | CU52: =payout($A52,Y52,$C52:X52,CT52,$BY52:CT52) -> 6299.76 | CV52: =payout($A52,Z52,$C52:Y52,CU52,$BY52:CU52) -> 6299.76 | CW52: =payout($A52,AA52,$C52:Z52,CV52,$BY52:CV52) -> 6299.76 | CX52: =payout($A52,AB52,$C52:AA52,CW52,$BY52:CW52) -> 6299.76 | CY52: =payout($A52,AC52,$C52:AB52,CX52,$BY52:CX52) -> 6299.76 | CZ52: =payout($A52,AD52,$C52:AC52,CY52,$BY52:CY52) -> 6299.76 | DA52: =payout($A52,AE52,$C52:AD52,CZ52,$BY52:CZ52) -> 6299.76 | DB52: =payout($A52,AF52,$C52:AE52,DA52,$BY52:DA52) -> 6299.76 | DC52: =payout($A52,AG52,$C52:AF52,DB52,$BY52:DB52) -> 6299.76 | DD52: =payout($A52,AH52,$C52:AG52,DC52,$BY52:DC52) -> 6299.76 | DE52: =payout($A52,AI52,$C52:AH52,DD52,$BY52:DD52) -> 6299.76 | DF52: =payout($A52,AJ52,$C52:AI52,DE52,$BY52:DE52) -> 6299.76 | DG52: =payout($A52,AK52,$C52:AJ52,DF52,$BY52:DF52) -> 6299.76 | DH52: =payout($A52,AL52,$C52:AK52,DG52,$BY52:DG52) -> 6299.76 | DI52: =payout($A52,AM52,$C52:AL52,DH52,$BY52:DH52) -> 6299.76 | DJ52: =payout($A52,AN52,$C52:AM52,DI52,$BY52:DI52) -> 6299.76 | DK52: =payout($A52,AO52,$C52:AN52,DJ52,$BY52:DJ52) -> 6299.76 | DL52: =payout($A52,AP52,$C52:AO52,DK52,$BY52:DK52) -> 6299.76 | DM52: =payout($A52,AQ52,$C52:AP52,DL52,$BY52:DL52) -> 6299.76 | DN52: =payout($A52,AR52,$C52:AQ52,DM52,$BY52:DM52) -> 16299.76 | DO52: =payout($A52,AS52,$C52:AR52,DN52,$BY52:DN52) -> 0 | DP52: =payout($A52,AT52,$C52:AS52,DO52,$BY52:DO52) -> 0 | DQ52: =payout($A52,AU52,$C52:AT52,DP52,$BY52:DP52) -> 0 | DR52: =payout($A52,AV52,$C52:AU52,DQ52,$BY52:DQ52) -> 0 | DS52: =payout($A52,AW52,$C52:AV52,DR52,$BY52:DR52) -> 0 | DT52: =payout($A52,AX52,$C52:AW52,DS52,$BY52:DS52) -> 0 | DU52: =payout($A52,AY52,$C52:AX52,DT52,$BY52:DT52) -> 0 | DV52: =payout($A52,AZ52,$C52:AY52,DU52,$BY52:DU52) -> 0 | DW52: =payout($A52,BA52,$C52:AZ52,DV52,$BY52:DV52) -> 0 | DX52: =payout($A52,BB52,$C52:BA52,DW52,$BY52:DW52) -> 0 | DY52: =payout($A52,BC52,$C52:BB52,DX52,$BY52:DX52) -> 0 | DZ52: =payout($A52,BD52,$C52:BC52,DY52,$BY52:DY52) -> 0 | EA52: =payout($A52,BE52,$C52:BD52,DZ52,$BY52:DZ52) -> 0 | EB52: =payout($A52,BF52,$C52:BE52,EA52,$BY52:EA52) -> 0 | EC52: =payout($A52,BG52,$C52:BF52,EB52,$BY52:EB52) -> 0 | ED52: =payout($A52,BH52,$C52:BG52,EC52,$BY52:EC52) -> 0 | EE52: =payout($A52,BI52,$C52:BH52,ED52,$BY52:ED52) -> 0 | EF52: =payout($A52,BJ52,$C52:BI52,EE52,$BY52:EE52) -> 0 | EG52: =payout($A52,BK52,$C52:BJ52,EF52,$BY52:EF52) -> 0 | EH52: =payout($A52,BL52,$C52:BK52,EG52,$BY52:EG52) -> 0 | EI52: =payout($A52,BM52,$C52:BL52,EH52,$BY52:EH52) -> 0 | EJ52: =payout($A52,BN52,$C52:BM52,EI52,$BY52:EI52) -> 0 | EK52: =payout($A52,BO52,$C52:BN52,EJ52,$BY52:EJ52) -> 0 | EL52: =payout($A52,BP52,$C52:BO52,EK52,$BY52:EK52) -> 0 | EM52: =payout($A52,BQ52,$C52:BP52,EL52,$BY52:EL52) -> 0 | EN52: =payout($A52,BR52,$C52:BQ52,EM52,$BY52:EM52) -> 0 | EO52: =payout($A52,BS52,$C52:BR52,EN52,$BY52:EN52) -> 0 | EP52: =payout($A52,BT52,$C52:BS52,EO52,$BY52:EO52) -> 0 | EQ52: =payout($A52,BU52,$C52:BT52,EP52,$BY52:EP52) -> 0
A53: =get_bond_grade($A$16:A52,$BX$5,$BY$5,$BZ$5) -> AA | B53: 38 | C53: 1 | D53: =IF(C1056=10000,0,default_model($A53,D$13,$B53,D$14)) -> 1 | E53: 1 | F53: 1 | G53: 1 | H53: 1 | I53: 1 | J53: 1 | K53: 1 | L53: 1 | M53: 1 | N53: 1 | O53: 1 | P53: 1 | Q53: 1 | R53: 1 | S53: 1 | T53: 1 | U53: 1 | V53: 1 | W53: 1 | X53: 1 | Y53: 1 | Z53: 1 | AA53: 1 | AB53: 1 | AC53: 1 | AD53: 1 | AE53: 0 | AF53: 0 | AG53: 0 | AH53: 0 | AI53: 0 | AJ53: =IF(AI1056=10000,0,default_model($A53,AJ$13,$B53,AJ$14)) -> 0 | AK53: 0 | AL53: 0 | AM53: 0 | AN53: 0 | AO53: 0 | AP53: 0 | AQ53: 0 | AR53: 0 | AS53: 0 | AT53: 0 | AU53: 0 | AV53: 0 | AW53: 0 | AX53: 0 | AY53: 0 | AZ53: 0 | BA53: 0 | BB53: 0 | BC53: 0 | BD53: 0 | BE53: 0 | BF53: 0 | BG53: 0 | BH53: 0 | BI53: 0 | BJ53: 0 | BK53: 0 | BL53: 0 | BM53: 0 | BN53: 0 | BO53: 0 | BP53: =IF(BO1056=10000,0,default_model($A53,BP$13,$B53,BP$14)) -> 0 | BQ53: 0 | BR53: 0 | BS53: 0 | BT53: 0 | BU53: 0 | BW53: AA | BX53: 38 | BY53: -10000 | BZ53: =payout($A53,D53,$C53:C53,BY53,$BY53:BY53) -> 7921.03 | CA53: =payout($A53,E53,$C53:D53,BZ53,$BY53:BZ53) -> 7921.03 | CB53: =payout($A53,F53,$C53:E53,CA53,$BY53:CA53) -> 7921.03 | CC53: =payout($A53,G53,$C53:F53,CB53,$BY53:CB53) -> 7921.03 | CD53: =payout($A53,H53,$C53:G53,CC53,$BY53:CC53) -> 7921.03 | CE53: =payout($A53,I53,$C53:H53,CD53,$BY53:CD53) -> 7921.03 | CF53: =payout($A53,J53,$C53:I53,CE53,$BY53:CE53) -> 7921.03 | CG53: =payout($A53,K53,$C53:J53,CF53,$BY53:CF53) -> 7921.03 | CH53: =payout($A53,L53,$C53:K53,CG53,$BY53:CG53) -> 7921.03 | CI53: =payout($A53,M53,$C53:L53,CH53,$BY53:CH53) -> 7921.03 | CJ53: =payout($A53,N53,$C53:M53,CI53,$BY53:CI53) -> 7921.03 | CK53: =payout($A53,O53,$C53:N53,CJ53,$BY53:CJ53) -> 7921.03 | CL53: =payout($A53,P53,$C53:O53,CK53,$BY53:CK53) -> 7921.03 | CM53: =payout($A53,Q53,$C53:P53,CL53,$BY53:CL53) -> 7921.03 | CN53: =payout($A53,R53,$C53:Q53,CM53,$BY53:CM53) -> 7921.03 | CO53: =payout($A53,S53,$C53:R53,CN53,$BY53:CN53) -> 7921.03 | CP53: =payout($A53,T53,$C53:S53,CO53,$BY53:CO53) -> 7921.03 | CQ53: =payout($A53,U53,$C53:T53,CP53,$BY53:CP53) -> 7921.03 | CR53: =payout($A53,V53,$C53:U53,CQ53,$BY53:CQ53) -> 7921.03 | CS53: =payout($A53,W53,$C53:V53,CR53,$BY53:CR53) -> 7921.03 | CT53: =payout($A53,X53,$C53:W53,CS53,$BY53:CS53) -> 7921.03 | CU53: =payout($A53,Y53,$C53:X53,CT53,$BY53:CT53) -> 7921.03 | CV53: =payout($A53,Z53,$C53:Y53,CU53,$BY53:CU53) -> 7921.03 | CW53: =payout($A53,AA53,$C53:Z53,CV53,$BY53:CV53) -> 7921.03 | CX53: =payout($A53,AB53,$C53:AA53,CW53,$BY53:CW53) -> 7921.03 | CY53: =payout($A53,AC53,$C53:AB53,CX53,$BY53:CX53) -> 7921.03 | CZ53: =payout($A53,AD53,$C53:AC53,CY53,$BY53:CY53) -> 7921.03 | DA53: =payout($A53,AE53,$C53:AD53,CZ53,$BY53:CZ53) -> 7921.03 | DB53: =payout($A53,AF53,$C53:AE53,DA53,$BY53:DA53) -> 7921.03 | DC53: =payout($A53,AG53,$C53:AF53,DB53,$BY53:DB53) -> 7921.03 | DD53: =payout($A53,AH53,$C53:AG53,DC53,$BY53:DC53) -> 7921.03 | DE53: =payout($A53,AI53,$C53:AH53,DD53,$BY53:DD53) -> 7921.03 | DF53: =payout($A53,AJ53,$C53:AI53,DE53,$BY53:DE53) -> 7921.03 | DG53: =payout($A53,AK53,$C53:AJ53,DF53,$BY53:DF53) -> 7921.03 | DH53: =payout($A53,AL53,$C53:AK53,DG53,$BY53:DG53) -> 7921.03 | DI53: =payout($A53,AM53,$C53:AL53,DH53,$BY53:DH53) -> 7921.03 | DJ53: =payout($A53,AN53,$C53:AM53,DI53,$BY53:DI53) -> 7921.03 | DK53: =payout($A53,AO53,$C53:AN53,DJ53,$BY53:DJ53) -> 7921.03 | DL53: =payout($A53,AP53,$C53:AO53,DK53,$BY53:DK53) -> 7921.03 | DM53: =payout($A53,AQ53,$C53:AP53,DL53,$BY53:DL53) -> 7921.03 | DN53: =payout($A53,AR53,$C53:AQ53,DM53,$BY53:DM53) -> 17921.03 | DO53: =payout($A53,AS53,$C53:AR53,DN53,$BY53:DN53) -> 0 | DP53: =payout($A53,AT53,$C53:AS53,DO53,$BY53:DO53) -> 0 | DQ53: =payout($A53,AU53,$C53:AT53,DP53,$BY53:DP53) -> 0 | DR53: =payout($A53,AV53,$C53:AU53,DQ53,$BY53:DQ53) -> 0 | DS53: =payout($A53,AW53,$C53:AV53,DR53,$BY53:DR53) -> 0 | DT53: =payout($A53,AX53,$C53:AW53,DS53,$BY53:DS53) -> 0 | DU53: =payout($A53,AY53,$C53:AX53,DT53,$BY53:DT53) -> 0 | DV53: =payout($A53,AZ53,$C53:AY53,DU53,$BY53:DU53) -> 0 | DW53: =payout($A53,BA53,$C53:AZ53,DV53,$BY53:DV53) -> 0 | DX53: =payout($A53,BB53,$C53:BA53,DW53,$BY53:DW53) -> 0 | DY53: =payout($A53,BC53,$C53:BB53,DX53,$BY53:DX53) -> 0 | DZ53: =payout($A53,BD53,$C53:BC53,DY53,$BY53:DY53) -> 0 | EA53: =payout($A53,BE53,$C53:BD53,DZ53,$BY53:DZ53) -> 0 | EB53: =payout($A53,BF53,$C53:BE53,EA53,$BY53:EA53) -> 0 | EC53: =payout($A53,BG53,$C53:BF53,EB53,$BY53:EB53) -> 0 | ED53: =payout($A53,BH53,$C53:BG53,EC53,$BY53:EC53) -> 0 | EE53: =payout($A53,BI53,$C53:BH53,ED53,$BY53:ED53) -> 0 | EF53: =payout($A53,BJ53,$C53:BI53,EE53,$BY53:EE53) -> 0 | EG53: =payout($A53,BK53,$C53:BJ53,EF53,$BY53:EF53) -> 0 | EH53: =payout($A53,BL53,$C53:BK53,EG53,$BY53:EG53) -> 0 | EI53: =payout($A53,BM53,$C53:BL53,EH53,$BY53:EH53) -> 0 | EJ53: =payout($A53,BN53,$C53:BM53,EI53,$BY53:EI53) -> 0 | EK53: =payout($A53,BO53,$C53:BN53,EJ53,$BY53:EJ53) -> 0 | EL53: =payout($A53,BP53,$C53:BO53,EK53,$BY53:EK53) -> 0 | EM53: =payout($A53,BQ53,$C53:BP53,EL53,$BY53:EL53) -> 0 | EN53: =payout($A53,BR53,$C53:BQ53,EM53,$BY53:EM53) -> 0 | EO53: =payout($A53,BS53,$C53:BR53,EN53,$BY53:EN53) -> 0 | EP53: =payout($A53,BT53,$C53:BS53,EO53,$BY53:EO53) -> 0 | EQ53: =payout($A53,BU53,$C53:BT53,EP53,$BY53:EP53) -> 0
A54: =get_bond_grade($A$16:A53,$BX$5,$BY$5,$BZ$5) -> AAA | B54: 39 | C54: 1 | D54: =IF(C1057=10000,0,default_model($A54,D$13,$B54,D$14)) -> 1 | E54: 1 | F54: 1 | G54: 1 | H54: 1 | I54: 1 | J54: 1 | K54: 1 | L54: 1 | M54: 1 | N54: 1 | O54: 1 | P54: 1 | Q54: 1 | R54: 1 | S54: 1 | T54: 1 | U54: 1 | V54: 1 | W54: 1 | X54: 1 | Y54: 1 | Z54: 1 | AA54: 1 | AB54: 1 | AC54: 1 | AD54: 1 | AE54: 0 | AF54: 0 | AG54: 0 | AH54: 0 | AI54: 0 | AJ54: =IF(AI1057=10000,0,default_model($A54,AJ$13,$B54,AJ$14)) -> 0 | AK54: 0 | AL54: 0 | AM54: 0 | AN54: 0 | AO54: 0 | AP54: 0 | AQ54: 0 | AR54: 0 | AS54: 0 | AT54: 0 | AU54: 0 | AV54: 0 | AW54: 0 | AX54: 0 | AY54: 0 | AZ54: 0 | BA54: 0 | BB54: 0 | BC54: 0 | BD54: 0 | BE54: 0 | BF54: 0 | BG54: 0 | BH54: 0 | BI54: 0 | BJ54: 0 | BK54: 0 | BL54: 0 | BM54: 0 | BN54: 0 | BO54: 0 | BP54: =IF(BO1057=10000,0,default_model($A54,BP$13,$B54,BP$14)) -> 0 | BQ54: 0 | BR54: 0 | BS54: 0 | BT54: 0 | BU54: 0 | BW54: AAA | BX54: 39 | BY54: -10000 | BZ54: =payout($A54,D54,$C54:C54,BY54,$BY54:BY54) -> 6299.76 | CA54: =payout($A54,E54,$C54:D54,BZ54,$BY54:BZ54) -> 6299.76 | CB54: =payout($A54,F54,$C54:E54,CA54,$BY54:CA54) -> 6299.76 | CC54: =payout($A54,G54,$C54:F54,CB54,$BY54:CB54) -> 6299.76 | CD54: =payout($A54,H54,$C54:G54,CC54,$BY54:CC54) -> 6299.76 | CE54: =payout($A54,I54,$C54:H54,CD54,$BY54:CD54) -> 6299.76 | CF54: =payout($A54,J54,$C54:I54,CE54,$BY54:CE54) -> 6299.76 | CG54: =payout($A54,K54,$C54:J54,CF54,$BY54:CF54) -> 6299.76 | CH54: =payout($A54,L54,$C54:K54,CG54,$BY54:CG54) -> 6299.76 | CI54: =payout($A54,M54,$C54:L54,CH54,$BY54:CH54) -> 6299.76 | CJ54: =payout($A54,N54,$C54:M54,CI54,$BY54:CI54) -> 6299.76 | CK54: =payout($A54,O54,$C54:N54,CJ54,$BY54:CJ54) -> 6299.76 | CL54: =payout($A54,P54,$C54:O54,CK54,$BY54:CK54) -> 6299.76 | CM54: =payout($A54,Q54,$C54:P54,CL54,$BY54:CL54) -> 6299.76 | CN54: =payout($A54,R54,$C54:Q54,CM54,$BY54:CM54) -> 6299.76 | CO54: =payout($A54,S54,$C54:R54,CN54,$BY54:CN54) -> 6299.76 | CP54: =payout($A54,T54,$C54:S54,CO54,$BY54:CO54) -> 6299.76 | CQ54: =payout($A54,U54,$C54:T54,CP54,$BY54:CP54) -> 6299.76 | CR54: =payout($A54,V54,$C54:U54,CQ54,$BY54:CQ54) -> 6299.76 | CS54: =payout($A54,W54,$C54:V54,CR54,$BY54:CR54) -> 6299.76 | CT54: =payout($A54,X54,$C54:W54,CS54,$BY54:CS54) -> 6299.76 | CU54: =payout($A54,Y54,$C54:X54,CT54,$BY54:CT54) -> 6299.76 | CV54: =payout($A54,Z54,$C54:Y54,CU54,$BY54:CU54) -> 6299.76 | CW54: =payout($A54,AA54,$C54:Z54,CV54,$BY54:CV54) -> 6299.76 | CX54: =payout($A54,AB54,$C54:AA54,CW54,$BY54:CW54) -> 6299.76 | CY54: =payout($A54,AC54,$C54:AB54,CX54,$BY54:CX54) -> 6299.76 | CZ54: =payout($A54,AD54,$C54:AC54,CY54,$BY54:CY54) -> 6299.76 | DA54: =payout($A54,AE54,$C54:AD54,CZ54,$BY54:CZ54) -> 6299.76 | DB54: =payout($A54,AF54,$C54:AE54,DA54,$BY54:DA54) -> 6299.76 | DC54: =payout($A54,AG54,$C54:AF54,DB54,$BY54:DB54) -> 6299.76 | DD54: =payout($A54,AH54,$C54:AG54,DC54,$BY54:DC54) -> 6299.76 | DE54: =payout($A54,AI54,$C54:AH54,DD54,$BY54:DD54) -> 6299.76 | DF54: =payout($A54,AJ54,$C54:AI54,DE54,$BY54:DE54) -> 6299.76 | DG54: =payout($A54,AK54,$C54:AJ54,DF54,$BY54:DF54) -> 6299.76 | DH54: =payout($A54,AL54,$C54:AK54,DG54,$BY54:DG54) -> 6299.76 | DI54: =payout($A54,AM54,$C54:AL54,DH54,$BY54:DH54) -> 6299.76 | DJ54: =payout($A54,AN54,$C54:AM54,DI54,$BY54:DI54) -> 6299.76 | DK54: =payout($A54,AO54,$C54:AN54,DJ54,$BY54:DJ54) -> 6299.76 | DL54: =payout($A54,AP54,$C54:AO54,DK54,$BY54:DK54) -> 6299.76 | DM54: =payout($A54,AQ54,$C54:AP54,DL54,$BY54:DL54) -> 6299.76 | DN54: =payout($A54,AR54,$C54:AQ54,DM54,$BY54:DM54) -> 16299.76 | DO54: =payout($A54,AS54,$C54:AR54,DN54,$BY54:DN54) -> 0 | DP54: =payout($A54,AT54,$C54:AS54,DO54,$BY54:DO54) -> 0 | DQ54: =payout($A54,AU54,$C54:AT54,DP54,$BY54:DP54) -> 0 | DR54: =payout($A54,AV54,$C54:AU54,DQ54,$BY54:DQ54) -> 0 | DS54: =payout($A54,AW54,$C54:AV54,DR54,$BY54:DR54) -> 0 | DT54: =payout($A54,AX54,$C54:AW54,DS54,$BY54:DS54) -> 0 | DU54: =payout($A54,AY54,$C54:AX54,DT54,$BY54:DT54) -> 0 | DV54: =payout($A54,AZ54,$C54:AY54,DU54,$BY54:DU54) -> 0 | DW54: =payout($A54,BA54,$C54:AZ54,DV54,$BY54:DV54) -> 0 | DX54: =payout($A54,BB54,$C54:BA54,DW54,$BY54:DW54) -> 0 | DY54: =payout($A54,BC54,$C54:BB54,DX54,$BY54:DX54) -> 0 | DZ54: =payout($A54,BD54,$C54:BC54,DY54,$BY54:DY54) -> 0 | EA54: =payout($A54,BE54,$C54:BD54,DZ54,$BY54:DZ54) -> 0 | EB54: =payout($A54,BF54,$C54:BE54,EA54,$BY54:EA54) -> 0 | EC54: =payout($A54,BG54,$C54:BF54,EB54,$BY54:EB54) -> 0 | ED54: =payout($A54,BH54,$C54:BG54,EC54,$BY54:EC54) -> 0 | EE54: =payout($A54,BI54,$C54:BH54,ED54,$BY54:ED54) -> 0 | EF54: =payout($A54,BJ54,$C54:BI54,EE54,$BY54:EE54) -> 0 | EG54: =payout($A54,BK54,$C54:BJ54,EF54,$BY54:EF54) -> 0 | EH54: =payout($A54,BL54,$C54:BK54,EG54,$BY54:EG54) -> 0 | EI54: =payout($A54,BM54,$C54:BL54,EH54,$BY54:EH54) -> 0 | EJ54: =payout($A54,BN54,$C54:BM54,EI54,$BY54:EI54) -> 0 | EK54: =payout($A54,BO54,$C54:BN54,EJ54,$BY54:EJ54) -> 0 | EL54: =payout($A54,BP54,$C54:BO54,EK54,$BY54:EK54) -> 0 | EM54: =payout($A54,BQ54,$C54:BP54,EL54,$BY54:EL54) -> 0 | EN54: =payout($A54,BR54,$C54:BQ54,EM54,$BY54:EM54) -> 0 | EO54: =payout($A54,BS54,$C54:BR54,EN54,$BY54:EN54) -> 0 | EP54: =payout($A54,BT54,$C54:BS54,EO54,$BY54:EO54) -> 0 | EQ54: =payout($A54,BU54,$C54:BT54,EP54,$BY54:EP54) -> 0
A55: =get_bond_grade($A$16:A54,$BX$5,$BY$5,$BZ$5) -> A | B55: 40 | C55: 1 | D55: =IF(C1058=10000,0,default_model($A55,D$13,$B55,D$14)) -> 1 | E55: 1 | F55: 1 | G55: 0 | H55: 0 | I55: 0 | J55: 0 | K55: 0 | L55: 0 | M55: 0 | N55: 0 | O55: 0 | P55: 0 | Q55: 0 | R55: 0 | S55: 0 | T55: 0 | U55: 0 | V55: 0 | W55: 0 | X55: 0 | Y55: 0 | Z55: 0 | AA55: 0 | AB55: 0 | AC55: 0 | AD55: 0 | AE55: 0 | AF55: 0 | AG55: 0 | AH55: 0 | AI55: 0 | AJ55: =IF(AI1058=10000,0,default_model($A55,AJ$13,$B55,AJ$14)) -> 0 | AK55: 0 | AL55: 0 | AM55: 0 | AN55: 0 | AO55: 0 | AP55: 0 | AQ55: 0 | AR55: 0 | AS55: 0 | AT55: 0 | AU55: 0 | AV55: 0 | AW55: 0 | AX55: 0 | AY55: 0 | AZ55: 0 | BA55: 0 | BB55: 0 | BC55: 0 | BD55: 0 | BE55: 0 | BF55: 0 | BG55: 0 | BH55: 0 | BI55: 0 | BJ55: 0 | BK55: 0 | BL55: 0 | BM55: 0 | BN55: 0 | BO55: 0 | BP55: =IF(BO1058=10000,0,default_model($A55,BP$13,$B55,BP$14)) -> 0 | BQ55: 0 | BR55: 0 | BS55: 0 | BT55: 0 | BU55: 0 | BW55: A | BX55: 40 | BY55: -10000 | BZ55: =payout($A55,D55,$C55:C55,BY55,$BY55:BY55) -> 12478.46 | CA55: =payout($A55,E55,$C55:D55,BZ55,$BY55:BZ55) -> 12478.46 | CB55: =payout($A55,F55,$C55:E55,CA55,$BY55:CA55) -> 12478.46 | CC55: =payout($A55,G55,$C55:F55,CB55,$BY55:CB55) -> 12478.46 | CD55: =payout($A55,H55,$C55:G55,CC55,$BY55:CC55) -> 12478.46 | CE55: =payout($A55,I55,$C55:H55,CD55,$BY55:CD55) -> 12478.46 | CF55: =payout($A55,J55,$C55:I55,CE55,$BY55:CE55) -> 12478.46 | CG55: =payout($A55,K55,$C55:J55,CF55,$BY55:CF55) -> 12478.46 | CH55: =payout($A55,L55,$C55:K55,CG55,$BY55:CG55) -> 12478.46 | CI55: =payout($A55,M55,$C55:L55,CH55,$BY55:CH55) -> 12478.46 | CJ55: =payout($A55,N55,$C55:M55,CI55,$BY55:CI55) -> 12478.46 | CK55: =payout($A55,O55,$C55:N55,CJ55,$BY55:CJ55) -> 12478.46 | CL55: =payout($A55,P55,$C55:O55,CK55,$BY55:CK55) -> 12478.46 | CM55: =payout($A55,Q55,$C55:P55,CL55,$BY55:CL55) -> 12478.46 | CN55: =payout($A55,R55,$C55:Q55,CM55,$BY55:CM55) -> 12478.46 | CO55: =payout($A55,S55,$C55:R55,CN55,$BY55:CN55) -> 12478.46 | CP55: =payout($A55,T55,$C55:S55,CO55,$BY55:CO55) -> 12478.46 | CQ55: =payout($A55,U55,$C55:T55,CP55,$BY55:CP55) -> 12478.46 | CR55: =payout($A55,V55,$C55:U55,CQ55,$BY55:CQ55) -> 12478.46 | CS55: =payout($A55,W55,$C55:V55,CR55,$BY55:CR55) -> 12478.46 | CT55: =payout($A55,X55,$C55:W55,CS55,$BY55:CS55) -> 12478.46 | CU55: =payout($A55,Y55,$C55:X55,CT55,$BY55:CT55) -> 12478.46 | CV55: =payout($A55,Z55,$C55:Y55,CU55,$BY55:CU55) -> 12478.46 | CW55: =payout($A55,AA55,$C55:Z55,CV55,$BY55:CV55) -> 12478.46 | CX55: =payout($A55,AB55,$C55:AA55,CW55,$BY55:CW55) -> 12478.46 | CY55: =payout($A55,AC55,$C55:AB55,CX55,$BY55:CX55) -> 12478.46 | CZ55: =payout($A55,AD55,$C55:AC55,CY55,$BY55:CY55) -> 12478.46 | DA55: =payout($A55,AE55,$C55:AD55,CZ55,$BY55:CZ55) -> 12478.46 | DB55: =payout($A55,AF55,$C55:AE55,DA55,$BY55:DA55) -> 12478.46 | DC55: =payout($A55,AG55,$C55:AF55,DB55,$BY55:DB55) -> 12478.46 | DD55: =payout($A55,AH55,$C55:AG55,DC55,$BY55:DC55) -> 12478.46 | DE55: =payout($A55,AI55,$C55:AH55,DD55,$BY55:DD55) -> 12478.46 | DF55: =payout($A55,AJ55,$C55:AI55,DE55,$BY55:DE55) -> 12478.46 | DG55: =payout($A55,AK55,$C55:AJ55,DF55,$BY55:DF55) -> 12478.46 | DH55: =payout($A55,AL55,$C55:AK55,DG55,$BY55:DG55) -> 12478.46 | DI55: =payout($A55,AM55,$C55:AL55,DH55,$BY55:DH55) -> 12478.46 | DJ55: =payout($A55,AN55,$C55:AM55,DI55,$BY55:DI55) -> 12478.46 | DK55: =payout($A55,AO55,$C55:AN55,DJ55,$BY55:DJ55) -> 12478.46 | DL55: =payout($A55,AP55,$C55:AO55,DK55,$BY55:DK55) -> 12478.46 | DM55: =payout($A55,AQ55,$C55:AP55,DL55,$BY55:DL55) -> 12478.46 | DN55: =payout($A55,AR55,$C55:AQ55,DM55,$BY55:DM55) -> 22478.46 | DO55: =payout($A55,AS55,$C55:AR55,DN55,$BY55:DN55) -> 0 | DP55: =payout($A55,AT55,$C55:AS55,DO55,$BY55:DO55) -> 0 | DQ55: =payout($A55,AU55,$C55:AT55,DP55,$BY55:DP55) -> 0 | DR55: =payout($A55,AV55,$C55:AU55,DQ55,$BY55:DQ55) -> 0 | DS55: =payout($A55,AW55,$C55:AV55,DR55,$BY55:DR55) -> 0 | DT55: =payout($A55,AX55,$C55:AW55,DS55,$BY55:DS55) -> 0 | DU55: =payout($A55,AY55,$C55:AX55,DT55,$BY55:DT55) -> 0 | DV55: =payout($A55,AZ55,$C55:AY55,DU55,$BY55:DU55) -> 0 | DW55: =payout($A55,BA55,$C55:AZ55,DV55,$BY55:DV55) -> 0 | DX55: =payout($A55,BB55,$C55:BA55,DW55,$BY55:DW55) -> 0 | DY55: =payout($A55,BC55,$C55:BB55,DX55,$BY55:DX55) -> 0 | DZ55: =payout($A55,BD55,$C55:BC55,DY55,$BY55:DY55) -> 0 | EA55: =payout($A55,BE55,$C55:BD55,DZ55,$BY55:DZ55) -> 0 | EB55: =payout($A55,BF55,$C55:BE55,EA55,$BY55:EA55) -> 0 | EC55: =payout($A55,BG55,$C55:BF55,EB55,$BY55:EB55) -> 0 | ED55: =payout($A55,BH55,$C55:BG55,EC55,$BY55:EC55) -> 0 | EE55: =payout($A55,BI55,$C55:BH55,ED55,$BY55:ED55) -> 0 | EF55: =payout($A55,BJ55,$C55:BI55,EE55,$BY55:EE55) -> 0 | EG55: =payout($A55,BK55,$C55:BJ55,EF55,$BY55:EF55) -> 0 | EH55: =payout($A55,BL55,$C55:BK55,EG55,$BY55:EG55) -> 0 | EI55: =payout($A55,BM55,$C55:BL55,EH55,$BY55:EH55) -> 0 | EJ55: =payout($A55,BN55,$C55:BM55,EI55,$BY55:EI55) -> 0 | EK55: =payout($A55,BO55,$C55:BN55,EJ55,$BY55:EJ55) -> 0 | EL55: =payout($A55,BP55,$C55:BO55,EK55,$BY55:EK55) -> 0 | EM55: =payout($A55,BQ55,$C55:BP55,EL55,$BY55:EL55) -> 0 | EN55: =payout($A55,BR55,$C55:BQ55,EM55,$BY55:EM55) -> 0 | EO55: =payout($A55,BS55,$C55:BR55,EN55,$BY55:EN55) -> 0 | EP55: =payout($A55,BT55,$C55:BS55,EO55,$BY55:EO55) -> 0 | EQ55: =payout($A55,BU55,$C55:BT55,EP55,$BY55:EP55) -> 0
A56: =get_bond_grade($A$16:A55,$BX$5,$BY$5,$BZ$5) -> A | B56: 41 | C56: 1 | D56: =IF(C1059=10000,0,default_model($A56,D$13,$B56,D$14)) -> 1 | E56: 1 | F56: 1 | G56: 1 | H56: 1 | I56: 1 | J56: 1 | K56: 1 | L56: 1 | M56: 1 | N56: 1 | O56: 1 | P56: 1 | Q56: 1 | R56: 1 | S56: 1 | T56: 1 | U56: 1 | V56: 1 | W56: 1 | X56: 1 | Y56: 1 | Z56: 1 | AA56: 1 | AB56: 1 | AC56: 1 | AD56: 1 | AE56: 0 | AF56: 0 | AG56: 0 | AH56: 0 | AI56: 0 | AJ56: =IF(AI1059=10000,0,default_model($A56,AJ$13,$B56,AJ$14)) -> 0 | AK56: 0 | AL56: 0 | AM56: 0 | AN56: 0 | AO56: 0 | AP56: 0 | AQ56: 0 | AR56: 0 | AS56: 0 | AT56: 0 | AU56: 0 | AV56: 0 | AW56: 0 | AX56: 0 | AY56: 0 | AZ56: 0 | BA56: 0 | BB56: 0 | BC56: 0 | BD56: 0 | BE56: 0 | BF56: 0 | BG56: 0 | BH56: 0 | BI56: 0 | BJ56: 0 | BK56: 0 | BL56: 0 | BM56: 0 | BN56: 0 | BO56: 0 | BP56: =IF(BO1059=10000,0,default_model($A56,BP$13,$B56,BP$14)) -> 0 | BQ56: 0 | BR56: 0 | BS56: 0 | BT56: 0 | BU56: 0 | BW56: A | BX56: 41 | BY56: -10000 | BZ56: =payout($A56,D56,$C56:C56,BY56,$BY56:BY56) -> 12478.46 | CA56: =payout($A56,E56,$C56:D56,BZ56,$BY56:BZ56) -> 12478.46 | CB56: =payout($A56,F56,$C56:E56,CA56,$BY56:CA56) -> 12478.46 | CC56: =payout($A56,G56,$C56:F56,CB56,$BY56:CB56) -> 12478.46 | CD56: =payout($A56,H56,$C56:G56,CC56,$BY56:CC56) -> 12478.46 | CE56: =payout($A56,I56,$C56:H56,CD56,$BY56:CD56) -> 12478.46 | CF56: =payout($A56,J56,$C56:I56,CE56,$BY56:CE56) -> 12478.46 | CG56: =payout($A56,K56,$C56:J56,CF56,$BY56:CF56) -> 12478.46 | CH56: =payout($A56,L56,$C56:K56,CG56,$BY56:CG56) -> 12478.46 | CI56: =payout($A56,M56,$C56:L56,CH56,$BY56:CH56) -> 12478.46 | CJ56: =payout($A56,N56,$C56:M56,CI56,$BY56:CI56) -> 12478.46 | CK56: =payout($A56,O56,$C56:N56,CJ56,$BY56:CJ56) -> 12478.46 | CL56: =payout($A56,P56,$C56:O56,CK56,$BY56:CK56) -> 12478.46 | CM56: =payout($A56,Q56,$C56:P56,CL56,$BY56:CL56) -> 12478.46 | CN56: =payout($A56,R56,$C56:Q56,CM56,$BY56:CM56) -> 12478.46 | CO56: =payout($A56,S56,$C56:R56,CN56,$BY56:CN56) -> 12478.46 | CP56: =payout($A56,T56,$C56:S56,CO56,$BY56:CO56) -> 12478.46 | CQ56: =payout($A56,U56,$C56:T56,CP56,$BY56:CP56) -> 12478.46 | CR56: =payout($A56,V56,$C56:U56,CQ56,$BY56:CQ56) -> 12478.46 | CS56: =payout($A56,W56,$C56:V56,CR56,$BY56:CR56) -> 12478.46 | CT56: =payout($A56,X56,$C56:W56,CS56,$BY56:CS56) -> 12478.46 | CU56: =payout($A56,Y56,$C56:X56,CT56,$BY56:CT56) -> 12478.46 | CV56: =payout($A56,Z56,$C56:Y56,CU56,$BY56:CU56) -> 12478.46 | CW56: =payout($A56,AA56,$C56:Z56,CV56,$BY56:CV56) -> 12478.46 | CX56: =payout($A56,AB56,$C56:AA56,CW56,$BY56:CW56) -> 12478.46 | CY56: =payout($A56,AC56,$C56:AB56,CX56,$BY56:CX56) -> 12478.46 | CZ56: =payout($A56,AD56,$C56:AC56,CY56,$BY56:CY56) -> 12478.46 | DA56: =payout($A56,AE56,$C56:AD56,CZ56,$BY56:CZ56) -> 12478.46 | DB56: =payout($A56,AF56,$C56:AE56,DA56,$BY56:DA56) -> 12478.46 | DC56: =payout($A56,AG56,$C56:AF56,DB56,$BY56:DB56) -> 12478.46 | DD56: =payout($A56,AH56,$C56:AG56,DC56,$BY56:DC56) -> 12478.46 | DE56: =payout($A56,AI56,$C56:AH56,DD56,$BY56:DD56) -> 12478.46 | DF56: =payout($A56,AJ56,$C56:AI56,DE56,$BY56:DE56) -> 12478.46 | DG56: =payout($A56,AK56,$C56:AJ56,DF56,$BY56:DF56) -> 12478.46 | DH56: =payout($A56,AL56,$C56:AK56,DG56,$BY56:DG56) -> 12478.46 | DI56: =payout($A56,AM56,$C56:AL56,DH56,$BY56:DH56) -> 12478.46 | DJ56: =payout($A56,AN56,$C56:AM56,DI56,$BY56:DI56) -> 12478.46 | DK56: =payout($A56,AO56,$C56:AN56,DJ56,$BY56:DJ56) -> 12478.46 | DL56: =payout($A56,AP56,$C56:AO56,DK56,$BY56:DK56) -> 12478.46 | DM56: =payout($A56,AQ56,$C56:AP56,DL56,$BY56:DL56) -> 12478.46 | DN56: =payout($A56,AR56,$C56:AQ56,DM56,$BY56:DM56) -> 22478.46 | DO56: =payout($A56,AS56,$C56:AR56,DN56,$BY56:DN56) -> 0 | DP56: =payout($A56,AT56,$C56:AS56,DO56,$BY56:DO56) -> 0 | DQ56: =payout($A56,AU56,$C56:AT56,DP56,$BY56:DP56) -> 0 | DR56: =payout($A56,AV56,$C56:AU56,DQ56,$BY56:DQ56) -> 0 | DS56: =payout($A56,AW56,$C56:AV56,DR56,$BY56:DR56) -> 0 | DT56: =payout($A56,AX56,$C56:AW56,DS56,$BY56:DS56) -> 0 | DU56: =payout($A56,AY56,$C56:AX56,DT56,$BY56:DT56) -> 0 | DV56: =payout($A56,AZ56,$C56:AY56,DU56,$BY56:DU56) -> 0 | DW56: =payout($A56,BA56,$C56:AZ56,DV56,$BY56:DV56) -> 0 | DX56: =payout($A56,BB56,$C56:BA56,DW56,$BY56:DW56) -> 0 | DY56: =payout($A56,BC56,$C56:BB56,DX56,$BY56:DX56) -> 0 | DZ56: =payout($A56,BD56,$C56:BC56,DY56,$BY56:DY56) -> 0 | EA56: =payout($A56,BE56,$C56:BD56,DZ56,$BY56:DZ56) -> 0 | EB56: =payout($A56,BF56,$C56:BE56,EA56,$BY56:EA56) -> 0 | EC56: =payout($A56,BG56,$C56:BF56,EB56,$BY56:EB56) -> 0 | ED56: =payout($A56,BH56,$C56:BG56,EC56,$BY56:EC56) -> 0 | EE56: =payout($A56,BI56,$C56:BH56,ED56,$BY56:ED56) -> 0 | EF56: =payout($A56,BJ56,$C56:BI56,EE56,$BY56:EE56) -> 0 | EG56: =payout($A56,BK56,$C56:BJ56,EF56,$BY56:EF56) -> 0 | EH56: =payout($A56,BL56,$C56:BK56,EG56,$BY56:EG56) -> 0 | EI56: =payout($A56,BM56,$C56:BL56,EH56,$BY56:EH56) -> 0 | EJ56: =payout($A56,BN56,$C56:BM56,EI56,$BY56:EI56) -> 0 | EK56: =payout($A56,BO56,$C56:BN56,EJ56,$BY56:EJ56) -> 0 | EL56: =payout($A56,BP56,$C56:BO56,EK56,$BY56:EK56) -> 0 | EM56: =payout($A56,BQ56,$C56:BP56,EL56,$BY56:EL56) -> 0 | EN56: =payout($A56,BR56,$C56:BQ56,EM56,$BY56:EM56) -> 0 | EO56: =payout($A56,BS56,$C56:BR56,EN56,$BY56:EN56) -> 0 | EP56: =payout($A56,BT56,$C56:BS56,EO56,$BY56:EO56) -> 0 | EQ56: =payout($A56,BU56,$C56:BT56,EP56,$BY56:EP56) -> 0
A57: =get_bond_grade($A$16:A56,$BX$5,$BY$5,$BZ$5) -> AAA | B57: 42 | C57: 1 | D57: =IF(C1060=10000,0,default_model($A57,D$13,$B57,D$14)) -> 1 | E57: 1 | F57: 1 | G57: 1 | H57: 1 | I57: 1 | J57: 1 | K57: 1 | L57: 1 | M57: 1 | N57: 1 | O57: 1 | P57: 1 | Q57: 1 | R57: 1 | S57: 1 | T57: 1 | U57: 1 | V57: 1 | W57: 1 | X57: 1 | Y57: 1 | Z57: 1 | AA57: 1 | AB57: 1 | AC57: 1 | AD57: 1 | AE57: 0 | AF57: 0 | AG57: 0 | AH57: 0 | AI57: 0 | AJ57: =IF(AI1060=10000,0,default_model($A57,AJ$13,$B57,AJ$14)) -> 0 | AK57: 0 | AL57: 0 | AM57: 0 | AN57: 0 | AO57: 0 | AP57: 0 | AQ57: 0 | AR57: 0 | AS57: 0 | AT57: 0 | AU57: 0 | AV57: 0 | AW57: 0 | AX57: 0 | AY57: 0 | AZ57: 0 | BA57: 0 | BB57: 0 | BC57: 0 | BD57: 0 | BE57: 0 | BF57: 0 | BG57: 0 | BH57: 0 | BI57: 0 | BJ57: 0 | BK57: 0 | BL57: 0 | BM57: 0 | BN57: 0 | BO57: 0 | BP57: =IF(BO1060=10000,0,default_model($A57,BP$13,$B57,BP$14)) -> 0 | BQ57: 0 | BR57: 0 | BS57: 0 | BT57: 0 | BU57: 0 | BW57: AAA | BX57: 42 | BY57: -10000 | BZ57: =payout($A57,D57,$C57:C57,BY57,$BY57:BY57) -> 6299.76 | CA57: =payout($A57,E57,$C57:D57,BZ57,$BY57:BZ57) -> 6299.76 | CB57: =payout($A57,F57,$C57:E57,CA57,$BY57:CA57) -> 6299.76 | CC57: =payout($A57,G57,$C57:F57,CB57,$BY57:CB57) -> 6299.76 | CD57: =payout($A57,H57,$C57:G57,CC57,$BY57:CC57) -> 6299.76 | CE57: =payout($A57,I57,$C57:H57,CD57,$BY57:CD57) -> 6299.76 | CF57: =payout($A57,J57,$C57:I57,CE57,$BY57:CE57) -> 6299.76 | CG57: =payout($A57,K57,$C57:J57,CF57,$BY57:CF57) -> 6299.76 | CH57: =payout($A57,L57,$C57:K57,CG57,$BY57:CG57) -> 6299.76 | CI57: =payout($A57,M57,$C57:L57,CH57,$BY57:CH57) -> 6299.76 | CJ57: =payout($A57,N57,$C57:M57,CI57,$BY57:CI57) -> 6299.76 | CK57: =payout($A57,O57,$C57:N57,CJ57,$BY57:CJ57) -> 6299.76 | CL57: =payout($A57,P57,$C57:O57,CK57,$BY57:CK57) -> 6299.76 | CM57: =payout($A57,Q57,$C57:P57,CL57,$BY57:CL57) -> 6299.76 | CN57: =payout($A57,R57,$C57:Q57,CM57,$BY57:CM57) -> 6299.76 | CO57: =payout($A57,S57,$C57:R57,CN57,$BY57:CN57) -> 6299.76 | CP57: =payout($A57,T57,$C57:S57,CO57,$BY57:CO57) -> 6299.76 | CQ57: =payout($A57,U57,$C57:T57,CP57,$BY57:CP57) -> 6299.76 | CR57: =payout($A57,V57,$C57:U57,CQ57,$BY57:CQ57) -> 6299.76 | CS57: =payout($A57,W57,$C57:V57,CR57,$BY57:CR57) -> 6299.76 | CT57: =payout($A57,X57,$C57:W57,CS57,$BY57:CS57) -> 6299.76 | CU57: =payout($A57,Y57,$C57:X57,CT57,$BY57:CT57) -> 6299.76 | CV57: =payout($A57,Z57,$C57:Y57,CU57,$BY57:CU57) -> 6299.76 | CW57: =payout($A57,AA57,$C57:Z57,CV57,$BY57:CV57) -> 6299.76 | CX57: =payout($A57,AB57,$C57:AA57,CW57,$BY57:CW57) -> 6299.76 | CY57: =payout($A57,AC57,$C57:AB57,CX57,$BY57:CX57) -> 6299.76 | CZ57: =payout($A57,AD57,$C57:AC57,CY57,$BY57:CY57) -> 6299.76 | DA57: =payout($A57,AE57,$C57:AD57,CZ57,$BY57:CZ57) -> 6299.76 | DB57: =payout($A57,AF57,$C57:AE57,DA57,$BY57:DA57) -> 6299.76 | DC57: =payout($A57,AG57,$C57:AF57,DB57,$BY57:DB57) -> 6299.76 | DD57: =payout($A57,AH57,$C57:AG57,DC57,$BY57:DC57) -> 6299.76 | DE57: =payout($A57,AI57,$C57:AH57,DD57,$BY57:DD57) -> 6299.76 | DF57: =payout($A57,AJ57,$C57:AI57,DE57,$BY57:DE57) -> 6299.76 | DG57: =payout($A57,AK57,$C57:AJ57,DF57,$BY57:DF57) -> 6299.76 | DH57: =payout($A57,AL57,$C57:AK57,DG57,$BY57:DG57) -> 6299.76 | DI57: =payout($A57,AM57,$C57:AL57,DH57,$BY57:DH57) -> 6299.76 | DJ57: =payout($A57,AN57,$C57:AM57,DI57,$BY57:DI57) -> 6299.76 | DK57: =payout($A57,AO57,$C57:AN57,DJ57,$BY57:DJ57) -> 6299.76 | DL57: =payout($A57,AP57,$C57:AO57,DK57,$BY57:DK57) -> 6299.76 | DM57: =payout($A57,AQ57,$C57:AP57,DL57,$BY57:DL57) -> 6299.76 | DN57: =payout($A57,AR57,$C57:AQ57,DM57,$BY57:DM57) -> 16299.76 | DO57: =payout($A57,AS57,$C57:AR57,DN57,$BY57:DN57) -> 0 | DP57: =payout($A57,AT57,$C57:AS57,DO57,$BY57:DO57) -> 0 | DQ57: =payout($A57,AU57,$C57:AT57,DP57,$BY57:DP57) -> 0 | DR57: =payout($A57,AV57,$C57:AU57,DQ57,$BY57:DQ57) -> 0 | DS57: =payout($A57,AW57,$C57:AV57,DR57,$BY57:DR57) -> 0 | DT57: =payout($A57,AX57,$C57:AW57,DS57,$BY57:DS57) -> 0 | DU57: =payout($A57,AY57,$C57:AX57,DT57,$BY57:DT57) -> 0 | DV57: =payout($A57,AZ57,$C57:AY57,DU57,$BY57:DU57) -> 0 | DW57: =payout($A57,BA57,$C57:AZ57,DV57,$BY57:DV57) -> 0 | DX57: =payout($A57,BB57,$C57:BA57,DW57,$BY57:DW57) -> 0 | DY57: =payout($A57,BC57,$C57:BB57,DX57,$BY57:DX57) -> 0 | DZ57: =payout($A57,BD57,$C57:BC57,DY57,$BY57:DY57) -> 0 | EA57: =payout($A57,BE57,$C57:BD57,DZ57,$BY57:DZ57) -> 0 | EB57: =payout($A57,BF57,$C57:BE57,EA57,$BY57:EA57) -> 0 | EC57: =payout($A57,BG57,$C57:BF57,EB57,$BY57:EB57) -> 0 | ED57: =payout($A57,BH57,$C57:BG57,EC57,$BY57:EC57) -> 0 | EE57: =payout($A57,BI57,$C57:BH57,ED57,$BY57:ED57) -> 0 | EF57: =payout($A57,BJ57,$C57:BI57,EE57,$BY57:EE57) -> 0 | EG57: =payout($A57,BK57,$C57:BJ57,EF57,$BY57:EF57) -> 0 | EH57: =payout($A57,BL57,$C57:BK57,EG57,$BY57:EG57) -> 0 | EI57: =payout($A57,BM57,$C57:BL57,EH57,$BY57:EH57) -> 0 | EJ57: =payout($A57,BN57,$C57:BM57,EI57,$BY57:EI57) -> 0 | EK57: =payout($A57,BO57,$C57:BN57,EJ57,$BY57:EJ57) -> 0 | EL57: =payout($A57,BP57,$C57:BO57,EK57,$BY57:EK57) -> 0 | EM57: =payout($A57,BQ57,$C57:BP57,EL57,$BY57:EL57) -> 0 | EN57: =payout($A57,BR57,$C57:BQ57,EM57,$BY57:EM57) -> 0 | EO57: =payout($A57,BS57,$C57:BR57,EN57,$BY57:EN57) -> 0 | EP57: =payout($A57,BT57,$C57:BS57,EO57,$BY57:EO57) -> 0 | EQ57: =payout($A57,BU57,$C57:BT57,EP57,$BY57:EP57) -> 0
A58: =get_bond_grade($A$16:A57,$BX$5,$BY$5,$BZ$5) -> AA | B58: 43 | C58: 1 | D58: =IF(C1061=10000,0,default_model($A58,D$13,$B58,D$14)) -> 1 | E58: 1 | F58: 1 | G58: 1 | H58: 1 | I58: 1 | J58: 1 | K58: 1 | L58: 1 | M58: 1 | N58: 1 | O58: 1 | P58: 1 | Q58: 1 | R58: 1 | S58: 1 | T58: 1 | U58: 1 | V58: 1 | W58: 1 | X58: 1 | Y58: 1 | Z58: 1 | AA58: 1 | AB58: 1 | AC58: 1 | AD58: 1 | AE58: 0 | AF58: 0 | AG58: 0 | AH58: 0 | AI58: 0 | AJ58: =IF(AI1061=10000,0,default_model($A58,AJ$13,$B58,AJ$14)) -> 0 | AK58: 0 | AL58: 0 | AM58: 0 | AN58: 0 | AO58: 0 | AP58: 0 | AQ58: 0 | AR58: 0 | AS58: 0 | AT58: 0 | AU58: 0 | AV58: 0 | AW58: 0 | AX58: 0 | AY58: 0 | AZ58: 0 | BA58: 0 | BB58: 0 | BC58: 0 | BD58: 0 | BE58: 0 | BF58: 0 | BG58: 0 | BH58: 0 | BI58: 0 | BJ58: 0 | BK58: 0 | BL58: 0 | BM58: 0 | BN58: 0 | BO58: 0 | BP58: =IF(BO1061=10000,0,default_model($A58,BP$13,$B58,BP$14)) -> 0 | BQ58: 0 | BR58: 0 | BS58: 0 | BT58: 0 | BU58: 0 | BW58: AA | BX58: 43 | BY58: -10000 | BZ58: =payout($A58,D58,$C58:C58,BY58,$BY58:BY58) -> 7921.03 | CA58: =payout($A58,E58,$C58:D58,BZ58,$BY58:BZ58) -> 7921.03 | CB58: =payout($A58,F58,$C58:E58,CA58,$BY58:CA58) -> 7921.03 | CC58: =payout($A58,G58,$C58:F58,CB58,$BY58:CB58) -> 7921.03 | CD58: =payout($A58,H58,$C58:G58,CC58,$BY58:CC58) -> 7921.03 | CE58: =payout($A58,I58,$C58:H58,CD58,$BY58:CD58) -> 7921.03 | CF58: =payout($A58,J58,$C58:I58,CE58,$BY58:CE58) -> 7921.03 | CG58: =payout($A58,K58,$C58:J58,CF58,$BY58:CF58) -> 7921.03 | CH58: =payout($A58,L58,$C58:K58,CG58,$BY58:CG58) -> 7921.03 | CI58: =payout($A58,M58,$C58:L58,CH58,$BY58:CH58) -> 7921.03 | CJ58: =payout($A58,N58,$C58:M58,CI58,$BY58:CI58) -> 7921.03 | CK58: =payout($A58,O58,$C58:N58,CJ58,$BY58:CJ58) -> 7921.03 | CL58: =payout($A58,P58,$C58:O58,CK58,$BY58:CK58) -> 7921.03 | CM58: =payout($A58,Q58,$C58:P58,CL58,$BY58:CL58) -> 7921.03 | CN58: =payout($A58,R58,$C58:Q58,CM58,$BY58:CM58) -> 7921.03 | CO58: =payout($A58,S58,$C58:R58,CN58,$BY58:CN58) -> 7921.03 | CP58: =payout($A58,T58,$C58:S58,CO58,$BY58:CO58) -> 7921.03 | CQ58: =payout($A58,U58,$C58:T58,CP58,$BY58:CP58) -> 7921.03 | CR58: =payout($A58,V58,$C58:U58,CQ58,$BY58:CQ58) -> 7921.03 | CS58: =payout($A58,W58,$C58:V58,CR58,$BY58:CR58) -> 7921.03 | CT58: =payout($A58,X58,$C58:W58,CS58,$BY58:CS58) -> 7921.03 | CU58: =payout($A58,Y58,$C58:X58,CT58,$BY58:CT58) -> 7921.03 | CV58: =payout($A58,Z58,$C58:Y58,CU58,$BY58:CU58) -> 7921.03 | CW58: =payout($A58,AA58,$C58:Z58,CV58,$BY58:CV58) -> 7921.03 | CX58: =payout($A58,AB58,$C58:AA58,CW58,$BY58:CW58) -> 7921.03 | CY58: =payout($A58,AC58,$C58:AB58,CX58,$BY58:CX58) -> 7921.03 | CZ58: =payout($A58,AD58,$C58:AC58,CY58,$BY58:CY58) -> 7921.03 | DA58: =payout($A58,AE58,$C58:AD58,CZ58,$BY58:CZ58) -> 7921.03 | DB58: =payout($A58,AF58,$C58:AE58,DA58,$BY58:DA58) -> 7921.03 | DC58: =payout($A58,AG58,$C58:AF58,DB58,$BY58:DB58) -> 7921.03 | DD58: =payout($A58,AH58,$C58:AG58,DC58,$BY58:DC58) -> 7921.03 | DE58: =payout($A58,AI58,$C58:AH58,DD58,$BY58:DD58) -> 7921.03 | DF58: =payout($A58,AJ58,$C58:AI58,DE58,$BY58:DE58) -> 7921.03 | DG58: =payout($A58,AK58,$C58:AJ58,DF58,$BY58:DF58) -> 7921.03 | DH58: =payout($A58,AL58,$C58:AK58,DG58,$BY58:DG58) -> 7921.03 | DI58: =payout($A58,AM58,$C58:AL58,DH58,$BY58:DH58) -> 7921.03 | DJ58: =payout($A58,AN58,$C58:AM58,DI58,$BY58:DI58) -> 7921.03 | DK58: =payout($A58,AO58,$C58:AN58,DJ58,$BY58:DJ58) -> 7921.03 | DL58: =payout($A58,AP58,$C58:AO58,DK58,$BY58:DK58) -> 7921.03 | DM58: =payout($A58,AQ58,$C58:AP58,DL58,$BY58:DL58) -> 7921.03 | DN58: =payout($A58,AR58,$C58:AQ58,DM58,$BY58:DM58) -> 17921.03 | DO58: =payout($A58,AS58,$C58:AR58,DN58,$BY58:DN58) -> 0 | DP58: =payout($A58,AT58,$C58:AS58,DO58,$BY58:DO58) -> 0 | DQ58: =payout($A58,AU58,$C58:AT58,DP58,$BY58:DP58) -> 0 | DR58: =payout($A58,AV58,$C58:AU58,DQ58,$BY58:DQ58) -> 0 | DS58: =payout($A58,AW58,$C58:AV58,DR58,$BY58:DR58) -> 0 | DT58: =payout($A58,AX58,$C58:AW58,DS58,$BY58:DS58) -> 0 | DU58: =payout($A58,AY58,$C58:AX58,DT58,$BY58:DT58) -> 0 | DV58: =payout($A58,AZ58,$C58:AY58,DU58,$BY58:DU58) -> 0 | DW58: =payout($A58,BA58,$C58:AZ58,DV58,$BY58:DV58) -> 0 | DX58: =payout($A58,BB58,$C58:BA58,DW58,$BY58:DW58) -> 0 | DY58: =payout($A58,BC58,$C58:BB58,DX58,$BY58:DX58) -> 0 | DZ58: =payout($A58,BD58,$C58:BC58,DY58,$BY58:DY58) -> 0 | EA58: =payout($A58,BE58,$C58:BD58,DZ58,$BY58:DZ58) -> 0 | EB58: =payout($A58,BF58,$C58:BE58,EA58,$BY58:EA58) -> 0 | EC58: =payout($A58,BG58,$C58:BF58,EB58,$BY58:EB58) -> 0 | ED58: =payout($A58,BH58,$C58:BG58,EC58,$BY58:EC58) -> 0 | EE58: =payout($A58,BI58,$C58:BH58,ED58,$BY58:ED58) -> 0 | EF58: =payout($A58,BJ58,$C58:BI58,EE58,$BY58:EE58) -> 0 | EG58: =payout($A58,BK58,$C58:BJ58,EF58,$BY58:EF58) -> 0 | EH58: =payout($A58,BL58,$C58:BK58,EG58,$BY58:EG58) -> 0 | EI58: =payout($A58,BM58,$C58:BL58,EH58,$BY58:EH58) -> 0 | EJ58: =payout($A58,BN58,$C58:BM58,EI58,$BY58:EI58) -> 0 | EK58: =payout($A58,BO58,$C58:BN58,EJ58,$BY58:EJ58) -> 0 | EL58: =payout($A58,BP58,$C58:BO58,EK58,$BY58:EK58) -> 0 | EM58: =payout($A58,BQ58,$C58:BP58,EL58,$BY58:EL58) -> 0 | EN58: =payout($A58,BR58,$C58:BQ58,EM58,$BY58:EM58) -> 0 | EO58: =payout($A58,BS58,$C58:BR58,EN58,$BY58:EN58) -> 0 | EP58: =payout($A58,BT58,$C58:BS58,EO58,$BY58:EO58) -> 0 | EQ58: =payout($A58,BU58,$C58:BT58,EP58,$BY58:EP58) -> 0
A59: =get_bond_grade($A$16:A58,$BX$5,$BY$5,$BZ$5) -> AAA | B59: 44 | C59: 1 | D59: =IF(C1062=10000,0,default_model($A59,D$13,$B59,D$14)) -> 1 | E59: 1 | F59: 1 | G59: 1 | H59: 1 | I59: 1 | J59: 1 | K59: 1 | L59: 1 | M59: 1 | N59: 1 | O59: 1 | P59: 1 | Q59: 1 | R59: 1 | S59: 1 | T59: 1 | U59: 1 | V59: 1 | W59: 1 | X59: 1 | Y59: 1 | Z59: 1 | AA59: 1 | AB59: 1 | AC59: 1 | AD59: 1 | AE59: 0 | AF59: 0 | AG59: 0 | AH59: 0 | AI59: 0 | AJ59: =IF(AI1062=10000,0,default_model($A59,AJ$13,$B59,AJ$14)) -> 0 | AK59: 0 | AL59: 0 | AM59: 0 | AN59: 0 | AO59: 0 | AP59: 0 | AQ59: 0 | AR59: 0 | AS59: 0 | AT59: 0 | AU59: 0 | AV59: 0 | AW59: 0 | AX59: 0 | AY59: 0 | AZ59: 0 | BA59: 0 | BB59: 0 | BC59: 0 | BD59: 0 | BE59: 0 | BF59: 0 | BG59: 0 | BH59: 0 | BI59: 0 | BJ59: 0 | BK59: 0 | BL59: 0 | BM59: 0 | BN59: 0 | BO59: 0 | BP59: =IF(BO1062=10000,0,default_model($A59,BP$13,$B59,BP$14)) -> 0 | BQ59: 0 | BR59: 0 | BS59: 0 | BT59: 0 | BU59: 0 | BW59: AAA | BX59: 44 | BY59: -10000 | BZ59: =payout($A59,D59,$C59:C59,BY59,$BY59:BY59) -> 6299.76 | CA59: =payout($A59,E59,$C59:D59,BZ59,$BY59:BZ59) -> 6299.76 | CB59: =payout($A59,F59,$C59:E59,CA59,$BY59:CA59) -> 6299.76 | CC59: =payout($A59,G59,$C59:F59,CB59,$BY59:CB59) -> 6299.76 | CD59: =payout($A59,H59,$C59:G59,CC59,$BY59:CC59) -> 6299.76 | CE59: =payout($A59,I59,$C59:H59,CD59,$BY59:CD59) -> 6299.76 | CF59: =payout($A59,J59,$C59:I59,CE59,$BY59:CE59) -> 6299.76 | CG59: =payout($A59,K59,$C59:J59,CF59,$BY59:CF59) -> 6299.76 | CH59: =payout($A59,L59,$C59:K59,CG59,$BY59:CG59) -> 6299.76 | CI59: =payout($A59,M59,$C59:L59,CH59,$BY59:CH59) -> 6299.76 | CJ59: =payout($A59,N59,$C59:M59,CI59,$BY59:CI59) -> 6299.76 | CK59: =payout($A59,O59,$C59:N59,CJ59,$BY59:CJ59) -> 6299.76 | CL59: =payout($A59,P59,$C59:O59,CK59,$BY59:CK59) -> 6299.76 | CM59: =payout($A59,Q59,$C59:P59,CL59,$BY59:CL59) -> 6299.76 | CN59: =payout($A59,R59,$C59:Q59,CM59,$BY59:CM59) -> 6299.76 | CO59: =payout($A59,S59,$C59:R59,CN59,$BY59:CN59) -> 6299.76 | CP59: =payout($A59,T59,$C59:S59,CO59,$BY59:CO59) -> 6299.76 | CQ59: =payout($A59,U59,$C59:T59,CP59,$BY59:CP59) -> 6299.76 | CR59: =payout($A59,V59,$C59:U59,CQ59,$BY59:CQ59) -> 6299.76 | CS59: =payout($A59,W59,$C59:V59,CR59,$BY59:CR59) -> 6299.76 | CT59: =payout($A59,X59,$C59:W59,CS59,$BY59:CS59) -> 6299.76 | CU59: =payout($A59,Y59,$C59:X59,CT59,$BY59:CT59) -> 6299.76 | CV59: =payout($A59,Z59,$C59:Y59,CU59,$BY59:CU59) -> 6299.76 | CW59: =payout($A59,AA59,$C59:Z59,CV59,$BY59:CV59) -> 6299.76 | CX59: =payout($A59,AB59,$C59:AA59,CW59,$BY59:CW59) -> 6299.76 | CY59: =payout($A59,AC59,$C59:AB59,CX59,$BY59:CX59) -> 6299.76 | CZ59: =payout($A59,AD59,$C59:AC59,CY59,$BY59:CY59) -> 6299.76 | DA59: =payout($A59,AE59,$C59:AD59,CZ59,$BY59:CZ59) -> 6299.76 | DB59: =payout($A59,AF59,$C59:AE59,DA59,$BY59:DA59) -> 6299.76 | DC59: =payout($A59,AG59,$C59:AF59,DB59,$BY59:DB59) -> 6299.76 | DD59: =payout($A59,AH59,$C59:AG59,DC59,$BY59:DC59) -> 6299.76 | DE59: =payout($A59,AI59,$C59:AH59,DD59,$BY59:DD59) -> 6299.76 | DF59: =payout($A59,AJ59,$C59:AI59,DE59,$BY59:DE59) -> 6299.76 | DG59: =payout($A59,AK59,$C59:AJ59,DF59,$BY59:DF59) -> 6299.76 | DH59: =payout($A59,AL59,$C59:AK59,DG59,$BY59:DG59) -> 6299.76 | DI59: =payout($A59,AM59,$C59:AL59,DH59,$BY59:DH59) -> 6299.76 | DJ59: =payout($A59,AN59,$C59:AM59,DI59,$BY59:DI59) -> 6299.76 | DK59: =payout($A59,AO59,$C59:AN59,DJ59,$BY59:DJ59) -> 6299.76 | DL59: =payout($A59,AP59,$C59:AO59,DK59,$BY59:DK59) -> 6299.76 | DM59: =payout($A59,AQ59,$C59:AP59,DL59,$BY59:DL59) -> 6299.76 | DN59: =payout($A59,AR59,$C59:AQ59,DM59,$BY59:DM59) -> 16299.76 | DO59: =payout($A59,AS59,$C59:AR59,DN59,$BY59:DN59) -> 0 | DP59: =payout($A59,AT59,$C59:AS59,DO59,$BY59:DO59) -> 0 | DQ59: =payout($A59,AU59,$C59:AT59,DP59,$BY59:DP59) -> 0 | DR59: =payout($A59,AV59,$C59:AU59,DQ59,$BY59:DQ59) -> 0 | DS59: =payout($A59,AW59,$C59:AV59,DR59,$BY59:DR59) -> 0 | DT59: =payout($A59,AX59,$C59:AW59,DS59,$BY59:DS59) -> 0 | DU59: =payout($A59,AY59,$C59:AX59,DT59,$BY59:DT59) -> 0 | DV59: =payout($A59,AZ59,$C59:AY59,DU59,$BY59:DU59) -> 0 | DW59: =payout($A59,BA59,$C59:AZ59,DV59,$BY59:DV59) -> 0 | DX59: =payout($A59,BB59,$C59:BA59,DW59,$BY59:DW59) -> 0 | DY59: =payout($A59,BC59,$C59:BB59,DX59,$BY59:DX59) -> 0 | DZ59: =payout($A59,BD59,$C59:BC59,DY59,$BY59:DY59) -> 0 | EA59: =payout($A59,BE59,$C59:BD59,DZ59,$BY59:DZ59) -> 0 | EB59: =payout($A59,BF59,$C59:BE59,EA59,$BY59:EA59) -> 0 | EC59: =payout($A59,BG59,$C59:BF59,EB59,$BY59:EB59) -> 0 | ED59: =payout($A59,BH59,$C59:BG59,EC59,$BY59:EC59) -> 0 | EE59: =payout($A59,BI59,$C59:BH59,ED59,$BY59:ED59) -> 0 | EF59: =payout($A59,BJ59,$C59:BI59,EE59,$BY59:EE59) -> 0 | EG59: =payout($A59,BK59,$C59:BJ59,EF59,$BY59:EF59) -> 0 | EH59: =payout($A59,BL59,$C59:BK59,EG59,$BY59:EG59) -> 0 | EI59: =payout($A59,BM59,$C59:BL59,EH59,$BY59:EH59) -> 0 | EJ59: =payout($A59,BN59,$C59:BM59,EI59,$BY59:EI59) -> 0 | EK59: =payout($A59,BO59,$C59:BN59,EJ59,$BY59:EJ59) -> 0 | EL59: =payout($A59,BP59,$C59:BO59,EK59,$BY59:EK59) -> 0 | EM59: =payout($A59,BQ59,$C59:BP59,EL59,$BY59:EL59) -> 0 | EN59: =payout($A59,BR59,$C59:BQ59,EM59,$BY59:EM59) -> 0 | EO59: =payout($A59,BS59,$C59:BR59,EN59,$BY59:EN59) -> 0 | EP59: =payout($A59,BT59,$C59:BS59,EO59,$BY59:EO59) -> 0 | EQ59: =payout($A59,BU59,$C59:BT59,EP59,$BY59:EP59) -> 0
A60: =get_bond_grade($A$16:A59,$BX$5,$BY$5,$BZ$5) -> AA | B60: 45 | C60: 1 | D60: =IF(C1063=10000,0,default_model($A60,D$13,$B60,D$14)) -> 1 | E60: 1 | F60: 1 | G60: 1 | H60: 1 | I60: 1 | J60: 1 | K60: 1 | L60: 1 | M60: 1 | N60: 1 | O60: 1 | P60: 1 | Q60: 1 | R60: 1 | S60: 1 | T60: 1 | U60: 1 | V60: 1 | W60: 1 | X60: 1 | Y60: 1 | Z60: 1 | AA60: 1 | AB60: 1 | AC60: 1 | AD60: 1 | AE60: 0 | AF60: 0 | AG60: 0 | AH60: 0 | AI60: 0 | AJ60: =IF(AI1063=10000,0,default_model($A60,AJ$13,$B60,AJ$14)) -> 0 | AK60: 0 | AL60: 0 | AM60: 0 | AN60: 0 | AO60: 0 | AP60: 0 | AQ60: 0 | AR60: 0 | AS60: 0 | AT60: 0 | AU60: 0 | AV60: 0 | AW60: 0 | AX60: 0 | AY60: 0 | AZ60: 0 | BA60: 0 | BB60: 0 | BC60: 0 | BD60: 0 | BE60: 0 | BF60: 0 | BG60: 0 | BH60: 0 | BI60: 0 | BJ60: 0 | BK60: 0 | BL60: 0 | BM60: 0 | BN60: 0 | BO60: 0 | BP60: =IF(BO1063=10000,0,default_model($A60,BP$13,$B60,BP$14)) -> 0 | BQ60: 0 | BR60: 0 | BS60: 0 | BT60: 0 | BU60: 0 | BW60: AA | BX60: 45 | BY60: -10000 | BZ60: =payout($A60,D60,$C60:C60,BY60,$BY60:BY60) -> 7921.03 | CA60: =payout($A60,E60,$C60:D60,BZ60,$BY60:BZ60) -> 7921.03 | CB60: =payout($A60,F60,$C60:E60,CA60,$BY60:CA60) -> 7921.03 | CC60: =payout($A60,G60,$C60:F60,CB60,$BY60:CB60) -> 7921.03 | CD60: =payout($A60,H60,$C60:G60,CC60,$BY60:CC60) -> 7921.03 | CE60: =payout($A60,I60,$C60:H60,CD60,$BY60:CD60) -> 7921.03 | CF60: =payout($A60,J60,$C60:I60,CE60,$BY60:CE60) -> 7921.03 | CG60: =payout($A60,K60,$C60:J60,CF60,$BY60:CF60) -> 7921.03 | CH60: =payout($A60,L60,$C60:K60,CG60,$BY60:CG60) -> 7921.03 | CI60: =payout($A60,M60,$C60:L60,CH60,$BY60:CH60) -> 7921.03 | CJ60: =payout($A60,N60,$C60:M60,CI60,$BY60:CI60) -> 7921.03 | CK60: =payout($A60,O60,$C60:N60,CJ60,$BY60:CJ60) -> 7921.03 | CL60: =payout($A60,P60,$C60:O60,CK60,$BY60:CK60) -> 7921.03 | CM60: =payout($A60,Q60,$C60:P60,CL60,$BY60:CL60) -> 7921.03 | CN60: =payout($A60,R60,$C60:Q60,CM60,$BY60:CM60) -> 7921.03 | CO60: =payout($A60,S60,$C60:R60,CN60,$BY60:CN60) -> 7921.03 | CP60: =payout($A60,T60,$C60:S60,CO60,$BY60:CO60) -> 7921.03 | CQ60: =payout($A60,U60,$C60:T60,CP60,$BY60:CP60) -> 7921.03 | CR60: =payout($A60,V60,$C60:U60,CQ60,$BY60:CQ60) -> 7921.03 | CS60: =payout($A60,W60,$C60:V60,CR60,$BY60:CR60) -> 7921.03 | CT60: =payout($A60,X60,$C60:W60,CS60,$BY60:CS60) -> 7921.03 | CU60: =payout($A60,Y60,$C60:X60,CT60,$BY60:CT60) -> 7921.03 | CV60: =payout($A60,Z60,$C60:Y60,CU60,$BY60:CU60) -> 7921.03 | CW60: =payout($A60,AA60,$C60:Z60,CV60,$BY60:CV60) -> 7921.03 | CX60: =payout($A60,AB60,$C60:AA60,CW60,$BY60:CW60) -> 7921.03 | CY60: =payout($A60,AC60,$C60:AB60,CX60,$BY60:CX60) -> 7921.03 | CZ60: =payout($A60,AD60,$C60:AC60,CY60,$BY60:CY60) -> 7921.03 | DA60: =payout($A60,AE60,$C60:AD60,CZ60,$BY60:CZ60) -> 7921.03 | DB60: =payout($A60,AF60,$C60:AE60,DA60,$BY60:DA60) -> 7921.03 | DC60: =payout($A60,AG60,$C60:AF60,DB60,$BY60:DB60) -> 7921.03 | DD60: =payout($A60,AH60,$C60:AG60,DC60,$BY60:DC60) -> 7921.03 | DE60: =payout($A60,AI60,$C60:AH60,DD60,$BY60:DD60) -> 7921.03 | DF60: =payout($A60,AJ60,$C60:AI60,DE60,$BY60:DE60) -> 7921.03 | DG60: =payout($A60,AK60,$C60:AJ60,DF60,$BY60:DF60) -> 7921.03 | DH60: =payout($A60,AL60,$C60:AK60,DG60,$BY60:DG60) -> 7921.03 | DI60: =payout($A60,AM60,$C60:AL60,DH60,$BY60:DH60) -> 7921.03 | DJ60: =payout($A60,AN60,$C60:AM60,DI60,$BY60:DI60) -> 7921.03 | DK60: =payout($A60,AO60,$C60:AN60,DJ60,$BY60:DJ60) -> 7921.03 | DL60: =payout($A60,AP60,$C60:AO60,DK60,$BY60:DK60) -> 7921.03 | DM60: =payout($A60,AQ60,$C60:AP60,DL60,$BY60:DL60) -> 7921.03 | DN60: =payout($A60,AR60,$C60:AQ60,DM60,$BY60:DM60) -> 17921.03 | DO60: =payout($A60,AS60,$C60:AR60,DN60,$BY60:DN60) -> 0 | DP60: =payout($A60,AT60,$C60:AS60,DO60,$BY60:DO60) -> 0 | DQ60: =payout($A60,AU60,$C60:AT60,DP60,$BY60:DP60) -> 0 | DR60: =payout($A60,AV60,$C60:AU60,DQ60,$BY60:DQ60) -> 0 | DS60: =payout($A60,AW60,$C60:AV60,DR60,$BY60:DR60) -> 0 | DT60: =payout($A60,AX60,$C60:AW60,DS60,$BY60:DS60) -> 0 | DU60: =payout($A60,AY60,$C60:AX60,DT60,$BY60:DT60) -> 0 | DV60: =payout($A60,AZ60,$C60:AY60,DU60,$BY60:DU60) -> 0 | DW60: =payout($A60,BA60,$C60:AZ60,DV60,$BY60:DV60) -> 0 | DX60: =payout($A60,BB60,$C60:BA60,DW60,$BY60:DW60) -> 0 | DY60: =payout($A60,BC60,$C60:BB60,DX60,$BY60:DX60) -> 0 | DZ60: =payout($A60,BD60,$C60:BC60,DY60,$BY60:DY60) -> 0 | EA60: =payout($A60,BE60,$C60:BD60,DZ60,$BY60:DZ60) -> 0 | EB60: =payout($A60,BF60,$C60:BE60,EA60,$BY60:EA60) -> 0 | EC60: =payout($A60,BG60,$C60:BF60,EB60,$BY60:EB60) -> 0 | ED60: =payout($A60,BH60,$C60:BG60,EC60,$BY60:EC60) -> 0 | EE60: =payout($A60,BI60,$C60:BH60,ED60,$BY60:ED60) -> 0 | EF60: =payout($A60,BJ60,$C60:BI60,EE60,$BY60:EE60) -> 0 | EG60: =payout($A60,BK60,$C60:BJ60,EF60,$BY60:EF60) -> 0 | EH60: =payout($A60,BL60,$C60:BK60,EG60,$BY60:EG60) -> 0 | EI60: =payout($A60,BM60,$C60:BL60,EH60,$BY60:EH60) -> 0 | EJ60: =payout($A60,BN60,$C60:BM60,EI60,$BY60:EI60) -> 0 | EK60: =payout($A60,BO60,$C60:BN60,EJ60,$BY60:EJ60) -> 0 | EL60: =payout($A60,BP60,$C60:BO60,EK60,$BY60:EK60) -> 0 | EM60: =payout($A60,BQ60,$C60:BP60,EL60,$BY60:EL60) -> 0 | EN60: =payout($A60,BR60,$C60:BQ60,EM60,$BY60:EM60) -> 0 | EO60: =payout($A60,BS60,$C60:BR60,EN60,$BY60:EN60) -> 0 | EP60: =payout($A60,BT60,$C60:BS60,EO60,$BY60:EO60) -> 0 | EQ60: =payout($A60,BU60,$C60:BT60,EP60,$BY60:EP60) -> 0
A61: =get_bond_grade($A$16:A60,$BX$5,$BY$5,$BZ$5) -> A | B61: 46 | C61: 1 | D61: =IF(C1064=10000,0,default_model($A61,D$13,$B61,D$14)) -> 1 | E61: 1 | F61: 1 | G61: 1 | H61: 1 | I61: 1 | J61: 1 | K61: 1 | L61: 1 | M61: 1 | N61: 1 | O61: 1 | P61: 1 | Q61: 1 | R61: 1 | S61: 1 | T61: 1 | U61: 1 | V61: 1 | W61: 1 | X61: 1 | Y61: 1 | Z61: 1 | AA61: 1 | AB61: 1 | AC61: 1 | AD61: 1 | AE61: 0 | AF61: 0 | AG61: 0 | AH61: 0 | AI61: 0 | AJ61: =IF(AI1064=10000,0,default_model($A61,AJ$13,$B61,AJ$14)) -> 0 | AK61: 0 | AL61: 0 | AM61: 0 | AN61: 0 | AO61: 0 | AP61: 0 | AQ61: 0 | AR61: 0 | AS61: 0 | AT61: 0 | AU61: 0 | AV61: 0 | AW61: 0 | AX61: 0 | AY61: 0 | AZ61: 0 | BA61: 0 | BB61: 0 | BC61: 0 | BD61: 0 | BE61: 0 | BF61: 0 | BG61: 0 | BH61: 0 | BI61: 0 | BJ61: 0 | BK61: 0 | BL61: 0 | BM61: 0 | BN61: 0 | BO61: 0 | BP61: =IF(BO1064=10000,0,default_model($A61,BP$13,$B61,BP$14)) -> 0 | BQ61: 0 | BR61: 0 | BS61: 0 | BT61: 0 | BU61: 0 | BW61: A | BX61: 46 | BY61: -10000 | BZ61: =payout($A61,D61,$C61:C61,BY61,$BY61:BY61) -> 12478.46 | CA61: =payout($A61,E61,$C61:D61,BZ61,$BY61:BZ61) -> 12478.46 | CB61: =payout($A61,F61,$C61:E61,CA61,$BY61:CA61) -> 12478.46 | CC61: =payout($A61,G61,$C61:F61,CB61,$BY61:CB61) -> 12478.46 | CD61: =payout($A61,H61,$C61:G61,CC61,$BY61:CC61) -> 12478.46 | CE61: =payout($A61,I61,$C61:H61,CD61,$BY61:CD61) -> 12478.46 | CF61: =payout($A61,J61,$C61:I61,CE61,$BY61:CE61) -> 12478.46 | CG61: =payout($A61,K61,$C61:J61,CF61,$BY61:CF61) -> 12478.46 | CH61: =payout($A61,L61,$C61:K61,CG61,$BY61:CG61) -> 12478.46 | CI61: =payout($A61,M61,$C61:L61,CH61,$BY61:CH61) -> 12478.46 | CJ61: =payout($A61,N61,$C61:M61,CI61,$BY61:CI61) -> 12478.46 | CK61: =payout($A61,O61,$C61:N61,CJ61,$BY61:CJ61) -> 12478.46 | CL61: =payout($A61,P61,$C61:O61,CK61,$BY61:CK61) -> 12478.46 | CM61: =payout($A61,Q61,$C61:P61,CL61,$BY61:CL61) -> 12478.46 | CN61: =payout($A61,R61,$C61:Q61,CM61,$BY61:CM61) -> 12478.46 | CO61: =payout($A61,S61,$C61:R61,CN61,$BY61:CN61) -> 12478.46 | CP61: =payout($A61,T61,$C61:S61,CO61,$BY61:CO61) -> 12478.46 | CQ61: =payout($A61,U61,$C61:T61,CP61,$BY61:CP61) -> 12478.46 | CR61: =payout($A61,V61,$C61:U61,CQ61,$BY61:CQ61) -> 12478.46 | CS61: =payout($A61,W61,$C61:V61,CR61,$BY61:CR61) -> 12478.46 | CT61: =payout($A61,X61,$C61:W61,CS61,$BY61:CS61) -> 12478.46 | CU61: =payout($A61,Y61,$C61:X61,CT61,$BY61:CT61) -> 12478.46 | CV61: =payout($A61,Z61,$C61:Y61,CU61,$BY61:CU61) -> 12478.46 | CW61: =payout($A61,AA61,$C61:Z61,CV61,$BY61:CV61) -> 12478.46 | CX61: =payout($A61,AB61,$C61:AA61,CW61,$BY61:CW61) -> 12478.46 | CY61: =payout($A61,AC61,$C61:AB61,CX61,$BY61:CX61) -> 12478.46 | CZ61: =payout($A61,AD61,$C61:AC61,CY61,$BY61:CY61) -> 12478.46 | DA61: =payout($A61,AE61,$C61:AD61,CZ61,$BY61:CZ61) -> 12478.46 | DB61: =payout($A61,AF61,$C61:AE61,DA61,$BY61:DA61) -> 12478.46 | DC61: =payout($A61,AG61,$C61:AF61,DB61,$BY61:DB61) -> 12478.46 | DD61: =payout($A61,AH61,$C61:AG61,DC61,$BY61:DC61) -> 12478.46 | DE61: =payout($A61,AI61,$C61:AH61,DD61,$BY61:DD61) -> 12478.46 | DF61: =payout($A61,AJ61,$C61:AI61,DE61,$BY61:DE61) -> 12478.46 | DG61: =payout($A61,AK61,$C61:AJ61,DF61,$BY61:DF61) -> 12478.46 | DH61: =payout($A61,AL61,$C61:AK61,DG61,$BY61:DG61) -> 12478.46 | DI61: =payout($A61,AM61,$C61:AL61,DH61,$BY61:DH61) -> 12478.46 | DJ61: =payout($A61,AN61,$C61:AM61,DI61,$BY61:DI61) -> 12478.46 | DK61: =payout($A61,AO61,$C61:AN61,DJ61,$BY61:DJ61) -> 12478.46 | DL61: =payout($A61,AP61,$C61:AO61,DK61,$BY61:DK61) -> 12478.46 | DM61: =payout($A61,AQ61,$C61:AP61,DL61,$BY61:DL61) -> 12478.46 | DN61: =payout($A61,AR61,$C61:AQ61,DM61,$BY61:DM61) -> 22478.46 | DO61: =payout($A61,AS61,$C61:AR61,DN61,$BY61:DN61) -> 0 | DP61: =payout($A61,AT61,$C61:AS61,DO61,$BY61:DO61) -> 0 | DQ61: =payout($A61,AU61,$C61:AT61,DP61,$BY61:DP61) -> 0 | DR61: =payout($A61,AV61,$C61:AU61,DQ61,$BY61:DQ61) -> 0 | DS61: =payout($A61,AW61,$C61:AV61,DR61,$BY61:DR61) -> 0 | DT61: =payout($A61,AX61,$C61:AW61,DS61,$BY61:DS61) -> 0 | DU61: =payout($A61,AY61,$C61:AX61,DT61,$BY61:DT61) -> 0 | DV61: =payout($A61,AZ61,$C61:AY61,DU61,$BY61:DU61) -> 0 | DW61: =payout($A61,BA61,$C61:AZ61,DV61,$BY61:DV61) -> 0 | DX61: =payout($A61,BB61,$C61:BA61,DW61,$BY61:DW61) -> 0 | DY61: =payout($A61,BC61,$C61:BB61,DX61,$BY61:DX61) -> 0 | DZ61: =payout($A61,BD61,$C61:BC61,DY61,$BY61:DY61) -> 0 | EA61: =payout($A61,BE61,$C61:BD61,DZ61,$BY61:DZ61) -> 0 | EB61: =payout($A61,BF61,$C61:BE61,EA61,$BY61:EA61) -> 0 | EC61: =payout($A61,BG61,$C61:BF61,EB61,$BY61:EB61) -> 0 | ED61: =payout($A61,BH61,$C61:BG61,EC61,$BY61:EC61) -> 0 | EE61: =payout($A61,BI61,$C61:BH61,ED61,$BY61:ED61) -> 0 | EF61: =payout($A61,BJ61,$C61:BI61,EE61,$BY61:EE61) -> 0 | EG61: =payout($A61,BK61,$C61:BJ61,EF61,$BY61:EF61) -> 0 | EH61: =payout($A61,BL61,$C61:BK61,EG61,$BY61:EG61) -> 0 | EI61: =payout($A61,BM61,$C61:BL61,EH61,$BY61:EH61) -> 0 | EJ61: =payout($A61,BN61,$C61:BM61,EI61,$BY61:EI61) -> 0 | EK61: =payout($A61,BO61,$C61:BN61,EJ61,$BY61:EJ61) -> 0 | EL61: =payout($A61,BP61,$C61:BO61,EK61,$BY61:EK61) -> 0 | EM61: =payout($A61,BQ61,$C61:BP61,EL61,$BY61:EL61) -> 0 | EN61: =payout($A61,BR61,$C61:BQ61,EM61,$BY61:EM61) -> 0 | EO61: =payout($A61,BS61,$C61:BR61,EN61,$BY61:EN61) -> 0 | EP61: =payout($A61,BT61,$C61:BS61,EO61,$BY61:EO61) -> 0 | EQ61: =payout($A61,BU61,$C61:BT61,EP61,$BY61:EP61) -> 0
A62: =get_bond_grade($A$16:A61,$BX$5,$BY$5,$BZ$5) -> AAA | B62: 47 | C62: 1 | D62: =IF(C1065=10000,0,default_model($A62,D$13,$B62,D$14)) -> 1 | E62: 1 | F62: 1 | G62: 1 | H62: 1 | I62: 1 | J62: 1 | K62: 1 | L62: 1 | M62: 1 | N62: 1 | O62: 1 | P62: 1 | Q62: 1 | R62: 1 | S62: 1 | T62: 1 | U62: 1 | V62: 1 | W62: 1 | X62: 1 | Y62: 1 | Z62: 1 | AA62: 1 | AB62: 1 | AC62: 1 | AD62: 1 | AE62: 0 | AF62: 0 | AG62: 0 | AH62: 0 | AI62: 0 | AJ62: =IF(AI1065=10000,0,default_model($A62,AJ$13,$B62,AJ$14)) -> 0 | AK62: 0 | AL62: 0 | AM62: 0 | AN62: 0 | AO62: 0 | AP62: 0 | AQ62: 0 | AR62: 0 | AS62: 0 | AT62: 0 | AU62: 0 | AV62: 0 | AW62: 0 | AX62: 0 | AY62: 0 | AZ62: 0 | BA62: 0 | BB62: 0 | BC62: 0 | BD62: 0 | BE62: 0 | BF62: 0 | BG62: 0 | BH62: 0 | BI62: 0 | BJ62: 0 | BK62: 0 | BL62: 0 | BM62: 0 | BN62: 0 | BO62: 0 | BP62: =IF(BO1065=10000,0,default_model($A62,BP$13,$B62,BP$14)) -> 0 | BQ62: 0 | BR62: 0 | BS62: 0 | BT62: 0 | BU62: 0 | BW62: AAA | BX62: 47 | BY62: -10000 | BZ62: =payout($A62,D62,$C62:C62,BY62,$BY62:BY62) -> 6299.76 | CA62: =payout($A62,E62,$C62:D62,BZ62,$BY62:BZ62) -> 6299.76 | CB62: =payout($A62,F62,$C62:E62,CA62,$BY62:CA62) -> 6299.76 | CC62: =payout($A62,G62,$C62:F62,CB62,$BY62:CB62) -> 6299.76 | CD62: =payout($A62,H62,$C62:G62,CC62,$BY62:CC62) -> 6299.76 | CE62: =payout($A62,I62,$C62:H62,CD62,$BY62:CD62) -> 6299.76 | CF62: =payout($A62,J62,$C62:I62,CE62,$BY62:CE62) -> 6299.76 | CG62: =payout($A62,K62,$C62:J62,CF62,$BY62:CF62) -> 6299.76 | CH62: =payout($A62,L62,$C62:K62,CG62,$BY62:CG62) -> 6299.76 | CI62: =payout($A62,M62,$C62:L62,CH62,$BY62:CH62) -> 6299.76 | CJ62: =payout($A62,N62,$C62:M62,CI62,$BY62:CI62) -> 6299.76 | CK62: =payout($A62,O62,$C62:N62,CJ62,$BY62:CJ62) -> 6299.76 | CL62: =payout($A62,P62,$C62:O62,CK62,$BY62:CK62) -> 6299.76 | CM62: =payout($A62,Q62,$C62:P62,CL62,$BY62:CL62) -> 6299.76 | CN62: =payout($A62,R62,$C62:Q62,CM62,$BY62:CM62) -> 6299.76 | CO62: =payout($A62,S62,$C62:R62,CN62,$BY62:CN62) -> 6299.76 | CP62: =payout($A62,T62,$C62:S62,CO62,$BY62:CO62) -> 6299.76 | CQ62: =payout($A62,U62,$C62:T62,CP62,$BY62:CP62) -> 6299.76 | CR62: =payout($A62,V62,$C62:U62,CQ62,$BY62:CQ62) -> 6299.76 | CS62: =payout($A62,W62,$C62:V62,CR62,$BY62:CR62) -> 6299.76 | CT62: =payout($A62,X62,$C62:W62,CS62,$BY62:CS62) -> 6299.76 | CU62: =payout($A62,Y62,$C62:X62,CT62,$BY62:CT62) -> 6299.76 | CV62: =payout($A62,Z62,$C62:Y62,CU62,$BY62:CU62) -> 6299.76 | CW62: =payout($A62,AA62,$C62:Z62,CV62,$BY62:CV62) -> 6299.76 | CX62: =payout($A62,AB62,$C62:AA62,CW62,$BY62:CW62) -> 6299.76 | CY62: =payout($A62,AC62,$C62:AB62,CX62,$BY62:CX62) -> 6299.76 | CZ62: =payout($A62,AD62,$C62:AC62,CY62,$BY62:CY62) -> 6299.76 | DA62: =payout($A62,AE62,$C62:AD62,CZ62,$BY62:CZ62) -> 6299.76 | DB62: =payout($A62,AF62,$C62:AE62,DA62,$BY62:DA62) -> 6299.76 | DC62: =payout($A62,AG62,$C62:AF62,DB62,$BY62:DB62) -> 6299.76 | DD62: =payout($A62,AH62,$C62:AG62,DC62,$BY62:DC62) -> 6299.76 | DE62: =payout($A62,AI62,$C62:AH62,DD62,$BY62:DD62) -> 6299.76 | DF62: =payout($A62,AJ62,$C62:AI62,DE62,$BY62:DE62) -> 6299.76 | DG62: =payout($A62,AK62,$C62:AJ62,DF62,$BY62:DF62) -> 6299.76 | DH62: =payout($A62,AL62,$C62:AK62,DG62,$BY62:DG62) -> 6299.76 | DI62: =payout($A62,AM62,$C62:AL62,DH62,$BY62:DH62) -> 6299.76 | DJ62: =payout($A62,AN62,$C62:AM62,DI62,$BY62:DI62) -> 6299.76 | DK62: =payout($A62,AO62,$C62:AN62,DJ62,$BY62:DJ62) -> 6299.76 | DL62: =payout($A62,AP62,$C62:AO62,DK62,$BY62:DK62) -> 6299.76 | DM62: =payout($A62,AQ62,$C62:AP62,DL62,$BY62:DL62) -> 6299.76 | DN62: =payout($A62,AR62,$C62:AQ62,DM62,$BY62:DM62) -> 16299.76 | DO62: =payout($A62,AS62,$C62:AR62,DN62,$BY62:DN62) -> 0 | DP62: =payout($A62,AT62,$C62:AS62,DO62,$BY62:DO62) -> 0 | DQ62: =payout($A62,AU62,$C62:AT62,DP62,$BY62:DP62) -> 0 | DR62: =payout($A62,AV62,$C62:AU62,DQ62,$BY62:DQ62) -> 0 | DS62: =payout($A62,AW62,$C62:AV62,DR62,$BY62:DR62) -> 0 | DT62: =payout($A62,AX62,$C62:AW62,DS62,$BY62:DS62) -> 0 | DU62: =payout($A62,AY62,$C62:AX62,DT62,$BY62:DT62) -> 0 | DV62: =payout($A62,AZ62,$C62:AY62,DU62,$BY62:DU62) -> 0 | DW62: =payout($A62,BA62,$C62:AZ62,DV62,$BY62:DV62) -> 0 | DX62: =payout($A62,BB62,$C62:BA62,DW62,$BY62:DW62) -> 0 | DY62: =payout($A62,BC62,$C62:BB62,DX62,$BY62:DX62) -> 0 | DZ62: =payout($A62,BD62,$C62:BC62,DY62,$BY62:DY62) -> 0 | EA62: =payout($A62,BE62,$C62:BD62,DZ62,$BY62:DZ62) -> 0 | EB62: =payout($A62,BF62,$C62:BE62,EA62,$BY62:EA62) -> 0 | EC62: =payout($A62,BG62,$C62:BF62,EB62,$BY62:EB62) -> 0 | ED62: =payout($A62,BH62,$C62:BG62,EC62,$BY62:EC62) -> 0 | EE62: =payout($A62,BI62,$C62:BH62,ED62,$BY62:ED62) -> 0 | EF62: =payout($A62,BJ62,$C62:BI62,EE62,$BY62:EE62) -> 0 | EG62: =payout($A62,BK62,$C62:BJ62,EF62,$BY62:EF62) -> 0 | EH62: =payout($A62,BL62,$C62:BK62,EG62,$BY62:EG62) -> 0 | EI62: =payout($A62,BM62,$C62:BL62,EH62,$BY62:EH62) -> 0 | EJ62: =payout($A62,BN62,$C62:BM62,EI62,$BY62:EI62) -> 0 | EK62: =payout($A62,BO62,$C62:BN62,EJ62,$BY62:EJ62) -> 0 | EL62: =payout($A62,BP62,$C62:BO62,EK62,$BY62:EK62) -> 0 | EM62: =payout($A62,BQ62,$C62:BP62,EL62,$BY62:EL62) -> 0 | EN62: =payout($A62,BR62,$C62:BQ62,EM62,$BY62:EM62) -> 0 | EO62: =payout($A62,BS62,$C62:BR62,EN62,$BY62:EN62) -> 0 | EP62: =payout($A62,BT62,$C62:BS62,EO62,$BY62:EO62) -> 0 | EQ62: =payout($A62,BU62,$C62:BT62,EP62,$BY62:EP62) -> 0
A63: =get_bond_grade($A$16:A62,$BX$5,$BY$5,$BZ$5) -> AA | B63: 48 | C63: 1 | D63: =IF(C1066=10000,0,default_model($A63,D$13,$B63,D$14)) -> 1 | E63: 1 | F63: 1 | G63: 1 | H63: 1 | I63: 1 | J63: 1 | K63: 1 | L63: 1 | M63: 1 | N63: 1 | O63: 1 | P63: 1 | Q63: 1 | R63: 1 | S63: 1 | T63: 1 | U63: 1 | V63: 1 | W63: 1 | X63: 1 | Y63: 1 | Z63: 1 | AA63: 1 | AB63: 1 | AC63: 1 | AD63: 1 | AE63: 0 | AF63: 0 | AG63: 0 | AH63: 0 | AI63: 0 | AJ63: =IF(AI1066=10000,0,default_model($A63,AJ$13,$B63,AJ$14)) -> 0 | AK63: 0 | AL63: 0 | AM63: 0 | AN63: 0 | AO63: 0 | AP63: 0 | AQ63: 0 | AR63: 0 | AS63: 0 | AT63: 0 | AU63: 0 | AV63: 0 | AW63: 0 | AX63: 0 | AY63: 0 | AZ63: 0 | BA63: 0 | BB63: 0 | BC63: 0 | BD63: 0 | BE63: 0 | BF63: 0 | BG63: 0 | BH63: 0 | BI63: 0 | BJ63: 0 | BK63: 0 | BL63: 0 | BM63: 0 | BN63: 0 | BO63: 0 | BP63: =IF(BO1066=10000,0,default_model($A63,BP$13,$B63,BP$14)) -> 0 | BQ63: 0 | BR63: 0 | BS63: 0 | BT63: 0 | BU63: 0 | BW63: AA | BX63: 48 | BY63: -10000 | BZ63: =payout($A63,D63,$C63:C63,BY63,$BY63:BY63) -> 7921.03 | CA63: =payout($A63,E63,$C63:D63,BZ63,$BY63:BZ63) -> 7921.03 | CB63: =payout($A63,F63,$C63:E63,CA63,$BY63:CA63) -> 7921.03 | CC63: =payout($A63,G63,$C63:F63,CB63,$BY63:CB63) -> 7921.03 | CD63: =payout($A63,H63,$C63:G63,CC63,$BY63:CC63) -> 7921.03 | CE63: =payout($A63,I63,$C63:H63,CD63,$BY63:CD63) -> 7921.03 | CF63: =payout($A63,J63,$C63:I63,CE63,$BY63:CE63) -> 7921.03 | CG63: =payout($A63,K63,$C63:J63,CF63,$BY63:CF63) -> 7921.03 | CH63: =payout($A63,L63,$C63:K63,CG63,$BY63:CG63) -> 7921.03 | CI63: =payout($A63,M63,$C63:L63,CH63,$BY63:CH63) -> 7921.03 | CJ63: =payout($A63,N63,$C63:M63,CI63,$BY63:CI63) -> 7921.03 | CK63: =payout($A63,O63,$C63:N63,CJ63,$BY63:CJ63) -> 7921.03 | CL63: =payout($A63,P63,$C63:O63,CK63,$BY63:CK63) -> 7921.03 | CM63: =payout($A63,Q63,$C63:P63,CL63,$BY63:CL63) -> 7921.03 | CN63: =payout($A63,R63,$C63:Q63,CM63,$BY63:CM63) -> 7921.03 | CO63: =payout($A63,S63,$C63:R63,CN63,$BY63:CN63) -> 7921.03 | CP63: =payout($A63,T63,$C63:S63,CO63,$BY63:CO63) -> 7921.03 | CQ63: =payout($A63,U63,$C63:T63,CP63,$BY63:CP63) -> 7921.03 | CR63: =payout($A63,V63,$C63:U63,CQ63,$BY63:CQ63) -> 7921.03 | CS63: =payout($A63,W63,$C63:V63,CR63,$BY63:CR63) -> 7921.03 | CT63: =payout($A63,X63,$C63:W63,CS63,$BY63:CS63) -> 7921.03 | CU63: =payout($A63,Y63,$C63:X63,CT63,$BY63:CT63) -> 7921.03 | CV63: =payout($A63,Z63,$C63:Y63,CU63,$BY63:CU63) -> 7921.03 | CW63: =payout($A63,AA63,$C63:Z63,CV63,$BY63:CV63) -> 7921.03 | CX63: =payout($A63,AB63,$C63:AA63,CW63,$BY63:CW63) -> 7921.03 | CY63: =payout($A63,AC63,$C63:AB63,CX63,$BY63:CX63) -> 7921.03 | CZ63: =payout($A63,AD63,$C63:AC63,CY63,$BY63:CY63) -> 7921.03 | DA63: =payout($A63,AE63,$C63:AD63,CZ63,$BY63:CZ63) -> 7921.03 | DB63: =payout($A63,AF63,$C63:AE63,DA63,$BY63:DA63) -> 7921.03 | DC63: =payout($A63,AG63,$C63:AF63,DB63,$BY63:DB63) -> 7921.03 | DD63: =payout($A63,AH63,$C63:AG63,DC63,$BY63:DC63) -> 7921.03 | DE63: =payout($A63,AI63,$C63:AH63,DD63,$BY63:DD63) -> 7921.03 | DF63: =payout($A63,AJ63,$C63:AI63,DE63,$BY63:DE63) -> 7921.03 | DG63: =payout($A63,AK63,$C63:AJ63,DF63,$BY63:DF63) -> 7921.03 | DH63: =payout($A63,AL63,$C63:AK63,DG63,$BY63:DG63) -> 7921.03 | DI63: =payout($A63,AM63,$C63:AL63,DH63,$BY63:DH63) -> 7921.03 | DJ63: =payout($A63,AN63,$C63:AM63,DI63,$BY63:DI63) -> 7921.03 | DK63: =payout($A63,AO63,$C63:AN63,DJ63,$BY63:DJ63) -> 7921.03 | DL63: =payout($A63,AP63,$C63:AO63,DK63,$BY63:DK63) -> 7921.03 | DM63: =payout($A63,AQ63,$C63:AP63,DL63,$BY63:DL63) -> 7921.03 | DN63: =payout($A63,AR63,$C63:AQ63,DM63,$BY63:DM63) -> 17921.03 | DO63: =payout($A63,AS63,$C63:AR63,DN63,$BY63:DN63) -> 0 | DP63: =payout($A63,AT63,$C63:AS63,DO63,$BY63:DO63) -> 0 | DQ63: =payout($A63,AU63,$C63:AT63,DP63,$BY63:DP63) -> 0 | DR63: =payout($A63,AV63,$C63:AU63,DQ63,$BY63:DQ63) -> 0 | DS63: =payout($A63,AW63,$C63:AV63,DR63,$BY63:DR63) -> 0 | DT63: =payout($A63,AX63,$C63:AW63,DS63,$BY63:DS63) -> 0 | DU63: =payout($A63,AY63,$C63:AX63,DT63,$BY63:DT63) -> 0 | DV63: =payout($A63,AZ63,$C63:AY63,DU63,$BY63:DU63) -> 0 | DW63: =payout($A63,BA63,$C63:AZ63,DV63,$BY63:DV63) -> 0 | DX63: =payout($A63,BB63,$C63:BA63,DW63,$BY63:DW63) -> 0 | DY63: =payout($A63,BC63,$C63:BB63,DX63,$BY63:DX63) -> 0 | DZ63: =payout($A63,BD63,$C63:BC63,DY63,$BY63:DY63) -> 0 | EA63: =payout($A63,BE63,$C63:BD63,DZ63,$BY63:DZ63) -> 0 | EB63: =payout($A63,BF63,$C63:BE63,EA63,$BY63:EA63) -> 0 | EC63: =payout($A63,BG63,$C63:BF63,EB63,$BY63:EB63) -> 0 | ED63: =payout($A63,BH63,$C63:BG63,EC63,$BY63:EC63) -> 0 | EE63: =payout($A63,BI63,$C63:BH63,ED63,$BY63:ED63) -> 0 | EF63: =payout($A63,BJ63,$C63:BI63,EE63,$BY63:EE63) -> 0 | EG63: =payout($A63,BK63,$C63:BJ63,EF63,$BY63:EF63) -> 0 | EH63: =payout($A63,BL63,$C63:BK63,EG63,$BY63:EG63) -> 0 | EI63: =payout($A63,BM63,$C63:BL63,EH63,$BY63:EH63) -> 0 | EJ63: =payout($A63,BN63,$C63:BM63,EI63,$BY63:EI63) -> 0 | EK63: =payout($A63,BO63,$C63:BN63,EJ63,$BY63:EJ63) -> 0 | EL63: =payout($A63,BP63,$C63:BO63,EK63,$BY63:EK63) -> 0 | EM63: =payout($A63,BQ63,$C63:BP63,EL63,$BY63:EL63) -> 0 | EN63: =payout($A63,BR63,$C63:BQ63,EM63,$BY63:EM63) -> 0 | EO63: =payout($A63,BS63,$C63:BR63,EN63,$BY63:EN63) -> 0 | EP63: =payout($A63,BT63,$C63:BS63,EO63,$BY63:EO63) -> 0 | EQ63: =payout($A63,BU63,$C63:BT63,EP63,$BY63:EP63) -> 0
A64: =get_bond_grade($A$16:A63,$BX$5,$BY$5,$BZ$5) -> AAA | B64: 49 | C64: 1 | D64: =IF(C1067=10000,0,default_model($A64,D$13,$B64,D$14)) -> 1 | E64: 1 | F64: 1 | G64: 1 | H64: 1 | I64: 1 | J64: 1 | K64: 1 | L64: 1 | M64: 1 | N64: 1 | O64: 1 | P64: 1 | Q64: 1 | R64: 1 | S64: 1 | T64: 1 | U64: 1 | V64: 1 | W64: 1 | X64: 1 | Y64: 1 | Z64: 1 | AA64: 1 | AB64: 1 | AC64: 1 | AD64: 1 | AE64: 0 | AF64: 0 | AG64: 0 | AH64: 0 | AI64: 0 | AJ64: =IF(AI1067=10000,0,default_model($A64,AJ$13,$B64,AJ$14)) -> 0 | AK64: 0 | AL64: 0 | AM64: 0 | AN64: 0 | AO64: 0 | AP64: 0 | AQ64: 0 | AR64: 0 | AS64: 0 | AT64: 0 | AU64: 0 | AV64: 0 | AW64: 0 | AX64: 0 | AY64: 0 | AZ64: 0 | BA64: 0 | BB64: 0 | BC64: 0 | BD64: 0 | BE64: 0 | BF64: 0 | BG64: 0 | BH64: 0 | BI64: 0 | BJ64: 0 | BK64: 0 | BL64: 0 | BM64: 0 | BN64: 0 | BO64: 0 | BP64: =IF(BO1067=10000,0,default_model($A64,BP$13,$B64,BP$14)) -> 0 | BQ64: 0 | BR64: 0 | BS64: 0 | BT64: 0 | BU64: 0 | BW64: AAA | BX64: 49 | BY64: -10000 | BZ64: =payout($A64,D64,$C64:C64,BY64,$BY64:BY64) -> 6299.76 | CA64: =payout($A64,E64,$C64:D64,BZ64,$BY64:BZ64) -> 6299.76 | CB64: =payout($A64,F64,$C64:E64,CA64,$BY64:CA64) -> 6299.76 | CC64: =payout($A64,G64,$C64:F64,CB64,$BY64:CB64) -> 6299.76 | CD64: =payout($A64,H64,$C64:G64,CC64,$BY64:CC64) -> 6299.76 | CE64: =payout($A64,I64,$C64:H64,CD64,$BY64:CD64) -> 6299.76 | CF64: =payout($A64,J64,$C64:I64,CE64,$BY64:CE64) -> 6299.76 | CG64: =payout($A64,K64,$C64:J64,CF64,$BY64:CF64) -> 6299.76 | CH64: =payout($A64,L64,$C64:K64,CG64,$BY64:CG64) -> 6299.76 | CI64: =payout($A64,M64,$C64:L64,CH64,$BY64:CH64) -> 6299.76 | CJ64: =payout($A64,N64,$C64:M64,CI64,$BY64:CI64) -> 6299.76 | CK64: =payout($A64,O64,$C64:N64,CJ64,$BY64:CJ64) -> 6299.76 | CL64: =payout($A64,P64,$C64:O64,CK64,$BY64:CK64) -> 6299.76 | CM64: =payout($A64,Q64,$C64:P64,CL64,$BY64:CL64) -> 6299.76 | CN64: =payout($A64,R64,$C64:Q64,CM64,$BY64:CM64) -> 6299.76 | CO64: =payout($A64,S64,$C64:R64,CN64,$BY64:CN64) -> 6299.76 | CP64: =payout($A64,T64,$C64:S64,CO64,$BY64:CO64) -> 6299.76 | CQ64: =payout($A64,U64,$C64:T64,CP64,$BY64:CP64) -> 6299.76 | CR64: =payout($A64,V64,$C64:U64,CQ64,$BY64:CQ64) -> 6299.76 | CS64: =payout($A64,W64,$C64:V64,CR64,$BY64:CR64) -> 6299.76 | CT64: =payout($A64,X64,$C64:W64,CS64,$BY64:CS64) -> 6299.76 | CU64: =payout($A64,Y64,$C64:X64,CT64,$BY64:CT64) -> 6299.76 | CV64: =payout($A64,Z64,$C64:Y64,CU64,$BY64:CU64) -> 6299.76 | CW64: =payout($A64,AA64,$C64:Z64,CV64,$BY64:CV64) -> 6299.76 | CX64: =payout($A64,AB64,$C64:AA64,CW64,$BY64:CW64) -> 6299.76 | CY64: =payout($A64,AC64,$C64:AB64,CX64,$BY64:CX64) -> 6299.76 | CZ64: =payout($A64,AD64,$C64:AC64,CY64,$BY64:CY64) -> 6299.76 | DA64: =payout($A64,AE64,$C64:AD64,CZ64,$BY64:CZ64) -> 6299.76 | DB64: =payout($A64,AF64,$C64:AE64,DA64,$BY64:DA64) -> 6299.76 | DC64: =payout($A64,AG64,$C64:AF64,DB64,$BY64:DB64) -> 6299.76 | DD64: =payout($A64,AH64,$C64:AG64,DC64,$BY64:DC64) -> 6299.76 | DE64: =payout($A64,AI64,$C64:AH64,DD64,$BY64:DD64) -> 6299.76 | DF64: =payout($A64,AJ64,$C64:AI64,DE64,$BY64:DE64) -> 6299.76 | DG64: =payout($A64,AK64,$C64:AJ64,DF64,$BY64:DF64) -> 6299.76 | DH64: =payout($A64,AL64,$C64:AK64,DG64,$BY64:DG64) -> 6299.76 | DI64: =payout($A64,AM64,$C64:AL64,DH64,$BY64:DH64) -> 6299.76 | DJ64: =payout($A64,AN64,$C64:AM64,DI64,$BY64:DI64) -> 6299.76 | DK64: =payout($A64,AO64,$C64:AN64,DJ64,$BY64:DJ64) -> 6299.76 | DL64: =payout($A64,AP64,$C64:AO64,DK64,$BY64:DK64) -> 6299.76 | DM64: =payout($A64,AQ64,$C64:AP64,DL64,$BY64:DL64) -> 6299.76 | DN64: =payout($A64,AR64,$C64:AQ64,DM64,$BY64:DM64) -> 16299.76 | DO64: =payout($A64,AS64,$C64:AR64,DN64,$BY64:DN64) -> 0 | DP64: =payout($A64,AT64,$C64:AS64,DO64,$BY64:DO64) -> 0 | DQ64: =payout($A64,AU64,$C64:AT64,DP64,$BY64:DP64) -> 0 | DR64: =payout($A64,AV64,$C64:AU64,DQ64,$BY64:DQ64) -> 0 | DS64: =payout($A64,AW64,$C64:AV64,DR64,$BY64:DR64) -> 0 | DT64: =payout($A64,AX64,$C64:AW64,DS64,$BY64:DS64) -> 0 | DU64: =payout($A64,AY64,$C64:AX64,DT64,$BY64:DT64) -> 0 | DV64: =payout($A64,AZ64,$C64:AY64,DU64,$BY64:DU64) -> 0 | DW64: =payout($A64,BA64,$C64:AZ64,DV64,$BY64:DV64) -> 0 | DX64: =payout($A64,BB64,$C64:BA64,DW64,$BY64:DW64) -> 0 | DY64: =payout($A64,BC64,$C64:BB64,DX64,$BY64:DX64) -> 0 | DZ64: =payout($A64,BD64,$C64:BC64,DY64,$BY64:DY64) -> 0 | EA64: =payout($A64,BE64,$C64:BD64,DZ64,$BY64:DZ64) -> 0 | EB64: =payout($A64,BF64,$C64:BE64,EA64,$BY64:EA64) -> 0 | EC64: =payout($A64,BG64,$C64:BF64,EB64,$BY64:EB64) -> 0 | ED64: =payout($A64,BH64,$C64:BG64,EC64,$BY64:EC64) -> 0 | EE64: =payout($A64,BI64,$C64:BH64,ED64,$BY64:ED64) -> 0 | EF64: =payout($A64,BJ64,$C64:BI64,EE64,$BY64:EE64) -> 0 | EG64: =payout($A64,BK64,$C64:BJ64,EF64,$BY64:EF64) -> 0 | EH64: =payout($A64,BL64,$C64:BK64,EG64,$BY64:EG64) -> 0 | EI64: =payout($A64,BM64,$C64:BL64,EH64,$BY64:EH64) -> 0 | EJ64: =payout($A64,BN64,$C64:BM64,EI64,$BY64:EI64) -> 0 | EK64: =payout($A64,BO64,$C64:BN64,EJ64,$BY64:EJ64) -> 0 | EL64: =payout($A64,BP64,$C64:BO64,EK64,$BY64:EK64) -> 0 | EM64: =payout($A64,BQ64,$C64:BP64,EL64,$BY64:EL64) -> 0 | EN64: =payout($A64,BR64,$C64:BQ64,EM64,$BY64:EM64) -> 0 | EO64: =payout($A64,BS64,$C64:BR64,EN64,$BY64:EN64) -> 0 | EP64: =payout($A64,BT64,$C64:BS64,EO64,$BY64:EO64) -> 0 | EQ64: =payout($A64,BU64,$C64:BT64,EP64,$BY64:EP64) -> 0
A65: =get_bond_grade($A$16:A64,$BX$5,$BY$5,$BZ$5) -> A | B65: 50 | C65: 1 | D65: =IF(C1068=10000,0,default_model($A65,D$13,$B65,D$14)) -> 1 | E65: 1 | F65: 1 | G65: 1 | H65: 1 | I65: 1 | J65: 1 | K65: 1 | L65: 1 | M65: 1 | N65: 1 | O65: 1 | P65: 1 | Q65: 1 | R65: 1 | S65: 1 | T65: 1 | U65: 0 | V65: 0 | W65: 0 | X65: 0 | Y65: 0 | Z65: 0 | AA65: 0 | AB65: 0 | AC65: 0 | AD65: 0 | AE65: 0 | AF65: 0 | AG65: 0 | AH65: 0 | AI65: 0 | AJ65: =IF(AI1068=10000,0,default_model($A65,AJ$13,$B65,AJ$14)) -> 0 | AK65: 0 | AL65: 0 | AM65: 0 | AN65: 0 | AO65: 0 | AP65: 0 | AQ65: 0 | AR65: 0 | AS65: 0 | AT65: 0 | AU65: 0 | AV65: 0 | AW65: 0 | AX65: 0 | AY65: 0 | AZ65: 0 | BA65: 0 | BB65: 0 | BC65: 0 | BD65: 0 | BE65: 0 | BF65: 0 | BG65: 0 | BH65: 0 | BI65: 0 | BJ65: 0 | BK65: 0 | BL65: 0 | BM65: 0 | BN65: 0 | BO65: 0 | BP65: =IF(BO1068=10000,0,default_model($A65,BP$13,$B65,BP$14)) -> 0 | BQ65: 0 | BR65: 0 | BS65: 0 | BT65: 0 | BU65: 0 | BW65: A | BX65: 50 | BY65: -10000 | BZ65: =payout($A65,D65,$C65:C65,BY65,$BY65:BY65) -> 12478.46 | CA65: =payout($A65,E65,$C65:D65,BZ65,$BY65:BZ65) -> 12478.46 | CB65: =payout($A65,F65,$C65:E65,CA65,$BY65:CA65) -> 12478.46 | CC65: =payout($A65,G65,$C65:F65,CB65,$BY65:CB65) -> 12478.46 | CD65: =payout($A65,H65,$C65:G65,CC65,$BY65:CC65) -> 12478.46 | CE65: =payout($A65,I65,$C65:H65,CD65,$BY65:CD65) -> 12478.46 | CF65: =payout($A65,J65,$C65:I65,CE65,$BY65:CE65) -> 12478.46 | CG65: =payout($A65,K65,$C65:J65,CF65,$BY65:CF65) -> 12478.46 | CH65: =payout($A65,L65,$C65:K65,CG65,$BY65:CG65) -> 12478.46 | CI65: =payout($A65,M65,$C65:L65,CH65,$BY65:CH65) -> 12478.46 | CJ65: =payout($A65,N65,$C65:M65,CI65,$BY65:CI65) -> 12478.46 | CK65: =payout($A65,O65,$C65:N65,CJ65,$BY65:CJ65) -> 12478.46 | CL65: =payout($A65,P65,$C65:O65,CK65,$BY65:CK65) -> 12478.46 | CM65: =payout($A65,Q65,$C65:P65,CL65,$BY65:CL65) -> 12478.46 | CN65: =payout($A65,R65,$C65:Q65,CM65,$BY65:CM65) -> 12478.46 | CO65: =payout($A65,S65,$C65:R65,CN65,$BY65:CN65) -> 12478.46 | CP65: =payout($A65,T65,$C65:S65,CO65,$BY65:CO65) -> 12478.46 | CQ65: =payout($A65,U65,$C65:T65,CP65,$BY65:CP65) -> 12478.46 | CR65: =payout($A65,V65,$C65:U65,CQ65,$BY65:CQ65) -> 12478.46 | CS65: =payout($A65,W65,$C65:V65,CR65,$BY65:CR65) -> 12478.46 | CT65: =payout($A65,X65,$C65:W65,CS65,$BY65:CS65) -> 12478.46 | CU65: =payout($A65,Y65,$C65:X65,CT65,$BY65:CT65) -> 12478.46 | CV65: =payout($A65,Z65,$C65:Y65,CU65,$BY65:CU65) -> 12478.46 | CW65: =payout($A65,AA65,$C65:Z65,CV65,$BY65:CV65) -> 12478.46 | CX65: =payout($A65,AB65,$C65:AA65,CW65,$BY65:CW65) -> 12478.46 | CY65: =payout($A65,AC65,$C65:AB65,CX65,$BY65:CX65) -> 12478.46 | CZ65: =payout($A65,AD65,$C65:AC65,CY65,$BY65:CY65) -> 12478.46 | DA65: =payout($A65,AE65,$C65:AD65,CZ65,$BY65:CZ65) -> 12478.46 | DB65: =payout($A65,AF65,$C65:AE65,DA65,$BY65:DA65) -> 12478.46 | DC65: =payout($A65,AG65,$C65:AF65,DB65,$BY65:DB65) -> 12478.46 | DD65: =payout($A65,AH65,$C65:AG65,DC65,$BY65:DC65) -> 12478.46 | DE65: =payout($A65,AI65,$C65:AH65,DD65,$BY65:DD65) -> 12478.46 | DF65: =payout($A65,AJ65,$C65:AI65,DE65,$BY65:DE65) -> 12478.46 | DG65: =payout($A65,AK65,$C65:AJ65,DF65,$BY65:DF65) -> 12478.46 | DH65: =payout($A65,AL65,$C65:AK65,DG65,$BY65:DG65) -> 12478.46 | DI65: =payout($A65,AM65,$C65:AL65,DH65,$BY65:DH65) -> 12478.46 | DJ65: =payout($A65,AN65,$C65:AM65,DI65,$BY65:DI65) -> 12478.46 | DK65: =payout($A65,AO65,$C65:AN65,DJ65,$BY65:DJ65) -> 12478.46 | DL65: =payout($A65,AP65,$C65:AO65,DK65,$BY65:DK65) -> 12478.46 | DM65: =payout($A65,AQ65,$C65:AP65,DL65,$BY65:DL65) -> 12478.46 | DN65: =payout($A65,AR65,$C65:AQ65,DM65,$BY65:DM65) -> 22478.46 | DO65: =payout($A65,AS65,$C65:AR65,DN65,$BY65:DN65) -> 0 | DP65: =payout($A65,AT65,$C65:AS65,DO65,$BY65:DO65) -> 0 | DQ65: =payout($A65,AU65,$C65:AT65,DP65,$BY65:DP65) -> 0 | DR65: =payout($A65,AV65,$C65:AU65,DQ65,$BY65:DQ65) -> 0 | DS65: =payout($A65,AW65,$C65:AV65,DR65,$BY65:DR65) -> 0 | DT65: =payout($A65,AX65,$C65:AW65,DS65,$BY65:DS65) -> 0 | DU65: =payout($A65,AY65,$C65:AX65,DT65,$BY65:DT65) -> 0 | DV65: =payout($A65,AZ65,$C65:AY65,DU65,$BY65:DU65) -> 0 | DW65: =payout($A65,BA65,$C65:AZ65,DV65,$BY65:DV65) -> 0 | DX65: =payout($A65,BB65,$C65:BA65,DW65,$BY65:DW65) -> 0 | DY65: =payout($A65,BC65,$C65:BB65,DX65,$BY65:DX65) -> 0 | DZ65: =payout($A65,BD65,$C65:BC65,DY65,$BY65:DY65) -> 0 | EA65: =payout($A65,BE65,$C65:BD65,DZ65,$BY65:DZ65) -> 0 | EB65: =payout($A65,BF65,$C65:BE65,EA65,$BY65:EA65) -> 0 | EC65: =payout($A65,BG65,$C65:BF65,EB65,$BY65:EB65) -> 0 | ED65: =payout($A65,BH65,$C65:BG65,EC65,$BY65:EC65) -> 0 | EE65: =payout($A65,BI65,$C65:BH65,ED65,$BY65:ED65) -> 0 | EF65: =payout($A65,BJ65,$C65:BI65,EE65,$BY65:EE65) -> 0 | EG65: =payout($A65,BK65,$C65:BJ65,EF65,$BY65:EF65) -> 0 | EH65: =payout($A65,BL65,$C65:BK65,EG65,$BY65:EG65) -> 0 | EI65: =payout($A65,BM65,$C65:BL65,EH65,$BY65:EH65) -> 0 | EJ65: =payout($A65,BN65,$C65:BM65,EI65,$BY65:EI65) -> 0 | EK65: =payout($A65,BO65,$C65:BN65,EJ65,$BY65:EJ65) -> 0 | EL65: =payout($A65,BP65,$C65:BO65,EK65,$BY65:EK65) -> 0 | EM65: =payout($A65,BQ65,$C65:BP65,EL65,$BY65:EL65) -> 0 | EN65: =payout($A65,BR65,$C65:BQ65,EM65,$BY65:EM65) -> 0 | EO65: =payout($A65,BS65,$C65:BR65,EN65,$BY65:EN65) -> 0 | EP65: =payout($A65,BT65,$C65:BS65,EO65,$BY65:EO65) -> 0 | EQ65: =payout($A65,BU65,$C65:BT65,EP65,$BY65:EP65) -> 0
A66: =get_bond_grade($A$16:A65,$BX$5,$BY$5,$BZ$5) -> A | B66: 51 | C66: 1 | D66: =IF(C1069=10000,0,default_model($A66,D$13,$B66,D$14)) -> 1 | E66: 1 | F66: 1 | G66: 1 | H66: 1 | I66: 1 | J66: 1 | K66: 1 | L66: 1 | M66: 1 | N66: 1 | O66: 1 | P66: 1 | Q66: 1 | R66: 1 | S66: 1 | T66: 1 | U66: 1 | V66: 1 | W66: 1 | X66: 1 | Y66: 1 | Z66: 1 | AA66: 1 | AB66: 1 | AC66: 1 | AD66: 1 | AE66: 0 | AF66: 0 | AG66: 0 | AH66: 0 | AI66: 0 | AJ66: =IF(AI1069=10000,0,default_model($A66,AJ$13,$B66,AJ$14)) -> 0 | AK66: 0 | AL66: 0 | AM66: 0 | AN66: 0 | AO66: 0 | AP66: 0 | AQ66: 0 | AR66: 0 | AS66: 0 | AT66: 0 | AU66: 0 | AV66: 0 | AW66: 0 | AX66: 0 | AY66: 0 | AZ66: 0 | BA66: 0 | BB66: 0 | BC66: 0 | BD66: 0 | BE66: 0 | BF66: 0 | BG66: 0 | BH66: 0 | BI66: 0 | BJ66: 0 | BK66: 0 | BL66: 0 | BM66: 0 | BN66: 0 | BO66: 0 | BP66: =IF(BO1069=10000,0,default_model($A66,BP$13,$B66,BP$14)) -> 0 | BQ66: 0 | BR66: 0 | BS66: 0 | BT66: 0 | BU66: 0 | BW66: A | BX66: 51 | BY66: -10000 | BZ66: =payout($A66,D66,$C66:C66,BY66,$BY66:BY66) -> 12478.46 | CA66: =payout($A66,E66,$C66:D66,BZ66,$BY66:BZ66) -> 12478.46 | CB66: =payout($A66,F66,$C66:E66,CA66,$BY66:CA66) -> 12478.46 | CC66: =payout($A66,G66,$C66:F66,CB66,$BY66:CB66) -> 12478.46 | CD66: =payout($A66,H66,$C66:G66,CC66,$BY66:CC66) -> 12478.46 | CE66: =payout($A66,I66,$C66:H66,CD66,$BY66:CD66) -> 12478.46 | CF66: =payout($A66,J66,$C66:I66,CE66,$BY66:CE66) -> 12478.46 | CG66: =payout($A66,K66,$C66:J66,CF66,$BY66:CF66) -> 12478.46 | CH66: =payout($A66,L66,$C66:K66,CG66,$BY66:CG66) -> 12478.46 | CI66: =payout($A66,M66,$C66:L66,CH66,$BY66:CH66) -> 12478.46 | CJ66: =payout($A66,N66,$C66:M66,CI66,$BY66:CI66) -> 12478.46 | CK66: =payout($A66,O66,$C66:N66,CJ66,$BY66:CJ66) -> 12478.46 | CL66: =payout($A66,P66,$C66:O66,CK66,$BY66:CK66) -> 12478.46 | CM66: =payout($A66,Q66,$C66:P66,CL66,$BY66:CL66) -> 12478.46 | CN66: =payout($A66,R66,$C66:Q66,CM66,$BY66:CM66) -> 12478.46 | CO66: =payout($A66,S66,$C66:R66,CN66,$BY66:CN66) -> 12478.46 | CP66: =payout($A66,T66,$C66:S66,CO66,$BY66:CO66) -> 12478.46 | CQ66: =payout($A66,U66,$C66:T66,CP66,$BY66:CP66) -> 12478.46 | CR66: =payout($A66,V66,$C66:U66,CQ66,$BY66:CQ66) -> 12478.46 | CS66: =payout($A66,W66,$C66:V66,CR66,$BY66:CR66) -> 12478.46 | CT66: =payout($A66,X66,$C66:W66,CS66,$BY66:CS66) -> 12478.46 | CU66: =payout($A66,Y66,$C66:X66,CT66,$BY66:CT66) -> 12478.46 | CV66: =payout($A66,Z66,$C66:Y66,CU66,$BY66:CU66) -> 12478.46 | CW66: =payout($A66,AA66,$C66:Z66,CV66,$BY66:CV66) -> 12478.46 | CX66: =payout($A66,AB66,$C66:AA66,CW66,$BY66:CW66) -> 12478.46 | CY66: =payout($A66,AC66,$C66:AB66,CX66,$BY66:CX66) -> 12478.46 | CZ66: =payout($A66,AD66,$C66:AC66,CY66,$BY66:CY66) -> 12478.46 | DA66: =payout($A66,AE66,$C66:AD66,CZ66,$BY66:CZ66) -> 12478.46 | DB66: =payout($A66,AF66,$C66:AE66,DA66,$BY66:DA66) -> 12478.46 | DC66: =payout($A66,AG66,$C66:AF66,DB66,$BY66:DB66) -> 12478.46 | DD66: =payout($A66,AH66,$C66:AG66,DC66,$BY66:DC66) -> 12478.46 | DE66: =payout($A66,AI66,$C66:AH66,DD66,$BY66:DD66) -> 12478.46 | DF66: =payout($A66,AJ66,$C66:AI66,DE66,$BY66:DE66) -> 12478.46 | DG66: =payout($A66,AK66,$C66:AJ66,DF66,$BY66:DF66) -> 12478.46 | DH66: =payout($A66,AL66,$C66:AK66,DG66,$BY66:DG66) -> 12478.46 | DI66: =payout($A66,AM66,$C66:AL66,DH66,$BY66:DH66) -> 12478.46 | DJ66: =payout($A66,AN66,$C66:AM66,DI66,$BY66:DI66) -> 12478.46 | DK66: =payout($A66,AO66,$C66:AN66,DJ66,$BY66:DJ66) -> 12478.46 | DL66: =payout($A66,AP66,$C66:AO66,DK66,$BY66:DK66) -> 12478.46 | DM66: =payout($A66,AQ66,$C66:AP66,DL66,$BY66:DL66) -> 12478.46 | DN66: =payout($A66,AR66,$C66:AQ66,DM66,$BY66:DM66) -> 22478.46 | DO66: =payout($A66,AS66,$C66:AR66,DN66,$BY66:DN66) -> 0 | DP66: =payout($A66,AT66,$C66:AS66,DO66,$BY66:DO66) -> 0 | DQ66: =payout($A66,AU66,$C66:AT66,DP66,$BY66:DP66) -> 0 | DR66: =payout($A66,AV66,$C66:AU66,DQ66,$BY66:DQ66) -> 0 | DS66: =payout($A66,AW66,$C66:AV66,DR66,$BY66:DR66) -> 0 | DT66: =payout($A66,AX66,$C66:AW66,DS66,$BY66:DS66) -> 0 | DU66: =payout($A66,AY66,$C66:AX66,DT66,$BY66:DT66) -> 0 | DV66: =payout($A66,AZ66,$C66:AY66,DU66,$BY66:DU66) -> 0 | DW66: =payout($A66,BA66,$C66:AZ66,DV66,$BY66:DV66) -> 0 | DX66: =payout($A66,BB66,$C66:BA66,DW66,$BY66:DW66) -> 0 | DY66: =payout($A66,BC66,$C66:BB66,DX66,$BY66:DX66) -> 0 | DZ66: =payout($A66,BD66,$C66:BC66,DY66,$BY66:DY66) -> 0 | EA66: =payout($A66,BE66,$C66:BD66,DZ66,$BY66:DZ66) -> 0 | EB66: =payout($A66,BF66,$C66:BE66,EA66,$BY66:EA66) -> 0 | EC66: =payout($A66,BG66,$C66:BF66,EB66,$BY66:EB66) -> 0 | ED66: =payout($A66,BH66,$C66:BG66,EC66,$BY66:EC66) -> 0 | EE66: =payout($A66,BI66,$C66:BH66,ED66,$BY66:ED66) -> 0 | EF66: =payout($A66,BJ66,$C66:BI66,EE66,$BY66:EE66) -> 0 | EG66: =payout($A66,BK66,$C66:BJ66,EF66,$BY66:EF66) -> 0 | EH66: =payout($A66,BL66,$C66:BK66,EG66,$BY66:EG66) -> 0 | EI66: =payout($A66,BM66,$C66:BL66,EH66,$BY66:EH66) -> 0 | EJ66: =payout($A66,BN66,$C66:BM66,EI66,$BY66:EI66) -> 0 | EK66: =payout($A66,BO66,$C66:BN66,EJ66,$BY66:EJ66) -> 0 | EL66: =payout($A66,BP66,$C66:BO66,EK66,$BY66:EK66) -> 0 | EM66: =payout($A66,BQ66,$C66:BP66,EL66,$BY66:EL66) -> 0 | EN66: =payout($A66,BR66,$C66:BQ66,EM66,$BY66:EM66) -> 0 | EO66: =payout($A66,BS66,$C66:BR66,EN66,$BY66:EN66) -> 0 | EP66: =payout($A66,BT66,$C66:BS66,EO66,$BY66:EO66) -> 0 | EQ66: =payout($A66,BU66,$C66:BT66,EP66,$BY66:EP66) -> 0
A67: =get_bond_grade($A$16:A66,$BX$5,$BY$5,$BZ$5) -> AAA | B67: 52 | C67: 1 | D67: =IF(C1070=10000,0,default_model($A67,D$13,$B67,D$14)) -> 1 | E67: 1 | F67: 1 | G67: 1 | H67: 1 | I67: 1 | J67: 1 | K67: 1 | L67: 1 | M67: 1 | N67: 1 | O67: 1 | P67: 1 | Q67: 1 | R67: 1 | S67: 1 | T67: 1 | U67: 1 | V67: 1 | W67: 1 | X67: 1 | Y67: 1 | Z67: 1 | AA67: 1 | AB67: 1 | AC67: 1 | AD67: 1 | AE67: 0 | AF67: 0 | AG67: 0 | AH67: 0 | AI67: 0 | AJ67: =IF(AI1070=10000,0,default_model($A67,AJ$13,$B67,AJ$14)) -> 0 | AK67: 0 | AL67: 0 | AM67: 0 | AN67: 0 | AO67: 0 | AP67: 0 | AQ67: 0 | AR67: 0 | AS67: 0 | AT67: 0 | AU67: 0 | AV67: 0 | AW67: 0 | AX67: 0 | AY67: 0 | AZ67: 0 | BA67: 0 | BB67: 0 | BC67: 0 | BD67: 0 | BE67: 0 | BF67: 0 | BG67: 0 | BH67: 0 | BI67: 0 | BJ67: 0 | BK67: 0 | BL67: 0 | BM67: 0 | BN67: 0 | BO67: 0 | BP67: =IF(BO1070=10000,0,default_model($A67,BP$13,$B67,BP$14)) -> 0 | BQ67: 0 | BR67: 0 | BS67: 0 | BT67: 0 | BU67: 0 | BW67: AAA | BX67: 52 | BY67: -10000 | BZ67: =payout($A67,D67,$C67:C67,BY67,$BY67:BY67) -> 6299.76 | CA67: =payout($A67,E67,$C67:D67,BZ67,$BY67:BZ67) -> 6299.76 | CB67: =payout($A67,F67,$C67:E67,CA67,$BY67:CA67) -> 6299.76 | CC67: =payout($A67,G67,$C67:F67,CB67,$BY67:CB67) -> 6299.76 | CD67: =payout($A67,H67,$C67:G67,CC67,$BY67:CC67) -> 6299.76 | CE67: =payout($A67,I67,$C67:H67,CD67,$BY67:CD67) -> 6299.76 | CF67: =payout($A67,J67,$C67:I67,CE67,$BY67:CE67) -> 6299.76 | CG67: =payout($A67,K67,$C67:J67,CF67,$BY67:CF67) -> 6299.76 | CH67: =payout($A67,L67,$C67:K67,CG67,$BY67:CG67) -> 6299.76 | CI67: =payout($A67,M67,$C67:L67,CH67,$BY67:CH67) -> 6299.76 | CJ67: =payout($A67,N67,$C67:M67,CI67,$BY67:CI67) -> 6299.76 | CK67: =payout($A67,O67,$C67:N67,CJ67,$BY67:CJ67) -> 6299.76 | CL67: =payout($A67,P67,$C67:O67,CK67,$BY67:CK67) -> 6299.76 | CM67: =payout($A67,Q67,$C67:P67,CL67,$BY67:CL67) -> 6299.76 | CN67: =payout($A67,R67,$C67:Q67,CM67,$BY67:CM67) -> 6299.76 | CO67: =payout($A67,S67,$C67:R67,CN67,$BY67:CN67) -> 6299.76 | CP67: =payout($A67,T67,$C67:S67,CO67,$BY67:CO67) -> 6299.76 | CQ67: =payout($A67,U67,$C67:T67,CP67,$BY67:CP67) -> 6299.76 | CR67: =payout($A67,V67,$C67:U67,CQ67,$BY67:CQ67) -> 6299.76 | CS67: =payout($A67,W67,$C67:V67,CR67,$BY67:CR67) -> 6299.76 | CT67: =payout($A67,X67,$C67:W67,CS67,$BY67:CS67) -> 6299.76 | CU67: =payout($A67,Y67,$C67:X67,CT67,$BY67:CT67) -> 6299.76 | CV67: =payout($A67,Z67,$C67:Y67,CU67,$BY67:CU67) -> 6299.76 | CW67: =payout($A67,AA67,$C67:Z67,CV67,$BY67:CV67) -> 6299.76 | CX67: =payout($A67,AB67,$C67:AA67,CW67,$BY67:CW67) -> 6299.76 | CY67: =payout($A67,AC67,$C67:AB67,CX67,$BY67:CX67) -> 6299.76 | CZ67: =payout($A67,AD67,$C67:AC67,CY67,$BY67:CY67) -> 6299.76 | DA67: =payout($A67,AE67,$C67:AD67,CZ67,$BY67:CZ67) -> 6299.76 | DB67: =payout($A67,AF67,$C67:AE67,DA67,$BY67:DA67) -> 6299.76 | DC67: =payout($A67,AG67,$C67:AF67,DB67,$BY67:DB67) -> 6299.76 | DD67: =payout($A67,AH67,$C67:AG67,DC67,$BY67:DC67) -> 6299.76 | DE67: =payout($A67,AI67,$C67:AH67,DD67,$BY67:DD67) -> 6299.76 | DF67: =payout($A67,AJ67,$C67:AI67,DE67,$BY67:DE67) -> 6299.76 | DG67: =payout($A67,AK67,$C67:AJ67,DF67,$BY67:DF67) -> 6299.76 | DH67: =payout($A67,AL67,$C67:AK67,DG67,$BY67:DG67) -> 6299.76 | DI67: =payout($A67,AM67,$C67:AL67,DH67,$BY67:DH67) -> 6299.76 | DJ67: =payout($A67,AN67,$C67:AM67,DI67,$BY67:DI67) -> 6299.76 | DK67: =payout($A67,AO67,$C67:AN67,DJ67,$BY67:DJ67) -> 6299.76 | DL67: =payout($A67,AP67,$C67:AO67,DK67,$BY67:DK67) -> 6299.76 | DM67: =payout($A67,AQ67,$C67:AP67,DL67,$BY67:DL67) -> 6299.76 | DN67: =payout($A67,AR67,$C67:AQ67,DM67,$BY67:DM67) -> 16299.76 | DO67: =payout($A67,AS67,$C67:AR67,DN67,$BY67:DN67) -> 0 | DP67: =payout($A67,AT67,$C67:AS67,DO67,$BY67:DO67) -> 0 | DQ67: =payout($A67,AU67,$C67:AT67,DP67,$BY67:DP67) -> 0 | DR67: =payout($A67,AV67,$C67:AU67,DQ67,$BY67:DQ67) -> 0 | DS67: =payout($A67,AW67,$C67:AV67,DR67,$BY67:DR67) -> 0 | DT67: =payout($A67,AX67,$C67:AW67,DS67,$BY67:DS67) -> 0 | DU67: =payout($A67,AY67,$C67:AX67,DT67,$BY67:DT67) -> 0 | DV67: =payout($A67,AZ67,$C67:AY67,DU67,$BY67:DU67) -> 0 | DW67: =payout($A67,BA67,$C67:AZ67,DV67,$BY67:DV67) -> 0 | DX67: =payout($A67,BB67,$C67:BA67,DW67,$BY67:DW67) -> 0 | DY67: =payout($A67,BC67,$C67:BB67,DX67,$BY67:DX67) -> 0 | DZ67: =payout($A67,BD67,$C67:BC67,DY67,$BY67:DY67) -> 0 | EA67: =payout($A67,BE67,$C67:BD67,DZ67,$BY67:DZ67) -> 0 | EB67: =payout($A67,BF67,$C67:BE67,EA67,$BY67:EA67) -> 0 | EC67: =payout($A67,BG67,$C67:BF67,EB67,$BY67:EB67) -> 0 | ED67: =payout($A67,BH67,$C67:BG67,EC67,$BY67:EC67) -> 0 | EE67: =payout($A67,BI67,$C67:BH67,ED67,$BY67:ED67) -> 0 | EF67: =payout($A67,BJ67,$C67:BI67,EE67,$BY67:EE67) -> 0 | EG67: =payout($A67,BK67,$C67:BJ67,EF67,$BY67:EF67) -> 0 | EH67: =payout($A67,BL67,$C67:BK67,EG67,$BY67:EG67) -> 0 | EI67: =payout($A67,BM67,$C67:BL67,EH67,$BY67:EH67) -> 0 | EJ67: =payout($A67,BN67,$C67:BM67,EI67,$BY67:EI67) -> 0 | EK67: =payout($A67,BO67,$C67:BN67,EJ67,$BY67:EJ67) -> 0 | EL67: =payout($A67,BP67,$C67:BO67,EK67,$BY67:EK67) -> 0 | EM67: =payout($A67,BQ67,$C67:BP67,EL67,$BY67:EL67) -> 0 | EN67: =payout($A67,BR67,$C67:BQ67,EM67,$BY67:EM67) -> 0 | EO67: =payout($A67,BS67,$C67:BR67,EN67,$BY67:EN67) -> 0 | EP67: =payout($A67,BT67,$C67:BS67,EO67,$BY67:EO67) -> 0 | EQ67: =payout($A67,BU67,$C67:BT67,EP67,$BY67:EP67) -> 0
A68: =get_bond_grade($A$16:A67,$BX$5,$BY$5,$BZ$5) -> AA | B68: 53 | C68: 1 | D68: =IF(C1071=10000,0,default_model($A68,D$13,$B68,D$14)) -> 1 | E68: 1 | F68: 1 | G68: 1 | H68: 1 | I68: 1 | J68: 1 | K68: 1 | L68: 1 | M68: 1 | N68: 1 | O68: 1 | P68: 1 | Q68: 1 | R68: 1 | S68: 1 | T68: 1 | U68: 1 | V68: 1 | W68: 1 | X68: 1 | Y68: 1 | Z68: 1 | AA68: 1 | AB68: 1 | AC68: 1 | AD68: 1 | AE68: 0 | AF68: 0 | AG68: 0 | AH68: 0 | AI68: 0 | AJ68: =IF(AI1071=10000,0,default_model($A68,AJ$13,$B68,AJ$14)) -> 0 | AK68: 0 | AL68: 0 | AM68: 0 | AN68: 0 | AO68: 0 | AP68: 0 | AQ68: 0 | AR68: 0 | AS68: 0 | AT68: 0 | AU68: 0 | AV68: 0 | AW68: 0 | AX68: 0 | AY68: 0 | AZ68: 0 | BA68: 0 | BB68: 0 | BC68: 0 | BD68: 0 | BE68: 0 | BF68: 0 | BG68: 0 | BH68: 0 | BI68: 0 | BJ68: 0 | BK68: 0 | BL68: 0 | BM68: 0 | BN68: 0 | BO68: 0 | BP68: =IF(BO1071=10000,0,default_model($A68,BP$13,$B68,BP$14)) -> 0 | BQ68: 0 | BR68: 0 | BS68: 0 | BT68: 0 | BU68: 0 | BW68: AA | BX68: 53 | BY68: -10000 | BZ68: =payout($A68,D68,$C68:C68,BY68,$BY68:BY68) -> 7921.03 | CA68: =payout($A68,E68,$C68:D68,BZ68,$BY68:BZ68) -> 7921.03 | CB68: =payout($A68,F68,$C68:E68,CA68,$BY68:CA68) -> 7921.03 | CC68: =payout($A68,G68,$C68:F68,CB68,$BY68:CB68) -> 7921.03 | CD68: =payout($A68,H68,$C68:G68,CC68,$BY68:CC68) -> 7921.03 | CE68: =payout($A68,I68,$C68:H68,CD68,$BY68:CD68) -> 7921.03 | CF68: =payout($A68,J68,$C68:I68,CE68,$BY68:CE68) -> 7921.03 | CG68: =payout($A68,K68,$C68:J68,CF68,$BY68:CF68) -> 7921.03 | CH68: =payout($A68,L68,$C68:K68,CG68,$BY68:CG68) -> 7921.03 | CI68: =payout($A68,M68,$C68:L68,CH68,$BY68:CH68) -> 7921.03 | CJ68: =payout($A68,N68,$C68:M68,CI68,$BY68:CI68) -> 7921.03 | CK68: =payout($A68,O68,$C68:N68,CJ68,$BY68:CJ68) -> 7921.03 | CL68: =payout($A68,P68,$C68:O68,CK68,$BY68:CK68) -> 7921.03 | CM68: =payout($A68,Q68,$C68:P68,CL68,$BY68:CL68) -> 7921.03 | CN68: =payout($A68,R68,$C68:Q68,CM68,$BY68:CM68) -> 7921.03 | CO68: =payout($A68,S68,$C68:R68,CN68,$BY68:CN68) -> 7921.03 | CP68: =payout($A68,T68,$C68:S68,CO68,$BY68:CO68) -> 7921.03 | CQ68: =payout($A68,U68,$C68:T68,CP68,$BY68:CP68) -> 7921.03 | CR68: =payout($A68,V68,$C68:U68,CQ68,$BY68:CQ68) -> 7921.03 | CS68: =payout($A68,W68,$C68:V68,CR68,$BY68:CR68) -> 7921.03 | CT68: =payout($A68,X68,$C68:W68,CS68,$BY68:CS68) -> 7921.03 | CU68: =payout($A68,Y68,$C68:X68,CT68,$BY68:CT68) -> 7921.03 | CV68: =payout($A68,Z68,$C68:Y68,CU68,$BY68:CU68) -> 7921.03 | CW68: =payout($A68,AA68,$C68:Z68,CV68,$BY68:CV68) -> 7921.03 | CX68: =payout($A68,AB68,$C68:AA68,CW68,$BY68:CW68) -> 7921.03 | CY68: =payout($A68,AC68,$C68:AB68,CX68,$BY68:CX68) -> 7921.03 | CZ68: =payout($A68,AD68,$C68:AC68,CY68,$BY68:CY68) -> 7921.03 | DA68: =payout($A68,AE68,$C68:AD68,CZ68,$BY68:CZ68) -> 7921.03 | DB68: =payout($A68,AF68,$C68:AE68,DA68,$BY68:DA68) -> 7921.03 | DC68: =payout($A68,AG68,$C68:AF68,DB68,$BY68:DB68) -> 7921.03 | DD68: =payout($A68,AH68,$C68:AG68,DC68,$BY68:DC68) -> 7921.03 | DE68: =payout($A68,AI68,$C68:AH68,DD68,$BY68:DD68) -> 7921.03 | DF68: =payout($A68,AJ68,$C68:AI68,DE68,$BY68:DE68) -> 7921.03 | DG68: =payout($A68,AK68,$C68:AJ68,DF68,$BY68:DF68) -> 7921.03 | DH68: =payout($A68,AL68,$C68:AK68,DG68,$BY68:DG68) -> 7921.03 | DI68: =payout($A68,AM68,$C68:AL68,DH68,$BY68:DH68) -> 7921.03 | DJ68: =payout($A68,AN68,$C68:AM68,DI68,$BY68:DI68) -> 7921.03 | DK68: =payout($A68,AO68,$C68:AN68,DJ68,$BY68:DJ68) -> 7921.03 | DL68: =payout($A68,AP68,$C68:AO68,DK68,$BY68:DK68) -> 7921.03 | DM68: =payout($A68,AQ68,$C68:AP68,DL68,$BY68:DL68) -> 7921.03 | DN68: =payout($A68,AR68,$C68:AQ68,DM68,$BY68:DM68) -> 17921.03 | DO68: =payout($A68,AS68,$C68:AR68,DN68,$BY68:DN68) -> 0 | DP68: =payout($A68,AT68,$C68:AS68,DO68,$BY68:DO68) -> 0 | DQ68: =payout($A68,AU68,$C68:AT68,DP68,$BY68:DP68) -> 0 | DR68: =payout($A68,AV68,$C68:AU68,DQ68,$BY68:DQ68) -> 0 | DS68: =payout($A68,AW68,$C68:AV68,DR68,$BY68:DR68) -> 0 | DT68: =payout($A68,AX68,$C68:AW68,DS68,$BY68:DS68) -> 0 | DU68: =payout($A68,AY68,$C68:AX68,DT68,$BY68:DT68) -> 0 | DV68: =payout($A68,AZ68,$C68:AY68,DU68,$BY68:DU68) -> 0 | DW68: =payout($A68,BA68,$C68:AZ68,DV68,$BY68:DV68) -> 0 | DX68: =payout($A68,BB68,$C68:BA68,DW68,$BY68:DW68) -> 0 | DY68: =payout($A68,BC68,$C68:BB68,DX68,$BY68:DX68) -> 0 | DZ68: =payout($A68,BD68,$C68:BC68,DY68,$BY68:DY68) -> 0 | EA68: =payout($A68,BE68,$C68:BD68,DZ68,$BY68:DZ68) -> 0 | EB68: =payout($A68,BF68,$C68:BE68,EA68,$BY68:EA68) -> 0 | EC68: =payout($A68,BG68,$C68:BF68,EB68,$BY68:EB68) -> 0 | ED68: =payout($A68,BH68,$C68:BG68,EC68,$BY68:EC68) -> 0 | EE68: =payout($A68,BI68,$C68:BH68,ED68,$BY68:ED68) -> 0 | EF68: =payout($A68,BJ68,$C68:BI68,EE68,$BY68:EE68) -> 0 | EG68: =payout($A68,BK68,$C68:BJ68,EF68,$BY68:EF68) -> 0 | EH68: =payout($A68,BL68,$C68:BK68,EG68,$BY68:EG68) -> 0 | EI68: =payout($A68,BM68,$C68:BL68,EH68,$BY68:EH68) -> 0 | EJ68: =payout($A68,BN68,$C68:BM68,EI68,$BY68:EI68) -> 0 | EK68: =payout($A68,BO68,$C68:BN68,EJ68,$BY68:EJ68) -> 0 | EL68: =payout($A68,BP68,$C68:BO68,EK68,$BY68:EK68) -> 0 | EM68: =payout($A68,BQ68,$C68:BP68,EL68,$BY68:EL68) -> 0 | EN68: =payout($A68,BR68,$C68:BQ68,EM68,$BY68:EM68) -> 0 | EO68: =payout($A68,BS68,$C68:BR68,EN68,$BY68:EN68) -> 0 | EP68: =payout($A68,BT68,$C68:BS68,EO68,$BY68:EO68) -> 0 | EQ68: =payout($A68,BU68,$C68:BT68,EP68,$BY68:EP68) -> 0
A69: =get_bond_grade($A$16:A68,$BX$5,$BY$5,$BZ$5) -> AAA | B69: 54 | C69: 1 | D69: =IF(C1072=10000,0,default_model($A69,D$13,$B69,D$14)) -> 1 | E69: 1 | F69: 1 | G69: 1 | H69: 1 | I69: 1 | J69: 1 | K69: 1 | L69: 1 | M69: 1 | N69: 1 | O69: 1 | P69: 1 | Q69: 1 | R69: 1 | S69: 1 | T69: 1 | U69: 1 | V69: 1 | W69: 1 | X69: 1 | Y69: 1 | Z69: 1 | AA69: 1 | AB69: 1 | AC69: 1 | AD69: 1 | AE69: 0 | AF69: 0 | AG69: 0 | AH69: 0 | AI69: 0 | AJ69: =IF(AI1072=10000,0,default_model($A69,AJ$13,$B69,AJ$14)) -> 0 | AK69: 0 | AL69: 0 | AM69: 0 | AN69: 0 | AO69: 0 | AP69: 0 | AQ69: 0 | AR69: 0 | AS69: 0 | AT69: 0 | AU69: 0 | AV69: 0 | AW69: 0 | AX69: 0 | AY69: 0 | AZ69: 0 | BA69: 0 | BB69: 0 | BC69: 0 | BD69: 0 | BE69: 0 | BF69: 0 | BG69: 0 | BH69: 0 | BI69: 0 | BJ69: 0 | BK69: 0 | BL69: 0 | BM69: 0 | BN69: 0 | BO69: 0 | BP69: =IF(BO1072=10000,0,default_model($A69,BP$13,$B69,BP$14)) -> 0 | BQ69: 0 | BR69: 0 | BS69: 0 | BT69: 0 | BU69: 0 | BW69: AAA | BX69: 54 | BY69: -10000 | BZ69: =payout($A69,D69,$C69:C69,BY69,$BY69:BY69) -> 6299.76 | CA69: =payout($A69,E69,$C69:D69,BZ69,$BY69:BZ69) -> 6299.76 | CB69: =payout($A69,F69,$C69:E69,CA69,$BY69:CA69) -> 6299.76 | CC69: =payout($A69,G69,$C69:F69,CB69,$BY69:CB69) -> 6299.76 | CD69: =payout($A69,H69,$C69:G69,CC69,$BY69:CC69) -> 6299.76 | CE69: =payout($A69,I69,$C69:H69,CD69,$BY69:CD69) -> 6299.76 | CF69: =payout($A69,J69,$C69:I69,CE69,$BY69:CE69) -> 6299.76 | CG69: =payout($A69,K69,$C69:J69,CF69,$BY69:CF69) -> 6299.76 | CH69: =payout($A69,L69,$C69:K69,CG69,$BY69:CG69) -> 6299.76 | CI69: =payout($A69,M69,$C69:L69,CH69,$BY69:CH69) -> 6299.76 | CJ69: =payout($A69,N69,$C69:M69,CI69,$BY69:CI69) -> 6299.76 | CK69: =payout($A69,O69,$C69:N69,CJ69,$BY69:CJ69) -> 6299.76 | CL69: =payout($A69,P69,$C69:O69,CK69,$BY69:CK69) -> 6299.76 | CM69: =payout($A69,Q69,$C69:P69,CL69,$BY69:CL69) -> 6299.76 | CN69: =payout($A69,R69,$C69:Q69,CM69,$BY69:CM69) -> 6299.76 | CO69: =payout($A69,S69,$C69:R69,CN69,$BY69:CN69) -> 6299.76 | CP69: =payout($A69,T69,$C69:S69,CO69,$BY69:CO69) -> 6299.76 | CQ69: =payout($A69,U69,$C69:T69,CP69,$BY69:CP69) -> 6299.76 | CR69: =payout($A69,V69,$C69:U69,CQ69,$BY69:CQ69) -> 6299.76 | CS69: =payout($A69,W69,$C69:V69,CR69,$BY69:CR69) -> 6299.76 | CT69: =payout($A69,X69,$C69:W69,CS69,$BY69:CS69) -> 6299.76 | CU69: =payout($A69,Y69,$C69:X69,CT69,$BY69:CT69) -> 6299.76 | CV69: =payout($A69,Z69,$C69:Y69,CU69,$BY69:CU69) -> 6299.76 | CW69: =payout($A69,AA69,$C69:Z69,CV69,$BY69:CV69) -> 6299.76 | CX69: =payout($A69,AB69,$C69:AA69,CW69,$BY69:CW69) -> 6299.76 | CY69: =payout($A69,AC69,$C69:AB69,CX69,$BY69:CX69) -> 6299.76 | CZ69: =payout($A69,AD69,$C69:AC69,CY69,$BY69:CY69) -> 6299.76 | DA69: =payout($A69,AE69,$C69:AD69,CZ69,$BY69:CZ69) -> 6299.76 | DB69: =payout($A69,AF69,$C69:AE69,DA69,$BY69:DA69) -> 6299.76 | DC69: =payout($A69,AG69,$C69:AF69,DB69,$BY69:DB69) -> 6299.76 | DD69: =payout($A69,AH69,$C69:AG69,DC69,$BY69:DC69) -> 6299.76 | DE69: =payout($A69,AI69,$C69:AH69,DD69,$BY69:DD69) -> 6299.76 | DF69: =payout($A69,AJ69,$C69:AI69,DE69,$BY69:DE69) -> 6299.76 | DG69: =payout($A69,AK69,$C69:AJ69,DF69,$BY69:DF69) -> 6299.76 | DH69: =payout($A69,AL69,$C69:AK69,DG69,$BY69:DG69) -> 6299.76 | DI69: =payout($A69,AM69,$C69:AL69,DH69,$BY69:DH69) -> 6299.76 | DJ69: =payout($A69,AN69,$C69:AM69,DI69,$BY69:DI69) -> 6299.76 | DK69: =payout($A69,AO69,$C69:AN69,DJ69,$BY69:DJ69) -> 6299.76 | DL69: =payout($A69,AP69,$C69:AO69,DK69,$BY69:DK69) -> 6299.76 | DM69: =payout($A69,AQ69,$C69:AP69,DL69,$BY69:DL69) -> 6299.76 | DN69: =payout($A69,AR69,$C69:AQ69,DM69,$BY69:DM69) -> 16299.76 | DO69: =payout($A69,AS69,$C69:AR69,DN69,$BY69:DN69) -> 0 | DP69: =payout($A69,AT69,$C69:AS69,DO69,$BY69:DO69) -> 0 | DQ69: =payout($A69,AU69,$C69:AT69,DP69,$BY69:DP69) -> 0 | DR69: =payout($A69,AV69,$C69:AU69,DQ69,$BY69:DQ69) -> 0 | DS69: =payout($A69,AW69,$C69:AV69,DR69,$BY69:DR69) -> 0 | DT69: =payout($A69,AX69,$C69:AW69,DS69,$BY69:DS69) -> 0 | DU69: =payout($A69,AY69,$C69:AX69,DT69,$BY69:DT69) -> 0 | DV69: =payout($A69,AZ69,$C69:AY69,DU69,$BY69:DU69) -> 0 | DW69: =payout($A69,BA69,$C69:AZ69,DV69,$BY69:DV69) -> 0 | DX69: =payout($A69,BB69,$C69:BA69,DW69,$BY69:DW69) -> 0 | DY69: =payout($A69,BC69,$C69:BB69,DX69,$BY69:DX69) -> 0 | DZ69: =payout($A69,BD69,$C69:BC69,DY69,$BY69:DY69) -> 0 | EA69: =payout($A69,BE69,$C69:BD69,DZ69,$BY69:DZ69) -> 0 | EB69: =payout($A69,BF69,$C69:BE69,EA69,$BY69:EA69) -> 0 | EC69: =payout($A69,BG69,$C69:BF69,EB69,$BY69:EB69) -> 0 | ED69: =payout($A69,BH69,$C69:BG69,EC69,$BY69:EC69) -> 0 | EE69: =payout($A69,BI69,$C69:BH69,ED69,$BY69:ED69) -> 0 | EF69: =payout($A69,BJ69,$C69:BI69,EE69,$BY69:EE69) -> 0 | EG69: =payout($A69,BK69,$C69:BJ69,EF69,$BY69:EF69) -> 0 | EH69: =payout($A69,BL69,$C69:BK69,EG69,$BY69:EG69) -> 0 | EI69: =payout($A69,BM69,$C69:BL69,EH69,$BY69:EH69) -> 0 | EJ69: =payout($A69,BN69,$C69:BM69,EI69,$BY69:EI69) -> 0 | EK69: =payout($A69,BO69,$C69:BN69,EJ69,$BY69:EJ69) -> 0 | EL69: =payout($A69,BP69,$C69:BO69,EK69,$BY69:EK69) -> 0 | EM69: =payout($A69,BQ69,$C69:BP69,EL69,$BY69:EL69) -> 0 | EN69: =payout($A69,BR69,$C69:BQ69,EM69,$BY69:EM69) -> 0 | EO69: =payout($A69,BS69,$C69:BR69,EN69,$BY69:EN69) -> 0 | EP69: =payout($A69,BT69,$C69:BS69,EO69,$BY69:EO69) -> 0 | EQ69: =payout($A69,BU69,$C69:BT69,EP69,$BY69:EP69) -> 0
